Workbook

Sheet Cover

Sheet Main
A1: AGIG, DBNGP Tariff Model, Final Plan, Dec 2024
A2: Main Summary
A3: Ref | B3: =COLUMN() -> 2 | C3: =COLUMN() -> 3 | D3: =COLUMN() -> 4 | E3: =COLUMN() -> 5 | F3: =COLUMN() -> 6 | G3: =COLUMN() -> 7 | H3: =COLUMN() -> 8
A4: WACC
A5: =ROW() -> 5 | C5: Post-tax WACC | D5: =Inputs!AI6 -> 2026 | E5: =Inputs!AJ6 -> 2027 | F5: =Inputs!AK6 -> 2028 | G5: =Inputs!AL6 -> 2029 | H5: =Inputs!AM6 -> 2030 | Y5: Instruction for Annual Update of DRP:
A6: =ROW() -> 6 | C6: ="Real at "&Inputs!$E$28 -> Real at 31/12/2024 | D6: =WACC!Y$37 -> 0.04645293838 | E6: =WACC!Z$37 -> 0.04645293838 | F6: =WACC!AA$37 -> 0.04645293838 | G6: =WACC!AB$37 -> 0.04645293838 | H6: =WACC!AC$37 -> 0.04645293838 | Y6: (1) Excel VBA Macro must be enabled
A7: =ROW() -> 7 | C7: Nominal (Vanilla) | D7: =WACC!Y$36 -> 0.0693032562 | E7: =WACC!Z$36 -> 0.0693032562 | F7: =WACC!AA$36 -> 0.0693032562 | G7: =WACC!AB$36 -> 0.0693032562 | H7: =WACC!AC$36 -> 0.0693032562
A8: =ROW() -> 8 | Y8: (2) Update the current year Trailing Average DRP in the Input sheet
A9: Closing Regulated Asset Base | Y9: (3) Click the "Calculate" button to recalculate the model
A10: =ROW() -> 10 | Y10: Solver is used to calculate X-Factor (price change) and Cost of Raising Equity so that Delta=0
A11: =ROW() -> 11 | D11: December 2025 | E11: December 2030 | Y11: ="(4) The output will be a new X-Faxtor to compute new tariffs starting 1 January of the following" -> (4) The output will be a new X-Faxtor to compute new tariffs starting 1 January of the following
A12: =ROW() -> 12 | D12: =Inputs!$E$28&" [m$]" -> 31/12/2024 [m$] | E12: =Inputs!$E$28&" [m$]" -> 31/12/2024 [m$] | Y12: =" year in Real $ at "&Inputs!$E$28 -> year in Real $ at 31/12/2024
A13: =ROW() -> 13 | C13: Closing Asset Value of DBNGP including BEP Assets | D13: =ProposedApproach!AH33 -> 3453.071241 | E13: =ProposedApproach!AM33 -> 2924.904973
A14: =ROW() -> 14 | C14: Closing Asset Value of DBNGP Assets | D14: =ProposedApproach!AH47 -> 3432.889283 | E14: =ProposedApproach!AM47 -> 2907.450307 | AA14: Recalculate for years: | AB14: =Recalc_From_Year&" to 2030" -> 2026 to 2030
A15: =ROW() -> 15 | AB15: ="X-Factor_"&Inputs!AI6 -> X-Factor_2026 | AC15: ="X-Factor_"&Inputs!AJ6 -> X-Factor_2027 | AD15: ="X-Factor_"&Inputs!AK6 -> X-Factor_2028 | AE15: ="X-Factor_"&Inputs!AL6 -> X-Factor_2029 | AF15: ="X-Factor_"&Inputs!AM6 -> X-Factor_2030
A16: Revenue Building Block | O16: Revenue Building Block | AA16: X-Factor (price change) = | AB16: =SolverSheet!I13 -> 0.5262164151 | AC16: =SolverSheet!J13 -> 0 | AD16: =SolverSheet!K13 -> 0 | AE16: =SolverSheet!L13 -> 0 | AF16: =SolverSheet!M13 -> 0
A17: =ROW() -> 17 | E17: AA6 | AA17: Delta = | AB17: =SolverSheet!F16 -> 1.38015821e-10
A18: =ROW() -> 18 | D18: ="Real " -> Real | E18: Nominal | F18: Real [%] | G18: Nominal [%] | P18: ="Real at "&Inputs!$E$28&" [m$]" -> Real at 31/12/2024 [m$] | Q18: Nominal [m$] | Y18: (5) The Reference Tariff will also be presented after the actual September CPI is updated
A19: =ROW() -> 19 | B19: ="PV of Total Revenue (CoS) [m$ "&Inputs!$E$28&"]" -> PV of Total Revenue (CoS) [m$ 31/12/2024] | O19: ="Total Revenue (CoS)" -> Total Revenue (CoS)
A20: =ROW() -> 20 | C20: Opex | D20: =SUM(CoS_Tariff_Revenue!$F$76:$F$77) -> 538.5463775 | E20: =SUM(CoS_Tariff_Revenue!$F$41:$F$42) -> 552.123177 | F20: =D20/D$26 -> 0.2727489386 | G20: 0.2727489386 | O20: Opex | P20: =SUM(CoS_Tariff_Revenue!$AM$76:$AQ$77) -> 631.0773101 | Q20: =SUM(CoS_Tariff_Revenue!$AM$41:$AQ$42) -> 698.9248311
A21: =ROW() -> 21 | C21: Depreciation | D21: =CoS_Tariff_Revenue!$F$78 -> 708.6005391 | E21: =CoS_Tariff_Revenue!$F$43 -> 726.4644183 | F21: 0.35887354 | G21: 0.35887354 | O21: Depreciation | P21: =SUM(CoS_Tariff_Revenue!$AM$78:$AQ$78) -> 822.2250676 | Q21: =SUM(CoS_Tariff_Revenue!$AM$43:$AQ$43) -> 906.4482886 | Y21: Notes on colour codes
A22: =ROW() -> 22 | C22: Inflationary Gains on RAB | E22: =CoS_Tariff_Revenue!$F$44 -> -302.5475776 | F22: 0 | G22: -0.1494585522 | O22: Inflationary Gains on RAB | Q22: =SUM(CoS_Tariff_Revenue!$AM$44:$AQ$44) -> -380.8272328
A23: =ROW() -> 23 | C23: Return on Asset | D23: =CoS_Tariff_Revenue!$F$79 -> 641.5088403 | E23: =CoS_Tariff_Revenue!$F$45 -> 960.2289096 | F23: 0.3248946843 | G23: 0.4743532365 | O23: Return on Asset | P23: =SUM(CoS_Tariff_Revenue!$AM$79:$AQ$79) -> 748.8646783 | Q23: =SUM(CoS_Tariff_Revenue!$AM$45:$AQ$45) -> 1208.673761 | Y23: Number | Z23: ===> | AA23: Data entries
A24: =ROW() -> 24 | C24: Tax | D24: =CoS_Tariff_Revenue!$F$80 -> 171.7148712 | E24: =CoS_Tariff_Revenue!$F$46 -> 176.0438175 | F24: 0.08696567428 | G24: 0.08696567428 | O24: Tax | P24: =SUM(CoS_Tariff_Revenue!$AM$80:$AQ$80) -> 200.0594374 | Q24: =SUM(CoS_Tariff_Revenue!$AM$46:$AQ$46) -> 220.9982429 | Y24: Number | Z24: ===> | AA24: Number or texts that are linked to other sheet
A25: =ROW() -> 25 | C25: Imputation Credits | D25: =CoS_Tariff_Revenue!$F$81 -> -85.85743558 | E25: =CoS_Tariff_Revenue!$F$47 -> -88.02190874 | F25: -0.04348283714 | G25: -0.04348283714 | O25: Imputation Credits | P25: =SUM(CoS_Tariff_Revenue!$AM$81:$AQ$81) -> -100.0297187 | Q25: =SUM(CoS_Tariff_Revenue!$AM$47:$AQ$47) -> -110.4991214 | Y25: Number | Z25: ===> | AA25: Contains formula that is not consistent with the others in the same row
A26: =ROW() -> 26 | C26: Cost of Service | D26: =SUM(D20:D25) -> 1974.513193 | E26: =SUM(E20:E25) -> 2024.290836 | F26: 1 | G26: 1 | O26: Cost of Service | P26: =SUM(P20:P25) -> 2302.196775 | Q26: =SUM(Q20:Q25) -> 2543.718769 | Y26: -Number | Z26: ===> | AA26: Excel formatting for negative number
A27: =ROW() -> 27 | C27: less non-reference cost of service | D27: =CoS_Tariff_Revenue!F84 -> -9.872565963 | E27: =CoS_Tariff_Revenue!F50 -> -10.12145418 | O27: less non-reference cost of service | P27: =SUM(CoS_Tariff_Revenue!$AM$84:$AQ$84) -> -11.51098387 | Q27: =SUM(CoS_Tariff_Revenue!$AM$50:$AQ$50) -> -12.71859385
A28: =ROW() -> 28 | C28: add back SUG | D28: =CoS_Tariff_Revenue!F85 -> 0.4966859721 | E28: =CoS_Tariff_Revenue!F51 -> 0.5092074672 | O28: add back SUG | P28: =SUM(CoS_Tariff_Revenue!$AM$85:$AQ$85) -> 0.5831115507 | Q28: =SUM(CoS_Tariff_Revenue!$AM$51:$AQ$51) -> 0.6463971873
A29: =ROW() -> 29 | C29: Total Unsmooth Revenue | D29: =SUM(D26:D28) -> 1965.137313 | E29: =SUM(E26:E28) -> 2014.678589 | O29: Total Unsmooth Revenue | P29: =SUM(P26:P28) -> 2291.268902 | Q29: =SUM(Q26:Q28) -> 2531.646573
A30: =ROW() -> 30 | C30: Total Tariff Revenue | D30: =CoS_Tariff_Revenue!$F$87 -> 1965.137313 | E30: =CoS_Tariff_Revenue!$F$53 -> 2014.678589 | O30: Total Tariff Revenue | P30: =SUM(CoS_Tariff_Revenue!$AM$87:$AQ$87) -> 2299.371977 | Q30: =SUM(CoS_Tariff_Revenue!$AM$53:$AQ$53) -> 2544.680894
A31: =ROW() -> 31 | C31: Check: | D31: =IF(ROUND(D29-D30,5)=0,"OK","Wrong") -> OK | E31: =IF(ROUND(E29-E30,5)=0,"OK","Wrong") -> OK | O31: Difference (Unsmooth Revenue-Tariff Revenue) | P31: =P26-P30 -> 2.82479785 | Q31: =Q26-Q30 -> -0.9621246248
A32: =ROW() -> 32
A33: =ROW() -> 33
A34: Check on Building Block
A35: =ROW() -> 35
A36: =ROW() -> 36 | B36: ="PV of Regulatory Revenue [m$ "&Inputs!$E$28&"]" -> PV of Regulatory Revenue [m$ 31/12/2024]
A37: =ROW() -> 37 | C37: Asset Opening Value | D37: =-CoS_Tariff_Revenue!$F$113 -> 3458.310398
A38: =ROW() -> 38 | C38: Asset Residual Value | D38: =-CoS_Tariff_Revenue!$F$115 -> -2334.3807
A39: =ROW() -> 39 | C39: Opex | D39: =-CoS_Tariff_Revenue!$F$109 -> 552.123177
A40: =ROW() -> 40 | C40: Capex | D40: =-CoS_Tariff_Revenue!$F$114 -> 260.216052
A41: =ROW() -> 41 | C41: Tax | D41: =-CoS_Tariff_Revenue!$F$110 -> 176.0438175
A42: =ROW() -> 42 | C42: Imputation Credits | D42: =-CoS_Tariff_Revenue!$F$111 -> -88.02190874
A43: =ROW() -> 43 | C43: Cost of Service | D43: =SUM(D37:D42) -> 2024.290836
A44: =ROW() -> 44 | C44: Check: | D44: =IF(ROUND(E26-D43,8)=0,"OK","Wrong") -> OK
A45: =ROW() -> 45
A46: PV of Forecast Revenue | O46: Total of Forecast Revenue
A47: =ROW() -> 47 | P47: ="Real at "&Inputs!$E$28&" [m$]" -> Real at 31/12/2024 [m$] | Q47: Nominal [m$]
A48: =ROW() -> 48 | B48: ="PV of Forecast Revenue [m$ "&Inputs!$E$28&"]" -> PV of Forecast Revenue [m$ 31/12/2024] | O48: Total of Forecast Revenue
A49: =ROW() -> 49 | C49: Capacity Reservation | D49: =CoS_Tariff_Revenue!$F237 -> 1877.403199 | O49: Capacity Reservation | P49: =SUM(CoS_Tariff_Revenue!$AM$237:$AQ$237) -> 2196.793308 | Q49: =SUM(CoS_Tariff_Revenue!$AM$207:$AQ$207) -> 2431.1972
A50: =ROW() -> 50 | C50: Commodity | D50: =CoS_Tariff_Revenue!$F238 -> 87.73411399 | O50: Commodity | P50: =SUM(CoS_Tariff_Revenue!$AM$238:$AQ$238) -> 102.5786686 | Q50: =SUM(CoS_Tariff_Revenue!$AM$208:$AQ$208) -> 113.483694
A51: =ROW() -> 51 | C51: Regulated Revenue | D51: =CoS_Tariff_Revenue!$F239 -> 1965.137313 | O51: Regulated Revenue | P51: =SUM(CoS_Tariff_Revenue!$AM$239:$AQ$239) -> 2299.371977 | Q51: =SUM(CoS_Tariff_Revenue!$AM$209:$AQ$209) -> 2544.680894
A52: =ROW() -> 52 | C52: Check: | D52: =IF(ROUND(D29-D51,5)=0,"OK","Wrong") -> OK
A53: =ROW() -> 53
A54: =ROW() -> 54
A55: Forecast Reference Tariff | D55: 2026 | E55: 2027 | F55: 2028 | G55: 2029 | H55: 2030
D56: Jul-Dec | E56: Jan-Dec | F56: Jan-Dec | G56: Jan-Dec | H56: Jan-Dec
A57: =ROW() -> 57 | B57: Full Haul T1 Service (T1 Service)
A58: =ROW() -> 58 | B58: ="Tariff [$/GJ/day "&Inputs!$E$28&"]" -> Tariff [$/GJ/day 31/12/2024]
A59: =ROW() -> 59 | C59: Capacity Reservation Tariff | D59: =CoS_Tariff_Revenue!AM$260 -> 2.193107027 | E59: =CoS_Tariff_Revenue!AN$260 -> 2.193107027 | F59: =CoS_Tariff_Revenue!AO$260 -> 2.193107027 | G59: =CoS_Tariff_Revenue!AP$260 -> 2.193107027 | H59: =CoS_Tariff_Revenue!AQ$260 -> 2.193107027
A60: =ROW() -> 60 | C60: Commodity Tariff | D60: =CoS_Tariff_Revenue!AM$261 -> 0.1167633825 | E60: =CoS_Tariff_Revenue!AN$261 -> 0.1167633825 | F60: =CoS_Tariff_Revenue!AO$261 -> 0.1167633825 | G60: =CoS_Tariff_Revenue!AP$261 -> 0.1167633825 | H60: =CoS_Tariff_Revenue!AQ$261 -> 0.1167633825
A61: =ROW() -> 61 | C61: Total Tariff | D61: =CoS_Tariff_Revenue!AM$262 -> 2.30987041 | E61: =CoS_Tariff_Revenue!AN$262 -> 2.30987041 | F61: =CoS_Tariff_Revenue!AO$262 -> 2.30987041 | G61: =CoS_Tariff_Revenue!AP$262 -> 2.30987041 | H61: =CoS_Tariff_Revenue!AQ$262 -> 2.30987041
A62: =ROW() -> 62 | B62: Part Haul T1 Service (P1 Service)
A63: =ROW() -> 63 | B63: ="Tariff [$/GJ/day/km "&Inputs!$E$28&"]" -> Tariff [$/GJ/day/km 31/12/2024]
A64: =ROW() -> 64 | C64: Capacity Reservation Tariff | D64: =CoS_Tariff_Revenue!AM$270 -> 0.001567624751 | E64: =CoS_Tariff_Revenue!AN$270 -> 0.001567624751 | F64: =CoS_Tariff_Revenue!AO$270 -> 0.001567624751 | G64: =CoS_Tariff_Revenue!AP$270 -> 0.001567624751 | H64: =CoS_Tariff_Revenue!AQ$270 -> 0.001567624751
A65: =ROW() -> 65 | C65: Commodity Tariff | D65: =CoS_Tariff_Revenue!AM$271 -> 8.346203178e-05 | E65: =CoS_Tariff_Revenue!AN$271 -> 8.346203178e-05 | F65: =CoS_Tariff_Revenue!AO$271 -> 8.346203178e-05 | G65: =CoS_Tariff_Revenue!AP$271 -> 8.346203178e-05 | H65: =CoS_Tariff_Revenue!AQ$271 -> 8.346203178e-05
A66: =ROW() -> 66 | C66: Total Tariff | D66: =CoS_Tariff_Revenue!AM$272 -> 0.001651086783 | E66: =CoS_Tariff_Revenue!AN$272 -> 0.001651086783 | F66: =CoS_Tariff_Revenue!AO$272 -> 0.001651086783 | G66: =CoS_Tariff_Revenue!AP$272 -> 0.001651086783 | H66: =CoS_Tariff_Revenue!AQ$272 -> 0.001651086783
A67: =ROW() -> 67 | B67: Back Haul T1 Service (B1 Service)
A68: =ROW() -> 68 | B68: ="Tariff [$/GJ/day/km "&Inputs!$E$28&"]" -> Tariff [$/GJ/day/km 31/12/2024]
A69: =ROW() -> 69 | C69: Capacity Reservation Tariff | D69: =CoS_Tariff_Revenue!AM$280 -> 0.001567624751 | E69: =CoS_Tariff_Revenue!AN$280 -> 0.001567624751 | F69: =CoS_Tariff_Revenue!AO$280 -> 0.001567624751 | G69: =CoS_Tariff_Revenue!AP$280 -> 0.001567624751 | H69: =CoS_Tariff_Revenue!AQ$280 -> 0.001567624751
A70: =ROW() -> 70 | C70: Commodity Tariff | D70: =CoS_Tariff_Revenue!AM$281 -> 8.346203178e-05 | E70: =CoS_Tariff_Revenue!AN$281 -> 8.346203178e-05 | F70: =CoS_Tariff_Revenue!AO$281 -> 8.346203178e-05 | G70: =CoS_Tariff_Revenue!AP$281 -> 8.346203178e-05 | H70: =CoS_Tariff_Revenue!AQ$281 -> 8.346203178e-05
A71: =ROW() -> 71 | C71: Total Tariff | D71: =CoS_Tariff_Revenue!AM$282 -> 0.001651086783 | E71: =CoS_Tariff_Revenue!AN$282 -> 0.001651086783 | F71: =CoS_Tariff_Revenue!AO$282 -> 0.001651086783 | G71: =CoS_Tariff_Revenue!AP$282 -> 0.001651086783 | H71: =CoS_Tariff_Revenue!AQ$282 -> 0.001651086783
A72: =ROW() -> 72
A73: Reference Tariff (post rebate) | D73: =IF(Tariff_Variation!F$58="","",Tariff_Variation!F$58) ->  | E73: =IF(Tariff_Variation!G$58="","",Tariff_Variation!G$58) ->  | F73: =IF(Tariff_Variation!H$58="","",Tariff_Variation!H$58) ->  | G73: =IF(Tariff_Variation!I$58="","",Tariff_Variation!I$58) ->  | H73: =IF(Tariff_Variation!J$58="","",Tariff_Variation!J$58) -> 
D74: =IF(Tariff_Variation!F$59="","",Tariff_Variation!F$59) ->  | E74: =IF(Tariff_Variation!G$59="","",Tariff_Variation!G$59) ->  | F74: =IF(Tariff_Variation!H$59="","",Tariff_Variation!H$59) ->  | G74: =IF(Tariff_Variation!I$59="","",Tariff_Variation!I$59) ->  | H74: =IF(Tariff_Variation!J$59="","",Tariff_Variation!J$59) -> 
A75: =ROW() -> 75 | B75: Full Haul T1 Service (T1 Service)
A76: =ROW() -> 76 | B76: Tariff [$/GJ/day]
A77: =ROW() -> 77 | C77: Capacity Reservation Tariff | D77: =CoS_Tariff_Revenue!AM256 -> 2.323912492 | E77: =IF(Tariff_Variation!G$62="","",Tariff_Variation!G$62) ->  | F77: =IF(Tariff_Variation!H$62="","",Tariff_Variation!H$62) ->  | G77: =IF(Tariff_Variation!I$62="","",Tariff_Variation!I$62) ->  | H77: =IF(Tariff_Variation!J$62="","",Tariff_Variation!J$62) -> 
A78: =ROW() -> 78 | C78: Commodity Tariff | D78: =CoS_Tariff_Revenue!AM257 -> 0.1237276064 | E78: =IF(Tariff_Variation!G$63="","",Tariff_Variation!G$63) ->  | F78: =IF(Tariff_Variation!H$63="","",Tariff_Variation!H$63) ->  | G78: =IF(Tariff_Variation!I$63="","",Tariff_Variation!I$63) ->  | H78: =IF(Tariff_Variation!J$63="","",Tariff_Variation!J$63) -> 
A79: =ROW() -> 79 | C79: Total Tariff | D79: =CoS_Tariff_Revenue!AM258 -> 2.447640098 | E79: =IF(Tariff_Variation!G$64="","",Tariff_Variation!G$64) ->  | F79: =IF(Tariff_Variation!H$64="","",Tariff_Variation!H$64) ->  | G79: =IF(Tariff_Variation!I$64="","",Tariff_Variation!I$64) ->  | H79: =IF(Tariff_Variation!J$64="","",Tariff_Variation!J$64) -> 
A80: =ROW() -> 80 | B80: Part Haul T1 Service (P1 Service)
A81: =ROW() -> 81 | B81: Tariff [$/GJ/day/km
A82: =ROW() -> 82 | C82: Capacity Reservation Tariff | D82: =CoS_Tariff_Revenue!AM266 -> 0.001661124011 | E82: =IF(Tariff_Variation!G$68="","",Tariff_Variation!G$68) ->  | F82: =IF(Tariff_Variation!H$68="","",Tariff_Variation!H$68) ->  | G82: =IF(Tariff_Variation!I$68="","",Tariff_Variation!I$68) ->  | H82: =IF(Tariff_Variation!J$68="","",Tariff_Variation!J$68) -> 
A83: =ROW() -> 83 | C83: Commodity Tariff | D83: =CoS_Tariff_Revenue!AM267 -> 8.844003317e-05 | E83: =IF(Tariff_Variation!G$69="","",Tariff_Variation!G$69) ->  | F83: =IF(Tariff_Variation!H$69="","",Tariff_Variation!H$69) ->  | G83: =IF(Tariff_Variation!I$69="","",Tariff_Variation!I$69) ->  | H83: =IF(Tariff_Variation!J$69="","",Tariff_Variation!J$69) -> 
A84: =ROW() -> 84 | C84: Total Tariff | D84: =CoS_Tariff_Revenue!AM268 -> 0.001749564044 | E84: =IF(Tariff_Variation!G$70="","",Tariff_Variation!G$70) ->  | F84: =IF(Tariff_Variation!H$70="","",Tariff_Variation!H$70) ->  | G84: =IF(Tariff_Variation!I$70="","",Tariff_Variation!I$70) ->  | H84: =IF(Tariff_Variation!J$70="","",Tariff_Variation!J$70) -> 
A85: =ROW() -> 85 | B85: Back Haul T1 Service (B1 Service)
A86: =ROW() -> 86 | B86: Tariff [$/GJ/day/km
A87: =ROW() -> 87 | C87: Capacity Reservation Tariff | D87: =CoS_Tariff_Revenue!AM276 -> 0.001661124011 | E87: =IF(Tariff_Variation!G$74="","",Tariff_Variation!G$74) ->  | F87: =IF(Tariff_Variation!H$74="","",Tariff_Variation!H$74) ->  | G87: =IF(Tariff_Variation!I$74="","",Tariff_Variation!I$74) ->  | H87: =IF(Tariff_Variation!J$74="","",Tariff_Variation!J$74) -> 
A88: =ROW() -> 88 | C88: Commodity Tariff | D88: =CoS_Tariff_Revenue!AM277 -> 8.844003317e-05 | E88: =IF(Tariff_Variation!G$75="","",Tariff_Variation!G$75) ->  | F88: =IF(Tariff_Variation!H$75="","",Tariff_Variation!H$75) ->  | G88: =IF(Tariff_Variation!I$75="","",Tariff_Variation!I$75) ->  | H88: =IF(Tariff_Variation!J$75="","",Tariff_Variation!J$75) -> 
A89: =ROW() -> 89 | C89: Total Tariff | D89: =CoS_Tariff_Revenue!AM278 -> 0.001749564044 | E89: =IF(Tariff_Variation!G$76="","",Tariff_Variation!G$76) ->  | F89: =IF(Tariff_Variation!H$76="","",Tariff_Variation!H$76) ->  | G89: =IF(Tariff_Variation!I$76="","",Tariff_Variation!I$76) ->  | H89: =IF(Tariff_Variation!J$76="","",Tariff_Variation!J$76) -> 

Sheet Inputs
A1: =Main!A1 -> AGIG, DBNGP Tariff Model, Final Plan, Dec 2024
A2: =MID(CELL("filename",A1),FIND("]",CELL("filename",A1))+1,256) -> Inputs
A3: Ref. | B3: =COLUMN() -> 2 | C3: =COLUMN() -> 3 | D3: =COLUMN() -> 4 | E3: =COLUMN() -> 5 | F3: =COLUMN() -> 6 | G3: =COLUMN() -> 7 | H3: =COLUMN() -> 8 | I3: =COLUMN() -> 9 | J3: =COLUMN() -> 10 | K3: =COLUMN() -> 11 | L3: =COLUMN() -> 12 | M3: =COLUMN() -> 13 | N3: =COLUMN() -> 14 | O3: =COLUMN() -> 15 | P3: =COLUMN() -> 16 | Q3: =COLUMN() -> 17 | R3: =COLUMN() -> 18 | S3: =COLUMN() -> 19 | T3: =COLUMN() -> 20 | U3: =COLUMN() -> 21 | V3: =COLUMN() -> 22 | W3: =COLUMN() -> 23 | X3: =COLUMN() -> 24 | Y3: =COLUMN() -> 25 | Z3: =COLUMN() -> 26 | AA3: =COLUMN() -> 27 | AB3: =COLUMN() -> 28 | AC3: =COLUMN() -> 29 | AD3: =COLUMN() -> 30 | AE3: =COLUMN() -> 31 | AF3: =COLUMN() -> 32 | AG3: =COLUMN() -> 33 | AH3: =COLUMN() -> 34 | AI3: =COLUMN() -> 35 | AJ3: =COLUMN() -> 36 | AK3: =COLUMN() -> 37 | AL3: =COLUMN() -> 38 | AM3: =COLUMN() -> 39
A5: Regulatory Period | H5: AA1 | I5: AA1 | J5: AA1 | K5: AA1 | L5: AA1 | M5: AA1 | N5: AA2 | O5: AA2 | P5: AA2 | Q5: AA2 | R5: AA2 | S5: AA2 | T5: AA3 | U5: AA3 | V5: AA3 | W5: AA3 | X5: AA3 | Y5: AA4 | Z5: AA4 | AA5: AA4 | AB5: AA4 | AC5: AA4 | AD5: AA5 | AE5: AA5 | AF5: AA5 | AG5: AA5 | AH5: AA5 | AI5: AA6 | AJ5: AA6 | AK5: AA6 | AL5: AA6 | AM5: AA6
A6: Year ending (31-December) | F6: =G6-1 -> 1997 | G6: =H6-1 -> 1998 | H6: 1999 | I6: =H6+1 -> 2000 | J6: 2001 | K6: 2002 | L6: 2003 | M6: 2004 | N6: 2005 | O6: 2006 | P6: 2007 | Q6: 2008 | R6: 2009 | S6: 2010 | T6: 2011 | U6: 2012 | V6: 2013 | W6: 2014 | X6: 2015 | Y6: 2016 | Z6: 2017 | AA6: 2018 | AB6: 2019 | AC6: 2020 | AD6: 2021 | AE6: 2022 | AF6: 2023 | AG6: 2024 | AH6: 2025 | AI6: =AH6+1 -> 2026 | AJ6: =AI6+1 -> 2027 | AK6: =AJ6+1 -> 2028 | AL6: =AK6+1 -> 2029 | AM6: =AL6+1 -> 2030
A7: Days | F7: =IF(INT(F6/4)=F6/4,366,365) -> 365 | G7: 365 | H7: 365 | I7: 366 | J7: 365 | K7: 365 | L7: 365 | M7: 366 | N7: 365 | O7: 365 | P7: 365 | Q7: 366 | R7: 365 | S7: 365 | T7: 365 | U7: 366 | V7: 365 | W7: 365 | X7: 365 | Y7: 366 | Z7: 365 | AA7: 365 | AB7: 365 | AC7: 366 | AD7: 365 | AE7: 365 | AF7: 365 | AG7: 366 | AH7: 365 | AI7: =IF(INT(AI6/4)=AI6/4,366,365) -> 365 | AJ7: 365 | AK7: 366 | AL7: 365 | AM7: 365
A8: Project Year | F8: 0 | G8: 0 | H8: 0 | I8: =H8+1 -> 1 | J8: 2 | K8: 3 | L8: 4 | M8: 5 | N8: 6 | O8: 7 | P8: 8 | Q8: 9 | R8: 10 | S8: 11 | T8: 12 | U8: 13 | V8: 14 | W8: 15 | X8: 16 | Y8: 17 | Z8: 18 | AA8: 19 | AB8: 20 | AC8: 21 | AD8: 22 | AE8: 23 | AF8: 24 | AG8: 25 | AH8: 26 | AI8: =AH8+1 -> 27 | AJ8: =AI8+1 -> 28 | AK8: =AJ8+1 -> 29 | AL8: =AK8+1 -> 30 | AM8: =AL8+1 -> 31
A9: General Inputs
A10: =ROW() -> 10 | B10: Tariff Recalculation | D10: =IF(ISNUMBER($AM$11),$AM$6,IF(ISNUMBER($AL$11),$AL$6,IF(ISNUMBER($AK$11),$AK$6,IF(ISNUMBER(AJ$11),$AJ$6,$AI$6)))) -> 2026 | E10: =$AM$6 -> 2030
A11: =ROW() -> 11 | B11: Annual Debt Risk Premium (Annual Update)
A12: =ROW() -> 12 | B12: Trailing Average DRP (10 year ave, modelled) | AE12: =IF(WACC!U44="","",WACC!U44) ->  | AF12: =IF(WACC!V44="","",WACC!V44) ->  | AG12: =IF(WACC!W44="","",WACC!W44) ->  | AH12: =IF(WACC!X44="","",WACC!X44) ->  | AI12: =WACC!Y12 -> 0.01823451003
A13: =ROW() -> 13 | B13: X-Factor | AI13: =X_Factor_2026 -> 0.5262164151 | AJ13: =X_Factor_2027 -> 0 | AK13: =X_Factor_2028 -> 0 | AL13: =X_Factor_2029 -> 0 | AM13: =X_Factor_2030 -> 0
A14: =ROW() -> 14
A15: CPI and Inflations
A16: =ROW() -> 16 | B16: CPI and Inflation
A17: =ROW() -> 17 | C17: September CPI | W17: 106.4 | X17: 108 | Y17: 109.4 | Z17: 111.4 | AA17: 113.5 | AB17: 115.4 | AC17: 116.2
A18: =ROW() -> 18
A19: =ROW() -> 19 | C19: December CPI (pre Sep 2012 rebase) | F19: 117.6 | G19: 120.2 | H19: 124.1 | I19: 131.3 | J19: 135.4 | K19: 139.5 | L19: 142.8 | M19: 146.5 | N19: 150.6 | O19: 155.5 | P19: 160.1 | Q19: 166 | R19: 169.5 | S19: 174 | T19: 179.4
A20: =ROW() -> 20 | C20: December CPI | F20: =G20/(G21+1) -> 65.42073579 | G20: 66.8671126 | H20: 69.03667781 | I20: 73.04202899 | J20: 75.32285396 | K20: 77.60367893 | L20: 79.43946488 | M20: 81.49777035 | N20: 83.77859532 | O20: 86.50445931 | P20: 89.06343367 | Q20: 92.34559643 | R20: 94.29264214 | S20: 96.79598662 | T20: 99.8 | U20: 102 | V20: 104.8 | W20: 106.6 | X20: =108.4*1+109.5315*0 -> 108.4 | Y20: 110 | Z20: 112.1 | AA20: 114.1 | AB20: 116.2 | AC20: 117.2 | AD20: 121.3 | AE20: 130.8 | AF20: 136.1 | AG20: =AF20*(1+AG21) -> 139.6386 | AH20: 144.8052282 | AI20: =AH20*(1+AI21) -> 147.9671912 | AJ20: =AI20*(1+AJ21) -> 151.1981988 | AK20: =AJ20*(1+AK21) -> 154.4997585 | AL20: =AK20*(1+AL21) -> 157.873411 | AM20: =AL20*(1+AM21) -> 161.3207305
A21: =ROW() -> 21 | C21: December Inflation | G21: =G19/F19-1 -> 0.02210884354 | H21: 0.03244592346 | I21: 0.05801772764 | J21: 0.03122619954 | K21: 0.03028064993 | L21: 0.02365591398 | M21: 0.02591036415 | N21: 0.02798634812 | O21: 0.03253652058 | P21: 0.02958199357 | Q21: 0.03685196752 | R21: 0.02108433735 | S21: 0.02654867257 | T21: 0.03103448276 | U21: =U20/T20-1 -> 0.02204408818 | V21: 0.02745098039 | W21: 0.01717557252 | X21: 0.01688555347 | Y21: 0.0147601476 | Z21: 0.01909090909 | AA21: 0.0178412132 | AB21: 0.01840490798 | AC21: =AC20/AB20-1 -> 0.008605851979 | AD21: =AD20/AC20-1 -> 0.03498293515 | AE21: 0.07831821929 | AF21: 0.04051987768 | AG21: 0.026 | AH21: 0.037 | AI21: =WACC!Y$27 -> 0.02183597273 | AJ21: =WACC!Z$27 -> 0.02183597273 | AK21: =WACC!AA$27 -> 0.02183597273 | AL21: =WACC!AB$27 -> 0.02183597273 | AM21: =WACC!AC$27 -> 0.02183597273
A22: =ROW() -> 22 | C22: Inflation Factors | F22: =F20/$E$26 -> 0.4685003701 | G22: 0.4788583715 | H22: 0.4943953736 | I22: 0.5230790697 | J22: 0.5394128411 | K22: 0.5557466125 | L22: 0.5688933066 | M22: 0.5836335393 | N22: 0.5999673107 | O22: 0.6194881595 | P22: 0.6378138542 | Q22: 0.6613185497 | R22: 0.6752620131 | S22: 0.6931893232 | T22: 0.7147020953 | U22: 0.7304570513 | V22: 0.7505088135 | W22: 0.763399232 | X22: 0.7762896506 | Y22: 0.7877478004 | Z22: 0.802786622 | AA22: 0.8171093093 | AB22: 0.832148131 | AC22: 0.8393094746 | AD22: 0.8686709835 | AE22: 0.9367037481 | AF22: 0.9746588694 | AG22: 1 | AH22: 1.037 | AI22: 1.059643904 | AJ22: 1.082782259 | AK22: 1.106425863 | AL22: 1.130585748 | AM22: 1.155273188
A23: Financial Parameters
A24: =ROW() -> 24 | B24: Modelled Inflation
A25: =ROW() -> 25 | C25: Selected CPI period | D25: Base period: | E25: 2024-12-31 | F25: 1997-12-31 | G25: 1998-12-31 | H25: 1999-12-31 | I25: 2000-12-31 | J25: 2001-12-31 | K25: 2002-12-31 | L25: 2003-12-31 | M25: 2004-12-31 | N25: 2005-12-31 | O25: 2006-12-31 | P25: 2007-12-31 | Q25: 2008-12-31 | R25: 2009-12-31 | S25: 2010-12-31 | T25: 2011-12-31 | U25: 2012-12-31 | V25: 2013-12-31 | W25: 2014-12-31 | X25: 2015-12-31 | Y25: 2016-12-31 | Z25: 2017-12-31 | AA25: 2018-12-31 | AB25: 2019-12-31 | AC25: 2020-12-31 | AD25: 2021-12-31 | AE25: 2022-12-31 | AF25: 2023-12-31 | AG25: 2024-12-31 | AH25: 2025-12-31 | AI25: 2026-12-31 | AJ25: 2027-12-31 | AK25: 2028-12-31 | AL25: 2029-12-31 | AM25: 2030-12-31
A26: =ROW() -> 26 | C26: December CPI (modelled) | D26: Base CPI: | E26: =HLOOKUP($E$25,$H$25:$AH$26,2,FALSE) -> 139.6386 | F26: =G26/(G27+1) -> 69.03667781 | G26: 69.03667781 | H26: 69.03667781 | I26: 73.04202899 | J26: 75.32285396 | K26: 77.60367893 | L26: 79.43946488 | M26: 81.49777035 | N26: 83.77859532 | O26: 86.50445931 | P26: 89.06343367 | Q26: 92.34559643 | R26: 94.29264214 | S26: 96.79598662 | T26: =T20 -> 99.8 | U26: 102 | V26: 104.8 | W26: 106.6 | X26: 108.4 | Y26: 110 | Z26: 112.1 | AA26: 114.1 | AB26: 116.2 | AC26: 117.2 | AD26: 121.3 | AE26: 130.8 | AF26: 136.1 | AG26: 139.6386 | AH26: 144.8052282 | AI26: 147.9671912 | AJ26: 151.1981988 | AK26: 154.4997585 | AL26: 157.873411 | AM26: 161.3207305
A27: =ROW() -> 27 | C27: December Inflation | I27: =I21 -> 0.05801772764 | J27: 0.03122619954 | K27: 0.03028064993 | L27: 0.02365591398 | M27: 0.02591036415 | N27: 0.02798634812 | O27: 0.03253652058 | P27: 0.02958199357 | Q27: 0.03685196752 | R27: 0.02108433735 | S27: 0.02654867257 | T27: =T21 -> 0.03103448276 | U27: 0.02204408818 | V27: 0.02745098039 | W27: 0.01717557252 | X27: 0.01688555347 | Y27: 0.0147601476 | Z27: 0.01909090909 | AA27: 0.0178412132 | AB27: 0.01840490798 | AC27: 0.008605851979 | AD27: 0.03498293515 | AE27: 0.07831821929 | AF27: 0.04051987768 | AG27: 0.026 | AH27: 0.037 | AI27: 0.02183597273 | AJ27: 0.02183597273 | AK27: 0.02183597273 | AL27: 0.02183597273 | AM27: 0.02183597273
A28: =ROW() -> 28 | C28: ="Inflation Factor (convert " &$E$28& " $ to nominal $)" -> Inflation Factor (convert 31/12/2024 $ to nominal $) | D28: Real $ at | E28: =TEXT($E$25,"dd/mm/yyyy") -> 31/12/2024 | F28: =F$26/$E$26 -> 0.4943953736 | G28: 0.4943953736 | H28: 0.4943953736 | I28: 0.5230790697 | J28: 0.5394128411 | K28: 0.5557466125 | L28: 0.5688933066 | M28: 0.5836335393 | N28: 0.5999673107 | O28: 0.6194881595 | P28: 0.6378138542 | Q28: 0.6613185497 | R28: 0.6752620131 | S28: 0.6931893232 | T28: 0.7147020953 | U28: 0.7304570513 | V28: 0.7505088135 | W28: 0.763399232 | X28: 0.7762896506 | Y28: 0.7877478004 | Z28: 0.802786622 | AA28: 0.8171093093 | AB28: 0.832148131 | AC28: 0.8393094746 | AD28: 0.8686709835 | AE28: 0.9367037481 | AF28: 0.9746588694 | AG28: 1 | AH28: 1.037 | AI28: 1.059643904 | AJ28: 1.082782259 | AK28: 1.106425863 | AL28: 1.130585748 | AM28: 1.155273188
A29: =ROW() -> 29 | C29: ="Inflation Factor (convert nominal to real "&$E$28&" $)" -> Inflation Factor (convert nominal to real 31/12/2024 $) | F29: =1/F28 -> 2.022672649 | G29: 2.022672649 | H29: 2.022672649 | I29: 1.91175686 | J29: 1.85386762 | K29: 1.799381188 | L29: 1.75779885 | M29: 1.71340393 | N29: 1.666757475 | O29: 1.614235857 | P29: 1.567855564 | Q29: 1.512130577 | R29: 1.480906642 | S29: 1.442607332 | T29: 1.399184369 | U29: 1.369005882 | V29: 1.332429389 | W29: 1.309930582 | X29: 1.288178967 | Y29: 1.269441818 | Z29: 1.245661017 | AA29: 1.223826468 | AB29: 1.201709122 | AC29: 1.191455631 | AD29: 1.151183842 | AE29: 1.067573394 | AF29: 1.026 | AG29: 1 | AH29: 0.9643201543 | AI29: =1/AI28 -> 0.9437132573 | AJ29: 0.9235467164 | AK29: 0.9038111214 | AL29: 0.8844972633 | AM29: 0.8655961298
A30: =ROW() -> 30 | B30: Real Pre-tax WACC
A31: =ROW() -> 31 | C31: WACC | I31: 0.074 | J31: =I31 -> 0.074 | K31: =J31 -> 0.074 | L31: =K31 -> 0.074 | M31: =L31 -> 0.074 | N31: 0.07237578324 | O31: =N31 -> 0.07237578324 | P31: =O31 -> 0.07237578324 | Q31: =P31 -> 0.07237578324 | R31: =Q31 -> 0.07237578324 | S31: =R31 -> 0.07237578324 | T31: =WACC!$M$34 -> 0.05770812338 | U31: =WACC!$M$34 -> 0.05770812338 | V31: =WACC!$M$34 -> 0.05770812338 | W31: =WACC!$M$34 -> 0.05770812338 | X31: =WACC!$M$34 -> 0.05770812338
A32: =ROW() -> 32 | C32: Discounting Factor | I32: =J32/(1+J31) -> 0.4941978894 | J32: 0.5307685333 | K32: 0.5700454047 | L32: 0.6122287647 | M32: 0.6575336933 | N32: 0.7051232093 | O32: 0.7561570539 | P32: 0.8108845129 | Q32: 0.8695729146 | R32: 0.9325089354 | S32: 1 | T32: =S32*(1+T31) -> 1.057708123 | U32: =T32*(1+U31) -> 1.118746474 | V32: =U32*(1+V31) -> 1.183307234 | W32: =V32*(1+W31) -> 1.251593674 | X32: =W32*(1+X31) -> 1.323820796
A33: =ROW() -> 33 | B33: Real Post Tax WACC
A34: =ROW() -> 34 | C34: WACC | AC34: =AD34 -> 0.02365694513 | AD34: =WACC!T$37 -> 0.02365694513 | AE34: =WACC!U$37 -> 0.02365694513 | AF34: =WACC!V$37 -> 0.02365694513 | AG34: =WACC!W$37 -> 0.02365694513 | AH34: =WACC!X$37 -> 0.02365694513 | AI34: =WACC!Y$37 -> 0.04645293838 | AJ34: =WACC!Z$37 -> 0.04645293838 | AK34: =WACC!AA$37 -> 0.04645293838 | AL34: =WACC!AB$37 -> 0.04645293838 | AM34: =WACC!AC$37 -> 0.04645293838
A35: =ROW() -> 35 | C35: Discounting Factor | AB35: 1 | AC35: =AB35/(1+AC34) -> 0.9768897723 | AD35: 0.9543136271 | AE35: 0.9322592219 | AF35: 0.910714499 | AG35: 1 | AH35: 0.9768897723 | AI35: =AH35/(1+AI34) -> 0.9335248021 | AJ35: =AI35/(1+AJ34) -> 0.89208484 | AK35: =AJ35/(1+AK34) -> 0.8524844332 | AL35: =AK35/(1+AL34) -> 0.8146419222 | AM35: =AL35/(1+AM34) -> 0.7784792725
A36: =ROW() -> 36 | B36: Nominal Post Tax WACC
A37: =ROW() -> 37 | C37: WACC | AC37: =AD37 -> 0.035429 | AD37: =WACC!T$36 -> 0.035429 | AE37: =WACC!U$36 -> 0.035429 | AF37: =WACC!V$36 -> 0.035429 | AG37: =WACC!W$36 -> 0.035429 | AH37: =WACC!X$36 -> 0.035429 | AI37: =WACC!Y$36 -> 0.0693032562 | AJ37: =WACC!Z$36 -> 0.0693032562 | AK37: =WACC!AA$36 -> 0.0693032562 | AL37: =WACC!AB$36 -> 0.0693032562 | AM37: =WACC!AC$36 -> 0.0693032562
A38: =ROW() -> 38 | C38: Discounting Factor | AB38: 1 | AC38: =AB38/(1+AC37) -> 0.9657832647 | AD38: 0.9327373144 | AE38: 0.9008220886 | AF38: 0.8699988977 | AG38: 1 | AH38: 0.9657832647 | AI38: =AH38/(1+AI37) -> 0.9031893049 | AJ38: =AI38/(1+AJ37) -> 0.8446521599 | AK38: =AJ38/(1+AK37) -> 0.7899089009 | AL38: =AK38/(1+AL37) -> 0.7387136403 | AM38: =AL38/(1+AM37) -> 0.6908364264
A39: =ROW() -> 39
A40: Asset Life and Tax Asset Life
A41: =ROW() -> 41 | B41: Opening Capital Base (OCB) | D41: Economic Asset Life (years) | E41: Tax Asset Life (years) for assets prior to 2001
A42: =ROW() -> 42 | C42: Pipeline | D42: 54.5 | E42: 7.692307692
A43: =ROW() -> 43 | C43: Compression | D43: 19.60073141 | E43: 7.692307692
A44: =ROW() -> 44 | C44: Metering | D44: 38.50225195 | E44: 7.692307692
A45: =ROW() -> 45 | C45: Other Depreciable | D45: 16.85 | E45: 7.692307692
A46: =ROW() -> 46 | C46: Computers and Motor Vehicles
A47: =ROW() -> 47 | C47: Cathodic/Corrosion Protection
A48: =ROW() -> 48 | C48: SCADA, ECI and Comms
A49: =ROW() -> 49 | C49: Building
A50: =ROW() -> 50 | C50: Non-Depreciable
A51: =ROW() -> 51 | C51: Cost of Raising Equity
A52: =ROW() -> 52 | C52: BEP Lease
A53: =ROW() -> 53 | C53: Average | E53: 7.692307692
A54: =ROW() -> 54
A55: =ROW() -> 55 | B55: Assets acquired from 1-Jan-2001 to 2019 | D55: ERA AA4 Approved Economic Asset Life | E55: Tax Asset Life | F55: Economic Asset Life (Capex 2000-2004) | G55: Economic Asset Life (Capex 2005-2020) | H55: Economic Asset Life (Reclassed 2000-2004) | I55: Economic Asset Life (Reclassed 2005-2020) | J55: Shippers Economic Asset Life
A56: =ROW() -> 56 | C56: Pipeline | D56: 70 | E56: 20 | F56: 70 | G56: =F56 -> 70 | H56: =F56 -> 70 | I56: =G56 -> 70 | J56: 70
A57: =ROW() -> 57 | C57: Compression | D57: 30 | E57: 20 | F57: 30 | G57: =F57 -> 30 | H57: =F57 -> 30 | I57: =G57 -> 30 | J57: 30
A58: =ROW() -> 58 | C58: Metering | D58: 50 | E58: 15 | F58: 50 | G58: =F58 -> 50 | H58: 30 | I58: =H58 -> 30 | J58: 30
A59: =ROW() -> 59 | C59: Other Depreciable | D59: 30 | E59: 20 | F59: 30 | G59: 10 | H59: =F59 -> 30 | I59: =G59 -> 10 | J59: 10
A60: =ROW() -> 60 | C60: Computers and Motor Vehicles | E60: =E73 -> 5 | G60: =D73 -> 5 | I60: =G60 -> 5
A61: =ROW() -> 61 | C61: Cathodic/Corrosion Protection | E61: =E74 -> 15 | G61: =D74 -> 15 | I61: =G61 -> 15
A62: =ROW() -> 62 | C62: SCADA, ECI and Comms | E62: 10 | G62: 10 | I62: =G62 -> 10
A63: =ROW() -> 63 | C63: Building | D63: =D59 -> 30 | E63: =E59 -> 20 | F63: =F59 -> 30 | G63: =F63 -> 30 | H63: =F63 -> 30 | I63: =G63 -> 30 | J63: =F63 -> 30
A64: =ROW() -> 64 | C64: Non-Depreciable
A65: =ROW() -> 65 | C65: Cost of Raising Equity | D65: 62.59899528 | E65: 5 | F65: =$D65 -> 62.59899528 | G65: =$D65 -> 62.59899528 | H65: =F65 -> 62.59899528 | I65: =G65 -> 62.59899528
A66: =ROW() -> 66 | C66: BEP Lease | D66: 57 | E66: 20 | F66: =$D66 -> 57 | G66: =$D66 -> 57 | H66: =F66 -> 57 | I66: =G66 -> 57
A67: =ROW() -> 67
A68: =ROW() -> 68 | B68: Assets acquired from 1-Jan-2020 onwards | D68: Economic Asset Life | E68: Tax Asset Life
A69: =ROW() -> 69 | C69: Pipeline | D69: 42 | E69: 20
A70: =ROW() -> 70 | C70: Compression | D70: 30 | E70: 20
A71: =ROW() -> 71 | C71: Metering | D71: 30 | E71: 15
A72: =ROW() -> 72 | C72: Other Depreciable | D72: 10 | E72: 10
A73: =ROW() -> 73 | C73: Computers and Motor Vehicles | D73: 5 | E73: 5
A74: =ROW() -> 74 | C74: Cathodic/Corrosion Protection | D74: 15 | E74: 15
A75: =ROW() -> 75 | C75: SCADA, ECI and Comms | D75: 10 | E75: 10
A76: =ROW() -> 76 | C76: Building | D76: 50 | E76: 40
A77: =ROW() -> 77 | C77: Non-Depreciable
A78: =ROW() -> 78 | C78: Cost of Raising Equity | D78: =SUMPRODUCT($D$69:$D$76,ProposedApproach!$AI$56:$AI$63)/SUM(ProposedApproach!$AI$56:$AI$63) -> 38.19384635 | E78: 5
A79: =ROW() -> 79 | C79: BEP Lease | E79: 20
A80: =ROW() -> 80
A81: =ROW() -> 81 | C81: Pipeline economic end date (year) | D81: 2063
A82: =ROW() -> 82
A83: =ROW() -> 83
A84: Approved Asset Values
A85: =ROW() -> 85
A86: Hide | B86: Asset Closing Value (AA2 Approved Model) | H86: Asset Value (Using 8 Cities CPI) [m$ 31/12/2004]
A87: Hide | C87: Pipeline | H87: 1491.144143 | I87: 1465.332204 | J87: 1437.997073 | K87: 1410.691804 | L87: 1383.316745 | M87: 1356.556853
A88: Hide | C88: Compression | H88: 249.7980599 | I88: 234.2300841 | J88: 222.2871855 | K88: 208.8248294 | L88: 194.9820977 | M88: 181.3685957
A89: Hide | C89: Metering | H89: 20.48539349 | I89: 20.58425296 | J89: 20.62911002 | K89: 20.46484178 | L89: 19.89087446 | M89: 21.0188432
A90: Hide | C90: Other Depreciable | H90: 56.26053033 | I90: 58.6075319 | J90: 56.55249282 | K90: 53.60394018 | L90: 50.58698346 | M90: 47.34143322
A91: Hide | C91: Computers and Motor Vehicles
A92: Hide | C92: Cathodic/Corrosion Protection
A93: Hide | C93: SCADA , ECI And Comms
A94: Hide | C94: Building
A95: Hide | C95: Non-Depreciable | H95: 12.08624922 | I95: 12.08624922 | J95: 12.08624922 | K95: 12.08624922 | L95: 12.08624922 | M95: 12.08624922
A96: Hide | C96: Cost of Raising Equity
A97: Hide | C97: Total | H97: =SUM(H87:H95) -> 1829.774376 | I97: 1790.840322 | J97: 1749.552111 | K97: 1705.671665 | L97: 1660.86295 | M97: 1618.371975 | N97: =M160+M296-M97 -> 0
A98: Hide | B98: Asset Closing Value (modelled) | H98: ="AA1 [m$ "&$E$28&"]" -> AA1 [m$ 31/12/2024]
A99: Hide | C99: Pipeline | H99: =H87/$M$28 -> 2554.932234 | I99: 2510.705957 | J99: 2463.869837 | K99: 2417.084882 | L99: 2370.180347 | M99: 2324.329844
A100: Hide | C100: Compression | H100: 428.0049776 | I100: 401.3307466 | J100: 380.8677372 | K100: 357.8012834 | L100: 334.0830925 | M100: 310.7576646
A101: Hide | C101: Metering | H101: 35.09975371 | I101: 35.26913992 | J101: 35.34599819 | K101: 35.06454034 | L101: 34.08110247 | M101: 36.01376855
A102: Hide | C102: Other Depreciable | H102: 96.39701378 | I102: 100.4183755 | J102: 96.89726345 | K102: 91.84520176 | L102: 86.67593628 | M102: 81.11499774
A103: Hide | C103: Computers and Motor Vehicles | H103: 0 | I103: 0 | J103: 0 | K103: 0 | L103: 0 | M103: 0
A104: Hide | C104: Cathodic/Corrosion Protection | H104: 0 | I104: 0 | J104: 0 | K104: 0 | L104: 0 | M104: 0
A105: Hide | C105: SCADA , ECI And Comms | H105: 0 | I105: 0 | J105: 0 | K105: 0 | L105: 0 | M105: 0
A106: Hide | C106: Building
A107: Hide | C107: Non-Depreciable | H107: =H95/$M$28 -> 20.70862691 | I107: 20.70862691 | J107: 20.70862691 | K107: 20.70862691 | L107: 20.70862691 | M107: 20.70862691
A108: Hide | C108: Cost of Raising Equity
A109: Hide | C109: Total | H109: =SUM(H99:H107) -> 3135.142606 | I109: 3068.432846 | J109: 2997.689463 | K109: 2922.504534 | L109: 2845.729105 | M109: 2772.924902 | N109: =M172+M308-M109 -> 0
A110: =ROW() -> 110 | B110: Approved Asset Depreciation | I110: AA1 [m$ 31/12/2004] | N110: AA2 [m$ 31/12/2004] | T110: AA3 [m$ 31/12/2010] | Y110: AA4 [m$ 31/12/2015]
A111: =ROW() -> 111 | C111: Pipeline | I111: 27.36044298 | J111: 27.36769462 | K111: 27.37241662 | L111: 27.37508118 | M111: 27.38111859 | N111: 27.39286391 | O111: 27.45714465 | P111: 27.53919085 | Q111: 31.17101727 | R111: 35.0846799 | S111: 36.27857625 | T111: 51.02396609 | U111: 51.32938537 | V111: 51.38438537 | W111: 51.44374251 | X111: 51.45109965 | Y111: 58.22280694 | Z111: 58.27532839 | AA111: 58.31090964 | AB111: 58.3343277 | AC111: 58.41114566
A112: =ROW() -> 112 | C112: Compression | I112: 13.34090349 | J112: 13.37867948 | K112: 13.54985192 | L112: 13.72495936 | M112: 13.79696984 | N112: 12.54002538 | O112: 12.60559336 | P112: 14.89842708 | Q112: 18.80868067 | R112: 20.15568906 | S112: 20.16936446 | T112: 28.89687446 | U112: 30.09022971 | V112: 30.30905305 | W112: 30.37745305 | X112: 30.47051971 | Y112: 34.11317936 | Z112: 34.63363566 | AA112: 35.14508475 | AB112: 29.10932637 | AC112: 19.7779653
A113: =ROW() -> 113 | C113: Metering | I113: 0.5390160353 | J113: 0.5390160353 | K113: 0.5401965349 | L113: 0.5413770345 | M113: 0.5425575341 | N113: 0.5957306903 | O113: 0.6182928278 | P113: 0.6429066893 | Q113: 0.6459834996 | R113: 0.6459834996 | S113: 0.6459834996 | T113: 0.8078240677 | U113: 0.8188130383 | V113: 0.8285190383 | W113: 0.8816190383 | X113: 0.9347190383 | Y113: -0.2480729442 | Z113: 1.128477874 | AA113: 1.182157721 | AB113: 1.199164501 | AC113: 1.212144087
A114: =ROW() -> 114 | C114: Other Depreciable | I114: 3.338903877 | J114: 3.538093509 | K114: 3.736220692 | L114: 3.961302615 | M114: 4.147034552 | N114: 3.665652482 | O114: 3.799316054 | P114: 3.905292402 | Q114: 3.958281912 | R114: 4.140843923 | S114: 4.357940926 | T114: 7.061071921 | U114: 9.683287685 | V114: 9.766287685 | W114: 9.829621018 | X114: 9.979621018 | Y114: 5.884382829 | Z114: 6.35644569 | AA114: 6.444676422 | AB114: 6.531253531 | AC114: 6.589939801
A115: =ROW() -> 115 | C115: Computers and Motor Vehicles
A116: =ROW() -> 116 | C116: Cathodic/Corrosion Protection
A117: =ROW() -> 117 | C117: SCADA , ECI And Comms
A118: =ROW() -> 118 | C118: Building
A119: =ROW() -> 119 | C119: Non-Depreciable | I119: 0 | J119: 0 | K119: 0 | L119: 0 | M119: 0 | N119: 0 | O119: 0 | P119: 0 | Q119: 0 | R119: 0 | S119: 0 | T119: 0 | U119: 0 | V119: 0 | W119: 0 | X119: 0 | Y119: -0.06213890957 | Z119: 0 | AA119: 0 | AB119: 0 | AC119: 0
A120: =ROW() -> 120 | C120: Cost of Raising Equity
A121: =ROW() -> 121 | C121: Total | I121: =SUM(I111:I119) -> 44.57926639 | J121: 44.82348365 | K121: 45.19868577 | L121: 45.60272019 | M121: 45.86768051 | N121: 44.19427246 | O121: 44.48034689 | P121: 46.98581702 | Q121: 54.58396334 | R121: 60.02719638 | S121: 61.45186514 | T121: 87.78973655 | U121: 91.9217158 | V121: 92.28824514 | W121: 92.53243561 | X121: 92.83595942 | Y121: 97.91015727 | Z121: 100.3938876 | AA121: 101.0828285 | AB121: 95.1740721 | AC121: 85.99119485
A122: =ROW() -> 122 | B122: Approved Asset Depreciation (modelled) | I122: ="AA1 [m$ "&$E$28&"]" -> AA1 [m$ 31/12/2024] | N122: ="AA2 [m$ "&$E$28&"]" -> AA2 [m$ 31/12/2024] | T122: ="AA1 [m$ "&$E$28&"]" -> AA1 [m$ 31/12/2024] | Y122: ="AA1 [m$ "&$E$28&"]" -> AA1 [m$ 31/12/2024]
A123: =ROW() -> 123 | C123: Pipeline | I123: =I111/$M$28 -> 46.87949053 | J123: 46.89191552 | K123: 46.90000621 | L123: 46.90457168 | M123: 46.9149162 | N123: 46.93504067 | O123: 47.04517954 | P123: 47.18575783 | Q123: 53.40854349 | R123: 60.11422843 | S123: 62.15985513 | T123: =T111/$S$28 -> 73.60754759 | U123: 74.04814767 | V123: 74.12749108 | W123: 74.21312012 | X123: 74.22373359 | Y123: =Y111/$X$28 -> 75.00139529 | Z123: 75.06905232 | AA123: 75.11488733 | AB123: 75.14505399 | AC123: 75.24400927
A124: =ROW() -> 124 | C124: Compression | I124: =I112/$M$28 -> 22.85835648 | J124: 22.923082 | K124: 23.21636953 | L124: 23.51639931 | M124: 23.63978234 | N124: 21.48612877 | O124: 21.5984732 | P124: 25.52702351 | Q124: 32.22686737 | R124: 34.53483684 | S124: 34.55826833 | T124: 41.68684297 | U124: 43.408386 | V124: 43.72406215 | W124: 43.82273649 | X124: 43.95699514 | Y124: 43.94388014 | Z124: 44.614321 | AA124: 45.27315896 | AB124: 37.49802196 | AC124: 25.47755891
A125: =ROW() -> 125 | C125: Metering | I125: =I113/$M$28 -> 0.9235521932 | J125: 0.9235521932 | K125: 0.9255748659 | L125: 0.9275975385 | M125: 0.9296202112 | N125: 1.020727306 | O125: 1.059385361 | P125: 1.101558848 | Q125: 1.106830667 | R125: 1.106830667 | S125: 1.106830667 | T125: 1.165372923 | U125: 1.181225693 | V125: 1.195227639 | W125: 1.271830089 | X125: 1.348432538 | Y125: -0.3195623489 | Z125: 1.453681462 | AA125: 1.522830712 | AB125: 1.544738488 | AC125: 1.561458517
A126: =ROW() -> 126 | C126: Other Depreciable | I126: =I114/$M$28 -> 5.720891026 | J126: 6.062183324 | K126: 6.401655217 | L126: 6.787311469 | M126: 7.105545299 | N126: 6.280743369 | O126: 6.509763059 | P126: 6.69134335 | Q126: 6.782135785 | R126: 7.094938252 | S126: 7.466913109 | T126: 10.18635412 | U126: 13.96918181 | V126: 14.08891822 | W126: 14.18028335 | X126: 14.39667445 | Y126: 7.580138193 | Z126: 8.188239642 | AA126: 8.301896615 | AB126: 8.413423426 | AC126: 8.489021844
A127: =ROW() -> 127 | C127: Computers and Motor Vehicles | I127: =I115/$M$28 -> 0 | J127: 0 | K127: 0 | L127: 0 | M127: 0 | N127: 0 | O127: 0 | P127: 0 | Q127: 0 | R127: 0 | S127: 0 | T127: 0 | U127: 0 | V127: 0 | W127: 0 | X127: 0 | Y127: 0 | Z127: 0 | AA127: 0 | AB127: 0 | AC127: 0
A128: =ROW() -> 128 | C128: Cathodic/Corrosion Protection | I128: =I116/$M$28 -> 0 | J128: 0 | K128: 0 | L128: 0 | M128: 0 | N128: 0 | O128: 0 | P128: 0 | Q128: 0 | R128: 0 | S128: 0 | T128: 0 | U128: 0 | V128: 0 | W128: 0 | X128: 0 | Y128: 0 | Z128: 0 | AA128: 0 | AB128: 0 | AC128: 0
A129: =ROW() -> 129 | C129: SCADA , ECI And Comms | I129: =I117/$M$28 -> 0 | J129: 0 | K129: 0 | L129: 0 | M129: 0 | N129: 0 | O129: 0 | P129: 0 | Q129: 0 | R129: 0 | S129: 0 | T129: 0 | U129: 0 | V129: 0 | W129: 0 | X129: 0 | Y129: 0 | Z129: 0 | AA129: 0 | AB129: 0 | AC129: 0
A130: =ROW() -> 130 | C130: Building | I130: 0 | J130: 0 | K130: 0 | L130: 0 | M130: 0 | N130: 0 | O130: 0 | P130: 0 | Q130: 0 | R130: 0 | S130: 0 | T130: 0 | U130: 0 | V130: 0 | W130: 0 | X130: 0 | Y130: 0 | Z130: 0 | AA130: 0 | AB130: 0 | AC130: 0
A131: =ROW() -> 131 | C131: Non-Depreciable | I131: =I119/$M$28 -> 0 | J131: 0 | K131: 0 | L131: 0 | M131: 0 | N131: 0 | O131: 0 | P131: 0 | Q131: 0 | R131: 0 | S131: 0 | T131: =T119/$S$28 -> 0 | U131: =U119/$S$28 -> 0 | V131: =V119/$S$28 -> 0 | W131: =W119/$S$28 -> 0 | X131: =X119/$S$28 -> 0 | Y131: =Y119/$X$28 -> -0.08004603632 | Z131: =Z119/$X$28 -> 0 | AA131: =AA119/$X$28 -> 0 | AB131: =AB119/$X$28 -> 0 | AC131: =AC119/$X$28 -> 0
A132: =ROW() -> 132 | C132: Cost of Raising Equity
A133: =ROW() -> 133 | C133: Total | I133: =SUM(I123:I131) -> 76.38229023 | J133: 76.80073304 | K133: 77.44360583 | L133: 78.13587999 | M133: 78.58986405 | N133: 75.72264012 | O133: 76.21280116 | P133: 80.50568354 | Q133: 93.52437731 | R133: 102.8508342 | S133: 105.2918672 | T133: 126.6461176 | U133: 132.6069412 | V133: 133.1356991 | W133: 133.4879701 | X133: 133.9258357 | Y133: 126.1258052 | Z133: 129.3252944 | AA133: 130.2127736 | AB133: 122.6012379 | AC133: 110.7720485
A134: =ROW() -> 134
A135: Approved DBNGP OCB Values
A136: =ROW() -> 136 | F136: OCB [m$ 31/12/1999]
A137: =ROW() -> 137 | B137: OCB (AA1 & AA2 Approved Model) | E137: Tax Asset Life (years) | F137: Economic Asset Life (years) | G137: CV | H137: ="m$ " &$E$28 -> m$ 31/12/2024 | I137: m$ 31/12/204 | J137: ="m$ " &$E$28 -> m$ 31/12/2024
A138: =ROW() -> 138 | C138: Pipeline | E138: =E42 -> 7.692307692 | F138: =D42 -> 54.5 | G138: 1263.146676 | H138: =G138/$H$28 -> 2554.932234 | I138: 1491.144143 | J138: =I138/$M$28 -> 2554.932234
A139: =ROW() -> 139 | C139: Compression | E139: =E43 -> 7.692307692 | F139: =D43 -> 19.60073141 | G139: 211.6036808 | H139: =G139/$H$28 -> 428.0049776 | I139: 249.7980599 | J139: =I139/$M$28 -> 428.0049776
A140: =ROW() -> 140 | C140: Metering | E140: =E44 -> 7.692307692 | F140: =D44 -> 38.50225195 | G140: 17.35315585 | H140: =G140/$H$28 -> 35.09975371 | I140: 20.48539349 | J140: =I140/$M$28 -> 35.09975371
A141: =ROW() -> 141 | C141: Other Depreciable | E141: =E45 -> 7.692307692 | F141: =D45 -> 16.85 | G141: 47.65823764 | H141: =G141/$H$28 -> 96.39701378 | I141: 56.26053033 | J141: =I141/$M$28 -> 96.39701378
A142: =ROW() -> 142 | C142: Computers and Motor Vehicles
A143: =ROW() -> 143 | C143: Cathodic/Corrosion Protection
A144: =ROW() -> 144 | C144: SCADA , ECI And Comms
A145: =ROW() -> 145 | C145: Building
A146: =ROW() -> 146 | C146: Non-Depreciable | G146: 10.23824934 | H146: =G146/$H$28 -> 20.70862691 | I146: 12.08624922 | J146: =I146/$M$28 -> 20.70862691
A147: =ROW() -> 147 | C147: Cost of Raising Equity
A148: =ROW() -> 148 | C148: Total | G148: =SUM(G138:G146) -> 1550 | H148: =SUM(H138:H146) -> 3135.142606 | I148: =SUM(I138:I146) -> 1829.774376 | J148: =SUM(J138:J146) -> 3135.142606
A149: Hide | B149: Approved Asset Depreciation (AA2 Approved Model) | H149: OCB [m$ 31/12/2004]
A150: Hide | C150: Pipeline | H150: 1491.144143 | I150: 1463.7837 | J150: 1436.423257 | K150: 1409.062814 | L150: 1381.702371 | M150: 1354.341928
A151: Hide | C151: Compression | H151: 249.7980599 | I151: 236.4571564 | J151: 223.1162529 | K151: 209.7753494 | L151: 196.4344459 | M151: 183.0935424
A152: Hide | C152: Metering | H152: 20.48539349 | I152: 19.94637745 | J152: 19.40736142 | K152: 18.86834538 | L152: 18.32932935 | M152: 17.79031331
A153: Hide | C153: Other Depreciable | H153: 56.26053033 | I153: 52.92162646 | J153: 49.58272258 | K153: 46.2438187 | L153: 42.90491482 | M153: 39.56601095
A154: Hide | C154: Computers and Motor Vehicles
A155: Hide | C155: Cathodic/Corrosion Protection
A156: Hide | C156: SCADA , ECI And Comms
A157: Hide | C157: Building
A158: Hide | C158: Non-Depreciable | H158: 12.08624922 | I158: 12.08624922 | J158: 12.08624922 | K158: 12.08624922 | L158: 12.08624922 | M158: 12.08624922
A159: Hide | C159: Cost of Raising Equity
A160: Hide | C160: Total | H160: =SUM(H150:H158) -> 1829.774376 | I160: 1785.195109 | J160: 1740.615843 | K160: 1696.036576 | L160: 1651.45731 | M160: 1606.878044
A161: Hide | B161: OCB Closing Value (modelled) | H161: ="AA1 [m$ "&$E$28&"]" -> AA1 [m$ 31/12/2024]
A162: Hide | C162: Pipeline | H162: =H150/$M$28 -> 2554.932234 | I162: 2508.052744 | J162: 2461.173253 | K162: 2414.293763 | L162: 2367.414272 | M162: 2320.534781
A163: Hide | C163: Compression | H163: 428.0049776 | I163: 405.1466211 | J163: 382.2882646 | K163: 359.4299081 | L163: 336.5715517 | M163: 313.7131952
A164: Hide | C164: Metering | H164: 35.09975371 | I164: 34.17620152 | J164: 33.25264933 | K164: 32.32909713 | L164: 31.40554494 | M164: 30.48199275
A165: Hide | C165: Other Depreciable | H165: 96.39701378 | I165: 90.67612276 | J165: 84.95523173 | K165: 79.2343407 | L165: 73.51344968 | M165: 67.79255865
A166: Hide | C166: Computers and Motor Vehicles | H166: 0 | I166: 0 | J166: 0 | K166: 0 | L166: 0 | M166: 0
A167: Hide | C167: Cathodic/Corrosion Protection | H167: 0 | I167: 0 | J167: 0 | K167: 0 | L167: 0 | M167: 0
A168: Hide | C168: SCADA , ECI And Comms | H168: 0 | I168: 0 | J168: 0 | K168: 0 | L168: 0 | M168: 0
A169: Hide | C169: Building | H169: 0 | I169: 0 | J169: 0 | K169: 0 | L169: 0 | M169: 0
A170: Hide | C170: Non-Depreciable | H170: =H158/$M$28 -> 20.70862691 | I170: 20.70862691 | J170: 20.70862691 | K170: 20.70862691 | L170: 20.70862691 | M170: 20.70862691
A171: Hide | C171: Cost of Raising Equity
A172: Hide | C172: Total | H172: =SUM(H162:H170) -> 3135.142606 | I172: 3058.760316 | J172: 2982.378026 | K172: 2905.995735 | L172: 2829.613445 | M172: 2753.231155
A173: Hide | B173: Approved OCB Depreciation [m$ 31/12/1999] (AA2 Approved Model) | I173: AA1 OCB Depreciation [m$ 31/12/1999]
A174: Hide | C174: Pipeline | I174: 23.17700324 | J174: 23.17700324 | K174: 23.17700324 | L174: 23.17700324 | M174: 23.17700324
A175: Hide | C175: Compression | I175: 11.30106569 | J175: 11.30106569 | K175: 11.30106569 | L175: 11.30106569 | M175: 11.30106569
A176: Hide | C176: Metering | I176: 0.4565999316 | J176: 0.4565999316 | K176: 0.4565999316 | L176: 0.4565999316 | M176: 0.4565999316
A177: Hide | C177: Other Depreciable | I177: 2.828382056 | J177: 2.828382056 | K177: 2.828382056 | L177: 2.828382056 | M177: 2.828382056
A178: Hide | C178: Computers and Motor Vehicles
A179: Hide | C179: Cathodic/Corrosion Protection
A180: Hide | C180: SCADA , ECI And Comms
A181: Hide | C181: Building
A182: Hide | C182: Non-Depreciable | I182: 0 | J182: 0 | K182: 0 | L182: 0 | M182: 0
A183: Hide | C183: Cost of Raising Equity
A184: Hide | C184: Total | I184: =SUM(I174:I182) -> 37.76305091 | J184: =SUM(J174:J182) -> 37.76305091 | K184: =SUM(K174:K182) -> 37.76305091 | L184: =SUM(L174:L182) -> 37.76305091 | M184: =SUM(M174:M182) -> 37.76305091
A185: Hide | B185: Approved OCB Depreciation (modelled) | I185: ="AA1 [m$ "&$E$28&"]" -> AA1 [m$ 31/12/2024]
A186: Hide | C186: Pipeline | I186: =I174/$H$28 -> 46.87949053 | J186: 46.87949053 | K186: 46.87949053 | L186: 46.87949053 | M186: 46.87949053
A187: Hide | C187: Compression | I187: 22.85835648 | J187: 22.85835648 | K187: 22.85835648 | L187: 22.85835648 | M187: 22.85835648
A188: Hide | C188: Metering | I188: 0.9235521932 | J188: 0.9235521932 | K188: 0.9235521932 | L188: 0.9235521932 | M188: 0.9235521932
A189: Hide | C189: Other Depreciable | I189: 5.720891026 | J189: 5.720891026 | K189: 5.720891026 | L189: 5.720891026 | M189: 5.720891026
A190: Hide | C190: Computers and Motor Vehicles | I190: 0 | J190: 0 | K190: 0 | L190: 0 | M190: 0
A191: Hide | C191: Cathodic/Corrosion Protection | I191: 0 | J191: 0 | K191: 0 | L191: 0 | M191: 0
A192: Hide | C192: SCADA , ECI And Comms | I192: 0 | J192: 0 | K192: 0 | L192: 0 | M192: 0
A193: Hide | C193: Building
A194: Hide | C194: Non-Depreciable | I194: =I182/$H$28 -> 0 | J194: =J182/$H$28 -> 0 | K194: =K182/$H$28 -> 0 | L194: =L182/$H$28 -> 0 | M194: =M182/$H$28 -> 0
A195: Hide | C195: Cost of Raising Equity
A196: Hide | C196: Total | I196: =SUM(I186:I194) -> 76.38229023 | J196: =SUM(J186:J194) -> 76.38229023 | K196: =SUM(K186:K194) -> 76.38229023 | L196: =SUM(L186:L194) -> 76.38229023 | M196: =SUM(M186:M194) -> 76.38229023
A197: =ROW() -> 197 | B197: Approved OCB Depreciation (AA2 Approved Model) | I197: AA1 [m$ 31/12/2004] | N197: AA2 [m$ 31/12/2004] | T197: AA3 [m$ 31/12/2010] | Y197: AA4 [m$ 31/12/2015] | AD197: AA5 [m$ 31/12/2019]
A198: =ROW() -> 198 | C198: Pipeline | I198: 27.36044298 | J198: 27.36044298 | K198: 27.36044298 | L198: 27.36044298 | M198: 27.36044298 | N198: 27.36044298 | O198: 27.36044298 | P198: 27.36044298 | Q198: 27.36044298 | R198: 27.36044298 | S198: 27.36044298 | T198: 32.49636231 | U198: 32.49636231 | V198: 32.49636231 | W198: 32.49636231 | X198: 32.49636231 | Y198: 36.39206333 | Z198: 36.39206333 | AA198: 36.39206333 | AB198: 36.39206333 | AC198: 36.39206333 | AD198: 39.01068043 | AE198: 39.01068043 | AF198: 39.01068043 | AG198: 39.01068043 | AH198: 39.01068043
A199: =ROW() -> 199 | C199: Compression | I199: 13.34090349 | J199: 13.34090349 | K199: 13.34090349 | L199: 13.34090349 | M199: 13.34090349 | N199: 12.54002538 | O199: 12.54002538 | P199: 12.54002538 | Q199: 12.54002538 | R199: 12.54002538 | S199: 12.54002538 | T199: 14.37484303 | U199: 14.37484303 | V199: 14.37484303 | W199: 14.37484303 | X199: 14.37484303 | Y199: 16.09782344 | Z199: 16.09782344 | AA199: 16.09782344 | AB199: 9.670468192 | AC199: 0 | AD199: 0 | AE199: 0 | AF199: 0 | AG199: 0 | AH199: 0
A200: =ROW() -> 200 | C200: Metering | I200: 0.5390160353 | J200: 0.5390160353 | K200: 0.5390160353 | L200: 0.5390160353 | M200: 0.5390160353 | N200: 0.5310184325 | O200: 0.5310184325 | P200: 0.5310184325 | Q200: 0.5310184325 | R200: 0.5310184325 | S200: 0.5310184325 | T200: 0.6306976604 | U200: 0.6306976604 | V200: 0.6306976604 | W200: 0.6306976604 | X200: 0.6306976604 | Y200: 0.705151787 | Z200: 0.705151787 | AA200: 0.705151787 | AB200: 0.705151787 | AC200: 0.705151787 | AD200: 13.22980332 | AE200: 0 | AF200: 0 | AG200: 0 | AH200: 0
A201: =ROW() -> 201 | C201: Other Depreciable | I201: 3.338903877 | J201: 3.338903877 | K201: 3.338903877 | L201: 3.338903877 | M201: 3.338903877 | N201: 3.338903877 | O201: 3.338903877 | P201: 3.338903877 | Q201: 3.338903877 | R201: 3.338903877 | S201: 3.338903877 | T201: 3.925125351 | U201: 3.925125351 | V201: 3.925125351 | W201: 3.925125351 | X201: 3.925125351 | Y201: 1.7891863 | Z201: 0 | AA201: 0 | AB201: 0 | AC201: 0 | AD201: 0 | AE201: 0 | AF201: 0 | AG201: 0 | AH201: 0
... 1770 more rows

Sheet Information
A1: =Main!A1 -> AGIG, DBNGP Tariff Model, Final Plan, Dec 2024
A2: =MID(CELL("filename",A1),FIND("]",CELL("filename",A1))+1,256) -> Information
A3: Prior to using this model
B4: The Excel VBA macro must be enabled prior to opening this model to allow the use of macro to perform computation.
A6: Annual update of Trailing Average DRP for Tariff Variation
B7: For each year prior to the variation year (of tariff variation) there will be an annual update of the Trailing Average Debt Risk Premium (DRP).
B8: Annual update of Trailing Average DRP is updated by entering the annual DRP at Input sheet Cells(AE11:AH11).
B9: ="The actual September CPI must also be updated at Input Sheet Row "&ROW(Inputs!A17)&"." -> The actual September CPI must also be updated at Input Sheet Row 17.
B10: After entering the annual updates, click on the [Calculate] button .
B11: The X-Factor (price change) and the revised tariffs at 31-December-2019 $ for the variation year will be computed.
B12: This model will also apply the tariff variation mechanism
B13: The Reference Tariff will be presented in the Main sheet.
A15: Worksheets
B17: Worksheet | C17: Description
B18: Main | C18: Summary of outputs
B19: WACC | C19: Contains the relevant parameters related to computing the WACC
B20: Inputs | C20: Contains general inputs of assumptions, capital expenditures, redundant and disposed assets, operating expenditures, approved depreciations
B21: Load | C21: Contains inputs of pipeline distances and capacity and throughput gas volumes
B22: CoS_Tariff_Revenue | C22: Computations of total revenue building block (cost of service), inflationary gain, tariff, tariff revenue and Credit Foncier Check
B23: Tax_CoRE | C23: Contains calculation of tax, imputation credit and cost of raising equity
B24: RebateableServices | C24: This sheet computes the Rebateable Forecast Total System F/H Equivalent Tariff [$ /GJ/day] which will be used for adjustment for producing the reference tariff.
B25: ProposedApproach | C25: The proposed approach deducts under-depreciation calculated in the ‘Under-depreciated’ worksheet from the depreciation in the ‘PrincipledApproach’ worksheet (only for the relevant capex years in question). This gives relevant depreciation for AA6.
B26: PrincipledApproach | C26: AA5 approved depreciation will reduce approved actual capex across AA5 to roll forward to 2026 open. The depreciation algorithms in the ‘PrincipledApproach’ automatically write-off outstanding assets balances with zero life at AA6 open. This amount is added to the first year of the depreciation building block.
B27: UnderDepreciated | C27: The opening algorithms will return zero values for out-of-service/written-off assets to ensure these amounts are excluded from ‘under-depreciation’ amounts being calculated in this sheet. It then calculates the difference between the opening RAB for AA6 (based on AA5 close) and opening RAB in the ‘EconomicDep’ worksheet. The ‘EconomicDep’ worksheet rolls forward the asset base as if all new categories and revised asset lives were applied from 2005. This difference represents outstanding depreciation on assets still in service that needs to be depreciated out (in theory putting postponement aside) over the remaining life.
B28: EconomicDep | C28: This will roll forward the RAB and calculate depreciation for AA6 as if the new categories and correct lives were applied from the start. This only exists as a reference point to establish under-depreciation on assets still in service which is postponed over the access arrangement.
B29: Asset_NoReclass | C29: Contains asset without asset reclassification. Assets classes from 2005 to 2015 would be the same as the previous access arrangements with its asset lives approved in AA4.
B30: RegDepPipeline | C30: Contains Pipeline assets for Capex of 2005 to 2015 and AA4 being reallocated to new asset categories based on the Asset_Splits information
B31: RegDepCompression | C31: Contains Compression assets for Capex of 2005 to 2015 and AA4 being reallocated to new asset categories based on the Asset_Splits information
B32: RegDepMetering | C32: Contains Metering assets for Capex of 2005 to 2015 and AA4 being reallocated to new asset categories based on the Asset_Splits information
B33: RegDepOther | C33: Contains Other Depreciable assets for Capex of 2005 to 2015 and AA4 being reallocated to new asset categories based on the Asset_Splits information
B34: Asset_Splits | C34: This sheet provides information on the percentage of allocation from an existing asset class to the new asset classes. It is used to reallocate the capex and redundant & disposed assets. In cases where the closing value become less than zero after the reallocation, the split for the redundant asset is set to zero.
B35: Tax_Asset | C35: Contains regulatory and non-regulatory shippers' asset base. Includes initial capital base and capital expenditure account. Objective is to compute Tax Depreciation of regulatory assets. Computations are in nominal $m
B36: Shippers_Asset | C36: Contains non-regulatory shippers' asset base. Includes initial capital base and capital expenditure account, . Computations are in Real 31-December-2019 $m
B37: BEP | C37: Contains calculation of BEP Lease asset value
B38: SolverSheet | C38: Contains inputs, target outputs and settings for Solver to compute the X-Factor and tariffs after the annual update of Trailing Average DRP and Cost Pass Through event is completed.
B39: Tariff_Variation | C39: The forecast tariffs are recalculated to produce the Reference Tariffs based on the proxy CPI (actual September CPIs)

Sheet RiskSerializationData8 (hidden)
A1: Written By Version | B1: 8.8.1
A2: Serialization Major Version | B2: 4
A3: Serialization Minor Version | B3: 0
A5: Browse Record | B5: Display Mode | C5: Sens Graph Type | D5: Cond Sens Settings | E5: Scenario Settings | F5: Selected Scenario | J5: Distribution Options | K5: Distribution GS | L5: Distribution Curves | N5: Sens Tornado Options | O5: Sens Tornado GS | P5: Sens Tornado Curves | R5: Scen Tornado Options | S5: Scen Tornado GS | T5: Scen Tornado Curves | V5: Sens Spider Option | W5: Sens Spider GS | X5: Sens Spider Curves
A6: =ModelRef(#REF!,1,0,0) ->  | B6: 0 | C6: 3 | F6: 0 | J6: TRUE | K6: GF1_rK0qDwEAEwB5AQwjACcAYACNAKEAogDlACgBQQF1AW8BKwD//wAAAAAAAAEEAAAAACtfLSMsIyMwLjAwXy07W1JlZF0tIywjIzAuMDBfLTtfLSItIl8tO18tQF8tAAAAAQQyMDMxAQABAAEGVGFob21hmpl5QQAAAAAAAQZUYWhvbWHNzCxBAAAAAAD/EAACAAEKU3RhdGlzdGljcwMBAQD/AQEBAQEAAQEA/wEGVGFob21hzcwsQQAAAAAAAQZUYWhvbWGamUlBAAAAAAABBlRhaG9tYc3MLEEAAAAAAAAABAAAAAEBAQEBAAEBAP8BBlRhaG9tYc3MLEEAAAAAAAEGVGFob21hmplJQQAAAAAAAQZUYWhvbWHNzCxBAAAAAAAAAAQAAAABLAECEQAEMjAzMQAAAP/cFDwBAAACAAIAWwFlAQEBAwD/AQZUYWhvbWHNzCxBAAAAAACamZmZmZmpPwAAZmZmZmZm7j8AAAUAAQEBAAEBAQA= | L6: =ModelRef(#REF!,1,0,0) -> 

Sheet WACC
A1: =Main!A1 -> AGIG, DBNGP Tariff Model, Final Plan, Dec 2024
A2: =MID(CELL("filename",A1),FIND("]",CELL("filename",A1))+1,256) -> WACC
A3: Ref | B3: =COLUMN() -> 2 | C3: =COLUMN() -> 3 | D3: =COLUMN() -> 4 | E3: =COLUMN() -> 5 | F3: =COLUMN() -> 6 | G3: =COLUMN() -> 7 | H3: =COLUMN() -> 8 | I3: =COLUMN() -> 9 | J3: =COLUMN() -> 10 | K3: =COLUMN() -> 11 | L3: =COLUMN() -> 12 | M3: =COLUMN() -> 13 | O3: =COLUMN() -> 15 | P3: =COLUMN() -> 16 | Q3: =COLUMN() -> 17 | R3: =COLUMN() -> 18 | S3: =COLUMN() -> 19 | T3: =COLUMN() -> 20 | U3: =COLUMN() -> 21 | V3: =COLUMN() -> 22 | W3: =COLUMN() -> 23 | X3: =COLUMN() -> 24 | Y3: =COLUMN() -> 25 | Z3: =COLUMN() -> 26 | AA3: =COLUMN() -> 27 | AB3: =COLUMN() -> 28 | AC3: =COLUMN() -> 29
A4: =ROW() -> 4 | C4: Determination of the Weighted Average Cost of Capital (WACC) | E4: DBNGP | G4: ERA | I4: DBNGP | K4: ERA | M4: ERA | O4: ERA | P4: ERA | Q4: ERA | R4: ERA | S4: ERA | T4: ERA | U4: ERA | V4: ERA | W4: ERA | X4: ERA | Y4: ERA | Z4: ERA | AA4: ERA | AB4: ERA | AC4: ERA
A5: =ROW() -> 5 | E5: AA3 | G5: DD3 | I5: Post DD3 | K5: FD3 | M5: Selected | O5: FD4 2016 | P5: FD4 2017 | Q5: FD4 2018 | R5: FD4 2019 | S5: FD4 2020 | T5: FD5 2021 | U5: FD5 2022 | V5: FD5 2023 | W5: FD5 2024 | X5: FD5 2025 | Y5: 2026 | Z5: 2027 | AA5: 2028 | AB5: 2029 | AC5: 2030
A6: =ROW() -> 6 | E6: 2010-03-01 | G6: 2011-02-28 | I6: 2011-04-18 | K6: 31/09/2011 | M6: =K6 -> 31/09/2011 | O6: 2016-06-10 | T6: 2020-11-27
C8: Return on Debt
A9: =ROW() -> 9 | C9: Debt: Nominal Risk Free Rate (DRfn) | G9: 0.0546 | K9: 0.038 | M9: =K9 -> 0.038 | O9: 0.018 | P9: =O9 -> 0.018 | Q9: =P9 -> 0.018 | R9: 0.018 | S9: 0.018
A10: =ROW() -> 10 | C10: Debt: Real Risk Free Rate (DRfr) | G10: =((1+G9)/(G27+1))-1 -> 0.02737457379 | K10: =((1+K9)/(K27+1))-1 -> 0.0102189781 | M10: =K10 -> 0.0102189781 | O10: =((1+O9)/(O27+1))-1 -> 0.003647835946 | P10: =((1+P9)/(P27+1))-1 -> 0.003647835946 | Q10: =((1+Q9)/(Q27+1))-1 -> 0.003647835946 | R10: =((1+R9)/(R27+1))-1 -> 0.003647835946 | S10: =((1+S9)/(S27+1))-1 -> 0.003647835946
A11: =ROW() -> 11 | C11: Cost of Debt; 5 year Interest Rate Swap Spread | O11: 0.021 | P11: =O11 -> 0.021 | Q11: =P11 -> 0.021 | R11: =Q11 -> 0.021 | S11: =R11 -> 0.021 | T11: 0.00295 | U11: =T11 -> 0.00295 | V11: =U11 -> 0.00295 | W11: =V11 -> 0.00295 | X11: =W11 -> 0.00295 | Y11: 0.03759120671 | Z11: =Y11 -> 0.03759120671 | AA11: 0.03759120671 | AB11: 0.03759120671 | AC11: 0.03759120671
A12: =ROW() -> 12 | C12: Cost of Debt; Debt Risk Premium (Drp) | G12: 0.03124 | K12: 0.03143 | M12: =K12 -> 0.03143 | O12: 0.02716 | P12: =IF(P40="",O12,P40) -> 0.0283 | Q12: =IF(Q40="",P12,Q40) -> 0.0263 | R12: =IF(R40="",Q12,R40) -> 0.02339 | S12: =IF(S40="",R12,S40) -> 0.02326 | T12: =T40 -> 0.02259 | U12: =IF(U40="",T12,U40) -> 0.02259 | V12: =IF(V40="",U12,V40) -> 0.02259 | W12: =IF(W40="",V12,W40) -> 0.02259 | X12: =IF(X40="",W12,X40) -> 0.02259 | Y12: 0.01823451003 | Z12: =IF(Z40="",Y12,Z40) -> 0.01823451003 | AA12: 0.01823451003 | AB12: 0.01823451003 | AC12: 0.01823451003
A13: =ROW() -> 13 | C13: Cost of Debt; Debt Issuing Cost (Disc) + Hedging Cost | G13: 0.00125 | K13: 0.00125 | M13: =K13 -> 0.00125 | O13: =0.125%+0.114% -> 0.00239 | P13: =O13 -> 0.00239 | Q13: =P13 -> 0.00239 | R13: 0.00239 | S13: 0.00239 | T13: 0.00214 | U13: =T13 -> 0.00214 | V13: =U13 -> 0.00214 | W13: =V13 -> 0.00214 | X13: =W13 -> 0.00214 | Y13: 0.00288 | Z13: =Y13 -> 0.00288 | AA13: 0.00288 | AB13: 0.00288 | AC13: 0.00288
A14: =ROW() -> 14 | C14: Cost of Debt; Risk Margin (DRm) | G14: =SUM(G12:G13) -> 0.03249 | K14: =SUM(K12:K13) -> 0.03268 | M14: =K14 -> 0.03268 | O14: =O11+O12+O13-O9 -> 0.03255 | P14: =P11+P12+P13-P9 -> 0.03369 | Q14: 0.03169 | R14: 0.02878 | S14: 0.02865 | T14: =T11+T12+T13 -> 0.02768 | U14: =U11+U12+U13 -> 0.02768 | V14: 0.02768 | W14: 0.02768 | X14: 0.02768 | Y14: =Y11+Y12+Y13 -> 0.05870571673 | Z14: 0.05870571673 | AA14: 0.05870571673 | AB14: 0.05870571673 | AC14: 0.05870571673
A15: =ROW() -> 15 | C15: Nominal Cost of Debt (DPn) | E15: 0.0973 | G15: =G9+G14 -> 0.08709 | I15: 0.0952 | K15: =K9+K14 -> 0.07068 | M15: =K15 -> 0.07068 | O15: =O9+O14 -> 0.05055 | P15: =P9+P14 -> 0.05169 | Q15: =Q9+Q14 -> 0.04969 | R15: =R9+R14 -> 0.04678 | S15: =S9+S14 -> 0.04665 | T15: =T14 -> 0.02768 | U15: =U14 -> 0.02768 | V15: 0.02768 | W15: 0.02768 | X15: 0.02768 | Y15: =Y14 -> 0.05870571673 | Z15: 0.05870571673 | AA15: 0.05870571673 | AB15: 0.05870571673 | AC15: 0.05870571673
C17: Return on Equity
A18: =ROW() -> 18 | C18: Equity: Nominal Risk Free Rate (ERfn) | T18: 0.0029 | U18: =T18 -> 0.0029 | V18: 0.0029 | W18: 0.0029 | X18: 0.0029 | Y18: 0.03955580445 | Z18: =Y18 -> 0.03955580445 | AA18: =Z18 -> 0.03955580445 | AB18: =AA18 -> 0.03955580445 | AC18: =AB18 -> 0.03955580445
A19: =ROW() -> 19 | C19: Australian Market Risk Premium (Rp) | G19: 0.06 | K19: 0.06 | M19: =K19 -> 0.06 | O19: 0.074 | P19: =O19 -> 0.074 | Q19: =P19 -> 0.074 | R19: =Q19 -> 0.074 | S19: =R19 -> 0.074 | T19: 0.06 | U19: 0.06 | V19: 0.06 | W19: 0.06 | X19: 0.06 | Y19: 0.061 | Z19: 0.061 | AA19: 0.061 | AB19: 0.061 | AC19: 0.061
A20: =ROW() -> 20 | C20: Equity Beta (Be) | G20: 0.8 | K20: 0.8 | M20: =K20 -> 0.8 | O20: 0.7 | P20: =O20 -> 0.7 | Q20: =P20 -> 0.7 | R20: 0.7 | S20: 0.7 | T20: 0.7 | U20: 0.7 | V20: 0.7 | W20: 0.7 | X20: 0.7 | Y20: 0.7 | Z20: 0.7 | AA20: 0.7 | AB20: 0.7 | AC20: 0.7
A21: =ROW() -> 21 | C21: Nominal Pre Tax Cost of Equity (EPn) | E21: 0.135 | G21: =G22/(1-G28*(1-G29)) -> 0.1194412107 | I21: 0.125 | K21: =K22/(1-K28*(1-K29)) -> 0.1109677419 | M21: =K21 -> 0.1109677419 | O21: =O22/(1-O28*(1-O29)) -> 0.08512195122 | P21: 0.08512195122 | Q21: 0.08512195122 | R21: 0.08512195122 | S21: 0.08512195122 | T21: 0.05282352941 | U21: 0.05282352941 | V21: 0.05282352941 | W21: 0.05282352941 | X21: 0.05282352941 | Y21: =Y22/(1-Y28*(1-Y29)) -> 0.09677153465 | Z21: 0.09677153465 | AA21: 0.09677153465 | AB21: 0.09677153465 | AC21: 0.09677153465
A22: =ROW() -> 22 | C22: Nominal After Tax Cost of Equity (EAn) | G22: =G9+G19*G20 -> 0.1026 | K22: =K9+K19*K20 -> 0.086 | M22: =K22 -> 0.086 | O22: =O9+O19*O20 -> 0.0698 | P22: =P9+P19*P20 -> 0.0698 | Q22: =Q9+Q19*Q20 -> 0.0698 | R22: =R9+R19*R20 -> 0.0698 | S22: =S9+S19*S20 -> 0.0698 | T22: =T18+T19*T20 -> 0.0449 | U22: =U18+U19*U20 -> 0.0449 | V22: 0.0449 | W22: 0.0449 | X22: 0.0449 | Y22: =Y18+Y19*Y20 -> 0.08225580445 | Z22: 0.08225580445 | AA22: 0.08225580445 | AB22: 0.08225580445 | AC22: 0.08225580445
C24: Other Parameter
A25: =ROW() -> 25 | C25: Debt Proportion (D) | E25: 0.6 | G25: 0.6 | I25: 0.6 | K25: 0.6 | M25: 0.6 | O25: 0.6 | P25: =O25 -> 0.6 | Q25: 0.6 | R25: 0.6 | S25: 0.6 | T25: 0.55 | U25: =T25 -> 0.55 | V25: =U25 -> 0.55 | W25: =V25 -> 0.55 | X25: =W25 -> 0.55 | Y25: 0.55 | Z25: =Y25 -> 0.55 | AA25: =Z25 -> 0.55 | AB25: =AA25 -> 0.55 | AC25: =AB25 -> 0.55
A26: =ROW() -> 26 | C26: Equity Proportion (E) | E26: 0.4 | G26: =1-G25 -> 0.4 | I26: 0.4 | K26: =1-K25 -> 0.4 | M26: 0.4 | O26: =1-O25 -> 0.4 | P26: =1-P25 -> 0.4 | Q26: 0.4 | R26: 0.4 | S26: 0.4 | T26: =1-T25 -> 0.45 | U26: =1-U25 -> 0.45 | V26: 0.45 | W26: 0.45 | X26: 0.45 | Y26: 0.45 | Z26: =1-Z25 -> 0.45 | AA26: 0.45 | AB26: 0.45 | AC26: 0.45
A27: =ROW() -> 27 | C27: Inflation Rate for WACC (I) | E27: 0.0252 | G27: 0.0265 | I27: 0.0257 | K27: 0.0275 | M27: =K27 -> 0.0275 | O27: 0.0143 | P27: =O27 -> 0.0143 | Q27: =P27 -> 0.0143 | R27: 0.0143 | S27: 0.0143 | T27: 0.0115 | U27: =T27 -> 0.0115 | V27: =U27 -> 0.0115 | W27: =V27 -> 0.0115 | X27: =W27 -> 0.0115 | Y27: 0.02183597273 | Z27: =Y27 -> 0.02183597273 | AA27: =Z27 -> 0.02183597273 | AB27: =AA27 -> 0.02183597273 | AC27: =AB27 -> 0.02183597273
A28: =ROW() -> 28 | C28: Corporate Tax Rate (T) | E28: 0.3 | G28: 0.3 | I28: 0.3 | K28: 0.3 | M28: 0.3 | O28: 0.3 | P28: =O28 -> 0.3 | Q28: 0.3 | R28: 0.3 | S28: 0.3 | T28: 0.3 | U28: =T28 -> 0.3 | V28: =U28 -> 0.3 | W28: =V28 -> 0.3 | X28: =W28 -> 0.3 | Y28: 0.3 | Z28: =Y28 -> 0.3 | AA28: =Z28 -> 0.3 | AB28: =AA28 -> 0.3 | AC28: =AB28 -> 0.3
A29: =ROW() -> 29 | C29: Franking Credit (g) | E29: 0 | G29: 0.53 | I29: 0 | K29: 0.25 | M29: 0.25 | O29: 0.4 | P29: 0.4 | Q29: 0.4 | R29: 0.4 | S29: 0.4 | T29: 0.5 | U29: 0.5 | V29: 0.5 | W29: 0.5 | X29: 0.5 | Y29: 0.5 | Z29: 0.5 | AA29: 0.5 | AB29: 0.5 | AC29: 0.5
A30: =ROW() -> 30 | C30: Imputation Adj (G) | E30: =(1-E28)/(1-E28*(1-E29)) -> 1 | G30: =(1-G28)/(1-G28*(1-G29)) -> 0.8149010477 | K30: =(1-K28)/(1-K28*(1-K29)) -> 0.9032258065 | M30: 0.9032258065 | O30: =(1-O28)/(1-O28*(1-O29)) -> 0.8536585366 | P30: =(1-P28)/(1-P28*(1-P29)) -> 0.8536585366 | Q30: 0.8536585366 | R30: 0.8536585366 | S30: 0.8536585366 | T30: =(1-T28)/(1-T28*(1-T29)) -> 0.8235294118 | U30: =(1-U28)/(1-U28*(1-U29)) -> 0.8235294118 | V30: 0.8235294118 | W30: 0.8235294118 | X30: 0.8235294118 | Y30: =(1-Y28)/(1-Y28*(1-Y29)) -> 0.8235294118 | Z30: 0.8235294118 | AA30: 0.8235294118 | AB30: 0.8235294118 | AC30: 0.8235294118
A32: =ROW() -> 32 | C32: WACC; Pre-tax Officer (Market Practise or Forward Transformation)
A33: =ROW() -> 33 | C33: Nominal Pre Tax WACC (WPn) | E33: =E21*(1/(1-E28*(1-E29))*E26)+E15*E25 -> 0.1355228571 | G33: =G21*G26+G15*G25 -> 0.1000304843 | I33: =I21*(1/(1-I28*(1-I29))*I26)+I15*I25 -> 0.1285485714 | K33: =K21*K26+K15*K25 -> 0.08679509677 | M33: 0.08679509677 | O33: =O21*O26+O15*O25 -> 0.06437878049 | P33: 0.06506278049 | Q33: 0.06386278049 | R33: 0.06211678049 | S33: 0.06203878049 | T33: 0.03899458824 | U33: 0.03899458824 | V33: 0.03899458824 | W33: 0.03899458824 | X33: 0.03899458824 | Y33: =Y21*Y26+Y15*Y25 -> 0.07583533479 | Z33: 0.07583533479 | AA33: 0.07583533479 | AB33: 0.07583533479 | AC33: 0.07583533479
A34: =ROW() -> 34 | C34: Real Pre Tax WACC (WPr) | E34: =(1+E33)/(1+E27)- 1 -> 0.1076110585 | G34: =(1+G33)/(1+G27)-1 -> 0.07163223018 | I34: =(1+I33)/(1+I27)- 1 -> 0.1002715915 | K34: =(1+K33)/(1+K27)-1 -> 0.05770812338 | M34: 0.05770812338 | O34: =(1+O33)/(1+O27)-1 -> 0.04937275016 | P34: 0.05004710686 | Q34: 0.04886402493 | R34: 0.04714264073 | S34: 0.0470657404 | T34: 0.02718199529 | U34: 0.02718199529 | V34: 0.02718199529 | W34: 0.02718199529 | X34: 0.02718199529 | Y34: =(1+Y33)/(1+Y27)-1 -> 0.05284543068 | Z34: 0.05284543068 | AA34: 0.05284543068 | AB34: 0.05284543068 | AC34: 0.05284543068
A35: =ROW() -> 35 | C35: WACC: Vanilla
A36: =ROW() -> 36 | C36: Nominal After Tax WACC (WVAn) | G36: =G25*G15+G26*G22 -> 0.093294 | K36: =K25*K15+K26*K22 -> 0.076808 | M36: 0.076808 | O36: =O25*O15+O26*O22 -> 0.05825 | P36: 0.058934 | Q36: 0.057734 | R36: 0.055988 | S36: 0.05591 | T36: 0.035429 | U36: 0.035429 | V36: 0.035429 | W36: 0.035429 | X36: 0.035429 | Y36: =Y25*Y15+Y26*Y22 -> 0.0693032562 | Z36: 0.0693032562 | AA36: 0.0693032562 | AB36: 0.0693032562 | AC36: 0.0693032562
A37: =ROW() -> 37 | C37: Real After Tax WACC (WVAr) | G37: =(1+G36)/(1+G27)-1 -> 0.06506965416 | K37: =(1+K36)/(1+K27)-1 -> 0.04798832117 | M37: 0.04798832117 | O37: =(1+O36)/(1+O27)-1 -> 0.04333037563 | P37: 0.04400473233 | Q37: 0.0428216504 | R37: 0.04110026619 | S37: 0.04102336587 | T37: 0.02365694513 | U37: 0.02365694513 | V37: 0.02365694513 | W37: 0.02365694513 | X37: 0.02365694513 | Y37: =(1+Y36)/(1+Y27)-1 -> 0.04645293838 | Z37: 0.04645293838 | AA37: 0.04645293838 | AB37: 0.04645293838 | AC37: 0.04645293838
A38: =ROW() -> 38
A39: =ROW() -> 39 | C39: Cost of Debt; Debt Risk Premium (Drp)
A40: =ROW() -> 40 | C40: Trailing Average DRP | O40: =O44 -> 0.02716 | P40: =P44 -> 0.0283 | Q40: 0.0263 | R40: 0.02339 | S40: 0.02326 | T40: =T44 -> 0.02259 | U40: =IF(Inputs!AE12="","",Inputs!AE12) ->  | V40: =IF(Inputs!AF12="","",Inputs!AF12) ->  | W40: =IF(Inputs!AG12="","",Inputs!AG12) ->  | X40: =IF(Inputs!AH12="","",Inputs!AH12) ->  | Y40: =Y44 ->  | Z40: =IF(Inputs!AJ12="","",Inputs!AJ12) ->  | AA40: =IF(Inputs!AK12="","",Inputs!AK12) ->  | AB40: =IF(Inputs!AL12="","",Inputs!AL12) ->  | AC40: =IF(Inputs!AM12="","",Inputs!AM12) -> 
A41: =ROW() -> 41 | C41: Modelled DRP | O41: =IF(O40="",N41,O40) -> 0.02716 | P41: =IF(P40="",O41,P40) -> 0.0283 | Q41: 0.0263 | R41: 0.02339 | S41: 0.02326 | T41: =IF(T40="",S41,T40) -> 0.02259 | U41: =IF(U40="",T41,U40) -> 0.02259 | V41: =IF(V40="",U41,V40) -> 0.02259 | W41: =IF(W40="",V41,W40) -> 0.02259 | X41: =IF(X40="",W41,X40) -> 0.02259 | Y41: =IF(Y40="",X41,Y40) -> 0.02259 | Z41: =IF(Z40="",Y41,Z40) -> 0.02259 | AA41: =IF(AA40="",Z41,AA40) -> 0.02259 | AB41: =IF(AB40="",AA41,AB40) -> 0.02259 | AC41: =IF(AC40="",AB41,AC40) -> 0.02259
A42: =ROW() -> 42
A43: =ROW() -> 43 | C43: Annual Update of Debt Risk Premium | O43: 2016 | P43: =O43+1 -> 2017 | Q43: =P43+1 -> 2018 | R43: 2019 | S43: 2020 | T43: 2021 | U43: =T43+1 -> 2022 | V43: =U43+1 -> 2023 | W43: 2024 | X43: 2025 | Y43: 2026 | Z43: =Y43+1 -> 2027 | AA43: =Z43+1 -> 2028 | AB43: =AA43+1 -> 2029 | AC43: =AB43+1 -> 2030
A44: =ROW() -> 44 | C44: Trailing Average DRP | O44: =ROUND(AVERAGE(O52:O71),5) -> 0.02716 | P44: =ROUND(AVERAGE(P52:P71),5) -> 0.0283 | Q44: =ROUND(AVERAGE(Q52:Q71),5) -> 0.0263 | R44: =ROUND(AVERAGE(R52:R71),5) -> 0.02339 | S44: =ROUND(AVERAGE(S52:S71),5) -> 0.02326 | T44: =IF(T56="","",ROUND(AVERAGE(T56:T65),5)) -> 0.02259 | U44: =IF(U55="","",ROUND(AVERAGE(U55:U64),5)) ->  | V44: =IF(V54="","",ROUND(AVERAGE(V54:V63),5)) ->  | W44: =IF(W53="","",ROUND(AVERAGE(W53:W62),5)) ->  | X44: =IF(X52="","",ROUND(AVERAGE(X52:X61),5)) ->  | Y44: =IF(Y51="","",ROUND(AVERAGE(Y51:Y60),5)) ->  | Z44: =IF(Z50="","",ROUND(AVERAGE(Z50:Z59),5)) ->  | AA44: =IF(AA49="","",ROUND(AVERAGE(AA49:AA58),5)) ->  | AB44: =IF(AB48="","",ROUND(AVERAGE(AB48:AB57),5)) ->  | AC44: =IF(AC47="","",ROUND(AVERAGE(AC47:AC56),5)) ->  | AD44: This number is automatically populated when the annual DRP at Inputs sheet, Row 11 is updated
A45: =ROW() -> 45
A46: =ROW() -> 46 | C46: Annual Debt Risk Premium, Year | O46: 2016 | P46: =O46+1 -> 2017 | Q46: =P46+1 -> 2018 | R46: 2019 | S46: 2020 | T46: 2021 | U46: =T46+1 -> 2022 | V46: =U46+1 -> 2023 | W46: 2024 | X46: 2025 | Y46: 2026 | Z46: =Y46+1 -> 2027 | AA46: =Z46+1 -> 2028 | AB46: =AA46+1 -> 2029 | AC46: =AB46+1 -> 2030
A47: =ROW() -> 47 | C47: =C48+1 -> 2030 | AC47: =IF(Inputs!AM$11="","",Inputs!AM$11) -> 
A48: =ROW() -> 48 | C48: 2029 | AB48: =IF(Inputs!AL$11="","",Inputs!AL$11) ->  | AC48: =AB48 -> 
A49: =ROW() -> 49 | C49: 2028 | AA49: =IF(Inputs!AK$11="","",Inputs!AK$11) ->  | AB49: =AA49 -> 
A50: =ROW() -> 50 | C50: 2027 | Z50: =IF(Inputs!AJ$11="","",Inputs!AJ$11) ->  | AA50: =Z50 -> 
A51: =ROW() -> 51 | C51: 2026 | Z51: =Y51 -> 0 | AA51: =Z51 -> 0 | AB51: =AA51 -> 0 | AC51: =AB51 -> 0
A52: =ROW() -> 52 | C52: =C53+1 -> 2025 | X52: =IF(Inputs!AH$11="","",Inputs!AH$11) ->  | Y52: =X52 ->  | Z52: =Y52 -> 
A53: =ROW() -> 53 | C53: 2024 | W53: =IF(Inputs!AG$11="","",Inputs!AG$11) ->  | X53: =W53 ->  | Z53: =Y53 -> 
A54: =ROW() -> 54 | C54: 2023 | V54: =IF(Inputs!AF$11="","",Inputs!AF$11) ->  | W54: =V54 -> 
A55: =ROW() -> 55 | C55: 2022 | U55: =IF(Inputs!AE$11="","",Inputs!AE$11) ->  | V55: =U55 ->  | W55: =V55 ->  | X55: =W55 -> 
A56: =ROW() -> 56 | C56: 2021 | T56: 0.01712 | U56: =T56 -> 0.01712 | V56: =U56 -> 0.01712 | W56: =V56 -> 0.01712 | X56: =W56 -> 0.01712 | Y56: 0.01712 | Z56: =Y56 -> 0.01712 | AA56: 0.01712 | AB56: 0.01712 | AC56: 0.01712
A57: =ROW() -> 57 | C57: =C58+1 -> 2020 | S57: 0.01995 | T57: =S57 -> 0.01995 | U57: =T57 -> 0.01995 | V57: 0.01995 | W57: 0.01995 | X57: 0.01995 | Y57: 0.01995 | Z57: =Y57 -> 0.01995 | AA57: 0.01995 | AB57: 0.01995
A58: =ROW() -> 58 | C58: 2019 | R58: 0.01712 | S58: =R58 -> 0.01712 | T58: 0.01712 | U58: =T58 -> 0.01712 | V58: 0.01712 | W58: 0.01712 | X58: 0.01712 | Y58: 0.01712 | Z58: =Y58 -> 0.01712 | AA58: 0.01712
A59: =ROW() -> 59 | C59: 2018 | Q59: 0.01756 | R59: =Q59 -> 0.01756 | S59: 0.01756 | T59: 0.01756 | U59: 0.01756 | V59: 0.01756 | W59: 0.01756 | X59: 0.01756 | Y59: 0.01756 | Z59: 0.01756
A60: =ROW() -> 60 | C60: 2017 | P60: 0.02274 | Q60: 0.02274 | R60: 0.02274 | S60: 0.02274 | T60: 0.02274 | U60: 0.02274 | V60: 0.02274 | W60: 0.02274 | X60: 0.02274 | Y60: 0.02274
A61: =ROW() -> 61 | C61: 2016 | O61: 0.02612 | P61: =O61 -> 0.02612 | Q61: 0.02612 | R61: 0.02612 | S61: 0.02612 | T61: 0.02612 | U61: =T61 -> 0.02612 | V61: =U61 -> 0.02612 | W61: =V61 -> 0.02612 | X61: =W61 -> 0.02612
A62: =ROW() -> 62 | C62: 2015 | O62: 0.0207 | P62: =O62 -> 0.0207 | Q62: 0.0207 | R62: 0.0207 | S62: 0.0207 | T62: 0.0207 | U62: =T62 -> 0.0207 | V62: 0.0207 | W62: 0.0207
A63: =ROW() -> 63 | C63: 2014 | O63: 0.02251 | P63: =O63 -> 0.02251 | Q63: 0.02251 | R63: 0.02251 | S63: 0.02251 | T63: 0.02251 | U63: =T63 -> 0.02251 | V63: 0.02251
A64: =ROW() -> 64 | C64: 2013 | O64: 0.03043 | P64: 0.03043 | Q64: 0.03043 | R64: 0.03043 | S64: 0.03043 | T64: 0.03043 | U64: 0.03043
A65: =ROW() -> 65 | C65: 2012 | O65: 0.03168 | P65: 0.03168 | Q65: 0.03168 | R65: 0.03168 | S65: 0.03168 | T65: 0.03168
C66: 2011 | O66: 0.02379 | P66: 0.02379 | Q66: 0.02379 | R66: 0.02379 | S66: 0.02379
C67: 2010 | O67: 0.02125 | P67: =O67 -> 0.02125 | Q67: =P67 -> 0.02125 | R67: =Q67 -> 0.02125
C68: 2009 | O68: 0.04624 | P68: 0.04624 | Q68: 0.04624
C69: =C70+1 -> 2008 | O69: 0.03756 | P69: 0.03756
C70: 2007 | O70: 0.0113

Sheet CoS_Tariff_Revenue
A1: =Main!A1 -> AGIG, DBNGP Tariff Model, Final Plan, Dec 2024
A2: =MID(CELL("filename",A1),FIND("]",CELL("filename",A1))+1,256) -> CoS_Tariff_Revenue
A3: Ref. | B3: =COLUMN() -> 2 | C3: =COLUMN() -> 3 | D3: =COLUMN() -> 4 | E3: =COLUMN() -> 5 | F3: =COLUMN() -> 6 | G3: =COLUMN() -> 7 | H3: =COLUMN() -> 8 | I3: =COLUMN() -> 9 | J3: =COLUMN() -> 10 | K3: =COLUMN() -> 11 | L3: =COLUMN() -> 12 | M3: =COLUMN() -> 13 | N3: =COLUMN() -> 14 | O3: =COLUMN() -> 15 | P3: =COLUMN() -> 16 | Q3: =COLUMN() -> 17 | R3: =COLUMN() -> 18 | S3: =COLUMN() -> 19 | T3: =COLUMN() -> 20 | U3: =COLUMN() -> 21 | V3: =COLUMN() -> 22 | W3: =COLUMN() -> 23 | X3: =COLUMN() -> 24 | Y3: =COLUMN() -> 25 | Z3: =COLUMN() -> 26 | AA3: =COLUMN() -> 27 | AB3: =COLUMN() -> 28 | AC3: =COLUMN() -> 29 | AD3: =COLUMN() -> 30 | AE3: =COLUMN() -> 31 | AH3: =COLUMN() -> 34 | AI3: =COLUMN() -> 35 | AJ3: =COLUMN() -> 36 | AK3: =COLUMN() -> 37 | AL3: =COLUMN() -> 38 | AM3: =COLUMN() -> 39 | AN3: =COLUMN() -> 40 | AO3: =COLUMN() -> 41 | AP3: =COLUMN() -> 42 | AQ3: =COLUMN() -> 43
A5: Regulatory Period | I5: =Inputs!I$5 -> AA1 | J5: =Inputs!J$5 -> AA1 | K5: =Inputs!K$5 -> AA1 | L5: =Inputs!L$5 -> AA1 | M5: =Inputs!M$5 -> AA1 | N5: =Inputs!N$5 -> AA2 | O5: =Inputs!O$5 -> AA2 | P5: =Inputs!P$5 -> AA2 | Q5: =Inputs!Q$5 -> AA2 | R5: =Inputs!R$5 -> AA2 | S5: =Inputs!S$5 -> AA2 | T5: =Inputs!T$5 -> AA3 | U5: =Inputs!U$5 -> AA3 | V5: =Inputs!V$5 -> AA3 | W5: =Inputs!W$5 -> AA3 | X5: =Inputs!X$5 -> AA3 | Y5: =Z5 -> AA4 | Z5: =AA5 -> AA4 | AA5: =Inputs!Y$5 -> AA4 | AB5: =Inputs!Z$5 -> AA4 | AC5: =Inputs!AA$5 -> AA4 | AD5: =Inputs!AB$5 -> AA4 | AE5: =Inputs!AC$5 -> AA4 | AF5: 1/1/2021 to | AG5: =AF6+1 -> 2021-07-01 | AH5: =Inputs!AD$5 -> AA5 | AI5: =Inputs!AE$5 -> AA5 | AJ5: =Inputs!AF$5 -> AA5 | AK5: =Inputs!AG$5 -> AA5 | AL5: =Inputs!AH$5 -> AA5 | AM5: =Inputs!AI$5 -> AA6 | AN5: =Inputs!AJ$5 -> AA6 | AO5: =Inputs!AK$5 -> AA6 | AP5: =Inputs!AL$5 -> AA6 | AQ5: =Inputs!AM$5 -> AA6
A6: Year | H6: =Inputs!H$6 -> 1999 | I6: =Inputs!I$6 -> 2000 | J6: =Inputs!J$6 -> 2001 | K6: =Inputs!K$6 -> 2002 | L6: =Inputs!L$6 -> 2003 | M6: =Inputs!M$6 -> 2004 | N6: =Inputs!N$6 -> 2005 | O6: =Inputs!O$6 -> 2006 | P6: =Inputs!P$6 -> 2007 | Q6: =Inputs!Q$6 -> 2008 | R6: =Inputs!R$6 -> 2009 | S6: =Inputs!S$6 -> 2010 | T6: =Inputs!T$6 -> 2011 | U6: =Inputs!U$6 -> 2012 | V6: =Inputs!V$6 -> 2013 | W6: =Inputs!W$6 -> 2014 | X6: =Inputs!X$6 -> 2015 | Y6: =Z6 -> 2016 | Z6: =AA6 -> 2016 | AA6: =Inputs!Y$6 -> 2016 | AB6: =Inputs!Z$6 -> 2017 | AC6: =Inputs!AA$6 -> 2018 | AD6: =Inputs!AB$6 -> 2019 | AE6: =Inputs!AC$6 -> 2020 | AF6: 2021-06-30 | AG6: 2021-12-31 | AH6: =Inputs!AD$6 -> 2021 | AI6: =Inputs!AE$6 -> 2022 | AJ6: =Inputs!AF$6 -> 2023 | AK6: =Inputs!AG$6 -> 2024 | AL6: =Inputs!AH$6 -> 2025 | AM6: =Inputs!AI$6 -> 2026 | AN6: =Inputs!AJ$6 -> 2027 | AO6: =Inputs!AK$6 -> 2028 | AP6: =Inputs!AL$6 -> 2029 | AQ6: =Inputs!AM$6 -> 2030
A7: Days | H7: =Inputs!H$7 -> 365 | I7: =Inputs!I$7 -> 366 | J7: =Inputs!J$7 -> 365 | K7: =Inputs!K$7 -> 365 | L7: =Inputs!L$7 -> 365 | M7: =Inputs!M$7 -> 366 | N7: =Inputs!N$7 -> 365 | O7: =Inputs!O$7 -> 365 | P7: =Inputs!P$7 -> 365 | Q7: =Inputs!Q$7 -> 366 | R7: =Inputs!R$7 -> 365 | S7: =Inputs!S$7 -> 365 | T7: =Inputs!T$7 -> 365 | U7: =Inputs!U$7 -> 366 | V7: =Inputs!V$7 -> 365 | W7: =Inputs!W$7 -> 365 | X7: =Inputs!X$7 -> 365 | Y7: =DATEVALUE("1/7/2016")-DATEVALUE("1/1/2016") -> 182 | Z7: =AA7-Y7 -> 184 | AA7: =Inputs!Y$7 -> 366 | AB7: =Inputs!Z$7 -> 365 | AC7: =Inputs!AA$7 -> 365 | AD7: =Inputs!AB$7 -> 365 | AE7: =Inputs!AC$7 -> 366 | AF7: =AF6-DATEVALUE("31/12/2020") -> 181 | AG7: =AG6-AF6 -> 184 | AH7: =Inputs!AD$7 -> 365 | AI7: =Inputs!AE$7 -> 365 | AJ7: =Inputs!AF$7 -> 365 | AK7: =Inputs!AG$7 -> 366 | AL7: =Inputs!AH$7 -> 365 | AM7: =Inputs!AI$7 -> 365 | AN7: =Inputs!AJ$7 -> 365 | AO7: =Inputs!AK$7 -> 366 | AP7: =Inputs!AL$7 -> 365 | AQ7: =Inputs!AM$7 -> 365
A8: Project Year | H8: =Inputs!H$8 -> 0 | I8: =Inputs!I$8 -> 1 | J8: =Inputs!J$8 -> 2 | K8: =Inputs!K$8 -> 3 | L8: =Inputs!L$8 -> 4 | M8: =Inputs!M$8 -> 5 | N8: =Inputs!N$8 -> 6 | O8: =Inputs!O$8 -> 7 | P8: =Inputs!P$8 -> 8 | Q8: =Inputs!Q$8 -> 9 | R8: =Inputs!R$8 -> 10 | S8: =Inputs!S$8 -> 11 | T8: =Inputs!T$8 -> 12 | U8: =Inputs!U$8 -> 13 | V8: =Inputs!V$8 -> 14 | W8: =Inputs!W$8 -> 15 | X8: =Inputs!X$8 -> 16 | AA8: =Inputs!Y$8 -> 17 | AB8: =Inputs!Z$8 -> 18 | AC8: =Inputs!AA$8 -> 19 | AD8: =Inputs!AB$8 -> 20 | AE8: =Inputs!AC$8 -> 21 | AH8: =Inputs!AD$8 -> 22 | AI8: =Inputs!AE$8 -> 23 | AJ8: =Inputs!AF$8 -> 24 | AK8: =Inputs!AG$8 -> 25 | AL8: =Inputs!AH$8 -> 26 | AM8: =Inputs!AI$8 -> 27 | AN8: =Inputs!AJ$8 -> 28 | AO8: =Inputs!AK$8 -> 29 | AP8: =Inputs!AL$8 -> 30 | AQ8: =Inputs!AM$8 -> 31
A9: Financial Parameters
A10: =ROW() -> 10 | B10: Modelled Inflation
A11: =ROW() -> 11 | C11: Inflation | I11: =Inputs!I$27 -> 0.05801772764 | J11: =Inputs!J$27 -> 0.03122619954 | K11: =Inputs!K$27 -> 0.03028064993 | L11: =Inputs!L$27 -> 0.02365591398 | M11: =Inputs!M$27 -> 0.02591036415 | N11: =Inputs!N$27 -> 0.02798634812 | O11: =Inputs!O$27 -> 0.03253652058 | P11: =Inputs!P$27 -> 0.02958199357 | Q11: =Inputs!Q$27 -> 0.03685196752 | R11: =Inputs!R$27 -> 0.02108433735 | S11: =Inputs!S$27 -> 0.02654867257 | T11: =Inputs!T$27 -> 0.03103448276 | U11: =Inputs!U$27 -> 0.02204408818 | V11: =Inputs!V$27 -> 0.02745098039 | W11: =Inputs!W$27 -> 0.01717557252 | X11: =Inputs!X$27 -> 0.01688555347 | AA11: =Inputs!Y$27 -> 0.0147601476 | AB11: =Inputs!Z$27 -> 0.01909090909 | AC11: =Inputs!AA$27 -> 0.0178412132 | AD11: =Inputs!AB$27 -> 0.01840490798 | AE11: =Inputs!AC$27 -> 0.008605851979 | AH11: =Inputs!AD$27 -> 0.03498293515 | AI11: =Inputs!AE$27 -> 0.07831821929 | AJ11: =Inputs!AF$27 -> 0.04051987768 | AK11: =Inputs!AG$27 -> 0.026 | AL11: =Inputs!AH$27 -> 0.037 | AM11: =Inputs!AI$27 -> 0.02183597273 | AN11: =Inputs!AJ$27 -> 0.02183597273 | AO11: =Inputs!AK$27 -> 0.02183597273 | AP11: =Inputs!AL$27 -> 0.02183597273 | AQ11: =Inputs!AM$27 -> 0.02183597273
A12: =ROW() -> 12 | C12: =Inputs!C28 -> Inflation Factor (convert 31/12/2024 $ to nominal $) | I12: =Inputs!I$28 -> 0.5230790697 | J12: =Inputs!J$28 -> 0.5394128411 | K12: =Inputs!K$28 -> 0.5557466125 | L12: =Inputs!L$28 -> 0.5688933066 | M12: =Inputs!M$28 -> 0.5836335393 | N12: =Inputs!N$28 -> 0.5999673107 | O12: =Inputs!O$28 -> 0.6194881595 | P12: =Inputs!P$28 -> 0.6378138542 | Q12: =Inputs!Q$28 -> 0.6613185497 | R12: =Inputs!R$28 -> 0.6752620131 | S12: =Inputs!S$28 -> 0.6931893232 | T12: =Inputs!T$28 -> 0.7147020953 | U12: =Inputs!U$28 -> 0.7304570513 | V12: =Inputs!V$28 -> 0.7505088135 | W12: =Inputs!W$28 -> 0.763399232 | X12: =Inputs!X$28 -> 0.7762896506 | Y12: =AA12 -> 0.7877478004 | Z12: =AA12 -> 0.7877478004 | AA12: =Inputs!Y$28 -> 0.7877478004 | AB12: =Inputs!Z$28 -> 0.802786622 | AC12: =Inputs!AA$28 -> 0.8171093093 | AD12: =Inputs!AB$28 -> 0.832148131 | AE12: =Inputs!AC$28 -> 0.8393094746 | AF12: =$AH12 -> 0.8686709835 | AG12: =$AH12 -> 0.8686709835 | AH12: =Inputs!AD$28 -> 0.8686709835 | AI12: =Inputs!AE$28 -> 0.9367037481 | AJ12: =Inputs!AF$28 -> 0.9746588694 | AK12: =Inputs!AG$28 -> 1 | AL12: =Inputs!AH$28 -> 1.037 | AM12: =Inputs!AI$28 -> 1.059643904 | AN12: =Inputs!AJ$28 -> 1.082782259 | AO12: =Inputs!AK$28 -> 1.106425863 | AP12: =Inputs!AL$28 -> 1.130585748 | AQ12: =Inputs!AM$28 -> 1.155273188
A13: =ROW() -> 13 | C13: =Inputs!C29 -> Inflation Factor (convert nominal to real 31/12/2024 $) | I13: =Inputs!I$29 -> 1.91175686 | J13: =Inputs!J$29 -> 1.85386762 | K13: =Inputs!K$29 -> 1.799381188 | L13: =Inputs!L$29 -> 1.75779885 | M13: =Inputs!M$29 -> 1.71340393 | N13: =Inputs!N$29 -> 1.666757475 | O13: =Inputs!O$29 -> 1.614235857 | P13: =Inputs!P$29 -> 1.567855564 | Q13: =Inputs!Q$29 -> 1.512130577 | R13: =Inputs!R$29 -> 1.480906642 | S13: =Inputs!S$29 -> 1.442607332 | T13: =Inputs!T$29 -> 1.399184369 | U13: =Inputs!U$29 -> 1.369005882 | V13: =Inputs!V$29 -> 1.332429389 | W13: =Inputs!W$29 -> 1.309930582 | X13: =Inputs!X$29 -> 1.288178967 | Y13: =AA13 -> 1.269441818 | Z13: =AA13 -> 1.269441818 | AA13: =Inputs!Y$29 -> 1.269441818 | AB13: =Inputs!Z$29 -> 1.245661017 | AC13: =Inputs!AA$29 -> 1.223826468 | AD13: =Inputs!AB$29 -> 1.201709122 | AE13: =Inputs!AC$29 -> 1.191455631 | AF13: =$AH13 -> 1.151183842 | AG13: =$AH13 -> 1.151183842 | AH13: =Inputs!AD$29 -> 1.151183842 | AI13: =Inputs!AE$29 -> 1.067573394 | AJ13: =Inputs!AF$29 -> 1.026 | AK13: =Inputs!AG$29 -> 1 | AL13: =Inputs!AH$29 -> 0.9643201543 | AM13: =Inputs!AI$29 -> 0.9437132573 | AN13: =Inputs!AJ$29 -> 0.9235467164 | AO13: =Inputs!AK$29 -> 0.9038111214 | AP13: =Inputs!AL$29 -> 0.8844972633 | AQ13: =Inputs!AM$29 -> 0.8655961298
A14: =ROW() -> 14 | B14: Real Post Tax WACC
A15: =ROW() -> 15 | C15: WACC | AE15: =Inputs!AC$34 -> 0.02365694513 | AH15: =Inputs!AD$34 -> 0.02365694513 | AI15: =Inputs!AE$34 -> 0.02365694513 | AJ15: =Inputs!AF$34 -> 0.02365694513 | AK15: =Inputs!AG$34 -> 0.02365694513 | AL15: =Inputs!AH$34 -> 0.02365694513 | AM15: =Inputs!AI$34 -> 0.04645293838 | AN15: =Inputs!AJ$34 -> 0.04645293838 | AO15: =Inputs!AK$34 -> 0.04645293838 | AP15: =Inputs!AL$34 -> 0.04645293838 | AQ15: =Inputs!AM$34 -> 0.04645293838
A16: =ROW() -> 16 | C16: Discounting Factor | AD16: =Inputs!AB$35 -> 1 | AE16: =Inputs!AC$35 -> 0.9768897723 | AF16: =$AH16 -> 0.9543136271 | AG16: =$AH16 -> 0.9543136271 | AH16: =Inputs!AD$35 -> 0.9543136271 | AI16: =Inputs!AE$35 -> 0.9322592219 | AJ16: =Inputs!AF$35 -> 0.910714499 | AK16: =Inputs!AG$35 -> 1 | AL16: =Inputs!AH$35 -> 0.9768897723 | AM16: =Inputs!AI$35 -> 0.9335248021 | AN16: =Inputs!AJ$35 -> 0.89208484 | AO16: =Inputs!AK$35 -> 0.8524844332 | AP16: =Inputs!AL$35 -> 0.8146419222 | AQ16: =Inputs!AM$35 -> 0.7784792725
A17: =ROW() -> 17 | B17: Nominal Post Tax WACC
A18: =ROW() -> 18 | C18: WACC | AE18: =Inputs!AC$37 -> 0.035429 | AH18: =Inputs!AD$37 -> 0.035429 | AI18: =Inputs!AE$37 -> 0.035429 | AJ18: =Inputs!AF$37 -> 0.035429 | AK18: =Inputs!AG$37 -> 0.035429 | AL18: =Inputs!AH$37 -> 0.035429 | AM18: =Inputs!AI$37 -> 0.0693032562 | AN18: =Inputs!AJ$37 -> 0.0693032562 | AO18: =Inputs!AK$37 -> 0.0693032562 | AP18: =Inputs!AL$37 -> 0.0693032562 | AQ18: =Inputs!AM$37 -> 0.0693032562
A19: =ROW() -> 19 | C19: Discounting Factor | AD19: =Inputs!AB$38 -> 1 | AE19: =Inputs!AC$38 -> 0.9657832647 | AF19: =$AH19 -> 0.9327373144 | AG19: =$AH19 -> 0.9327373144 | AH19: =Inputs!AD$38 -> 0.9327373144 | AI19: =Inputs!AE$38 -> 0.9008220886 | AJ19: =Inputs!AF$38 -> 0.8699988977 | AK19: =Inputs!AG$38 -> 1 | AL19: =Inputs!AH$38 -> 0.9657832647 | AM19: =Inputs!AI$38 -> 0.9031893049 | AN19: =Inputs!AJ$38 -> 0.8446521599 | AO19: =Inputs!AK$38 -> 0.7899089009 | AP19: =Inputs!AL$38 -> 0.7387136403 | AQ19: =Inputs!AM$38 -> 0.6908364264
A20: =ROW() -> 20
A21: ="Capital Base [m$ "&Inputs!$E$28&"]" -> Capital Base [m$ 31/12/2024]
A22: =ROW() -> 22 | B22: Asset Account
A23: =ROW() -> 23 | C23: Opening Value | I23: =Asset_NoReclass!I29 -> 3135.142606 | J23: =Asset_NoReclass!J29 -> 3068.432846 | K23: =Asset_NoReclass!K29 -> 2997.689463 | L23: =Asset_NoReclass!L29 -> 2922.504534 | M23: =Asset_NoReclass!M29 -> 2845.729105 | N23: =Asset_NoReclass!N29 -> 2772.924902 | O23: =Asset_NoReclass!O29 -> 2774.110809 | P23: =Asset_NoReclass!P29 -> 3318.165053 | Q23: =Asset_NoReclass!Q29 -> 3245.80237 | R23: =Asset_NoReclass!R29 -> 4100.976933 | S23: =Asset_NoReclass!S29 -> 3999.902366 | T23: =Asset_NoReclass!T29 -> 4831.68536 | U23: =Asset_NoReclass!U29 -> 4903.528234 | V23: =Asset_NoReclass!V29 -> 4812.058529 | W23: =Asset_NoReclass!W29 -> 4705.113159 | X23: =Asset_NoReclass!X29 -> 4584.423438 | AA23: =Asset_NoReclass!Y29 -> 4477.950116 | AB23: =Asset_NoReclass!Z29 ->  | AC23: =Asset_NoReclass!AA29 ->  | AD23: =Asset_NoReclass!AB29 ->  | AE23: =ProposedApproach!AC29 -> 4077.55538 | AH23: =ProposedApproach!AD29 -> 4003.597606 | AI23: =ProposedApproach!AE29 -> 3833.376845 | AJ23: =ProposedApproach!AF29 -> 3741.251337 | AK23: =ProposedApproach!AG29 -> 3655.555846 | AL23: =ProposedApproach!AH29 -> 3555.206509 | AM23: =ProposedApproach!AI29 -> 3453.071241 | AN23: =ProposedApproach!AJ29 -> 3288.09978 | AO23: =ProposedApproach!AK29 -> 3215.289877 | AP23: =ProposedApproach!AL29 -> 3129.644668 | AQ23: =ProposedApproach!AM29 -> 3034.82681
A24: =ROW() -> 24 | C24: Capex | I24: =Asset_NoReclass!I30 -> 9.672530473 | J24: =Asset_NoReclass!J30 -> 6.057349234 | K24: =Asset_NoReclass!K30 -> 2.258677447 | L24: =Asset_NoReclass!L30 -> 1.360451232 | M24: =Asset_NoReclass!M30 -> 5.78566032 | N24: =Asset_NoReclass!N30 -> 86.95539356 | O24: =Asset_NoReclass!O30 -> 620.2670452 | P24: =Asset_NoReclass!P30 -> 8.193526662 | Q24: =Asset_NoReclass!Q30 -> 948.7371188 | R24: =Asset_NoReclass!R30 -> 1.898175146 | S24: =Asset_NoReclass!S30 -> 892.7812219 | T24: =Asset_NoReclass!T30 -> 204.674576 | U24: =Asset_NoReclass!U30 -> 42.12279492 | V24: =Asset_NoReclass!V30 -> 27.68015973 | W24: =Asset_NoReclass!W30 -> 16.1321265 | X24: =Asset_NoReclass!X30 -> 28.93413842 | AA24: =Asset_NoReclass!Y30 -> 22.03722882 | AB24: =Asset_NoReclass!Z30 -> 28.86887888 | AC24: =Asset_NoReclass!AA30 -> 27.12534762 | AD24: =Asset_NoReclass!AB30 -> 31.74802401 | AE24: =ProposedApproach!AC30 -> 37.29155043 | AH24: =ProposedApproach!AD30 -> 44.99715087 | AI24: =ProposedApproach!AE30 -> 44.91841631 | AJ24: =ProposedApproach!AF30 -> 53.53738699 | AK24: =ProposedApproach!AG30 -> 39.21586479 | AL24: =ProposedApproach!AH30 -> 38.98912437 | AM24: =ProposedApproach!AI30 -> 62.86951769 | AN24: =ProposedApproach!AJ30 -> 75.25590856 | AO24: =ProposedApproach!AK30 -> 63.57712321 | AP24: =ProposedApproach!AL30 -> 52.442319 | AQ24: =ProposedApproach!AM30 -> 39.91393108
A25: =ROW() -> 25 | C25: Depreciation | I25: =Asset_NoReclass!I32 -> -76.38229023 | J25: =Asset_NoReclass!J32 -> -76.80073304 | K25: =Asset_NoReclass!K32 -> -77.44360583 | L25: =Asset_NoReclass!L32 -> -78.13587999 | M25: =Asset_NoReclass!M32 -> -78.58986405 | N25: =Asset_NoReclass!N32 -> -75.72264012 | O25: =Asset_NoReclass!O32 -> -76.21280116 | P25: =Asset_NoReclass!P32 -> -80.50568354 | Q25: =Asset_NoReclass!Q32 -> -93.52437731 | R25: =Asset_NoReclass!R32 -> -102.8508342 | S25: =Asset_NoReclass!S32 -> -105.2918672 | T25: =Asset_NoReclass!T32 -> -126.6461176 | U25: =Asset_NoReclass!U32 -> -133.0842172 | V25: =Asset_NoReclass!V32 -> -133.6129751 | W25: =Asset_NoReclass!W32 -> -133.9652461 | X25: =Asset_NoReclass!X32 -> -134.4031118 | AA25: =Asset_NoReclass!Y32 ->  | AB25: =Asset_NoReclass!Z32 ->  | AC25: =Asset_NoReclass!AA32 ->  | AD25: =Asset_NoReclass!AB32 ->  | AE25: =ProposedApproach!AC32 -> -111.2493246 | AH25: =ProposedApproach!AD32 -> -215.2179125 | AI25: =ProposedApproach!AE32 -> -137.0439236 | AJ25: =ProposedApproach!AF32 -> -139.232878 | AK25: =ProposedApproach!AG32 -> -139.5652017 | AL25: =ProposedApproach!AH32 -> -141.1243926 | AM25: =ProposedApproach!AI32 -> -227.8409792 | AN25: =ProposedApproach!AJ32 -> -148.0658109 | AO25: =ProposedApproach!AK32 -> -149.2223323 | AP25: =ProposedApproach!AL32 -> -147.2601769 | AQ25: =ProposedApproach!AM32 -> -149.8357683
A26: =ROW() -> 26 | C26: Asset Adjustment, Redundant Assets & Asset Disposal | I26: =Asset_NoReclass!I31 -> 0 | J26: =Asset_NoReclass!J31 -> 0 | K26: =Asset_NoReclass!K31 -> 0 | L26: =Asset_NoReclass!L31 -> 0 | M26: =Asset_NoReclass!M31 -> 0 | N26: =Asset_NoReclass!N31 -> -10.0468458 | O26: =Asset_NoReclass!O31 -> 0 | P26: =Asset_NoReclass!P31 -> -0.05052640486 | Q26: =Asset_NoReclass!Q31 -> -0.03817869781 | R26: =Asset_NoReclass!R31 -> -0.1219073972 | S26: =Asset_NoReclass!S31 -> -0.01597622491 | T26: =Asset_NoReclass!T31 -> -6.185583949 | U26: =Asset_NoReclass!U31 -> -0.5082831565 | V26: =Asset_NoReclass!V31 -> -1.012554758 | W26: =Asset_NoReclass!W31 -> -2.856601137 | X26: =Asset_NoReclass!X31 -> -1.004348538 | AA26: =Asset_NoReclass!Y31 -> 0 | AB26: =Asset_NoReclass!Z31 -> 0 | AC26: =Asset_NoReclass!AA31 -> 0 | AD26: =Asset_NoReclass!AB31 -> 0 | AE26: =ProposedApproach!AC31 -> 0 | AH26: =ProposedApproach!AD31 -> 0 | AI26: =ProposedApproach!AE31 -> 0 | AJ26: =ProposedApproach!AF31 -> 0 | AK26: =ProposedApproach!AG31 -> 0 | AL26: =ProposedApproach!AH31 -> 0 | AM26: =ProposedApproach!AI31 -> 0 | AN26: =ProposedApproach!AJ31 -> 0 | AO26: =ProposedApproach!AK31 -> 0 | AP26: =ProposedApproach!AL31 -> 0 | AQ26: =ProposedApproach!AM31 -> 0
A27: =ROW() -> 27 | C27: Closing Value | I27: =Asset_NoReclass!I33 -> 3068.432846 | J27: =Asset_NoReclass!J33 -> 2997.689463 | K27: =Asset_NoReclass!K33 -> 2922.504534 | L27: =Asset_NoReclass!L33 -> 2845.729105 | M27: =Asset_NoReclass!M33 -> 2772.924902 | N27: =Asset_NoReclass!N33 -> 2774.110809 | O27: =Asset_NoReclass!O33 -> 3318.165053 | P27: =Asset_NoReclass!P33 -> 3245.80237 | Q27: =Asset_NoReclass!Q33 -> 4100.976933 | R27: =Asset_NoReclass!R33 -> 3999.902366 | S27: =Asset_NoReclass!S33 -> 4831.68536 | T27: =Asset_NoReclass!T33 -> 4903.528234 | U27: =Asset_NoReclass!U33 -> 4812.058529 | V27: =Asset_NoReclass!V33 -> 4705.113159 | W27: =Asset_NoReclass!W33 -> 4584.423438 | X27: =Asset_NoReclass!X33 -> 4477.950116 | AA27: =Asset_NoReclass!Y33 ->  | AB27: =Asset_NoReclass!Z33 ->  | AC27: =Asset_NoReclass!AA33 ->  | AD27: =Asset_NoReclass!AB33 ->  | AE27: =ProposedApproach!AC33 -> 4003.597606 | AH27: =ProposedApproach!AD33 -> 3833.376845 | AI27: =ProposedApproach!AE33 -> 3741.251337 | AJ27: =ProposedApproach!AF33 -> 3655.555846 | AK27: =ProposedApproach!AG33 -> 3555.206509 | AL27: =ProposedApproach!AH33 -> 3453.071241 | AM27: =ProposedApproach!AI33 -> 3288.09978 | AN27: =ProposedApproach!AJ33 -> 3215.289877 | AO27: =ProposedApproach!AK33 -> 3129.644668 | AP27: =ProposedApproach!AL33 -> 3034.82681 | AQ27: =ProposedApproach!AM33 -> 2924.904973
A28: Capital Base [m$ nominal]
A29: =ROW() -> 29 | B29: Asset Account
A30: =ROW() -> 30 | C30: Opening Value (start period) | I30: =H36 -> 0 | J30: 1605.032999 | K30: 1616.99219 | L30: 1624.171995 | M30: 1618.91624 | N30: 1618.371975 | O30: 1664.375802 | P30: 2055.563962 | Q30: 2070.21772 | R30: 2712.052118 | S30: 2700.982124 | T30: 3349.272704 | U30: 3504.561903 | V30: 3515.002084 | W30: 3531.228894 | X30: 3499.745332 | AA30: =X36 -> 3476.186331 | AB30: =AA36 ->  | AC30: =AB36 ->  | AD30: =AC36 ->  | AE30: =AD36 ->  | AH30: =AE36 -> 3360.257403 | AI30: =AH36 -> 3329.943234 | AJ30: 3504.44415 | AK30: 3562.919928 | AL30: =AK36 -> 3555.206509 | AM30: 3580.834877 | AN30: =AM36 -> 3484.214886 | AO30: =AN36 -> 3481.458837 | AP30: =AO36 -> 3462.719803 | AQ30: =AP36 -> 3431.131939
A31: =ROW() -> 31 | C31: Inflation on Opening Value (start period) | I31: =I30*I$11 -> 0 | J31: 50.11908069 | K31: 48.96357443 | L31: 38.421273 | M31: 41.94670931 | N31: 45.29232147 | O31: 54.15299754 | P31: 60.8076799 | Q31: 76.29159617 | R31: 57.18182175 | S31: 71.70749002 | T31: 103.942946 | U31: 77.25487162 | V31: 96.49025328 | W31: 60.65087795 | X31: 59.09513694 | AA31: =AA30*AA$11 -> 51.30902334 | AB31: =AB30*AB$11 ->  | AC31: =AC30*AC$11 ->  | AD31: =AD30*AD$11 ->  | AE31: =AE30*AE$11 ->  | AH31: =AH30*AH$11 -> 117.5516668 | AI31: 260.7952244 | AJ31: 141.9996483 | AK31: 92.63591813 | AL31: 131.5426408 | AM31: =AM30*AM$11 -> 78.19101272 | AN31: 76.08122123 | AO31: 76.02104022 | AP31: 75.61185518 | AQ31: 74.92210345
A32: =ROW() -> 32 | C32: Opening Value (end period) | I32: =SUM(I30:I31) -> 0 | J32: 1655.152079 | K32: 1665.955764 | L32: 1662.593268 | M32: 1660.86295 | N32: 1663.664296 | O32: 1718.528799 | P32: 2116.371642 | Q32: 2146.509316 | R32: 2769.233939 | S32: 2772.689614 | T32: 3453.21565 | U32: 3581.816775 | V32: 3611.492337 | W32: 3591.879772 | X32: 3558.840469 | AA32: =SUM(AA30:AA31) -> 3527.495354 | AB32: =SUM(AB30:AB31) ->  | AC32: =SUM(AC30:AC31) ->  | AD32: =SUM(AD30:AD31) ->  | AE32: =SUM(AE30:AE31) ->  | AH32: =SUM(AH30:AH31) -> 3477.80907 | AI32: 3590.738458 | AJ32: 3646.443799 | AK32: 3655.555846 | AL32: 3686.74915 | AM32: =SUM(AM30:AM31) -> 3659.02589 | AN32: 3560.296108 | AO32: 3557.479877 | AP32: 3538.331658 | AQ32: 3506.054043
A33: =ROW() -> 33 | C33: Capex | I33: =I24*I$12 -> 5.059498241 | J33: 3.26741196 | K33: 1.25525234 | L33: 0.7739516 | M33: 3.37670541 | N33: 52.17039363 | O33: 384.2480902 | P33: 5.22594482 | Q33: 627.4174554 | R33: 1.28176557 | S33: 618.8664109 | T33: 146.2813483 | U33: 30.76889257 | V33: 20.77420383 | W33: 12.31525298 | X33: 22.4612722 | AA33: =AA24*AA$12 -> 17.35977853 | AB33: 23.17554976 | AC33: 22.16437406 | AD33: 26.41905884 | AE33: 31.2991516 | AH33: =AH24*AH$12 -> 39.08771931 | AI33: =AI24*AI$12 -> 42.07524892 | AJ33: 52.18068908 | AK33: 39.21586479 | AL33: 40.43172197 | AM33: =AM24*AM$12 -> 66.61930115 | AN33: 81.48576268 | AO33: 70.34337342 | AP33: 59.29053845 | AQ33: 46.11149439
A34: =ROW() -> 34 | C34: Depreciation | I34: =I25*I$12 -> -39.95397732 | J34: -41.42730161 | K34: -43.0390216 | L34: -44.45097913 | M34: -45.86768051 | N34: -45.43110875 | O34: -47.21292792 | P34: -51.34764031 | Q34: -61.84940556 | R34: -69.45126134 | S34: -72.98719818 | T34: -90.51424561 | U34: -97.21230487 | V34: -100.2777154 | W34: -102.268966 | X34: -104.3357447 | AE34: -93.37261215 | AH34: =AH25*AH$12 -> -186.9535557 | AI34: -128.3695569 | AJ34: -135.7045595 | AK34: -139.5652017 | AL34: -146.3459951 | AM34: =AM25*AM$12 -> -241.4303046 | AN34: -160.3230332 | AO34: -165.1034478 | AP34: -166.4902572 | AQ34: -173.1012457
A35: =ROW() -> 35 | C35: Asset Adjustment, Redundant Assets & Asset Disposal | I35: =I26*I$12 -> 0 | J35: 0 | K35: 0 | L35: 0 | M35: 0 | N35: -6.027779056 | O35: 0 | P35: -0.03222644103 | Q35: -0.02524828106 | R35: -0.08231943446 | S35: -0.01107454853 | T35: -4.420849809 | U35: -0.3712790157 | V35: -0.7599312697 | W35: -2.180727114 | X35: -0.7796653756 | AA35: 0 | AB35: 0 | AC35: 0 | AD35: 0 | AE35: 0 | AH35: =AH26*AH$12 -> 0 | AI35: 0 | AJ35: 0 | AK35: 0 | AL35: 0 | AM35: =AM26*AM$12 -> 0 | AN35: 0 | AO35: 0 | AP35: 0 | AQ35: 0
A36: =ROW() -> 36 | C36: Closing Value | I36: =I27*I$12 -> 1605.032999 | J36: 1616.99219 | K36: 1624.171995 | L36: 1618.91624 | M36: 1618.371975 | N36: 1664.375802 | O36: 2055.563962 | P36: 2070.21772 | Q36: 2712.052118 | R36: 2700.982124 | S36: 3349.272704 | T36: 3504.561903 | U36: 3515.002084 | V36: 3531.228894 | W36: 3499.745332 | X36: 3476.186331 | AE36: 3360.257403 | AH36: =AH27*AH$12 -> 3329.943234 | AI36: 3504.44415 | AJ36: 3562.919928 | AK36: 3555.206509 | AL36: 3580.834877 | AM36: =AM27*AM$12 -> 3484.214886 | AN36: 3481.458837 | AO36: 3462.719803 | AP36: 3431.131939 | AQ36: 3379.064291
A37: =ROW() -> 37
A38: Cost of Service, Allowable Revenue [m$ nominal]
A39: =ROW() -> 39 | B39: Cost of Service | F39: PV AA6 | H39: based nominal post tax WACC
A40: =ROW() -> 40 | C40: OPEX
A41: =ROW() -> 41 | C41: Opex; System Use Gas | F41: =SUMPRODUCT($AM$19:$AQ$19,AM41:AQ41) -> 101.8414934 | AM41: =Inputs!AI$1946 -> 24.52454954 | AN41: =Inputs!AJ$1946 -> 23.80322531 | AO41: =Inputs!AK$1946 -> 24.65605198 | AP41: =Inputs!AL$1946 -> 25.45351801 | AQ41: =Inputs!AM$1946 -> 30.84209262
A42: =ROW() -> 42 | C42: Opex; Other Expenses | F42: =SUMPRODUCT($AM$19:$AQ$19,AM42:AQ42) -> 450.2816835 | AM42: =Inputs!AI$1947-AM41 -> 108.1748076 | AN42: =Inputs!AJ$1947-AN41 -> 113.6607365 | AO42: =Inputs!AK$1947-AO41 -> 109.4465399 | AP42: =Inputs!AL$1947-AP41 -> 113.8895553 | AQ42: =Inputs!AM$1947-AQ41 -> 124.4737543
A43: =ROW() -> 43 | C43: Depreciation | F43: 726.4644183 | AM43: =-AM$34 -> 241.4303046 | AN43: 160.3230332 | AO43: 165.1034478 | AP43: 166.4902572 | AQ43: 173.1012457
A44: =ROW() -> 44 | C44: Inflationary Gains on RAB | F44: -302.5475776 | AM44: =-AM$31 -> -78.19101272 | AN44: -76.08122123 | AO44: -76.02104022 | AP44: -75.61185518 | AQ44: -74.92210345
A45: =ROW() -> 45 | C45: Return on Asset | F45: 960.2289096 | AM45: =AM$18*AM$30 -> 248.1635169 | AN45: 241.4674369 | AO45: 241.2764337 | AP45: 239.9777577 | AQ45: 237.7886159
A46: =ROW() -> 46 | C46: Tax | F46: 176.0438175 | AM46: =-Tax_CoRE!AI45 -> 58.88284769 | AN46: =-Tax_CoRE!AJ45 -> 33.95038875 | AO46: =-Tax_CoRE!AK45 -> 34.77707647 | AP46: =-Tax_CoRE!AL45 -> 45.9233903 | AQ46: =-Tax_CoRE!AM45 -> 47.46453965
A47: =ROW() -> 47 | C47: Imputation Credits | F47: -88.02190874 | AM47: =-Tax_CoRE!AI46 -> -29.44142385 | AN47: =-Tax_CoRE!AJ46 -> -16.97519438 | AO47: =-Tax_CoRE!AK46 -> -17.38853823 | AP47: =-Tax_CoRE!AL46 -> -22.96169515 | AQ47: =-Tax_CoRE!AM46 -> -23.73226982
A48: =ROW() -> 48 | C48: Over Depreciation | F48: 0
A49: =ROW() -> 49 | C49: Cost of Service | F49: 2024.290836 | AM49: =SUM(AM40:AM48) -> 573.5435897 | AN49: 480.1484052 | AO49: 481.8499715 | AP49: 493.1609281 | AQ49: 515.0158748
A50: =ROW() -> 50 | C50: less non-reference cost of service | D50: 0.005 | F50: -10.12145418 | AM50: =-AM49*$D50 -> -2.867717949 | AN50: -2.400742026 | AO50: -2.409249858 | AP50: -2.465804641 | AQ50: -2.575079374
A51: =ROW() -> 51 | C51: add back SUG for non-reference cost of service | D51: =D$50 -> 0.005 | F51: 0.5092074672 | AM51: =$D50*Inputs!AI$1906 -> 0.1226227477 | AN51: =$D50*Inputs!AJ$1906 -> 0.1190161265 | AO51: =$D50*Inputs!AK$1906 -> 0.1232802599 | AP51: =$D50*Inputs!AL$1906 -> 0.1272675901 | AQ51: =$D50*Inputs!AM$1906 -> 0.1542104631
A52: =ROW() -> 52 | C52: Total Unsmooth Revenue | F52: =SUMPRODUCT($AM$19:$AQ$19,AM52:AQ52) -> 2014.678589 | AM52: =SUM(AM49:AM51) -> 570.7984945 | AN52: 477.8666793 | AO52: 479.5640019 | AP52: 490.8223911 | AQ52: 512.5950059
A53: =ROW() -> 53 | C53: Total Tariff Revenue | F53: 2014.678589 | AM53: =AM209 -> 484.1370667 | AN53: 509.2398258 | AO53: 516.229556 | AP53: 510.4557181 | AQ53: 524.6187274
A54: =ROW() -> 54 | C54: Check CoS - Revenue (should be 0) | F54: =IF(ROUND(F52-F53,5)=0,"OK",F52-F53) -> OK
A55: =ROW() -> 55
A56: Hide | B56: Cost of Service | F56: PV AA6 | H56: based real post tax WACC | AH56: PV | AI56: PV | AJ56: PV | AK56: PV | AL56: PV | AM56: PV | AN56: PV | AO56: PV | AP56: PV | AQ56: PV
A57: Hide | C57: OPEX
A58: Hide | C58: Opex; System Use Gas | F58: =SUM(AM58:AQ58) -> 101.8414934 | AH58: =AH41*AH$19 -> 0 | AI58: 0 | AJ58: 0 | AK58: 0 | AL58: 0 | AM58: =AM41*AM$19 -> 22.15031086 | AN58: 20.10544567 | AO58: 19.47603492 | AP58: 18.80286095 | AQ58: 21.30684105
A59: Hide | C59: Opex; Other Expenses | F59: 450.2816835 | AH59: =AH42*AH$19 -> 0 | AI59: 0 | AJ59: 0 | AK59: 0 | AL59: 0 | AM59: =AM42*AM$19 -> 97.70232924 | AN59: 96.00378659 | AO59: 86.45279608 | AP59: 84.131768 | AQ59: 85.99100361
A60: Hide | C60: Depreciation | F60: 726.4644183 | AH60: =AH43*AH$19 -> 0 | AI60: 0 | AJ60: 0 | AK60: 0 | AL60: 0 | AM60: =AM43*AM$19 -> 218.057269 | AN60: 135.4171963 | AO60: 130.416683 | AP60: 122.988624 | AQ60: 119.584646
A61: Hide | C61: Inflationary Gains on RAB | F61: -302.5475776 | AH61: =AH44*AH$19 -> 0 | AI61: 0 | AJ61: 0 | AK61: 0 | AL61: 0 | AM61: =AM44*AM$19 -> -70.62128643 | AN61: -64.26216784 | AO61: -60.04969633 | AP61: -55.85550878 | AQ61: -51.75891821
A62: Hide | C62: Return on Asset | F62: 960.2289096 | AH62: =AH45*AH$19 -> 0 | AI62: 0 | AJ62: 0 | AK62: 0 | AL62: 0 | AM62: =AM45*AM$19 -> 224.1386343 | AN62: 203.9559921 | AO62: 190.5864026 | AP62: 177.2748429 | AQ62: 164.2730376
A63: Hide | C63: Tax | F63: 176.0438175 | AH63: =AH46*AH$19 -> 0 | AI63: 0 | AJ63: 0 | AK63: 0 | AL63: 0 | AM63: =AM46*AM$19 -> 53.18235828 | AN63: 28.67626919 | AO63: 27.47072225 | AP63: 33.92423482 | AQ63: 32.79023295
A64: Hide | C64: Imputation Credits | F64: -88.02190874 | AH64: =AH47*AH$19 -> 0 | AI64: 0 | AJ64: 0 | AK64: 0 | AL64: 0 | AM64: =AM47*AM$19 -> -26.59117914 | AN64: -14.33813459 | AO64: -13.73536112 | AP64: -16.96211741 | AQ64: -16.39511648
A65: Hide | C65: Over Depreciation | F65: 0
A66: Hide | C66: Net Cost of Service | F66: 2024.290836 | AH66: =AH49*AH$19 -> 0 | AI66: 0 | AJ66: 0 | AK66: 0 | AL66: 0 | AM66: =AM49*AM$19 -> 518.0184362 | AN66: 405.5583875 | AO66: 380.6175814 | AP66: 364.3047045 | AQ66: 355.7917265
A67: Hide | C67: less non-reference cost of service | D67: =D$50 -> 0.005 | F67: -10.12145418 | AH67: =-AH66*$D67 -> 0 | AI67: 0 | AJ67: 0 | AK67: 0 | AL67: 0 | AM67: =-AM66*$D67 -> -2.590092181 | AN67: -2.027791937 | AO67: -1.903087907 | AP67: -1.821523522 | AQ67: -1.778958633
A68: Hide | C68: add back SUG | D68: =D$50 -> 0.005 | F68: 0.5092074672 | AH68: =AH51*AH$19 -> 0 | AI68: 0 | AJ68: 0 | AK68: 0 | AL68: 0 | AM68: =AM51*AM$19 -> 0.1107515543 | AN68: 0.1005272283 | AO68: 0.0973801746 | AP68: 0.09401430474 | AQ68: 0.1065342053
A69: Hide | C69: Total Unsmooth Revenue | F69: 2014.678589 | AH69: =SUM(AH66:AH68) -> 0 | AI69: 0 | AJ69: 0 | AK69: 0 | AL69: 0 | AM69: =SUM(AM66:AM68) -> 515.5390955 | AN69: 403.6311228 | AO69: 378.8118737 | AP69: 362.5771953 | AQ69: 354.1193021
A70: Hide | C70: Total Tariff Revenue | F70: =SUM(AM70:AQ70) -> 2014.678589 | AH70: =AH53*AH$19 -> 0 | AI70: 0 | AJ70: 0 | AK70: 0 | AL70: 0 | AM70: =AM53*AM$19 -> 437.2674208 | AN70: 430.1305187 | AO70: 407.7743212 | AP70: 377.0806017 | AQ70: 362.4257269
A71: Hide | C71: Check CoS - Revenue (should be 0) | F71: =IF(ROUND(F69-F70,5)=0,"OK",F69-F70) -> OK
A72: Hide
A73: ="CHECK -- Cost of Service, Allowable Revenue [m$ "&Inputs!$E$28&"]" -> CHECK -- Cost of Service, Allowable Revenue [m$ 31/12/2024]
A74: =ROW() -> 74 | B74: Cost of Service | F74: PV AA6 | H74: based on real post tax WACC
A75: =ROW() -> 75 | C75: OPEX
A76: =ROW() -> 76 | C76: Opex; System Use Gas | F76: =SUMPRODUCT($AM$16:$AQ$16,AM76:AQ76) -> 99.33719443 | AM76: =Inputs!AI$1954 -> 23.14414254 | AN76: =Inputs!AJ$1954 -> 21.98339057 | AO76: =Inputs!AK$1954 -> 22.28441399 | AP76: =Inputs!AL$1954 -> 22.51356702 | AQ76: =Inputs!AM$1954 -> 26.69679601
A77: =ROW() -> 77 | C77: Opex; Other Expenses | F77: 439.2091831 | AM77: =Inputs!AI$1955-AM76 -> 102.086 | AN77: =Inputs!AJ$1955-AN76 -> 104.971 | AO77: =Inputs!AK$1955-AO76 -> 98.919 | AP77: =Inputs!AL$1955-AP76 -> 100.735 | AQ77: =Inputs!AM$1955-AQ76 -> 107.744
A78: =ROW() -> 78 | C78: Depreciation | F78: 708.6005391 | AM78: =-AM25 -> 227.8409792 | AN78: 148.0658109 | AO78: 149.2223323 | AP78: 147.2601769 | AQ78: 149.8357683
A79: =ROW() -> 79 | C79: Return on Asset | F79: 641.5088403 | AM79: =AM$15*AM$23 -> 160.4053056 | AN79: 152.7418965 | AO79: 149.3596625 | AP79: 145.3811909 | AQ79: 140.9766228
A80: =ROW() -> 80 | C80: Tax | F80: 171.7148712 | AM80: =AM46*AM$13 -> 55.568524 | AN80: 31.35477005 | AO80: 31.43190848 | AP80: 40.61911304 | AQ80: 41.08512182
A81: =ROW() -> 81 | C81: Imputation Credits | F81: -85.85743558 | AM81: =AM47*AM$13 -> -27.784262 | AN81: -15.67738503 | AO81: -15.71595424 | AP81: -20.30955652 | AQ81: -20.54256091
A82: =ROW() -> 82 | C82: Over Depreciation | F82: 0
A83: =ROW() -> 83 | C83: Net Cost of Service | F83: 1974.513193 | AM83: =SUM(AM75:AM82) -> 541.2606893 | AN83: 443.439483 | AO83: 435.5013631 | AP83: 436.1994913 | AQ83: 445.7957481
A84: =ROW() -> 84 | C84: less non-reference cost of service | D84: =D$50 -> 0.005 | F84: -9.872565963 | AM84: =-AM83*$D84 -> -2.706303447 | AN84: -2.217197415 | AO84: -2.177506816 | AP84: -2.180997457 | AQ84: -2.22897874
A85: =ROW() -> 85 | C85: add back SUG | D85: =D$50 -> 0.005 | F85: 0.4966859721 | AM85: =$D85*Inputs!AI$1914 -> 0.1157207127 | AN85: =$D85*Inputs!AJ$1914 -> 0.1099169529 | AO85: =$D85*Inputs!AK$1914 -> 0.1114220699 | AP85: =$D85*Inputs!AL$1914 -> 0.1125678351 | AQ85: =$D85*Inputs!AM$1914 -> 0.1334839801
A86: =ROW() -> 86 | C86: Total Unsmooth Revenue | F86: 1965.137313 | AM86: =SUM(AM83:AM85) -> 538.6701066 | AN86: 441.3322025 | AO86: 433.4352784 | AP86: 434.1310617 | AQ86: 443.7002533
A87: =ROW() -> 87 | C87: Total Tariff Revenue | F87: 1965.137313 | AM87: =AM239 -> 456.8865682 | AN87: 470.306769 | AO87: 466.5740139 | AP87: 451.4966857 | AQ87: 454.1079401
A88: =ROW() -> 88 | C88: Check CoS - Revenue (should be 0) | F88: =IF(ROUND(F86-F87,5)=0,"OK",F86-F87) -> OK
A89: =ROW() -> 89
A90: Hide | B90: Cost of Service | F90: PV AA6 | H90: based on real post tax WACC | AM90: PV | AN90: PV | AO90: PV | AP90: PV | AQ90: PV
A91: Hide | C91: OPEX
A92: Hide | C92: Opex; System Use Gas | F92: =SUM(AM92:AQ92) -> 99.33719443 | AM92: =AM76*AM$16 -> 21.60563108 | AN92: 19.61104946 | AO92: 18.99711603 | AP92: 18.34049551 | AQ92: 20.78290234
A93: Hide | C93: Opex; Other Expenses | F93: =SUM(AM93:AQ93) -> 439.2091831 | AM93: =AM77*AM$16 -> 95.29981295 | AN93: 93.64303774 | AO93: 84.32690765 | AP93: 82.06295403 | AQ93: 83.87647074
A94: Hide | C94: Depreciation | F94: 708.6005391 | AM94: =AM78*AM$16 -> 212.695205 | AN94: 132.0872653 | AO94: 127.2097154 | AP94: 119.9643135 | AQ94: 116.6440399
A95: Hide | C95: Return on Asset | F95: 641.5088403 | AM95: =AM79*AM$16 -> 149.7423312 | AN95: 136.2587303 | AO95: 127.3267873 | AP95: 118.4336128 | AQ95: 109.7473788
A96: Hide | C96: Tax | F96: 171.7148712 | AM96: =AM80*AM$16 -> 51.87459537 | AN96: 27.97111503 | AO96: 26.79521269 | AP96: 33.09003232 | AQ96: 31.98391575
A97: Hide | C97: Imputation Credits | F97: -85.85743558 | AM97: =AM81*AM$16 -> -25.93729769 | AN97: -13.98555751 | AO97: -13.39760634 | AP97: -16.54501616 | AQ97: -15.99195787
A98: Hide | C98: Over Depreciation | F98: 0
A99: Hide | C99: Net Cost of Service | F99: =SUM(AM99:AQ99) -> 1974.513193 | AM99: =AM83*AM$16 -> 505.2802779 | AN99: 395.5856402 | AO99: 371.2581327 | AP99: 355.3463921 | AQ99: 347.0427496
A100: Hide | C100: less non-reference cost of service | D100: =D$50 -> 0.005 | F100: =SUM(AM100:AQ100) -> -9.872565963 | AM100: =-AM99*$D100 -> -2.526401389 | AN100: -1.977928201 | AO100: -1.856290663 | AP100: -1.77673196 | AQ100: -1.735213748
A101: Hide | C101: add back SUG | D101: =D$50 -> 0.005 | F101: =SUM(AM101:AQ101) -> 0.4966859721 | AM101: =AM85*AM$16 -> 0.1080281554 | AN101: 0.09805524732 | AO101: 0.09498558015 | AP101: 0.09170247757 | AQ101: 0.1039145117
A102: Hide | C102: Total Unsmooth Revenue | F102: =SUM(AM102:AQ102) -> 1965.137313 | AM102: =SUM(AM99:AM101) -> 502.8619047 | AN102: 393.7057673 | AO102: 369.4968276 | AP102: 353.6613626 | AQ102: 345.4114504
A103: Hide | C103: Total Tariff Revenue | F103: =SUM(AM103:AQ103) -> 1965.137313 | AM103: =AM87*AM$16 -> 426.5149432 | AN103: 419.5535388 | AO103: 397.7470838 | AP103: 367.8081279 | AQ103: 353.5136188
A104: Hide | C104: Check CoS - Revenue (should be 0) | F104: =IF(ROUND(F102-F103,5)=0,"OK",F102-F103) -> OK
A105: Hide
A106: Credit Foncier Check
A107: =ROW() -> 107 | B107: Net Cash Flow | F107: PV | H107: based nominal post tax WACC
A108: =ROW() -> 108 | C108: Total Tariff Revenue | F108: =SUMPRODUCT($AL$19:$AQ$19,AL108:AQ108) -> 2014.678589 | AM108: =AM$53 -> 484.1370667 | AN108: 509.2398258 | AO108: 516.229556 | AP108: 510.4557181 | AQ108: 524.6187274
A109: =ROW() -> 109 | C109: Opex | F109: -552.123177 | AM109: =-(AM41+AM42) -> -132.6993571 | AN109: -137.4639618 | AO109: -134.1025919 | AP109: -139.3430733 | AQ109: -155.3158469
A110: =ROW() -> 110 | C110: Tax | F110: -176.0438175 | AM110: =-AM$46 -> -58.88284769 | AN110: -33.95038875 | AO110: -34.77707647 | AP110: -45.9233903 | AQ110: -47.46453965
A111: =ROW() -> 111 | C111: Imputation Credits | F111: 88.02190874 | AM111: =-AM$47 -> 29.44142385 | AN111: 16.97519438 | AO111: 17.38853823 | AP111: 22.96169515 | AQ111: 23.73226982
A112: =ROW() -> 112 | C112: Over Depreciation | F112: 0
A113: =ROW() -> 113 | C113: Asset Opening Value | F113: =SUMPRODUCT($AL$19:$AQ$19,AL113:AQ113) -> -3458.310398 | AL113: =-AL36 -> -3580.834877
A114: =ROW() -> 114 | C114: Capex | F114: =SUMPRODUCT($AL$19:$AQ$19,AL114:AQ114) -> -260.216052 | AM114: =-AM$33 -> -66.61930115 | AN114: -81.48576268 | AO114: -70.34337342 | AP114: -59.29053845 | AQ114: -46.11149439
A115: =ROW() -> 115 | C115: Asset Residual Value | F115: 2334.3807 | AQ115: =AQ36 -> 3379.064291
A116: =ROW() -> 116 | C116: non-reference cost of service | F116: 10.12145418 | AM116: =-AM50 -> 2.867717949 | AN116: 2.400742026 | AO116: 2.409249858 | AP116: 2.465804641 | AQ116: 2.575079374
A117: =ROW() -> 117 | C117: SUG | F117: -0.5092074672 | AM117: =-AM51 -> -0.1226227477 | AN117: -0.1190161265 | AO117: -0.1232802599 | AP117: -0.1272675901 | AQ117: -0.1542104631
A118: =ROW() -> 118 | C118: Net Cash Flow (should be 0) | F118: =SUMPRODUCT($AL$19:$AQ$19,AL118:AQ118) -> -1.377884473e-10 | AL118: =SUM(AL108:AL117) -> -3580.834877 | AM118: =SUM(AM108:AM117) -> 258.1220798 | AN118: 275.5966328 | AO118: 296.681022 | AP118: =SUM(AP108:AP117) -> 291.1989483 | AQ118: 3680.944276
A119: =ROW() -> 119
A120: =ROW() -> 120 | F120: IRR
A121: =ROW() -> 121 | C121: Net Cash Flow [m$ OD] | E121: Nominal IRR | F121: =IRR(AE121:AQ121,0.05) -> 0.0693032562 | G121: =IF(Recalc_From_Year=Inputs!$Y$6,IF(ABS(F121-WACC!$O$36)<0.00001,"OK","Check"),"") ->  | AL121: =AL118 -> -3580.834877 | AM121: =AM118 -> 258.1220798 | AN121: 275.5966328 | AO121: 296.681022 | AP121: 291.1989483 | AQ121: 3680.944276
A122: =ROW() -> 122 | C122: ="Net Cash Flow [m$ "&Inputs!$E$28&"]" -> Net Cash Flow [m$ 31/12/2024] | E122: Real IRR | F122: =IRR(AE122:AQ122,0.05) -> 0.04645293838 | G122: =IF(Recalc_From_Year=Inputs!$Y$6,IF(ABS(F122-WACC!$O$37)<0.00001,"OK","Check"),"") ->  | AL122: =AL121*AL$13 -> -3453.071241 | AM122: =AM121*AM$13 -> 243.5932288 | AN122: 254.5263653 | AO122: 268.1436072 | AP122: 257.5646728 | AQ122: 3186.21112
A123: =ROW() -> 123
A124: =ROW() -> 124
A125: =ROW() -> 125
A126: =ROW() -> 126
A127: =ROW() -> 127 | C127: Credit Foncier Check | F127: (A) | AE127: Total Revenue Building Block | AJ127: (B) | AK127: (A + B)
A128: =ROW() -> 128 | AK128: Difference
A129: =ROW() -> 129 | F129: PV | AJ129: PV | AK129: (should be 0)
A130: =ROW() -> 130 | C130: Total Smoothed Revenue | F130: =F108 -> 2014.678589 | AE130: Total Unsmoothed Revenue | AJ130: =-F52 -> -2014.678589 | AK130: =ROUND(AJ130+F130,0.000001) -> 0
A131: =ROW() -> 131
A132: =ROW() -> 132 | C132: Asset Opening Value | F132: =F113 -> -3458.310398 | AE132: Return on Asset | AJ132: =F45 -> 960.2289096
A133: =ROW() -> 133 | C133: Capex | F133: =F114 -> -260.216052 | AE133: Inflationary gains | AJ133: =F44 -> -302.5475776
A134: =ROW() -> 134 | C134: Asset Residual Value | F134: =F115 -> 2334.3807 | AE134: Depreciation | AJ134: =F43 -> 726.4644183
A135: =ROW() -> 135 | F135: =SUM(F132:F134) -> -1384.14575 | AJ135: =SUM(AJ132:AJ134) -> 1384.14575 | AK135: =ROUND(AJ135+F135,0.000001) -> 0
A136: =ROW() -> 136
A137: =ROW() -> 137 | C137: Opex | F137: =F109 -> -552.123177 | AE137: Opex | AJ137: =F41+F42 -> 552.123177 | AK137: =ROUND(AJ137+F137,0.000001) -> 0
A138: =ROW() -> 138 | C138: Tax | F138: =F110 -> -176.0438175 | AE138: Tax | AJ138: =F46 -> 176.0438175 | AK138: =ROUND(AJ138+F138,0.000001) -> 0
A139: =ROW() -> 139 | C139: Imputation Credits | F139: =F111 -> 88.02190874 | AE139: Imputation Credits | AJ139: =F47 -> -88.02190874 | AK139: =ROUND(AJ139+F139,0.000001) -> 0
A140: =ROW() -> 140 | C140: Over Depreciation | F140: =F112 -> 0 | AE140: Over Depreciation | AJ140: =F48 -> 0 | AK140: =ROUND(AJ140+F140,0.000001) -> 0
A141: =ROW() -> 141 | F141: =SUM(F137:F140) -> -640.1450857 | AJ141: =SUM(AJ137:AJ140) -> 640.1450857 | AK141: =ROUND(AJ141+F141,0.000001) -> 0
A142: =ROW() -> 142
A143: =ROW() -> 143 | C143: non-reference cost of service | F143: =F116 -> 10.12145418 | AE143: non-reference cost of service | AJ143: =F50 -> -10.12145418 | AK143: =ROUND(AJ143+F143,0.000001) -> 0
A144: =ROW() -> 144 | C144: SUG | F144: =F117 -> -0.5092074672 | AE144: SUG | AJ144: =F51 -> 0.5092074672 | AK144: =ROUND(AJ144+F144,0.000001) -> 0
A145: =ROW() -> 145 | F145: =SUM(F143:F144) -> 9.612246713 | AJ145: =SUM(AJ143:AJ144) -> -9.612246713 | AK145: =ROUND(AJ145+F145,0.000001) -> 0
A146: =ROW() -> 146
A147: =ROW() -> 147 | C147: Net Cash Flow (should be 0) | F147: =ROUND(F130+F135+F141+F145,0.00001) -> 0 | AJ147: =ROUND(AJ130+AJ135+AJ141+AJ145,0.00001) -> 0 | AK147: =ROUND(AJ147+F147,0.000001) -> 0
A148: =ROW() -> 148
A149: =ROW() -> 149
A150: Financeability metrics
A151: =ROW() -> 151
A152: =ROW() -> 152 | C152: Debt | AM152: =Tax_CoRE!AI21 -> 1969.459182 | AN152: =Tax_CoRE!AJ21 -> 1916.318187 | AO152: =Tax_CoRE!AK21 -> 1914.80236 | AP152: =Tax_CoRE!AL21 -> 1904.495892 | AQ152: =Tax_CoRE!AM21 -> 1887.122567
A153: =ROW() -> 153 | C153: Smoothed Revenue | AM153: =AM53 -> 484.1370667 | AN153: 509.2398258 | AO153: 516.229556 | AP153: 510.4557181 | AQ153: 524.6187274
A154: =ROW() -> 154 | C154: Interest | AM154: =-Tax_CoRE!AI38 -> 115.6185129 | AN154: =-Tax_CoRE!AJ38 -> 112.4988327 | AO154: =-Tax_CoRE!AK38 -> 112.409845 | AP154: =-Tax_CoRE!AL38 -> 111.8047963 | AQ154: =-Tax_CoRE!AM38 -> 110.7848828
A155: =ROW() -> 155 | C155: Opex | AM155: =SUM(AM41:AM42) -> 132.6993571 | AN155: 137.4639618 | AO155: 134.1025919 | AP155: 139.3430733 | AQ155: 155.3158469
A156: =ROW() -> 156 | C156: Tax (gross) | AM156: =AM46 -> 58.88284769 | AN156: 33.95038875 | AO156: 34.77707647 | AP156: 45.9233903 | AQ156: 47.46453965
A157: =ROW() -> 157 | C157: FFO | AM157: =AM153-AM154-AM155-AM156 -> 176.9363491 | AN157: 225.3266425 | AO157: 234.9400426 | AP157: 213.3844582 | AQ157: 211.053458
A158: =ROW() -> 158 | C158: FFO + Interest | AM158: =AM157+AM154 -> 292.5548619 | AN158: 337.8254752 | AO158: 347.3498876 | AP158: 325.1892545 | AQ158: 321.8383408
A159: =ROW() -> 159
A160: =ROW() -> 160 | C160: FFO/debt | AM160: =AM157/AM152 -> 0.08984006912 | AN160: 0.1175831049 | AO160: 0.1226967584 | AP160: 0.1120424881 | AQ160: 0.1118387654
A161: =ROW() -> 161 | C161: FFO Interest Cover | AM161: =AM158/AM154 -> 2.530346176 | AN161: 3.002924272 | AO161: 3.090030839 | AP161: 2.90854476 | AQ161: 2.905074524
A162: =ROW() -> 162
A163: ="Cost of Service Tariff [m$ "&Inputs!$E$28&"] (Not used for Reference Tariff)" -> Cost of Service Tariff [m$ 31/12/2024] (Not used for Reference Tariff)
A164: =ROW() -> 164
A165: =ROW() -> 165 | B165: ="Cost of Service Tariff [$/TJ OD]" -> Cost of Service Tariff [$/TJ OD]
A166: =ROW() -> 166 | C166: Capacity Reservation | AM166: =1000*((AM49-AM41)/AM$7)/AM182 -> 2.763660359 | AN166: =1000*((AN49-AN41)/AN$7)/AN182 -> 2.226208884 | AO166: =1000*((AO49-AO41)/AO$7)/AO182 -> 2.24726058 | AP166: =1000*((AP49-AP41)/AP$7)/AP182 -> 2.377185398 | AQ166: =1000*((AQ49-AQ41)/AQ$7)/AQ182 -> 2.447257761
A167: =ROW() -> 167 | C167: Commodity | AM167: =1000*(AM41/AM$7)/AM183 -> 0.1349998725 | AN167: =1000*(AN41/AN$7)/AN183 -> 0.1339633312 | AO167: =1000*(AO41/AO$7)/AO183 -> 0.1411419667 | AP167: =1000*(AP41/AP$7)/AP183 -> 0.1485544088 | AQ167: =1000*(AQ41/AQ$7)/AQ183 -> 0.178135691
A168: =ROW() -> 168 | C168: Total | AM168: =SUM(AM166:AM167) -> 2.898660232 | AN168: 2.360172215 | AO168: 2.388402547 | AP168: 2.525739807 | AQ168: 2.625393452
A169: =ROW() -> 169
A170: =ROW() -> 170 | B170: ="Cost of Service Tariff [$/TJ "&Inputs!$E$28&"]" -> Cost of Service Tariff [$/TJ 31/12/2024]
A171: =ROW() -> 171 | C171: Capacity Reservation | AM171: =1000*((AM83-AM76)/AM$7)/AM182 -> 2.60810292 | AN171: =1000*((AN83-AN76)/AN$7)/AN182 -> 2.056007905 | AO171: =1000*((AO83-AO76)/AO$7)/AO182 -> 2.031099105 | AP171: =1000*((AP83-AP76)/AP$7)/AP182 -> 2.102613979 | AQ171: =1000*((AQ83-AQ76)/AQ$7)/AQ182 -> 2.118336847
A172: =ROW() -> 172 | C172: Commodity | AM172: =1000*(AM76/AM$7)/AM183 -> 0.1274011694 | AN172: =1000*(AN76/AN$7)/AN183 -> 0.1237213946 | AO172: =1000*(AO76/AO$7)/AO183 -> 0.1275656792 | AP172: =1000*(AP76/AP$7)/AP183 -> 0.1313959681 | AQ172: =1000*(AQ76/AQ$7)/AQ183 -> 0.1541935647
A173: =ROW() -> 173 | C173: Total | AM173: =SUM(AM171:AM172) -> 2.735504089 | AN173: 2.179729299 | AO173: 2.158664784 | AP173: 2.234009947 | AQ173: 2.272530411
A174: =ROW() -> 174
A175: Tariff and Revenue
A176: =ROW() -> 176
A177: =ROW() -> 177 | AM177: X_Factor_2026 | AN177: X_Factor_2027 | AO177: X_Factor_2028 | AP177: X_Factor_2029 | AQ177: X_Factor_2030
A178: =ROW() -> 178 | B178: X_Factor (for real $ calculation) | AM178: =X_Factor_2026 -> 0.5262164151 | AN178: =X_Factor_2027 -> 0 | AO178: =X_Factor_2028 -> 0 | AP178: =X_Factor_2029 -> 0 | AQ178: =X_Factor_2030 -> 0
A179: =ROW() -> 179
A180: =ROW() -> 180
A181: =ROW() -> 181 | B181: Load F/H Equivalent [TJ/day] | F181: PV (use real discount rate)
A182: =ROW() -> 182 | C182: Capacity Reservation | F182: =SUMPRODUCT($AM$16:$AQ$16,AM182:AQ182) -> 2344.036627 | AM182: 544.2643301 | AN182: 561.6098183 | AO182: 555.8606446 | AP182: 539.0366968 | AQ182: 542.0366968
A183: =ROW() -> 183 | C183: Commodity | F183: =SUMPRODUCT($AM$16:$AQ$16,AM183:AQ183) -> 2057.470997 | AM183: 497.7082233 | AN183: 486.8072131 | AO183: 477.294343 | AP183: 469.4284494 | AQ183: 474.3512287
A184: =ROW() -> 184 | C184: Total | AM184: =SUM(AM182:AM183) -> 1041.972553 | AN184: =SUM(AN182:AN183) -> 1048.417031 | AO184: =SUM(AO182:AO183) -> 1033.154988 | AP184: =SUM(AP182:AP183) -> 1008.465146 | AQ184: =SUM(AQ182:AQ183) -> 1016.387925
A185: =ROW() -> 185
A186: =ROW() -> 186 | B186: Applied Tariff Allocation
A187: =ROW() -> 187 | C187: Capacity Reservation | AM187: =IF(Recalc_From_Year>=AM$6,SolverSheet!I22,AL187) -> 0.9494502454 | AN187: =IF(Recalc_From_Year>=AN$6,SolverSheet!J22,AM187) -> 0.9494502454 | AO187: =IF(Recalc_From_Year>=AO$6,SolverSheet!K22,AN187) -> 0.9494502454 | AP187: =IF(Recalc_From_Year>=AP$6,SolverSheet!L22,AO187) -> 0.9494502454 | AQ187: =IF(Recalc_From_Year>=AQ$6,SolverSheet!M22,AP187) -> 0.9494502454
A188: =ROW() -> 188 | C188: Commodity | AM188: =IF(Recalc_From_Year>=AM$6,SolverSheet!I23,AL188) -> 0.05054975464 | AN188: =IF(Recalc_From_Year>=AN$6,SolverSheet!J23,AM188) -> 0.05054975464 | AO188: =IF(Recalc_From_Year>=AO$6,SolverSheet!K23,AN188) -> 0.05054975464 | AP188: =IF(Recalc_From_Year>=AP$6,SolverSheet!L23,AO188) -> 0.05054975464 | AQ188: =IF(Recalc_From_Year>=AQ$6,SolverSheet!M23,AP188) -> 0.05054975464
A189: =ROW() -> 189 | C189: Total | AM189: =SUM(AM187:AM188) -> 1 | AN189: =SUM(AN187:AN188) -> 1 | AO189: =SUM(AO187:AO188) -> 1 | AP189: =SUM(AP187:AP188) -> 1 | AQ189: =SUM(AQ187:AQ188) -> 1
A190: =ROW() -> 190
A191: =ROW() -> 191
A192: =ROW() -> 192 | B192: Nominal $ Calculation | AL192: Converted to $Dec 2024
A193: =ROW() -> 193 | B193: Forecast Full Haul Tariff [$ OD /GJ/day]
A194: =ROW() -> 194 | C194: Capacity Reservation Charge | AL194: 1.476833 | AM194: =AM224*AM$12 -> 2.323912492 | AN194: 2.374657381 | AO194: 2.426510335 | AP194: 2.479495549 | AQ194: 2.533637746
A195: =ROW() -> 195 | C195: Commodity Charge | AL195: 0.092627 | AM195: 0.1237276064 | AN195: 0.126429319 | AO195: 0.1291900262 | AP195: 0.1320110161 | AQ195: 0.134893605
A196: =ROW() -> 196 | C196: Total | AL196: 1.56946 | AM196: =SUM(AM194:AM195) -> 2.447640098 | AN196: =SUM(AN194:AN195) -> 2.5010867 | AO196: =SUM(AO194:AO195) -> 2.555700361 | AP196: =SUM(AP194:AP195) -> 2.611506565 | AQ196: =SUM(AQ194:AQ195) -> 2.668531351
A197: =ROW() -> 197 | B197: Less Rebateable Forecast Full Haul Tariff [$ OD /GJ/day]
A198: =ROW() -> 198 | C198: Capacity Reservation Charge | AM198: =RebateableServices!AI75 -> 0 | AN198: =RebateableServices!AJ75 -> 0 | AO198: =RebateableServices!AK75 -> 0 | AP198: =RebateableServices!AL75 -> 0 | AQ198: =RebateableServices!AM75 -> 0
A199: =ROW() -> 199 | C199: Commodity Charge | AM199: =RebateableServices!AI76 -> 0 | AN199: =RebateableServices!AJ76 -> 0 | AO199: =RebateableServices!AK76 -> 0 | AP199: =RebateableServices!AL76 -> 0 | AQ199: =RebateableServices!AM76 -> 0
A200: =ROW() -> 200 | C200: Total | AM200: =SUM(AM198:AM199) -> 0 | AN200: 0 | AO200: 0 | AP200: 0 | AQ200: 0
A201: =ROW() -> 201 | B201: Net Forecast Full Haul Tariff [$ OD /GJ/day]
... 81 more rows

Sheet Load
A1: =Main!A1 -> AGIG, DBNGP Tariff Model, Final Plan, Dec 2024
A2: =MID(CELL("filename",A1),FIND("]",CELL("filename",A1))+1,256) -> Load
A3: Ref. | B3: =COLUMN() -> 2 | C3: =COLUMN() -> 3 | D3: =COLUMN() -> 4 | E3: =COLUMN() -> 5 | F3: =COLUMN() -> 6 | G3: =COLUMN() -> 7 | H3: =COLUMN() -> 8 | I3: =COLUMN() -> 9 | J3: =COLUMN() -> 10 | K3: =COLUMN() -> 11 | L3: =COLUMN() -> 12 | M3: =COLUMN() -> 13 | N3: =COLUMN() -> 14 | O3: =COLUMN() -> 15 | P3: =COLUMN() -> 16 | Q3: =COLUMN() -> 17 | R3: =COLUMN() -> 18 | S3: =COLUMN() -> 19 | T3: =COLUMN() -> 20 | U3: =COLUMN() -> 21 | V3: =COLUMN() -> 22 | W3: =COLUMN() -> 23 | X3: =COLUMN() -> 24 | Y3: =COLUMN() -> 25 | Z3: =COLUMN() -> 26 | AA3: =COLUMN() -> 27 | AB3: =COLUMN() -> 28 | AC3: =COLUMN() -> 29 | AD3: =COLUMN() -> 30 | AE3: =COLUMN() -> 31 | AF3: =COLUMN() -> 32 | AG3: =COLUMN() -> 33 | AH3: =COLUMN() -> 34 | AI3: =COLUMN() -> 35 | AJ3: =COLUMN() -> 36 | AK3: =COLUMN() -> 37 | AL3: =COLUMN() -> 38 | AM3: =COLUMN() -> 39
A5: Regulatory Period | I5: =Inputs!I$5 -> AA1 | J5: =Inputs!J$5 -> AA1 | K5: =Inputs!K$5 -> AA1 | L5: =Inputs!L$5 -> AA1 | M5: =Inputs!M$5 -> AA1 | N5: =Inputs!N$5 -> AA2 | O5: =Inputs!O$5 -> AA2 | P5: =Inputs!P$5 -> AA2 | Q5: =Inputs!Q$5 -> AA2 | R5: =Inputs!R$5 -> AA2 | S5: =Inputs!S$5 -> AA2 | T5: =Inputs!T$5 -> AA3 | U5: =Inputs!U$5 -> AA3 | V5: =Inputs!V$5 -> AA3 | W5: =Inputs!W$5 -> AA3 | X5: =Inputs!X$5 -> AA3 | Y5: =Inputs!Y$5 -> AA4 | Z5: =Inputs!Z$5 -> AA4 | AA5: =Inputs!AA$5 -> AA4 | AB5: =Inputs!AB$5 -> AA4 | AC5: =Inputs!AC$5 -> AA4 | AD5: =Inputs!AD$5 -> AA5 | AE5: =Inputs!AE$5 -> AA5 | AF5: =Inputs!AF$5 -> AA5 | AG5: =Inputs!AG$5 -> AA5 | AH5: =Inputs!AH$5 -> AA5 | AI5: =Inputs!AI$5 -> AA6 | AJ5: =Inputs!AJ$5 -> AA6 | AK5: =Inputs!AK$5 -> AA6 | AL5: =Inputs!AL$5 -> AA6 | AM5: =Inputs!AM$5 -> AA6
A6: Year | H6: =Inputs!H$6 -> 1999 | I6: =Inputs!I$6 -> 2000 | J6: =Inputs!J$6 -> 2001 | K6: =Inputs!K$6 -> 2002 | L6: =Inputs!L$6 -> 2003 | M6: =Inputs!M$6 -> 2004 | N6: =Inputs!N$6 -> 2005 | O6: =Inputs!O$6 -> 2006 | P6: =Inputs!P$6 -> 2007 | Q6: =Inputs!Q$6 -> 2008 | R6: =Inputs!R$6 -> 2009 | S6: =Inputs!S$6 -> 2010 | T6: =Inputs!T$6 -> 2011 | U6: =Inputs!U$6 -> 2012 | V6: =Inputs!V$6 -> 2013 | W6: =Inputs!W$6 -> 2014 | X6: =Inputs!X$6 -> 2015 | Y6: =Inputs!Y$6 -> 2016 | Z6: =Inputs!Z$6 -> 2017 | AA6: =Inputs!AA$6 -> 2018 | AB6: =Inputs!AB$6 -> 2019 | AC6: =Inputs!AC$6 -> 2020 | AD6: =Inputs!AD$6 -> 2021 | AE6: =Inputs!AE$6 -> 2022 | AF6: =Inputs!AF$6 -> 2023 | AG6: =Inputs!AG$6 -> 2024 | AH6: =Inputs!AH$6 -> 2025 | AI6: =Inputs!AI$6 -> 2026 | AJ6: =Inputs!AJ$6 -> 2027 | AK6: =Inputs!AK$6 -> 2028 | AL6: =Inputs!AL$6 -> 2029 | AM6: =Inputs!AM$6 -> 2030
A7: Days | H7: =Inputs!H$7 -> 365 | I7: =Inputs!I$7 -> 366 | J7: =Inputs!J$7 -> 365 | K7: =Inputs!K$7 -> 365 | L7: =Inputs!L$7 -> 365 | M7: =Inputs!M$7 -> 366 | N7: =Inputs!N$7 -> 365 | O7: =Inputs!O$7 -> 365 | P7: =Inputs!P$7 -> 365 | Q7: =Inputs!Q$7 -> 366 | R7: =Inputs!R$7 -> 365 | S7: =Inputs!S$7 -> 365 | T7: =Inputs!T$7 -> 365 | U7: =Inputs!U$7 -> 366 | V7: =Inputs!V$7 -> 365 | W7: =Inputs!W$7 -> 365 | X7: =Inputs!X$7 -> 365 | Y7: =Inputs!Y$7 -> 366 | Z7: =Inputs!Z$7 -> 365 | AA7: =Inputs!AA$7 -> 365 | AB7: =Inputs!AB$7 -> 365 | AC7: =Inputs!AC$7 -> 366 | AD7: =Inputs!AD$7 -> 365 | AE7: =Inputs!AE$7 -> 365 | AF7: =Inputs!AF$7 -> 365 | AG7: =Inputs!AG$7 -> 366 | AH7: =Inputs!AH$7 -> 365 | AI7: =Inputs!AI$7 -> 365 | AJ7: =Inputs!AJ$7 -> 365 | AK7: =Inputs!AK$7 -> 366 | AL7: =Inputs!AL$7 -> 365 | AM7: =Inputs!AM$7 -> 365
A8: Project Year | H8: =Inputs!H$8 -> 0 | I8: =Inputs!I$8 -> 1 | J8: =Inputs!J$8 -> 2 | K8: =Inputs!K$8 -> 3 | L8: =Inputs!L$8 -> 4 | M8: =Inputs!M$8 -> 5 | N8: =Inputs!N$8 -> 6 | O8: =Inputs!O$8 -> 7 | P8: =Inputs!P$8 -> 8 | Q8: =Inputs!Q$8 -> 9 | R8: =Inputs!R$8 -> 10 | S8: =Inputs!S$8 -> 11 | T8: =Inputs!T$8 -> 12 | U8: =Inputs!U$8 -> 13 | V8: =Inputs!V$8 -> 14 | W8: =Inputs!W$8 -> 15 | X8: =Inputs!X$8 -> 16 | Y8: =Inputs!Y$8 -> 17 | Z8: =Inputs!Z$8 -> 18 | AA8: =Inputs!AA$8 -> 19 | AB8: =Inputs!AB$8 -> 20 | AC8: =Inputs!AC$8 -> 21 | AD8: =Inputs!AD$8 -> 22 | AE8: =Inputs!AE$8 -> 23 | AF8: =Inputs!AF$8 -> 24 | AG8: =Inputs!AG$8 -> 25 | AH8: =Inputs!AH$8 -> 26 | AI8: =Inputs!AI$8 -> 27 | AJ8: =Inputs!AJ$8 -> 28 | AK8: =Inputs!AK$8 -> 29 | AL8: =Inputs!AL$8 -> 30 | AM8: =Inputs!AM$8 -> 31
A9: Full Haul Equivalent Capacity and throughput forecast
A10: =ROW() -> 10 | B10: Total System
A11: =ROW() -> 11 | C11: MDQ [TJ/d] FH Equivalent | N11: 560.162787 | O11: 629.9464159 | P11: 739.9755427 | Q11: 815.451152 | R11: 857.7150818 | S11: 983.0108733 | T11: 893.6213644 | U11: 902.6213644 | V11: 902.6213644 | W11: 902.6213644 | X11: 902.6213644 | Y11: 778.8043082 | Z11: 768.1542805 | AA11: 766.3750471 | AB11: 763.8338892 | AC11: 763.4127312 | AD11: 650.105436 | AE11: 633.7274668 | AF11: 614.4453247 | AG11: 562.5505593 | AH11: 556.4677381 | AI11: 544.2643301 | AJ11: 561.6098183 | AK11: 555.8606446 | AL11: 539.0366968 | AM11: 542.0366968
A12: =ROW() -> 12 | C12: Throughput [TJ/d] FH Equivalent | N12: 536.1113439 | O12: 561.0946917 | P12: 621.2201672 | Q12: 603.6044957 | R12: 657.5467802 | S12: 659.4000442 | T12: 740.3062521 | U12: 756.0380436 | V12: 756.9380436 | W12: 763.0672963 | X12: 769.7417849 | Y12: 648.7589504 | Z12: 639.2860623 | AA12: 643.4346487 | AB12: 647.2284129 | AC12: 650.8177322 | AD12: 586.9190973 | AE12: 571.9544494 | AF12: 554.4596002 | AG12: 513.1202217 | AH12: 509.1529237 | AI12: 497.7082233 | AJ12: 486.8072131 | AK12: 477.294343 | AL12: 469.4284494 | AM12: 474.3512287
A13: =ROW() -> 13 | C13: Load Factor | N13: =N12/N11 -> 0.9570634757 | O13: 0.8907022526 | P13: 0.8395144588 | Q13: 0.7402092623 | R13: 0.7666261142 | S13: 0.6707962873 | T13: =T12/T11 -> 0.8284339224 | U13: =U12/U11 -> 0.8376026465 | V13: =V12/V11 -> 0.8385997423 | W13: =W12/W11 -> 0.8453902449 | X13: =X12/X11 -> 0.8527848057 | Y13: =Y12/Y11 -> 0.833019211 | Z13: 0.8322365422 | AA13: 0.8395819399 | AB13: 0.8473418398 | AC13: 0.8525109756 | AD13: =AD12/AD11 -> 0.9028060139 | AE13: 0.9025243174 | AF13: 0.9023741869 | AG13: 0.9121317422 | AH13: 0.9149729425 | AI13: =AI12/AI11 -> 0.9144604851 | AJ13: 0.8668068065 | AK13: 0.8586582763 | AL13: 0.8708654757 | AM13: 0.8751275172
A14: =ROW() -> 14 | C14: MDQ [TJ/year] | N14: =N11*N$7 -> 204459.4172 | O14: 229930.4418 | P14: 270091.0731 | Q14: 298455.1216 | R14: 313066.0048 | S14: 358798.9688 | T14: 326171.798 | U14: 330359.4194 | V14: 329456.798 | W14: 329456.798 | X14: 329456.798 | Y14: 285042.3768 | Z14: 280376.3124 | AA14: 279726.8922 | AB14: 278799.3695 | AC14: 279409.0596 | AD14: 237288.4841 | AE14: 231310.5254 | AF14: 224272.5435 | AG14: 205893.5047 | AH14: 203110.7244 | AI14: 198656.4805 | AJ14: 204987.5837 | AK14: 203444.9959 | AL14: 196748.3943 | AM14: 197843.3943
A15: =ROW() -> 15 | C15: Throughput [TJ/year] | N15: =N12*N$7 -> 195680.6405 | O15: 204799.5625 | P15: 226745.361 | Q15: 220919.2454 | R15: 240004.5748 | S15: 240681.0161 | T15: 270211.782 | U15: 276709.924 | V15: 276282.3859 | W15: 278519.5631 | X15: 280955.7515 | Y15: 237445.7758 | Z15: 233339.4127 | AA15: 234853.6468 | AB15: 236238.3707 | AC15: 238199.29 | AD15: 214225.4705 | AE15: 208763.374 | AF15: 202377.7541 | AG15: 187802.0011 | AH15: 185840.8172 | AI15: 181663.5015 | AJ15: 177684.6328 | AK15: 174689.7295 | AL15: 171341.384 | AM15: 173138.1985
A16: =ROW() -> 16 | D16: Total KM | E16: 1399

Sheet RebateableServices
A1: =Main!A1 -> AGIG, DBNGP Tariff Model, Final Plan, Dec 2024
A2: =MID(CELL("filename",A1),FIND("]",CELL("filename",A1))+1,256) -> RebateableServices
A3: Ref. | B3: =COLUMN() -> 2 | C3: =COLUMN() -> 3 | D3: =COLUMN() -> 4 | E3: =COLUMN() -> 5 | F3: =COLUMN() -> 6 | G3: =COLUMN() -> 7 | H3: =COLUMN() -> 8 | I3: =COLUMN() -> 9 | J3: =COLUMN() -> 10 | K3: =COLUMN() -> 11 | L3: =COLUMN() -> 12 | M3: =COLUMN() -> 13 | N3: =COLUMN() -> 14 | Q3: =COLUMN() -> 17 | R3: =COLUMN() -> 18 | S3: =COLUMN() -> 19 | T3: =COLUMN() -> 20 | U3: =COLUMN() -> 21 | V3: =COLUMN() -> 22 | W3: =COLUMN() -> 23 | X3: =COLUMN() -> 24 | Y3: =COLUMN() -> 25 | Z3: =COLUMN() -> 26 | AA3: =COLUMN() -> 27 | AB3: =COLUMN() -> 28 | AC3: =COLUMN() -> 29 | AD3: =COLUMN() -> 30 | AE3: =COLUMN() -> 31 | AF3: =COLUMN() -> 32 | AG3: =COLUMN() -> 33 | AH3: =COLUMN() -> 34 | AI3: =COLUMN() -> 35 | AJ3: =COLUMN() -> 36 | AK3: =COLUMN() -> 37 | AL3: =COLUMN() -> 38 | AM3: =COLUMN() -> 39
A5: Regulatory Period | I5: =Inputs!I$5 -> AA1 | J5: =Inputs!J$5 -> AA1 | K5: =Inputs!K$5 -> AA1 | L5: =Inputs!L$5 -> AA1 | M5: =Inputs!M$5 -> AA1 | N5: =Inputs!N$5 -> AA2 | O5: =Inputs!O$5 -> AA2 | P5: =Inputs!P$5 -> AA2 | Q5: =Inputs!Q$5 -> AA2 | R5: =Inputs!R$5 -> AA2 | S5: =Inputs!S$5 -> AA2 | T5: =Inputs!T$5 -> AA3 | U5: =Inputs!U$5 -> AA3 | V5: =Inputs!V$5 -> AA3 | W5: =Inputs!W$5 -> AA3 | X5: =Inputs!X$5 -> AA3 | Y5: =Inputs!Y$5 -> AA4 | Z5: =Inputs!Z$5 -> AA4 | AA5: =Inputs!AA$5 -> AA4 | AB5: =Inputs!AB$5 -> AA4 | AC5: =Inputs!AC$5 -> AA4 | AD5: =Inputs!AD$5 -> AA5 | AE5: =Inputs!AE$5 -> AA5 | AF5: =Inputs!AF$5 -> AA5 | AG5: =Inputs!AG$5 -> AA5 | AH5: =Inputs!AH$5 -> AA5 | AI5: =Inputs!AI$5 -> AA6 | AJ5: =Inputs!AJ$5 -> AA6 | AK5: =Inputs!AK$5 -> AA6 | AL5: =Inputs!AL$5 -> AA6 | AM5: =Inputs!AM$5 -> AA6
A6: Year | H6: =Inputs!H$6 -> 1999 | I6: =Inputs!I$6 -> 2000 | J6: =Inputs!J$6 -> 2001 | K6: =Inputs!K$6 -> 2002 | L6: =Inputs!L$6 -> 2003 | M6: =Inputs!M$6 -> 2004 | N6: =Inputs!N$6 -> 2005 | O6: =Inputs!O$6 -> 2006 | P6: =Inputs!P$6 -> 2007 | Q6: =Inputs!Q$6 -> 2008 | R6: =Inputs!R$6 -> 2009 | S6: =Inputs!S$6 -> 2010 | T6: =Inputs!T$6 -> 2011 | U6: =Inputs!U$6 -> 2012 | V6: =Inputs!V$6 -> 2013 | W6: =Inputs!W$6 -> 2014 | X6: =Inputs!X$6 -> 2015 | Y6: =Inputs!Y$6 -> 2016 | Z6: =Inputs!Z$6 -> 2017 | AA6: =Inputs!AA$6 -> 2018 | AB6: =Inputs!AB$6 -> 2019 | AC6: =Inputs!AC$6 -> 2020 | AD6: =Inputs!AD$6 -> 2021 | AE6: =Inputs!AE$6 -> 2022 | AF6: =Inputs!AF$6 -> 2023 | AG6: =Inputs!AG$6 -> 2024 | AH6: =Inputs!AH$6 -> 2025 | AI6: =Inputs!AI$6 -> 2026 | AJ6: =Inputs!AJ$6 -> 2027 | AK6: =Inputs!AK$6 -> 2028 | AL6: =Inputs!AL$6 -> 2029 | AM6: =Inputs!AM$6 -> 2030
A7: Days | H7: =Inputs!H$7 -> 365 | I7: =Inputs!I$7 -> 366 | J7: =Inputs!J$7 -> 365 | K7: =Inputs!K$7 -> 365 | L7: =Inputs!L$7 -> 365 | M7: =Inputs!M$7 -> 366 | N7: =Inputs!N$7 -> 365 | O7: =Inputs!O$7 -> 365 | P7: =Inputs!P$7 -> 365 | Q7: =Inputs!Q$7 -> 366 | R7: =Inputs!R$7 -> 365 | S7: =Inputs!S$7 -> 365 | T7: =Inputs!T$7 -> 365 | U7: =Inputs!U$7 -> 366 | V7: =Inputs!V$7 -> 365 | W7: =Inputs!W$7 -> 365 | X7: =Inputs!X$7 -> 365 | Y7: =Inputs!Y$7 -> 366 | Z7: =Inputs!Z$7 -> 365 | AA7: =Inputs!AA$7 -> 365 | AB7: =Inputs!AB$7 -> 365 | AC7: =Inputs!AC$7 -> 366 | AD7: =Inputs!AD$7 -> 365 | AE7: =Inputs!AE$7 -> 365 | AF7: =Inputs!AF$7 -> 365 | AG7: =Inputs!AG$7 -> 366 | AH7: =Inputs!AH$7 -> 365 | AI7: =Inputs!AI$7 -> 365 | AJ7: =Inputs!AJ$7 -> 365 | AK7: =Inputs!AK$7 -> 366 | AL7: =Inputs!AL$7 -> 365 | AM7: =Inputs!AM$7 -> 365
A8: Project Year | H8: =Inputs!H$8 -> 0 | I8: =Inputs!I$8 -> 1 | J8: =Inputs!J$8 -> 2 | K8: =Inputs!K$8 -> 3 | L8: =Inputs!L$8 -> 4 | M8: =Inputs!M$8 -> 5 | N8: =Inputs!N$8 -> 6 | O8: =Inputs!O$8 -> 7 | P8: =Inputs!P$8 -> 8 | Q8: =Inputs!Q$8 -> 9 | R8: =Inputs!R$8 -> 10 | S8: =Inputs!S$8 -> 11 | T8: =Inputs!T$8 -> 12 | U8: =Inputs!U$8 -> 13 | V8: =Inputs!V$8 -> 14 | W8: =Inputs!W$8 -> 15 | X8: =Inputs!X$8 -> 16 | Y8: =Inputs!Y$8 -> 17 | Z8: =Inputs!Z$8 -> 18 | AA8: =Inputs!AA$8 -> 19 | AB8: =Inputs!AB$8 -> 20 | AC8: =Inputs!AC$8 -> 21 | AD8: =Inputs!AD$8 -> 22 | AE8: =Inputs!AE$8 -> 23 | AF8: =Inputs!AF$8 -> 24 | AG8: =Inputs!AG$8 -> 25 | AH8: =Inputs!AH$8 -> 26 | AI8: =Inputs!AI$8 -> 27 | AJ8: =Inputs!AJ$8 -> 28 | AK8: =Inputs!AK$8 -> 29 | AL8: =Inputs!AL$8 -> 30 | AM8: =Inputs!AM$8 -> 31
A9: Financial Parameters
A10: =ROW() -> 10 | B10: Modelled Inflation
A11: =ROW() -> 11 | C11: Inflation | AB11: =Inputs!AB$27 -> 0.01840490798 | AC11: =Inputs!AC$27 -> 0.008605851979 | AD11: =Inputs!AD$27 -> 0.03498293515 | AE11: =Inputs!AE$27 -> 0.07831821929 | AF11: =Inputs!AF$27 -> 0.04051987768 | AG11: =Inputs!AG$27 -> 0.026 | AH11: =Inputs!AH$27 -> 0.037 | AI11: =Inputs!AI$27 -> 0.02183597273 | AJ11: =Inputs!AJ$27 -> 0.02183597273 | AK11: =Inputs!AK$27 -> 0.02183597273 | AL11: =Inputs!AL$27 -> 0.02183597273 | AM11: =Inputs!AM$27 -> 0.02183597273
A12: =ROW() -> 12 | C12: =Inputs!C28 -> Inflation Factor (convert 31/12/2024 $ to nominal $) | AB12: =Inputs!AB$28 -> 0.832148131 | AC12: =Inputs!AC$28 -> 0.8393094746 | AD12: =Inputs!AD$28 -> 0.8686709835 | AE12: =Inputs!AE$28 -> 0.9367037481 | AF12: =Inputs!AF$28 -> 0.9746588694 | AG12: =Inputs!AG$28 -> 1 | AH12: =Inputs!AH$28 -> 1.037 | AI12: =Inputs!AI$28 -> 1.059643904 | AJ12: =Inputs!AJ$28 -> 1.082782259 | AK12: =Inputs!AK$28 -> 1.106425863 | AL12: =Inputs!AL$28 -> 1.130585748 | AM12: =Inputs!AM$28 -> 1.155273188
A13: =ROW() -> 13 | C13: =Inputs!C29 -> Inflation Factor (convert nominal to real 31/12/2024 $) | AB13: =Inputs!AB$29 -> 1.201709122 | AC13: =Inputs!AC$29 -> 1.191455631 | AD13: =Inputs!AD$29 -> 1.151183842 | AE13: =Inputs!AE$29 -> 1.067573394 | AF13: =Inputs!AF$29 -> 1.026 | AG13: =Inputs!AG$29 -> 1 | AH13: =Inputs!AH$29 -> 0.9643201543 | AI13: =Inputs!AI$29 -> 0.9437132573 | AJ13: =Inputs!AJ$29 -> 0.9235467164 | AK13: =Inputs!AK$29 -> 0.9038111214 | AL13: =Inputs!AL$29 -> 0.8844972633 | AM13: =Inputs!AM$29 -> 0.8655961298
A14: =ROW() -> 14 | B14: Real Post Tax WACC
A15: =ROW() -> 15 | C15: WACC | AB15: =Inputs!AB$34 -> 0 | AC15: =Inputs!AC$34 -> 0.02365694513 | AD15: =Inputs!AD$34 -> 0.02365694513 | AE15: =Inputs!AE$34 -> 0.02365694513 | AF15: =Inputs!AF$34 -> 0.02365694513 | AG15: =Inputs!AG$34 -> 0.02365694513 | AH15: =Inputs!AH$34 -> 0.02365694513 | AI15: =Inputs!AI$34 -> 0.04645293838 | AJ15: =Inputs!AJ$34 -> 0.04645293838 | AK15: =Inputs!AK$34 -> 0.04645293838 | AL15: =Inputs!AL$34 -> 0.04645293838 | AM15: =Inputs!AM$34 -> 0.04645293838
A16: =ROW() -> 16 | C16: Discounting Factor | AB16: =Inputs!AB$35 -> 1 | AC16: =Inputs!AC$35 -> 0.9768897723 | AD16: =Inputs!AD$35 -> 0.9543136271 | AE16: =Inputs!AE$35 -> 0.9322592219 | AF16: =Inputs!AF$35 -> 0.910714499 | AG16: =Inputs!AG$35 -> 1 | AH16: =Inputs!AH$35 -> 0.9768897723 | AI16: =Inputs!AI$35 -> 0.9335248021 | AJ16: =Inputs!AJ$35 -> 0.89208484 | AK16: =Inputs!AK$35 -> 0.8524844332 | AL16: =Inputs!AL$35 -> 0.8146419222 | AM16: =Inputs!AM$35 -> 0.7784792725
A17: =ROW() -> 17 | B17: Nominal Post Tax WACC
A18: =ROW() -> 18 | C18: WACC | AB18: =Inputs!AB$37 -> 0 | AC18: =Inputs!AC$37 -> 0.035429 | AD18: =Inputs!AD$37 -> 0.035429 | AE18: =Inputs!AE$37 -> 0.035429 | AF18: =Inputs!AF$37 -> 0.035429 | AG18: =Inputs!AG$37 -> 0.035429 | AH18: =Inputs!AH$37 -> 0.035429 | AI18: =Inputs!AI$37 -> 0.0693032562 | AJ18: =Inputs!AJ$37 -> 0.0693032562 | AK18: =Inputs!AK$37 -> 0.0693032562 | AL18: =Inputs!AL$37 -> 0.0693032562 | AM18: =Inputs!AM$37 -> 0.0693032562
A19: =ROW() -> 19 | C19: Discounting Factor | AB19: =Inputs!AB$38 -> 1 | AC19: =Inputs!AC$38 -> 0.9657832647 | AD19: =Inputs!AD$38 -> 0.9327373144 | AE19: =Inputs!AE$38 -> 0.9008220886 | AF19: =Inputs!AF$38 -> 0.8699988977 | AG19: =Inputs!AG$38 -> 1 | AH19: =Inputs!AH$38 -> 0.9657832647 | AI19: =Inputs!AI$38 -> 0.9031893049 | AJ19: =Inputs!AJ$38 -> 0.8446521599 | AK19: =Inputs!AK$38 -> 0.7899089009 | AL19: =Inputs!AL$38 -> 0.7387136403 | AM19: =Inputs!AM$38 -> 0.6908364264
A20: =ROW() -> 20
A21: Rebateable Non-Reference Service Revenue [m$ nominal]
A22: =ROW() -> 22 | B22: Date range
A23: =ROW() -> 23 | C23: From | AE23: =Inputs!AE1958 -> 2021-01-01 | AF23: =Inputs!AF1958 -> 2021-10-01 | AG23: =Inputs!AG1958 -> 2022-10-01 | AH23: =Inputs!AH1958 -> 2023-10-01 | AI23: =Inputs!AI1958 -> 2024-10-01 | AJ23: =Inputs!AJ1958 -> 2025-10-01 | AK23: =Inputs!AK1958 -> 2026-10-01 | AL23: =Inputs!AL1958 -> 2027-10-01 | AM23: =Inputs!AM1958 -> 2028-10-01
A24: =ROW() -> 24 | C24: to | AE24: =Inputs!AE1959 -> 2021-09-30 | AF24: =Inputs!AF1959 -> 2022-09-30 | AG24: =Inputs!AG1959 -> 2023-09-30 | AH24: =Inputs!AH1959 -> 2024-09-30 | AI24: =Inputs!AI1959 -> 2025-09-30 | AJ24: =Inputs!AJ1959 -> 2026-09-30 | AK24: =Inputs!AK1959 -> 2027-09-30 | AL24: =Inputs!AL1959 -> 2028-09-30 | AM24: =Inputs!AM1959 -> 2029-09-30
A25: =ROW() -> 25
A26: =ROW() -> 26 | B26: Actual Rebateable Non-Reference Service Revenue (Sep-Sep m$ OD)
A27: =ROW() -> 27 | C27: Peaker Service | AE27: =Inputs!AE1962 -> 0 | AF27: =Inputs!AF1962 -> 0 | AG27: =Inputs!AG1962 -> 0 | AH27: =Inputs!AH1962 -> 0 | AI27: =Inputs!AI1962 -> 0 | AJ27: =Inputs!AJ1962 -> 0 | AK27: =Inputs!AK1962 -> 0 | AL27: =Inputs!AL1962 -> 0 | AM27: =Inputs!AM1962 -> 0
A28: =ROW() -> 28 | C28: Other Reserved Service | AE28: =Inputs!AE1963 -> 0 | AF28: =Inputs!AF1963 -> 0 | AG28: =Inputs!AG1963 -> 0 | AH28: =Inputs!AH1963 -> 0 | AI28: =Inputs!AI1963 -> 0 | AJ28: =Inputs!AJ1963 -> 0 | AK28: =Inputs!AK1963 -> 0 | AL28: =Inputs!AL1963 -> 0 | AM28: =Inputs!AM1963 -> 0
A29: =ROW() -> 29 | C29: Ullage Service | AE29: =Inputs!AE1964 -> 0 | AF29: =Inputs!AF1964 -> 0 | AG29: =Inputs!AG1964 -> 0 | AH29: =Inputs!AH1964 -> 0 | AI29: =Inputs!AI1964 -> 0 | AJ29: =Inputs!AJ1964 -> 0 | AK29: =Inputs!AK1964 -> 0 | AL29: =Inputs!AL1964 -> 0 | AM29: =Inputs!AM1964 -> 0
A30: =ROW() -> 30 | C30: Spot Capacity | AE30: =Inputs!AE1965 -> 0 | AF30: =Inputs!AF1965 -> 0 | AG30: =Inputs!AG1965 -> 0 | AH30: =Inputs!AH1965 -> 0 | AI30: =Inputs!AI1965 -> 0 | AJ30: =Inputs!AJ1965 -> 0 | AK30: =Inputs!AK1965 -> 0 | AL30: =Inputs!AL1965 -> 0 | AM30: =Inputs!AM1965 -> 0
A31: =ROW() -> 31 | C31: Subtotal | AE31: =SUM(AE27:AE30) -> 0 | AF31: =SUM(AF27:AF30) -> 0 | AG31: 0 | AH31: 0 | AI31: =SUM(AI27:AI30) -> 0 | AJ31: 0 | AK31: 0 | AL31: 0 | AM31: 0
A32: =ROW() -> 32 | B32: Inflation Factor
A33: =ROW() -> 33 | C33: ="Inflation Factor (convert nominal to real "&Inputs!$E$28&" $)" -> Inflation Factor (convert nominal to real 31/12/2024 $) | AE33: =AE13 -> 1.067573394 | AF33: =AF13 -> 1.026 | AG33: 1 | AH33: 0.9643201543 | AI33: =AI13 -> 0.9437132573 | AJ33: 0.9235467164 | AK33: 0.9038111214 | AL33: 0.8844972633 | AM33: 0.8655961298
A34: =ROW() -> 34 | C34: ="Compounded Sep-Sep to real "&Inputs!$E$28&"$ WACC" -> Compounded Sep-Sep to real 31/12/2024$ WACC | AE34: =AE33*(1+AE15)^0.5 -> 1.080127344 | AF34: =AF33*(1+AF15)^0.5 -> 1.038065074 | AG34: =AG33*(1+AG15)^0.5 -> 1.011759332 | AH34: =AH33*(1+AH15)^0.5 -> 0.9756599148 | AI34: =AI33*(1+AI15)^0.5 -> 0.9653835784 | AJ34: 0.9447539567 | AK34: 0.9245651767 | AL34: 0.9048078179 | AM34: 0.885472661
A35: =ROW() -> 35 | C35: Convert to nominal $ | AE35: =AE34*AE$12 -> 1.011759332 | AF35: =AF34*AF$12 -> 1.011759332 | AG35: 1.011759332 | AH35: 1.011759332 | AI35: =AI34*AI$12 -> 1.022962824 | AJ35: 1.022962824 | AK35: 1.022962824 | AL35: 1.022962824 | AM35: 1.022962824
A36: =ROW() -> 36 | B36: Actual Rebateable Non-Reference Service Revenue (m$ nominal)
A37: =ROW() -> 37 | C37: Peaker Service | AE37: =AE27*AE$35 -> 0 | AF37: =AF27*AF$35 -> 0 | AG37: 0 | AH37: 0 | AI37: =AI27*AI$35 -> 0 | AJ37: =AJ27*AJ$35 -> 0 | AK37: 0 | AL37: 0 | AM37: 0
A38: =ROW() -> 38 | C38: Other Reserved Service | AE38: =AE28*AE$35 -> 0 | AF38: 0 | AG38: 0 | AH38: 0 | AI38: =AI28*AI$35 -> 0 | AJ38: 0 | AK38: 0 | AL38: 0 | AM38: 0
A39: =ROW() -> 39 | C39: Ullage Service | AE39: =AE29*AE$35 -> 0 | AF39: 0 | AG39: 0 | AH39: 0 | AI39: =AI29*AI$35 -> 0 | AJ39: 0 | AK39: 0 | AL39: 0 | AM39: 0
A40: =ROW() -> 40 | C40: Spot Capacity | AE40: =AE30*AE$35 -> 0 | AF40: 0 | AG40: 0 | AH40: 0 | AI40: =AI30*AI$35 -> 0 | AJ40: 0 | AK40: 0 | AL40: 0 | AM40: 0
A41: =ROW() -> 41 | C41: Subtotal | AE41: =SUM(AE37:AE40) -> 0 | AF41: =SUM(AF37:AF40) -> 0 | AG41: 0 | AH41: 0 | AI41: =SUM(AI37:AI40) -> 0 | AJ41: =SUM(AJ37:AJ40) -> 0 | AK41: 0 | AL41: 0 | AM41: 0
A42: =ROW() -> 42 | B42: % applicable to reference tariff
A43: =ROW() -> 43 | C43: Peaker Service | AE43: =Inputs!AE1968 -> 0.7 | AF43: =Inputs!AF1968 -> 0.7 | AG43: =Inputs!AG1968 -> 0.7 | AH43: =Inputs!AH1968 -> 0.7 | AI43: =Inputs!AI1968 -> 0.7 | AJ43: =Inputs!AJ1968 -> 0.7 | AK43: =Inputs!AK1968 -> 0.7 | AL43: =Inputs!AL1968 -> 0.7 | AM43: =Inputs!AM1968 -> 0.7
A44: =ROW() -> 44 | C44: Other Reserved Service | AE44: =Inputs!AE1969 -> 0.7 | AF44: =Inputs!AF1969 -> 0.7 | AG44: =Inputs!AG1969 -> 0.7 | AH44: =Inputs!AH1969 -> 0.7 | AI44: =Inputs!AI1969 -> 0.7 | AJ44: =Inputs!AJ1969 -> 0.7 | AK44: =Inputs!AK1969 -> 0.7 | AL44: =Inputs!AL1969 -> 0.7 | AM44: =Inputs!AM1969 -> 0.7
A45: =ROW() -> 45 | C45: Ullage Service | AE45: =Inputs!AE1970 -> 0.7 | AF45: =Inputs!AF1970 -> 0.7 | AG45: =Inputs!AG1970 -> 0.7 | AH45: =Inputs!AH1970 -> 0.7 | AI45: =Inputs!AI1970 -> 0.7 | AJ45: =Inputs!AJ1970 -> 0.7 | AK45: =Inputs!AK1970 -> 0.7 | AL45: =Inputs!AL1970 -> 0.7 | AM45: =Inputs!AM1970 -> 0.7
A46: =ROW() -> 46 | C46: Spot Capacity | AE46: =Inputs!AE1971 -> 0.7 | AF46: =Inputs!AF1971 -> 0.7 | AG46: =Inputs!AG1971 -> 0.7 | AH46: =Inputs!AH1971 -> 0.7 | AI46: =Inputs!AI1971 -> 0.7 | AJ46: =Inputs!AJ1971 -> 0.7 | AK46: =Inputs!AK1971 -> 0.7 | AL46: =Inputs!AL1971 -> 0.7 | AM46: =Inputs!AM1971 -> 0.7
A47: =ROW() -> 47 | B47: Applicable Rebateable Amount (Model)
A48: =ROW() -> 48 | C48: Peaker Service | AE48: =AE37*AE43 -> 0 | AF48: 0 | AG48: 0 | AH48: 0 | AI48: =AI37*AI43 -> 0 | AJ48: 0 | AK48: 0 | AL48: 0 | AM48: 0
A49: =ROW() -> 49 | C49: Other Reserved Service | AE49: =AE38*AE44 -> 0 | AF49: 0 | AG49: 0 | AH49: 0 | AI49: =AI38*AI44 -> 0 | AJ49: 0 | AK49: 0 | AL49: 0 | AM49: 0
A50: =ROW() -> 50 | C50: Ullage Service | AE50: =AE39*AE45 -> 0 | AF50: 0 | AG50: 0 | AH50: 0 | AI50: =AI39*AI45 -> 0 | AJ50: 0 | AK50: 0 | AL50: 0 | AM50: 0
A51: =ROW() -> 51 | C51: Spot Capacity | AE51: =AE40*AE46 -> 0 | AF51: 0 | AG51: 0 | AH51: 0 | AI51: =AI40*AI46 -> 0 | AJ51: 0 | AK51: 0 | AL51: 0 | AM51: 0
A52: =ROW() -> 52 | C52: Total | AE52: =SUM(AE48:AE51) -> 0 | AF52: =SUM(AF48:AF51) -> 0 | AG52: =SUM(AG48:AG51) -> 0 | AH52: =SUM(AH48:AH51) -> 0 | AI52: =SUM(AI48:AI51) -> 0 | AJ52: =SUM(AJ48:AJ51) -> 0 | AK52: 0 | AL52: 0 | AM52: 0
A53: =ROW() -> 53
A54: ="Rebateable Non-Reference Service Revenue [m$ "&Inputs!$E$28&"]" -> Rebateable Non-Reference Service Revenue [m$ 31/12/2024]
A55: =ROW() -> 55 | B55: Applicable Rebateable Amount
A56: =ROW() -> 56 | C56: Peaker Service | AE56: =AE48/AE$12 -> 0 | AF56: 0 | AG56: 0 | AH56: 0 | AI56: =AI48/AI$12 -> 0 | AJ56: 0 | AK56: 0 | AL56: 0 | AM56: 0
A57: =ROW() -> 57 | C57: Other Reserved Service | AE57: =AE49/AE$12 -> 0 | AF57: 0 | AG57: 0 | AH57: 0 | AI57: =AI49/AI$12 -> 0 | AJ57: 0 | AK57: 0 | AL57: 0 | AM57: 0
A58: =ROW() -> 58 | C58: Ullage Service | AE58: =AE50/AE$12 -> 0 | AF58: 0 | AG58: 0 | AH58: 0 | AI58: =AI50/AI$12 -> 0 | AJ58: 0 | AK58: 0 | AL58: 0 | AM58: 0
A59: =ROW() -> 59 | C59: Spot Capacity | AE59: =AE51/AE$12 -> 0 | AF59: 0 | AG59: 0 | AH59: 0 | AI59: =AI51/AI$12 -> 0 | AJ59: 0 | AK59: 0 | AL59: 0 | AM59: 0
A60: =ROW() -> 60 | C60: Total | AE60: =SUM(AE56:AE59) -> 0 | AF60: 0 | AG60: 0 | AH60: 0 | AI60: =SUM(AI56:AI59) -> 0 | AJ60: 0 | AK60: 0 | AL60: 0 | AM60: 0
A61: =ROW() -> 61
A62: Rebateable Non-Reference Service Tariff
A63: =ROW() -> 63
A64: =ROW() -> 64 | B64: Load F/H Equivalent [TJ/day]
A65: =ROW() -> 65 | C65: Capacity Reservation | AE65: =Load!AE$11 -> 633.7274668 | AF65: =Load!AF$11 -> 614.4453247 | AG65: =Load!AG$11 -> 562.5505593 | AH65: =Load!AH$11 -> 556.4677381 | AI65: =Load!AI$11 -> 544.2643301 | AJ65: =Load!AJ$11 -> 561.6098183 | AK65: =Load!AK$11 -> 555.8606446 | AL65: =Load!AL$11 -> 539.0366968 | AM65: =Load!AM$11 -> 542.0366968
A66: =ROW() -> 66 | C66: Commodity | AE66: =Load!AE$12 -> 571.9544494 | AF66: =Load!AF$12 -> 554.4596002 | AG66: =Load!AG$12 -> 513.1202217 | AH66: =Load!AH$12 -> 509.1529237 | AI66: =Load!AI$12 -> 497.7082233 | AJ66: =Load!AJ$12 -> 486.8072131 | AK66: =Load!AK$12 -> 477.294343 | AL66: =Load!AL$12 -> 469.4284494 | AM66: =Load!AM$12 -> 474.3512287
A67: =ROW() -> 67 | C67: Total | AE67: =SUM(AE65:AE66) -> 1205.681916 | AF67: 1168.904925 | AG67: 1075.670781 | AH67: 1065.620662 | AI67: =SUM(AI65:AI66) -> 1041.972553 | AJ67: 1048.417031 | AK67: 1033.154988 | AL67: 1008.465146 | AM67: 1016.387925
A68: =ROW() -> 68
A69: =ROW() -> 69 | B69: Applied Tariff Allocation
A70: =ROW() -> 70 | C70: Capacity Reservation | AE70: =CoS_Tariff_Revenue!AI187 -> 0 | AF70: =CoS_Tariff_Revenue!AJ187 -> 0 | AG70: =CoS_Tariff_Revenue!AK187 -> 0 | AH70: =CoS_Tariff_Revenue!AL187 -> 0 | AI70: =CoS_Tariff_Revenue!AM187 -> 0.9494502454 | AJ70: =CoS_Tariff_Revenue!AN187 -> 0.9494502454 | AK70: =CoS_Tariff_Revenue!AO187 -> 0.9494502454 | AL70: =CoS_Tariff_Revenue!AP187 -> 0.9494502454 | AM70: =CoS_Tariff_Revenue!AQ187 -> 0.9494502454
A71: =ROW() -> 71 | C71: Commodity | AE71: =CoS_Tariff_Revenue!AI188 -> 0 | AF71: =CoS_Tariff_Revenue!AJ188 -> 0 | AG71: =CoS_Tariff_Revenue!AK188 -> 0 | AH71: =CoS_Tariff_Revenue!AL188 -> 0 | AI71: =CoS_Tariff_Revenue!AM188 -> 0.05054975464 | AJ71: =CoS_Tariff_Revenue!AN188 -> 0.05054975464 | AK71: =CoS_Tariff_Revenue!AO188 -> 0.05054975464 | AL71: =CoS_Tariff_Revenue!AP188 -> 0.05054975464 | AM71: =CoS_Tariff_Revenue!AQ188 -> 0.05054975464
A72: =ROW() -> 72 | C72: Total | AE72: =SUM(AE70:AE71) -> 0 | AF72: 0 | AG72: 0 | AH72: 0 | AI72: =SUM(AI70:AI71) -> 1 | AJ72: 1 | AK72: 1 | AL72: 1 | AM72: 1
A73: =ROW() -> 73
A74: =ROW() -> 74 | B74: Rebateable Forecast Total System F/H Equivalent Tariff [$ OD /GJ/day]
A75: =ROW() -> 75 | C75: Capacity Reservation Charge | AE75: =AE85*AE$12 -> 0 | AF75: 0 | AG75: 0 | AH75: 0 | AI75: 0 | AJ75: 0 | AK75: 0 | AL75: 0 | AM75: 0
A76: =ROW() -> 76 | C76: Commodity Charge | AE76: =AE86*AE$12 -> 0 | AF76: 0 | AG76: 0 | AH76: 0 | AI76: 0 | AJ76: 0 | AK76: 0 | AL76: 0 | AM76: 0
A77: =ROW() -> 77 | C77: Total | AE77: =SUM(AE75:AE76) -> 0 | AF77: 0 | AG77: 0 | AH77: 0 | AI77: =SUM(AI75:AI76) -> 0 | AJ77: 0 | AK77: 0 | AL77: 0 | AM77: 0
A78: =ROW() -> 78 | B78: Rebateable Forecast Tariff Revenue [m$ OD]
A79: =ROW() -> 79 | C79: Capacity Reservation | AE79: =AE$81*AE70 -> 0 | AF79: 0 | AG79: 0 | AH79: 0 | AI79: 0 | AJ79: 0 | AK79: 0 | AL79: 0 | AM79: 0
A80: =ROW() -> 80 | C80: Commodity | AE80: =AE$81*AE71 -> 0 | AF80: 0 | AG80: 0 | AH80: 0 | AI80: 0 | AJ80: 0 | AK80: 0 | AL80: 0 | AM80: 0
A81: =ROW() -> 81 | C81: Total Revenue | AE81: =AE52 -> 0 | AF81: 0 | AG81: 0 | AH81: 0 | AI81: 0 | AJ81: 0 | AK81: 0 | AL81: 0 | AM81: 0
A82: =ROW() -> 82
A83: =ROW() -> 83
A84: =ROW() -> 84 | B84: ="Rebateable Forecast Total System F/H Equivalent Tariff [$ /GJ/day] [$ "&TEXT(Inputs!$E$28,"dd/mm/yyyy")&"]" -> Rebateable Forecast Total System F/H Equivalent Tariff [$ /GJ/day] [$ 31/12/2024]
A85: =ROW() -> 85 | C85: Capacity Reservation Charge | AE85: =(IF(AE$7>0,(AE89/AE$7)/AE65*1000,0)) -> 0 | AF85: 0 | AG85: 0 | AH85: 0 | AI85: 0 | AJ85: 0 | AK85: 0 | AL85: 0 | AM85: 0
A86: =ROW() -> 86 | C86: Commodity Charge | AE86: =(IF(AE$7>0,(AE90/AE$7)/AE66*1000,0)) -> 0 | AF86: 0 | AG86: 0 | AH86: 0 | AI86: 0 | AJ86: 0 | AK86: 0 | AL86: 0 | AM86: 0
A87: =ROW() -> 87 | C87: Full Haul Tariff | AE87: =SUM(AE85:AE86) -> 0 | AF87: =SUM(AF85:AF86) -> 0 | AG87: 0 | AH87: 0 | AI87: =SUM(AI85:AI86) -> 0 | AJ87: 0 | AK87: 0 | AL87: 0 | AM87: 0
A88: =ROW() -> 88 | B88: ="Rebateable Forecast Tariff Revenue [m$ "&TEXT(Inputs!$E$28,"dd/mm/yyyy")&"]" -> Rebateable Forecast Tariff Revenue [m$ 31/12/2024]
A89: =ROW() -> 89 | C89: Capacity Reservation | AE89: =AE$91*AE70 -> 0 | AF89: 0 | AG89: 0 | AH89: 0 | AI89: 0 | AJ89: 0 | AK89: 0 | AL89: 0 | AM89: 0
A90: =ROW() -> 90 | C90: Commodity | AE90: =AE$91*AE71 -> 0 | AF90: 0 | AG90: 0 | AH90: 0 | AI90: 0 | AJ90: 0 | AK90: 0 | AL90: 0 | AM90: 0
A91: =ROW() -> 91 | C91: Tariff Revenue | AE91: =AE60 -> 0 | AF91: =AF60 -> 0 | AG91: 0 | AH91: 0 | AI91: =AI60 -> 0 | AJ91: 0 | AK91: 0 | AL91: 0 | AM91: 0

Sheet Tax_CoRE
A1: =Main!A1 -> AGIG, DBNGP Tariff Model, Final Plan, Dec 2024
A2: =MID(CELL("filename",A1),FIND("]",CELL("filename",A1))+1,256) -> Tax_CoRE
A3: Ref. | B3: =COLUMN() -> 2 | C3: =COLUMN() -> 3 | D3: =COLUMN() -> 4 | E3: =COLUMN() -> 5 | F3: =COLUMN() -> 6 | G3: =COLUMN() -> 7 | H3: =COLUMN() -> 8 | I3: =COLUMN() -> 9 | J3: =COLUMN() -> 10 | K3: =COLUMN() -> 11 | L3: =COLUMN() -> 12 | M3: =COLUMN() -> 13 | N3: =COLUMN() -> 14 | Q3: =COLUMN() -> 17 | R3: =COLUMN() -> 18 | S3: =COLUMN() -> 19 | T3: =COLUMN() -> 20 | U3: =COLUMN() -> 21 | V3: =COLUMN() -> 22 | W3: =COLUMN() -> 23 | X3: =COLUMN() -> 24 | Y3: =COLUMN() -> 25 | Z3: =COLUMN() -> 26 | AA3: =COLUMN() -> 27 | AB3: =COLUMN() -> 28 | AC3: =COLUMN() -> 29 | AD3: =COLUMN() -> 30 | AE3: =COLUMN() -> 31 | AF3: =COLUMN() -> 32 | AG3: =COLUMN() -> 33 | AH3: =COLUMN() -> 34 | AI3: =COLUMN() -> 35
A5: Regulatory Period | I5: =Inputs!I$5 -> AA1 | J5: =Inputs!J$5 -> AA1 | K5: =Inputs!K$5 -> AA1 | L5: =Inputs!L$5 -> AA1 | M5: =Inputs!M$5 -> AA1 | N5: =Inputs!N$5 -> AA2 | O5: =Inputs!O$5 -> AA2 | P5: =Inputs!P$5 -> AA2 | Q5: =Inputs!Q$5 -> AA2 | R5: =Inputs!R$5 -> AA2 | S5: =Inputs!S$5 -> AA2 | T5: =Inputs!T$5 -> AA3 | U5: =Inputs!U$5 -> AA3 | V5: =Inputs!V$5 -> AA3 | W5: =Inputs!W$5 -> AA3 | X5: =Inputs!X$5 -> AA3 | Y5: =Inputs!Y$5 -> AA4 | Z5: =Inputs!Z$5 -> AA4 | AA5: =Inputs!AA$5 -> AA4 | AB5: =Inputs!AB$5 -> AA4 | AC5: =Inputs!AC$5 -> AA4 | AD5: =Inputs!AD$5 -> AA5 | AE5: =Inputs!AE$5 -> AA5 | AF5: =Inputs!AF$5 -> AA5 | AG5: =Inputs!AG$5 -> AA5 | AH5: =Inputs!AH$5 -> AA5 | AI5: AA6 | AJ5: AA6 | AK5: AA6 | AL5: AA6 | AM5: AA6 | AN5: AA6
A6: Year | H6: =Inputs!H$6 -> 1999 | I6: =Inputs!I$6 -> 2000 | J6: =Inputs!J$6 -> 2001 | K6: =Inputs!K$6 -> 2002 | L6: =Inputs!L$6 -> 2003 | M6: =Inputs!M$6 -> 2004 | N6: =Inputs!N$6 -> 2005 | O6: =Inputs!O$6 -> 2006 | P6: =Inputs!P$6 -> 2007 | Q6: =Inputs!Q$6 -> 2008 | R6: =Inputs!R$6 -> 2009 | S6: =Inputs!S$6 -> 2010 | T6: =Inputs!T$6 -> 2011 | U6: =Inputs!U$6 -> 2012 | V6: =Inputs!V$6 -> 2013 | W6: =Inputs!W$6 -> 2014 | X6: =Inputs!X$6 -> 2015 | Y6: =Inputs!Y$6 -> 2016 | Z6: =Inputs!Z$6 -> 2017 | AA6: =Inputs!AA$6 -> 2018 | AB6: =Inputs!AB$6 -> 2019 | AC6: =Inputs!AC$6 -> 2020 | AD6: =Inputs!AD$6 -> 2021 | AE6: =Inputs!AE$6 -> 2022 | AF6: =Inputs!AF$6 -> 2023 | AG6: =Inputs!AG$6 -> 2024 | AH6: =Inputs!AH$6 -> 2025 | AI6: =AH6+1 -> 2026 | AJ6: =AI6+1 -> 2027 | AK6: 2028 | AL6: 2029 | AM6: 2030 | AN6: 2031
A7: Days | H7: =Inputs!H$7 -> 365 | I7: =Inputs!I$7 -> 366 | J7: =Inputs!J$7 -> 365 | K7: =Inputs!K$7 -> 365 | L7: =Inputs!L$7 -> 365 | M7: =Inputs!M$7 -> 366 | N7: =Inputs!N$7 -> 365 | O7: =Inputs!O$7 -> 365 | P7: =Inputs!P$7 -> 365 | Q7: =Inputs!Q$7 -> 366 | R7: =Inputs!R$7 -> 365 | S7: =Inputs!S$7 -> 365 | T7: =Inputs!T$7 -> 365 | U7: =Inputs!U$7 -> 366 | V7: =Inputs!V$7 -> 365 | W7: =Inputs!W$7 -> 365 | X7: =Inputs!X$7 -> 365 | Y7: =Inputs!Y$7 -> 366 | Z7: =Inputs!Z$7 -> 365 | AA7: =Inputs!AA$7 -> 365 | AB7: =Inputs!AB$7 -> 365 | AC7: =Inputs!AC$7 -> 366 | AD7: =Inputs!AD$7 -> 365 | AE7: =Inputs!AE$7 -> 365 | AF7: =Inputs!AF$7 -> 365 | AG7: =Inputs!AG$7 -> 366 | AH7: =Inputs!AH$7 -> 365 | AI7: =Inputs!AI$7 -> 365 | AJ7: =Inputs!AJ$7 -> 365 | AK7: =Inputs!AK$7 -> 366 | AL7: =Inputs!AL$7 -> 365 | AM7: =Inputs!AM$7 -> 365 | AN7: =IF(INT(AN6/4)=AN6/4,366,365) -> 365
A8: Project Year | H8: =Inputs!H$8 -> 0 | I8: =Inputs!I$8 -> 1 | J8: =Inputs!J$8 -> 2 | K8: =Inputs!K$8 -> 3 | L8: =Inputs!L$8 -> 4 | M8: =Inputs!M$8 -> 5 | N8: =Inputs!N$8 -> 6 | O8: =Inputs!O$8 -> 7 | P8: =Inputs!P$8 -> 8 | Q8: =Inputs!Q$8 -> 9 | R8: =Inputs!R$8 -> 10 | S8: =Inputs!S$8 -> 11 | T8: =Inputs!T$8 -> 12 | U8: =Inputs!U$8 -> 13 | V8: =Inputs!V$8 -> 14 | W8: =Inputs!W$8 -> 15 | X8: =Inputs!X$8 -> 16 | Y8: =Inputs!Y$8 -> 17 | Z8: =Inputs!Z$8 -> 18 | AA8: =Inputs!AA$8 -> 19 | AB8: =Inputs!AB$8 -> 20 | AC8: =Inputs!AC$8 -> 21 | AD8: =Inputs!AD$8 -> 22 | AE8: =Inputs!AE$8 -> 23 | AF8: =Inputs!AF$8 -> 24 | AG8: =Inputs!AG$8 -> 25 | AH8: =Inputs!AH$8 -> 26 | AI8: =AH8+1 -> 27 | AJ8: =AI8+1 -> 28 | AK8: 29 | AL8: 30 | AM8: 31 | AN8: 32
A9: Financial Parameters
A10: =ROW() -> 10 | B10: Modelled Inflation
A11: =ROW() -> 11 | C11: Inflation | S11: =Inputs!S$27 -> 0.02654867257 | T11: =Inputs!T$27 -> 0.03103448276 | U11: =Inputs!U$27 -> 0.02204408818 | V11: =Inputs!V$27 -> 0.02745098039 | W11: =Inputs!W$27 -> 0.01717557252 | X11: =Inputs!X$27 -> 0.01688555347 | Y11: =Inputs!Y$27 -> 0.0147601476 | Z11: =Inputs!Z$27 -> 0.01909090909 | AA11: =Inputs!AA$27 -> 0.0178412132 | AB11: =Inputs!AB$27 -> 0.01840490798 | AC11: =Inputs!AC$27 -> 0.008605851979 | AD11: =Inputs!AD$27 -> 0.03498293515 | AE11: =Inputs!AE$27 -> 0.07831821929 | AF11: =Inputs!AF$27 -> 0.04051987768 | AG11: =Inputs!AG$27 -> 0.026 | AH11: =Inputs!AH$27 -> 0.037 | AI11: =Inputs!AI$27 -> 0.02183597273 | AJ11: =Inputs!AJ$27 -> 0.02183597273 | AK11: =Inputs!AK$27 -> 0.02183597273 | AL11: =Inputs!AL$27 -> 0.02183597273 | AM11: =Inputs!AM$27 -> 0.02183597273
A12: =ROW() -> 12 | C12: =Inputs!C28 -> Inflation Factor (convert 31/12/2024 $ to nominal $) | S12: =Inputs!S$28 -> 0.6931893232 | T12: =Inputs!T$28 -> 0.7147020953 | U12: =Inputs!U$28 -> 0.7304570513 | V12: =Inputs!V$28 -> 0.7505088135 | W12: =Inputs!W$28 -> 0.763399232 | X12: =Inputs!X$28 -> 0.7762896506 | Y12: =Inputs!Y$28 -> 0.7877478004 | Z12: =Inputs!Z$28 -> 0.802786622 | AA12: =Inputs!AA$28 -> 0.8171093093 | AB12: =Inputs!AB$28 -> 0.832148131 | AC12: =Inputs!AC$28 -> 0.8393094746 | AD12: =Inputs!AD$28 -> 0.8686709835 | AE12: =Inputs!AE$28 -> 0.9367037481 | AF12: =Inputs!AF$28 -> 0.9746588694 | AG12: =Inputs!AG$28 -> 1 | AH12: =Inputs!AH$28 -> 1.037 | AI12: =Inputs!AI$28 -> 1.059643904 | AJ12: =Inputs!AJ$28 -> 1.082782259 | AK12: =Inputs!AK$28 -> 1.106425863 | AL12: =Inputs!AL$28 -> 1.130585748 | AM12: =Inputs!AM$28 -> 1.155273188
A13: =ROW() -> 13 | B13: Nominal Post Tax WACC
A14: =ROW() -> 14 | C14: WACC | T14: =Inputs!T$37 -> 0 | U14: =Inputs!U$37 -> 0 | V14: =Inputs!V$37 -> 0 | W14: =Inputs!W$37 -> 0 | X14: =Inputs!X$37 -> 0 | Y14: =Inputs!Y$37 -> 0 | Z14: =Inputs!Z$37 -> 0 | AA14: =Inputs!AA$37 -> 0 | AB14: =Inputs!AB$37 -> 0 | AC14: =Inputs!AC$37 -> 0.035429 | AD14: =Inputs!AD$37 -> 0.035429 | AE14: =Inputs!AE$37 -> 0.035429 | AF14: =Inputs!AF$37 -> 0.035429 | AG14: =Inputs!AG$37 -> 0.035429 | AH14: =Inputs!AH$37 -> 0.035429 | AI14: =Inputs!AI$37 -> 0.0693032562 | AJ14: =Inputs!AJ$37 -> 0.0693032562 | AK14: =Inputs!AK$37 -> 0.0693032562 | AL14: =Inputs!AL$37 -> 0.0693032562 | AM14: =Inputs!AM$37 -> 0.0693032562
A15: =ROW() -> 15 | C15: Discounting Factor | AB15: =Inputs!AB$38 -> 1 | AC15: =Inputs!AC$38 -> 0.9657832647 | AD15: =Inputs!AD$38 -> 0.9327373144 | AE15: =Inputs!AE$38 -> 0.9008220886 | AF15: =Inputs!AF$38 -> 0.8699988977 | AG15: =Inputs!AG$38 -> 1 | AH15: =Inputs!AH$38 -> 0.9657832647 | AI15: =Inputs!AI$38 -> 0.9031893049 | AJ15: =Inputs!AJ$38 -> 0.8446521599 | AK15: =Inputs!AK$38 -> 0.7899089009 | AL15: =Inputs!AL$38 -> 0.7387136403 | AM15: =Inputs!AM$38 -> 0.6908364264
A16: =ROW() -> 16 | B16: Nominal Cost of Debt (DPn) | AB16: =WACC!R$15 -> 0.04678 | AC16: =WACC!S$15 -> 0.04665 | AD16: =WACC!T15 -> 0.02768 | AE16: =WACC!U15 -> 0.02768 | AF16: =WACC!V15 -> 0.02768 | AG16: =WACC!W15 -> 0.02768 | AH16: =WACC!X15 -> 0.02768 | AI16: =WACC!Y15 -> 0.05870571673 | AJ16: =WACC!Z15 -> 0.05870571673 | AK16: =WACC!AA15 -> 0.05870571673 | AL16: =WACC!AB15 -> 0.05870571673 | AM16: =WACC!AC15 -> 0.05870571673
A17: =ROW() -> 17
A18: Asset Value [m$ nominal]
A19: =ROW() -> 19 | B19: Asset Value (Opening) | AD19: =ProposedApproach!AC33*AC$12 -> 3360.257403 | AE19: =ProposedApproach!AD33*AD$12 -> 3329.943234 | AF19: =ProposedApproach!AE33*AE$12 -> 3504.44415 | AG19: =ProposedApproach!AF33*AF$12 -> 3562.919928 | AH19: =ProposedApproach!AG33*AG$12 -> 3555.206509 | AI19: =ProposedApproach!AH33*AH$12 -> 3580.834877 | AJ19: =ProposedApproach!AI33*AI$12 -> 3484.214886 | AK19: =ProposedApproach!AJ33*AJ$12 -> 3481.458837 | AL19: =ProposedApproach!AK33*AK$12 -> 3462.719803 | AM19: =ProposedApproach!AL33*AL$12 -> 3431.131939 | AN19: =ProposedApproach!AM33*AM$12 -> 3379.064291
A20: =ROW() -> 20 | B20: Equity | AD20: =AD$19*WACC!T26 -> 1512.115832 | AE20: =AE$19*WACC!U26 -> 1498.474455 | AF20: =AF$19*WACC!V26 -> 1576.999868 | AG20: =AG$19*WACC!W26 -> 1603.313968 | AH20: =AH$19*WACC!X26 -> 1599.842929 | AI20: =AI$19*WACC!Y26 -> 1611.375695 | AJ20: =AJ$19*WACC!Z26 -> 1567.896699 | AK20: =AK$19*WACC!AA26 -> 1566.656477 | AL20: =AL$19*WACC!AB26 -> 1558.223911 | AM20: =AM$19*WACC!AC26 -> 1544.009373
A21: =ROW() -> 21 | B21: Debt | AD21: =AD$19*WACC!T25 -> 1848.141572 | AE21: =AE$19*WACC!U25 -> 1831.468779 | AF21: =AF$19*WACC!V25 -> 1927.444283 | AG21: =AG$19*WACC!W25 -> 1959.60596 | AH21: =AH$19*WACC!X25 -> 1955.36358 | AI21: =AI$19*WACC!Y25 -> 1969.459182 | AJ21: =AJ$19*WACC!Z25 -> 1916.318187 | AK21: =AK$19*WACC!AA25 -> 1914.80236 | AL21: =AL$19*WACC!AB25 -> 1904.495892 | AM21: =AM$19*WACC!AC25 -> 1887.122567
A22: =ROW() -> 22 | C22: Check that A=D+E | AD22: =IF(ROUND(AD19-AD20-AD21,8)=0,"OK","CHECK") -> OK | AE22: =IF(ROUND(AE19-AE20-AE21,8)=0,"OK","CHECK") -> OK | AF22: OK | AG22: OK | AH22: OK | AI22: OK | AJ22: OK | AK22: OK | AL22: OK | AM22: OK
A23: Calculation of Tax Expense - [m$ nominal]
A24: =ROW() -> 24 | B24: Revenue | F24: PV
A25: =ROW() -> 25 | C25: Revenue requirement
A26: =ROW() -> 26 | C26: Opex
A27: =ROW() -> 27 | C27: Opex; System Use Gas | F27: =SUMPRODUCT($AG$15:$AM$15,AG27:AM27) -> 101.8414934 | AI27: =CoS_Tariff_Revenue!AM41 -> 24.52454954 | AJ27: =CoS_Tariff_Revenue!AN41 -> 23.80322531 | AK27: =CoS_Tariff_Revenue!AO41 -> 24.65605198 | AL27: =CoS_Tariff_Revenue!AP41 -> 25.45351801 | AM27: =CoS_Tariff_Revenue!AQ41 -> 30.84209262
A28: =ROW() -> 28 | C28: Opex; Other Expenses | F28: =SUMPRODUCT($AG$15:$AM$15,AG28:AM28) -> 450.2816835 | AI28: =CoS_Tariff_Revenue!AM42 -> 108.1748076 | AJ28: =CoS_Tariff_Revenue!AN42 -> 113.6607365 | AK28: =CoS_Tariff_Revenue!AO42 -> 109.4465399 | AL28: =CoS_Tariff_Revenue!AP42 -> 113.8895553 | AM28: =CoS_Tariff_Revenue!AQ42 -> 124.4737543
A29: =ROW() -> 29 | C29: Return of Asset (Depreciation) | F29: =SUMPRODUCT($AG$15:$AM$15,AG29:AM29) -> 726.4644183 | AI29: =CoS_Tariff_Revenue!AM43 -> 241.4303046 | AJ29: =CoS_Tariff_Revenue!AN43 -> 160.3230332 | AK29: =CoS_Tariff_Revenue!AO43 -> 165.1034478 | AL29: =CoS_Tariff_Revenue!AP43 -> 166.4902572 | AM29: =CoS_Tariff_Revenue!AQ43 -> 173.1012457
A30: =ROW() -> 30 | C30: Inflationary Gains on RAB | F30: =SUMPRODUCT($AG$15:$AM$15,AG30:AM30) -> -302.5475776 | AI30: =CoS_Tariff_Revenue!AM44 -> -78.19101272 | AJ30: =CoS_Tariff_Revenue!AN44 -> -76.08122123 | AK30: =CoS_Tariff_Revenue!AO44 -> -76.02104022 | AL30: =CoS_Tariff_Revenue!AP44 -> -75.61185518 | AM30: =CoS_Tariff_Revenue!AQ44 -> -74.92210345
A31: =ROW() -> 31 | C31: Return on Asset | AI31: =CoS_Tariff_Revenue!AM45 -> 248.1635169 | AJ31: =CoS_Tariff_Revenue!AN45 -> 241.4674369 | AK31: =CoS_Tariff_Revenue!AO45 -> 241.2764337 | AL31: =CoS_Tariff_Revenue!AP45 -> 239.9777577 | AM31: =CoS_Tariff_Revenue!AQ45 -> 237.7886159
A32: =ROW() -> 32 | C32: Income tax expense | F32: =SUMPRODUCT($AG$15:$AM$15,AG32:AM32) -> 176.0438175 | AI32: =-AI45 -> 58.88284769 | AJ32: 33.95038875 | AK32: 34.77707647 | AL32: 45.9233903 | AM32: 47.46453965
A33: =ROW() -> 33 | C33: Imputation Credits | F33: -88.02190874 | AI33: =-AI46 -> -29.44142385 | AJ33: -16.97519438 | AK33: -17.38853823 | AL33: -22.96169515 | AM33: -23.73226982
A34: =ROW() -> 34 | C34: Cost of Service | F34: =SUMPRODUCT($AG$15:$AM$15,AG34:AM34) -> 2024.290836 | AI34: =SUM(AI27:AI33) -> 573.5435897 | AJ34: 480.1484052 | AK34: 481.8499715 | AL34: 493.1609281 | AM34: 515.0158748
A35: =ROW() -> 35 | B35: Expenses
A36: =ROW() -> 36 | C36: Opex; System Use Gas | F36: =SUMPRODUCT($AG$15:$AM$15,AG36:AM36) -> -101.8414934 | AI36: =-Inputs!AI1946 -> -24.52454954 | AJ36: =-Inputs!AJ1946 -> -23.80322531 | AK36: =-Inputs!AK1946 -> -24.65605198 | AL36: =-Inputs!AL1946 -> -25.45351801 | AM36: =-Inputs!AM1946 -> -30.84209262
A37: =ROW() -> 37 | C37: Opex; Other Expenses | F37: =SUMPRODUCT($AG$15:$AM$15,AG37:AM37) -> -450.2816835 | AI37: =-Inputs!AI1947-AI36 -> -108.1748076 | AJ37: =-Inputs!AJ1947-AJ36 -> -113.6607365 | AK37: =-Inputs!AK1947-AK36 -> -109.4465399 | AL37: =-Inputs!AL1947-AL36 -> -113.8895553 | AM37: =-Inputs!AM1947-AM36 -> -124.4737543
A38: =ROW() -> 38 | C38: Interest on Debt | F38: -447.367284 | AI38: =-AI21*AI$16 -> -115.6185129 | AJ38: -112.4988327 | AK38: -112.409845 | AL38: -111.8047963 | AM38: -110.7848828
A39: =ROW() -> 39 | C39: Tax Depreciation | F39: -437.9876501 | AI39: =Tax_Asset!AI32 -> -128.9495608 | AJ39: =Tax_Asset!AJ32 -> -117.0176481 | AK39: =Tax_Asset!AK32 -> -119.4139464 | AL39: =Tax_Asset!AL32 -> -88.93509083 | AM39: =Tax_Asset!AM32 -> -90.70001292
A40: =ROW() -> 40 | C40: Total Expenses | F40: =SUMPRODUCT($AG$15:$AM$15,AG40:AM40) -> -1437.478111 | AI40: =SUM(AI36:AI39) -> -377.2674308 | AJ40: -366.9804426 | AK40: -365.9263833 | AL40: -340.0829605 | AM40: -356.8007427
A41: =ROW() -> 41 | B41: Tax
A42: =ROW() -> 42 | C42: Net Income | F42: =SUMPRODUCT($AG$15:$AM$15,AG42:AM42) -> 586.812725 | AI42: =AI34+AI40 -> 196.276159 | AJ42: =AJ34+AJ40 -> 113.1679625 | AK42: 115.9235882 | AL42: 153.0779677 | AM42: 158.2151322
A43: =ROW() -> 43 | C43: Tax Loss Carried Forward | AI43: =IF(AI44<0,AI44,0) -> 0 | AJ43: 0 | AK43: 0 | AL43: 0 | AM43: 0
A44: =ROW() -> 44 | C44: Taxable Income | AI44: =AI42+AH43 -> 196.276159 | AJ44: =AJ42+AI43 -> 113.1679625 | AK44: =AK42+AJ43 -> 115.9235882 | AL44: =AL42+AK43 -> 153.0779677 | AM44: =AM42+AL43 -> 158.2151322
A45: =ROW() -> 45 | C45: Income tax expense | F45: =SUMPRODUCT($AG$15:$AM$15,AG45:AM45) -> -176.0438175 | AI45: =-IF((SUM(AI27:AI31)+AI40+AH43)>0,(SUM(AI27:AI31)+AI40+AH43)*WACC!Y$28/(1-(1-WACC!Y$29)*WACC!Y$28),0) -> -58.88284769 | AJ45: =-IF((SUM(AJ27:AJ31)+AJ40+AI43)>0,(SUM(AJ27:AJ31)+AJ40+AI43)*WACC!Z$28/(1-(1-WACC!Z$29)*WACC!Z$28),0) -> -33.95038875 | AK45: =-IF((SUM(AK27:AK31)+AK40+AJ43)>0,(SUM(AK27:AK31)+AK40+AJ43)*WACC!AA$28/(1-(1-WACC!AA$29)*WACC!AA$28),0) -> -34.77707647 | AL45: =-IF((SUM(AL27:AL31)+AL40+AK43)>0,(SUM(AL27:AL31)+AL40+AK43)*WACC!AB$28/(1-(1-WACC!AB$29)*WACC!AB$28),0) -> -45.9233903 | AM45: =-IF((SUM(AM27:AM31)+AM40+AL43)>0,(SUM(AM27:AM31)+AM40+AL43)*WACC!AC$28/(1-(1-WACC!AC$29)*WACC!AC$28),0) -> -47.46453965
A46: =ROW() -> 46 | C46: Imputation Credits | F46: =SUMPRODUCT($AG$15:$AM$15,AG46:AM46) -> 88.02190874 | AI46: =-AI45*WACC!Y29 -> 29.44142385 | AJ46: =-AJ45*WACC!Z29 -> 16.97519438 | AK46: =-AK45*WACC!AA29 -> 17.38853823 | AL46: =-AL45*WACC!AB29 -> 22.96169515 | AM46: =-AM45*WACC!AC29 -> 23.73226982
A47: =ROW() -> 47 | C47: Net Tax Expense | F47: =SUMPRODUCT($AG$15:$AM$15,AG47:AM47) -> -88.02190874 | AI47: =SUM(AI45:AI46) -> -29.44142385 | AJ47: -16.97519438 | AK47: -17.38853823 | AL47: -22.96169515 | AM47: -23.73226982
A48: =ROW() -> 48
A49: Equity Raising Costs, Nominal Calculations [m$ nominal]
A50: =ROW() -> 50 | B50: Yield / cost inputs (ERA Rate of Return Guideline, 16 Dec 2013)
A51: =ROW() -> 51 | C51: Dividend imputation/payout ratio | F51: 0.7
A52: =ROW() -> 52 | C52: Benchmark seasoned equity offering (SEO) raising cost | F52: 0.03
A53: =ROW() -> 53 | C53: Benchmark DRP cost (AER 2010 Victorian DNSP decision) | F53: 0.01
A54: =ROW() -> 54 | C54: Benchmark DRP take-up | F54: 0.25
A55: =ROW() -> 55
A56: =ROW() -> 56 | B56: Dividend assessment
A57: =ROW() -> 57 | C57: Tax payable | AI57: =-AI45 -> 58.88284769 | AJ57: 33.95038875 | AK57: 34.77707647 | AL57: 45.9233903 | AM57: 47.46453965
A58: =ROW() -> 58 | C58: Dividends | AI58: =(AI57/WACC!Y$28*(1-WACC!Y$28)*$F$51) -> 96.1753179 | AJ58: =(AJ57/WACC!Z$28*(1-WACC!Z$28)*$F$51) -> 55.45230163 | AK58: =(AK57/WACC!AA$28*(1-WACC!AA$28)*$F$51) -> 56.80255823 | AL58: =(AL57/WACC!AB$28*(1-WACC!AB$28)*$F$51) -> 75.00820415 | AM58: =(AM57/WACC!AC$28*(1-WACC!AC$28)*$F$51) -> 77.52541476
A59: =ROW() -> 59 | C59: Dividend re-investment (DRP) | AI59: =AI58*$F$54 -> 24.04382947 | AJ59: 13.86307541 | AK59: 14.20063956 | AL59: 18.75205104 | AM59: 19.38135369
A60: =ROW() -> 60
A61: =ROW() -> 61 | B61: Benchmark Cash Flows
A62: =ROW() -> 62 | C62: Revenue | AI62: =AI34 -> 573.5435897 | AJ62: 480.1484052 | AK62: 481.8499715 | AL62: 493.1609281 | AM62: 515.0158748
A63: =ROW() -> 63 | C63: Opex | AI63: =AI40-AI64 -> -261.6489179 | AJ63: -254.48161 | AK63: -253.5165383 | AL63: -228.2781642 | AM63: -246.0158599
A64: =ROW() -> 64 | C64: Interest | AI64: =AI38 -> -115.6185129 | AJ64: -112.4988327 | AK64: -112.409845 | AL64: -111.8047963 | AM64: -110.7848828
A65: =ROW() -> 65 | C65: Tax | AI65: =AI45 -> -58.88284769 | AJ65: -33.95038875 | AK65: -34.77707647 | AL65: -45.9233903 | AM65: -47.46453965
A66: =ROW() -> 66 | C66: Internal cash flow | AI66: =SUM(AI62:AI65) -> 137.3933113 | AJ66: 79.21757376 | AK66: 81.14651176 | AL66: 107.1545774 | AM66: 110.7505925
A67: =ROW() -> 67 | C67: Dividend | AI67: =-AI58 -> -96.1753179 | AJ67: -55.45230163 | AK67: -56.80255823 | AL67: -75.00820415 | AM67: -77.52541476
A68: =ROW() -> 68 | C68: Dividend reinvestment | AI68: =AI59 -> 24.04382947 | AJ68: 13.86307541 | AK68: 14.20063956 | AL68: 18.75205104 | AM68: 19.38135369
A69: =ROW() -> 69 | C69: Retained cash flow | AI69: =SUM(AI66:AI68) -> 65.26182286 | AJ69: 37.62834754 | AK69: 38.54459308 | AL69: 50.89842425 | AM69: 52.60653144
A70: =ROW() -> 70
A71: =ROW() -> 71 | B71: Benchmark capex funding
A72: =ROW() -> 72 | C72: Capex | AI72: =Inputs!AI681 -> 66.61930115 | AJ72: =Inputs!AJ681 -> 81.48576268 | AK72: =Inputs!AK681 -> 70.34337342 | AL72: =Inputs!AL681 -> 59.29053845 | AM72: =Inputs!AM681 -> 46.11149439
A73: =ROW() -> 73 | C73: less Debt Component | AI73: =(AJ19-AI19)*WACC!Y$25 -> -53.14099491 | AJ73: =(AK19-AJ19)*WACC!Z$25 -> -1.515827134 | AK73: =(AL19-AK19)*WACC!AA$25 -> -10.30646882 | AL73: =(AM19-AL19)*WACC!AB$25 -> -17.37332496 | AM73: =(AN19-AM19)*WACC!AC$25 -> -28.63720631
A74: =ROW() -> 74 | C74: Equity Component | AI74: =AI72-AI73 -> 119.7602961 | AJ74: 83.00158981 | AK74: 80.64984223 | AL74: 76.66386341 | AM74: 74.7487007
A75: =ROW() -> 75 | C75: Retained cash flows | AI75: =AI69 -> 65.26182286 | AJ75: 37.62834754 | AK75: 38.54459308 | AL75: 50.89842425 | AM75: 52.60653144
A76: =ROW() -> 76 | C76: Equity Required (SEO) | AI76: =AI74-AI75 -> 54.4984732 | AJ76: 45.37324228 | AK76: 42.10524915 | AL76: 25.76543917 | AM76: 22.14216926
A77: =ROW() -> 77
A78: =ROW() -> 78 | B78: Equity raising costs
A79: =ROW() -> 79 | C79: External Equity Raising Costs | AI79: =AI76*$F$52 -> 1.634954196 | AJ79: 1.361197268 | AK79: 1.263157474 | AL79: 0.772963175 | AM79: 0.6642650777
A80: =ROW() -> 80 | C80: DRP cost | AI80: =AI59*$F$53 -> 0.2404382947 | AJ80: 0.1386307541 | AK80: 0.1420063956 | AL80: 0.1875205104 | AM80: 0.1938135369
A81: =ROW() -> 81 | C81: Total Equity Raising Costs | AI81: =SUM(AI79:AI80) -> 1.875392491 | AJ81: 1.499828022 | AK81: 1.40516387 | AL81: 0.9604836853 | AM81: 0.8580786146
A82: =ROW() -> 82 | C82: Equity Raising Costs (capitalised and included in RAB) | AI82: =MAX(0,SUM(AI79:AI80)) -> 1.875392491 | AJ82: 1.499828022 | AK82: 1.40516387 | AL82: 0.9604836853 | AM82: 0.8580786146
A83: =ROW() -> 83 | C83: Equity Raising Costs (manual entry) | AI83: =SolverSheet!I40 -> 1.875392491 | AJ83: =SolverSheet!J40 -> 1.499828022 | AK83: =SolverSheet!K40 -> 1.40516387 | AL83: =SolverSheet!L40 -> 0.9604836853 | AM83: =SolverSheet!M40 -> 0.8580786146
A84: =ROW() -> 84 | C84: ="Total Equity Raising Costs [Real " & Inputs!$E$28 & " $M]" -> Total Equity Raising Costs [Real 31/12/2024 $M] | AI84: =AI83/AI12 -> 1.769832756 | AJ84: 1.385161245 | AK84: 1.270002733 | AL84: 0.8495451911 | AM84: 0.7427495279

Sheet ProposedApproach
A1: =Main!A1 -> AGIG, DBNGP Tariff Model, Final Plan, Dec 2024
A2: =MID(CELL("filename",A1),FIND("]",CELL("filename",A1))+1,256) -> ProposedApproach | AC2: <------ Depreciation Asset_NoReclass | AH2: Principled Approach
A3: Ref. | B3: =COLUMN() -> 2 | C3: =COLUMN() -> 3 | D3: =COLUMN() -> 4 | E3: =COLUMN() -> 5 | F3: =COLUMN() -> 6 | G3: =COLUMN() -> 7 | H3: =COLUMN() -> 8 | I3: =COLUMN() -> 9 | J3: =COLUMN() -> 10 | K3: =COLUMN() -> 11 | L3: =COLUMN() -> 12 | M3: =COLUMN() -> 13 | N3: =COLUMN() -> 14 | O3: =COLUMN() -> 15 | P3: =COLUMN() -> 16 | Q3: =COLUMN() -> 17 | R3: =COLUMN() -> 18 | S3: =COLUMN() -> 19 | T3: =COLUMN() -> 20 | U3: =COLUMN() -> 21 | V3: =COLUMN() -> 22 | W3: =COLUMN() -> 23 | X3: =COLUMN() -> 24 | Y3: =COLUMN() -> 25 | Z3: =COLUMN() -> 26 | AA3: =COLUMN() -> 27 | AB3: =COLUMN() -> 28 | AC3: =COLUMN() -> 29 | AD3: =COLUMN() -> 30 | AE3: =COLUMN() -> 31 | AF3: =COLUMN() -> 32 | AG3: =COLUMN() -> 33 | AH3: =COLUMN() -> 34
A5: Regulatory Period | I5: =Inputs!I$5 -> AA1 | J5: =Inputs!J$5 -> AA1 | K5: =Inputs!K$5 -> AA1 | L5: =Inputs!L$5 -> AA1 | M5: =Inputs!M$5 -> AA1 | N5: =Inputs!N$5 -> AA2 | O5: =Inputs!O$5 -> AA2 | P5: =Inputs!P$5 -> AA2 | Q5: =Inputs!Q$5 -> AA2 | R5: =Inputs!R$5 -> AA2 | S5: =Inputs!S$5 -> AA2 | T5: =Inputs!T$5 -> AA3 | U5: =Inputs!U$5 -> AA3 | V5: =Inputs!V$5 -> AA3 | W5: =Inputs!W$5 -> AA3 | X5: =Inputs!X$5 -> AA3 | Y5: =Inputs!Y$5 -> AA4 | Z5: =Inputs!Z$5 -> AA4 | AA5: =Inputs!AA$5 -> AA4 | AB5: =Inputs!AB$5 -> AA4 | AC5: =Inputs!AC$5 -> AA4 | AD5: =Inputs!AD$5 -> AA5 | AE5: =Inputs!AE$5 -> AA5 | AF5: =Inputs!AF$5 -> AA5 | AG5: =Inputs!AG$5 -> AA5 | AH5: =Inputs!AH$5 -> AA5 | AI5: =Inputs!AI$5 -> AA6 | AJ5: =Inputs!AJ$5 -> AA6 | AK5: =Inputs!AK$5 -> AA6 | AL5: =Inputs!AL$5 -> AA6 | AM5: =Inputs!AM$5 -> AA6
A6: Year | H6: =Inputs!H$6 -> 1999 | I6: =Inputs!I$6 -> 2000 | J6: =Inputs!J$6 -> 2001 | K6: =Inputs!K$6 -> 2002 | L6: =Inputs!L$6 -> 2003 | M6: =Inputs!M$6 -> 2004 | N6: =Inputs!N$6 -> 2005 | O6: =Inputs!O$6 -> 2006 | P6: =Inputs!P$6 -> 2007 | Q6: =Inputs!Q$6 -> 2008 | R6: =Inputs!R$6 -> 2009 | S6: =Inputs!S$6 -> 2010 | T6: =Inputs!T$6 -> 2011 | U6: =Inputs!U$6 -> 2012 | V6: =Inputs!V$6 -> 2013 | W6: =Inputs!W$6 -> 2014 | X6: =Inputs!X$6 -> 2015 | Y6: =Inputs!Y$6 -> 2016 | Z6: =Inputs!Z$6 -> 2017 | AA6: =Inputs!AA$6 -> 2018 | AB6: =Inputs!AB$6 -> 2019 | AC6: =Inputs!AC$6 -> 2020 | AD6: =Inputs!AD$6 -> 2021 | AE6: =Inputs!AE$6 -> 2022 | AF6: =Inputs!AF$6 -> 2023 | AG6: =Inputs!AG$6 -> 2024 | AH6: =Inputs!AH$6 -> 2025 | AI6: =Inputs!AI$6 -> 2026 | AJ6: =Inputs!AJ$6 -> 2027 | AK6: =Inputs!AK$6 -> 2028 | AL6: =Inputs!AL$6 -> 2029 | AM6: =Inputs!AM$6 -> 2030
A7: Days | H7: =Inputs!H$7 -> 365 | I7: =Inputs!I$7 -> 366 | J7: =Inputs!J$7 -> 365 | K7: =Inputs!K$7 -> 365 | L7: =Inputs!L$7 -> 365 | M7: =Inputs!M$7 -> 366 | N7: =Inputs!N$7 -> 365 | O7: =Inputs!O$7 -> 365 | P7: =Inputs!P$7 -> 365 | Q7: =Inputs!Q$7 -> 366 | R7: =Inputs!R$7 -> 365 | S7: =Inputs!S$7 -> 365 | T7: =Inputs!T$7 -> 365 | U7: =Inputs!U$7 -> 366 | V7: =Inputs!V$7 -> 365 | W7: =Inputs!W$7 -> 365 | X7: =Inputs!X$7 -> 365 | Y7: =Inputs!Y$7 -> 366 | Z7: =Inputs!Z$7 -> 365 | AA7: =Inputs!AA$7 -> 365 | AB7: =Inputs!AB$7 -> 365 | AC7: =Inputs!AC$7 -> 366 | AD7: =Inputs!AD$7 -> 365 | AE7: =Inputs!AE$7 -> 365 | AF7: =Inputs!AF$7 -> 365 | AG7: =Inputs!AG$7 -> 366 | AH7: =Inputs!AH$7 -> 365 | AI7: =Inputs!AI$7 -> 365 | AJ7: =Inputs!AJ$7 -> 365 | AK7: =Inputs!AK$7 -> 366 | AL7: =Inputs!AL$7 -> 365 | AM7: =Inputs!AM$7 -> 365
A8: Project Year | H8: =Inputs!H$8 -> 0 | I8: =Inputs!I$8 -> 1 | J8: =Inputs!J$8 -> 2 | K8: =Inputs!K$8 -> 3 | L8: =Inputs!L$8 -> 4 | M8: =Inputs!M$8 -> 5 | N8: =Inputs!N$8 -> 6 | O8: =Inputs!O$8 -> 7 | P8: =Inputs!P$8 -> 8 | Q8: =Inputs!Q$8 -> 9 | R8: =Inputs!R$8 -> 10 | S8: =Inputs!S$8 -> 11 | T8: =Inputs!T$8 -> 12 | U8: =Inputs!U$8 -> 13 | V8: =Inputs!V$8 -> 14 | W8: =Inputs!W$8 -> 15 | X8: =Inputs!X$8 -> 16 | Y8: =Inputs!Y$8 -> 17 | Z8: =Inputs!Z$8 -> 18 | AA8: =Inputs!AA$8 -> 19 | AB8: =Inputs!AB$8 -> 20 | AC8: =Inputs!AC$8 -> 21 | AD8: =Inputs!AD$8 -> 22 | AE8: =Inputs!AE$8 -> 23 | AF8: =Inputs!AF$8 -> 24 | AG8: =Inputs!AG$8 -> 25 | AH8: =Inputs!AH$8 -> 26 | AI8: =Inputs!AI$8 -> 27 | AJ8: =Inputs!AJ$8 -> 28 | AK8: =Inputs!AK$8 -> 29 | AL8: =Inputs!AL$8 -> 30 | AM8: =Inputs!AM$8 -> 31
A9: Financial Parameters
A10: =ROW() -> 10 | B10: Modelled Inflation
A11: =ROW() -> 11 | C11: ="Inflation Factor (convert " &Inputs!$E$28& " $ to nominal $)" -> Inflation Factor (convert 31/12/2024 $ to nominal $) | H11: =Inputs!H28 -> 0.4943953736 | I11: =Inputs!I28 -> 0.5230790697 | J11: =Inputs!J28 -> 0.5394128411 | K11: =Inputs!K28 -> 0.5557466125 | L11: =Inputs!L28 -> 0.5688933066 | M11: =Inputs!M28 -> 0.5836335393 | N11: =Inputs!N28 -> 0.5999673107 | O11: =Inputs!O28 -> 0.6194881595 | P11: =Inputs!P28 -> 0.6378138542 | Q11: =Inputs!Q28 -> 0.6613185497 | R11: =Inputs!R28 -> 0.6752620131 | S11: =Inputs!S28 -> 0.6931893232 | T11: =Inputs!T28 -> 0.7147020953 | U11: =Inputs!U28 -> 0.7304570513 | V11: =Inputs!V28 -> 0.7505088135 | W11: =Inputs!W28 -> 0.763399232 | X11: =Inputs!X28 -> 0.7762896506 | Y11: =Inputs!Y28 -> 0.7877478004 | Z11: =Inputs!Z28 -> 0.802786622 | AA11: =Inputs!AA28 -> 0.8171093093 | AB11: =Inputs!AB28 -> 0.832148131 | AC11: =Inputs!AC28 -> 0.8393094746 | AD11: =Inputs!AD28 -> 0.8686709835 | AE11: =Inputs!AE28 -> 0.9367037481 | AF11: =Inputs!AF28 -> 0.9746588694 | AG11: =Inputs!AG28 -> 1 | AH11: =Inputs!AH28 -> 1.037 | AI11: =Inputs!AI28 -> 1.059643904 | AJ11: =Inputs!AJ28 -> 1.082782259 | AK11: =Inputs!AK28 -> 1.106425863 | AL11: =Inputs!AL28 -> 1.130585748 | AM11: =Inputs!AM28 -> 1.155273188
A12: =ROW() -> 12 | C12: ="Inflation Factor (convert nominal to real "&Inputs!$E$28&" $)" -> Inflation Factor (convert nominal to real 31/12/2024 $) | H12: =Inputs!H29 -> 2.022672649 | I12: =Inputs!I29 -> 1.91175686 | J12: =Inputs!J29 -> 1.85386762 | K12: =Inputs!K29 -> 1.799381188 | L12: =Inputs!L29 -> 1.75779885 | M12: =Inputs!M29 -> 1.71340393 | N12: =Inputs!N29 -> 1.666757475 | O12: =Inputs!O29 -> 1.614235857 | P12: =Inputs!P29 -> 1.567855564 | Q12: =Inputs!Q29 -> 1.512130577 | R12: =Inputs!R29 -> 1.480906642 | S12: =Inputs!S29 -> 1.442607332 | T12: =Inputs!T29 -> 1.399184369 | U12: =Inputs!U29 -> 1.369005882 | V12: =Inputs!V29 -> 1.332429389 | W12: =Inputs!W29 -> 1.309930582 | X12: =Inputs!X29 -> 1.288178967 | Y12: =Inputs!Y29 -> 1.269441818 | Z12: =Inputs!Z29 -> 1.245661017 | AA12: =Inputs!AA29 -> 1.223826468 | AB12: =Inputs!AB29 -> 1.201709122 | AC12: =Inputs!AC29 -> 1.191455631 | AD12: =Inputs!AD29 -> 1.151183842 | AE12: =Inputs!AE29 -> 1.067573394 | AF12: =Inputs!AF29 -> 1.026 | AG12: =Inputs!AG29 -> 1 | AH12: =Inputs!AH29 -> 0.9643201543 | AI12: =Inputs!AI29 -> 0.9437132573 | AJ12: =Inputs!AJ29 -> 0.9235467164 | AK12: =Inputs!AK29 -> 0.9038111214 | AL12: =Inputs!AL29 -> 0.8844972633 | AM12: =Inputs!AM29 -> 0.8655961298
A13: ="DBNGP Asset Account Summary [m$ "&TEXT(Inputs!$E$28,"dd/mm/yyyy")&"]" -> DBNGP Asset Account Summary [m$ 31/12/2024]
A14: All Assets
A15: =ROW() -> 15 | B15: DBNGP Asset Including BEP and Shippers' Financed Capex
A16: =ROW() -> 16 | C16: Opening Value | I16: =I22+I29 -> 3135.142606 | J16: =J22+J29 -> 3068.432846 | K16: 2997.689463 | L16: 2922.504534 | M16: 2845.729105 | N16: 2772.924902 | O16: 2778.430804 | P16: 3342.662239 | Q16: 3281.780168 | R16: 4137.404549 | S16: 4035.195713 | T16: 4865.844437 | U16: 4936.553042 | V16: 4843.949067 | W16: 4735.869427 | X16: 4614.045437 | Y16: 4506.437845 | Z16: 4401.674599 | AA16: 4311.123419 | AB16: 4216.854841 | AC16: =AC22+AC29 -> 4125.9973 | AD16: 4049.740264 | AE16: 3877.22024 | AF16: 3782.795471 | AG16: 3694.800718 | AH16: =AH22+AH29 -> 3592.152119 | AI16: =AI22+AI29 -> 3453.071241 | AJ16: 3288.09978 | AK16: 3215.289877 | AL16: 3129.644668 | AM16: 3034.82681
A17: =ROW() -> 17 | C17: Capex | I17: =I23+I30 -> 9.672530473 | J17: 6.057349234 | K17: 2.258677447 | L17: 1.360451232 | M17: 5.78566032 | N17: 91.27538829 | O17: 640.5804216 | P17: 20.34769721 | Q17: 950.2658855 | R17: 1.898175146 | S17: 892.7812219 | T17: 204.674576 | U17: 42.12279492 | V17: 27.68015973 | W17: 16.1321265 | X17: 28.93413842 | Y17: 22.95495073 | Z17: 40.39709798 | AA17: 38.26551178 | AB17: 34.42980861 | AC17: =AC23+AC30 -> 37.29155043 | AD17: 44.99715087 | AE17: 44.91841631 | AF17: 53.53738699 | AG17: 39.21586479 | AH17: =AH23+AH30 -> 38.98912437 | AI17: =AI23+AI30 -> 62.86951769 | AJ17: 75.25590856 | AK17: 63.57712321 | AL17: 52.442319 | AM17: 39.91393108
A18: =ROW() -> 18 | C18: Redundant & Disposed Asset | I18: 0 | J18: 0 | K18: 0 | L18: 0 | M18: 0 | N18: -10.0468458 | O18: 0 | P18: -0.05052640486 | Q18: -0.03817869781 | R18: -0.1219073972 | S18: -0.01597622491 | T18: -6.185583949 | U18: -0.5082831565 | V18: -1.012554758 | W18: -2.856601137 | X18: -1.004348538 | Y18: 0 | Z18: 0 | AA18: 0 | AB18: 0 | AC18: =AC24+AC31 -> 0 | AD18: 0 | AE18: 0 | AF18: 0 | AG18: 0 | AH18: =AH24+AH31 -> 0 | AI18: =AI24+AI31 -> 0 | AJ18: 0 | AK18: 0 | AL18: 0 | AM18: 0
A19: =ROW() -> 19 | C19: Depreciation | I19: -76.38229023 | J19: -76.80073304 | K19: -77.44360583 | L19: -78.13587999 | M19: -78.58986405 | N19: -75.72264012 | O19: -76.34898618 | P19: -81.179242 | Q19: -94.60332575 | R19: -103.9851038 | S19: -106.4261369 | T19: -127.7803872 | U19: -134.2184868 | V19: -134.7472447 | W19: -135.0995157 | X19: -135.5373814 | Y19: -127.7181973 | Z19: -130.9482772 | AA19: -132.5340903 | AB19: -125.2873495 | AC19: =AC25+AC32 -> -113.5485866 | AD19: -217.5171745 | AE19: -139.3431856 | AF19: -141.5321401 | AG19: -141.8644637 | AH19: =AH25+AH32 -> -143.4236547 | AI19: =AI25+AI32 -> -227.8409792 | AJ19: -148.0658109 | AK19: -149.2223323 | AL19: -147.2601769 | AM19: -149.8357683
A20: =ROW() -> 20 | C20: Closing Value | H20: 3135.142606 | I20: 3068.432846 | J20: 2997.689463 | K20: 2922.504534 | L20: 2845.729105 | M20: 2772.924902 | N20: 2778.430804 | O20: 3342.662239 | P20: 3281.780168 | Q20: 4137.404549 | R20: 4035.195713 | S20: 4865.844437 | T20: 4936.553042 | U20: 4843.949067 | V20: 4735.869427 | W20: 4614.045437 | X20: 4506.437845 | Y20: 4401.674599 | Z20: 4311.123419 | AA20: 4216.854841 | AB20: 4125.9973 | AC20: =AC26+AC33 -> 4049.740264 | AD20: 3877.22024 | AE20: 3782.795471 | AF20: 3694.800718 | AG20: 3592.152119 | AH20: =AH26+AH33 -> 3487.717589 | AI20: =AI26+AI33 -> 3288.09978 | AJ20: 3215.289877 | AK20: 3129.644668 | AL20: 3034.82681 | AM20: 2924.904973
A21: =ROW() -> 21 | B21: Shippers' Asset Account
A22: =ROW() -> 22 | C22: Opening Value (Starting 01/12/2010) | I22: =Shippers_Asset!I18 -> 0 | J22: =Shippers_Asset!J18 -> 0 | K22: =Shippers_Asset!K18 -> 0 | L22: =Shippers_Asset!L18 -> 0 | M22: =Shippers_Asset!M18 -> 0 | N22: =Shippers_Asset!N18 -> 0 | O22: =Shippers_Asset!O18 -> 4.319994729 | P22: =Shippers_Asset!P18 -> 24.49718606 | Q22: =Shippers_Asset!Q18 -> 35.97779815 | R22: =Shippers_Asset!R18 -> 36.42761648 | S22: =Shippers_Asset!S18 -> 35.29334685 | T22: =Shippers_Asset!T18 -> 34.15907723 | U22: =Shippers_Asset!U18 -> 33.0248076 | V22: =Shippers_Asset!V18 -> 31.89053797 | W22: =Shippers_Asset!W18 -> 30.75626835 | X22: =Shippers_Asset!X18 -> 29.62199872 | Y22: =Shippers_Asset!Y18 -> 28.4877291 | Z22: =Shippers_Asset!Z18 -> 28.29033493 | AA22: =Shippers_Asset!AA18 -> 38.67284723 | AB22: =Shippers_Asset!AB18 -> 47.96897069 | AC22: =Shippers_Asset!AC18 -> 48.44191966 | AD22: =Shippers_Asset!AD18 -> 46.14265762 | AE22: =Shippers_Asset!AE18 -> 43.84339558 | AF22: =Shippers_Asset!AF18 -> 41.54413353 | AG22: =Shippers_Asset!AG18 -> 39.24487149 | AH22: =Shippers_Asset!AH18 -> 36.94560945 | AI22: =Shippers_Asset!AI18 -> 0 | AJ22: =Shippers_Asset!AJ18 -> 0 | AK22: =Shippers_Asset!AK18 -> 0 | AL22: =Shippers_Asset!AL18 -> 0 | AM22: =Shippers_Asset!AM18 -> 0
A23: =ROW() -> 23 | C23: Capex | I23: =Shippers_Asset!I19 -> 0 | J23: =Shippers_Asset!J19 -> 0 | K23: =Shippers_Asset!K19 -> 0 | L23: =Shippers_Asset!L19 -> 0 | M23: =Shippers_Asset!M19 -> 0 | N23: =Shippers_Asset!N19 -> 4.319994729 | O23: =Shippers_Asset!O19 -> 20.31337635 | P23: =Shippers_Asset!P19 -> 12.15417054 | Q23: =Shippers_Asset!Q19 -> 1.528766765 | R23: =Shippers_Asset!R19 -> 0 | S23: =Shippers_Asset!S19 -> 0 | T23: =Shippers_Asset!T19 -> 0 | U23: =Shippers_Asset!U19 -> 0 | V23: =Shippers_Asset!V19 -> 0 | W23: =Shippers_Asset!W19 -> 0 | X23: =Shippers_Asset!X19 -> 0 | Y23: =Shippers_Asset!Y19 -> 0.9177219024 | Z23: =Shippers_Asset!Z19 -> 11.5282191 | AA23: =Shippers_Asset!AA19 -> 11.14016416 | AB23: =Shippers_Asset!AB19 -> 2.681784597 | AC23: =Shippers_Asset!AC19 -> 0 | AD23: =Shippers_Asset!AD19 -> 0 | AE23: =Shippers_Asset!AE19 -> 0 | AF23: =Shippers_Asset!AF19 -> 0 | AG23: =Shippers_Asset!AG19 -> 0 | AH23: =Shippers_Asset!AH19 -> 0 | AI23: =Shippers_Asset!AI19 -> 0 | AJ23: =Shippers_Asset!AJ19 -> 0 | AK23: =Shippers_Asset!AK19 -> 0 | AL23: =Shippers_Asset!AL19 -> 0 | AM23: =Shippers_Asset!AM19 -> 0
A24: =ROW() -> 24 | C24: Redundant & Disposed Asset | I24: =Shippers_Asset!I20 -> 0 | J24: =Shippers_Asset!J20 -> 0 | K24: =Shippers_Asset!K20 -> 0 | L24: =Shippers_Asset!L20 -> 0 | M24: =Shippers_Asset!M20 -> 0 | N24: =Shippers_Asset!N20 -> 0 | O24: =Shippers_Asset!O20 -> 0 | P24: =Shippers_Asset!P20 -> 0 | Q24: =Shippers_Asset!Q20 -> 0 | R24: =Shippers_Asset!R20 -> 0 | S24: =Shippers_Asset!S20 -> 0 | T24: =Shippers_Asset!T20 -> 0 | U24: =Shippers_Asset!U20 -> 0 | V24: =Shippers_Asset!V20 -> 0 | W24: =Shippers_Asset!W20 -> 0 | X24: =Shippers_Asset!X20 -> 0 | Y24: =Shippers_Asset!Y20 -> 0 | Z24: =Shippers_Asset!Z20 -> 0 | AA24: =Shippers_Asset!AA20 -> 0 | AB24: =Shippers_Asset!AB20 -> 0 | AC24: =Shippers_Asset!AC20 -> 0 | AD24: =Shippers_Asset!AD20 -> 0 | AE24: =Shippers_Asset!AE20 -> 0 | AF24: =Shippers_Asset!AF20 -> 0 | AG24: =Shippers_Asset!AG20 -> 0 | AH24: =Shippers_Asset!AH20 -> 0 | AI24: =Shippers_Asset!AI20 -> 0 | AJ24: =Shippers_Asset!AJ20 -> 0 | AK24: =Shippers_Asset!AK20 -> 0 | AL24: =Shippers_Asset!AL20 -> 0 | AM24: =Shippers_Asset!AM20 -> 0
A25: =ROW() -> 25 | C25: Depreciation | I25: =Shippers_Asset!I21 -> 0 | J25: =Shippers_Asset!J21 -> 0 | K25: =Shippers_Asset!K21 -> 0 | L25: =Shippers_Asset!L21 -> 0 | M25: =Shippers_Asset!M21 -> 0 | N25: =Shippers_Asset!N21 -> 0 | O25: =Shippers_Asset!O21 -> -0.1361850173 | P25: =Shippers_Asset!P21 -> -0.6735584589 | Q25: =Shippers_Asset!Q21 -> -1.078948438 | R25: =Shippers_Asset!R21 -> -1.134269626 | S25: =Shippers_Asset!S21 -> -1.134269626 | T25: =Shippers_Asset!T21 -> -1.134269626 | U25: =Shippers_Asset!U21 -> -1.134269626 | V25: =Shippers_Asset!V21 -> -1.134269626 | W25: =Shippers_Asset!W21 -> -1.134269626 | X25: =Shippers_Asset!X21 -> -1.134269626 | Y25: =Shippers_Asset!Y21 -> -1.115116069 | Z25: =Shippers_Asset!Z21 -> -1.145706799 | AA25: =Shippers_Asset!AA21 -> -1.844040699 | AB25: =Shippers_Asset!AB21 -> -2.208835623 | AC25: =Shippers_Asset!AC21 -> -2.299262044 | AD25: =Shippers_Asset!AD21 -> -2.299262044 | AE25: =Shippers_Asset!AE21 -> -2.299262044 | AF25: =Shippers_Asset!AF21 -> -2.299262044 | AG25: =Shippers_Asset!AG21 -> -2.299262044 | AH25: =Shippers_Asset!AH21 -> -2.299262044 | AI25: =Shippers_Asset!AI21 -> 0 | AJ25: =Shippers_Asset!AJ21 -> 0 | AK25: =Shippers_Asset!AK21 -> 0 | AL25: =Shippers_Asset!AL21 -> 0 | AM25: =Shippers_Asset!AM21 -> 0
A26: =ROW() -> 26 | C26: Closing Value | H26: =Shippers_Asset!H22 -> 0 | I26: =Shippers_Asset!I22 -> 0 | J26: =Shippers_Asset!J22 -> 0 | K26: =Shippers_Asset!K22 -> 0 | L26: =Shippers_Asset!L22 -> 0 | M26: =Shippers_Asset!M22 -> 0 | N26: =Shippers_Asset!N22 -> 4.319994729 | O26: =Shippers_Asset!O22 -> 24.49718606 | P26: =Shippers_Asset!P22 -> 35.97779815 | Q26: =Shippers_Asset!Q22 -> 36.42761648 | R26: =Shippers_Asset!R22 -> 35.29334685 | S26: =Shippers_Asset!S22 -> 34.15907723 | T26: =Shippers_Asset!T22 -> 33.0248076 | U26: =Shippers_Asset!U22 -> 31.89053797 | V26: =Shippers_Asset!V22 -> 30.75626835 | W26: =Shippers_Asset!W22 -> 29.62199872 | X26: =Shippers_Asset!X22 -> 28.4877291 | Y26: =Shippers_Asset!Y22 -> 28.29033493 | Z26: =Shippers_Asset!Z22 -> 38.67284723 | AA26: =Shippers_Asset!AA22 -> 47.96897069 | AB26: =Shippers_Asset!AB22 -> 48.44191966 | AC26: =Shippers_Asset!AC22 -> 46.14265762 | AD26: =Shippers_Asset!AD22 -> 43.84339558 | AE26: =Shippers_Asset!AE22 -> 41.54413353 | AF26: =Shippers_Asset!AF22 -> 39.24487149 | AG26: =Shippers_Asset!AG22 -> 36.94560945 | AH26: =Shippers_Asset!AH22 -> 34.6463474 | AI26: =Shippers_Asset!AI22 -> 0 | AJ26: =Shippers_Asset!AJ22 -> 0 | AK26: =Shippers_Asset!AK22 -> 0 | AL26: =Shippers_Asset!AL22 -> 0 | AM26: =Shippers_Asset!AM22 -> 0
A27: DBNGP and BEP Assets
A28: =ROW() -> 28 | B28: DBNGP Asset Including BEP
A29: =ROW() -> 29 | C29: Opening Value | I29: =I35+I42 -> 3135.142606 | J29: 3068.432846 | K29: 2997.689463 | L29: 2922.504534 | M29: 2845.729105 | N29: 2772.924902 | O29: 2774.110809 | P29: 3318.165053 | Q29: 3245.80237 | R29: 4100.976933 | S29: 3999.902366 | T29: 4831.68536 | U29: 4903.528234 | V29: 4812.058529 | W29: 4705.113159 | X29: =X35+X42 -> 4584.423438 | Y29: =Y35+Y42 -> 4477.950116 | Z29: 4373.384264 | AA29: 4272.450572 | AB29: 4168.88587 | AC29: =AC35+AC42 -> 4077.55538 | AD29: 4003.597606 | AE29: 3833.376845 | AF29: 3741.251337 | AG29: 3655.555846 | AH29: =AH35+AH42 -> 3555.206509 | AI29: =AI35+AI42 -> 3453.071241 | AJ29: 3288.09978 | AK29: 3215.289877 | AL29: 3129.644668 | AM29: 3034.82681
A30: =ROW() -> 30 | C30: Capex | I30: 9.672530473 | J30: 6.057349234 | K30: 2.258677447 | L30: 1.360451232 | M30: 5.78566032 | N30: 86.95539356 | O30: 620.2670452 | P30: 8.193526662 | Q30: 948.7371188 | R30: 1.898175146 | S30: 892.7812219 | T30: 204.674576 | U30: 42.12279492 | V30: 27.68015973 | W30: 16.1321265 | X30: =X36+X43 -> 28.93413842 | Y30: 22.03722882 | Z30: 28.86887888 | AA30: 27.12534762 | AB30: 31.74802401 | AC30: =AC36+AC43 -> 37.29155043 | AD30: 44.99715087 | AE30: 44.91841631 | AF30: 53.53738699 | AG30: 39.21586479 | AH30: =AH36+AH43 -> 38.98912437 | AI30: =AI36+AI43 -> 62.86951769 | AJ30: 75.25590856 | AK30: 63.57712321 | AL30: 52.442319 | AM30: 39.91393108
A31: =ROW() -> 31 | C31: Redundant & Disposed Asset | I31: 0 | J31: 0 | K31: 0 | L31: 0 | M31: 0 | N31: -10.0468458 | O31: 0 | P31: -0.05052640486 | Q31: -0.03817869781 | R31: -0.1219073972 | S31: -0.01597622491 | T31: -6.185583949 | U31: -0.5082831565 | V31: -1.012554758 | W31: -2.856601137 | X31: =X37+X44 -> -1.004348538 | Y31: 0 | Z31: 0 | AA31: 0 | AB31: 0 | AC31: =AC37+AC44 -> 0 | AD31: 0 | AE31: 0 | AF31: 0 | AG31: 0 | AH31: =AH37+AH44 -> 0 | AI31: =AI37+AI44 -> 0 | AJ31: 0 | AK31: 0 | AL31: 0 | AM31: 0
A32: =ROW() -> 32 | C32: Depreciation | I32: -76.38229023 | J32: -76.80073304 | K32: -77.44360583 | L32: -78.13587999 | M32: -78.58986405 | N32: -75.72264012 | O32: -76.21280116 | P32: -80.50568354 | Q32: -93.52437731 | R32: -102.8508342 | S32: -105.2918672 | T32: -126.6461176 | U32: -133.0842172 | V32: -133.6129751 | W32: -133.9652461 | X32: =X38+X45 -> -134.4031118 | Y32: -126.6030813 | Z32: -129.8025704 | AA32: -130.6900496 | AB32: -123.0785139 | AC32: =AC38+AC45 -> -111.2493246 | AD32: -215.2179125 | AE32: -137.0439236 | AF32: -139.232878 | AG32: -139.5652017 | AH32: =AH38+AH45 -> -141.1243926 | AI32: =AI38+AI45 -> -227.8409792 | AJ32: -148.0658109 | AK32: -149.2223323 | AL32: -147.2601769 | AM32: -149.8357683
A33: =ROW() -> 33 | C33: Closing Value | H33: =H39+H47 -> 3135.142606 | I33: 3068.432846 | J33: 2997.689463 | K33: 2922.504534 | L33: 2845.729105 | M33: 2772.924902 | N33: 2774.110809 | O33: 3318.165053 | P33: 3245.80237 | Q33: 4100.976933 | R33: 3999.902366 | S33: 4831.68536 | T33: 4903.528234 | U33: 4812.058529 | V33: 4705.113159 | W33: 4584.423438 | X33: 4477.950116 | Y33: 4373.384264 | Z33: 4272.450572 | AA33: 4168.88587 | AB33: 4077.55538 | AC33: =AC39+AC47 -> 4003.597606 | AD33: 3833.376845 | AE33: 3741.251337 | AF33: 3655.555846 | AG33: 3555.206509 | AH33: =AH39+AH47 -> 3453.071241 | AI33: =AI39+AI47 -> 3288.09978 | AJ33: 3215.289877 | AK33: 3129.644668 | AL33: 3034.82681 | AM33: 2924.904973
A34: =ROW() -> 34 | B34: BEP Asset Account
A35: =ROW() -> 35 | C35: Opening Value (Starting 01/12/2010) | T35: =T133 -> 0 | U35: =U133 -> 27.20473365 | V35: =V133 -> 26.72745762 | W35: 26.25018159 | X35: 25.77290556 | Y35: 25.29562953 | Z35: 24.8183535 | AA35: 24.34107748 | AB35: 23.86380145 | AC35: =AC133 -> 23.38652542 | AD35: 22.90924939 | AE35: 22.36379107 | AF35: 21.81833275 | AG35: 21.27287443 | AH35: =AH133 -> 20.72741611 | AI35: =AI133 -> 20.18195779 | AJ35: 19.63649948 | AK35: 19.09104116 | AL35: 18.54558284 | AM35: 18.00012452
A36: =ROW() -> 36 | C36: Capex | T36: =T134 -> 27.20473365 | U36: =U134 -> 0 | V36: 0 | W36: 0 | X36: 0 | Y36: 0 | Z36: 0 | AA36: 0 | AB36: 0 | AC36: =AC134 -> 0 | AD36: 0 | AE36: 0 | AF36: 0 | AG36: 0 | AH36: =AH134 -> 0 | AI36: =AI134 -> 0 | AJ36: 0 | AK36: 0 | AL36: 0 | AM36: 0
A37: =ROW() -> 37 | C37: Redundant & Disposed Asset | T37: =T135 -> 0 | U37: 0 | V37: 0 | W37: 0 | X37: 0 | Y37: 0 | Z37: 0 | AA37: 0 | AB37: 0 | AC37: =AC135 -> 0 | AD37: 0 | AE37: 0 | AF37: 0 | AG37: 0 | AH37: =AH135 -> 0 | AI37: =AI135 -> 0 | AJ37: 0 | AK37: 0 | AL37: 0 | AM37: 0
A38: =ROW() -> 38 | C38: Depreciation | T38: 0 | U38: -0.4772760289 | V38: -0.4772760289 | W38: -0.4772760289 | X38: -0.4772760289 | Y38: -0.4772760289 | Z38: -0.4772760289 | AA38: -0.4772760289 | AB38: -0.4772760289 | AC38: =AC136 -> -0.4772760289 | AD38: -0.5454583188 | AE38: -0.5454583188 | AF38: -0.5454583188 | AG38: -0.5454583188 | AH38: =AH136 -> -0.5454583188 | AI38: =AI136 -> -0.5454583188 | AJ38: -0.5454583188 | AK38: -0.5454583188 | AL38: -0.5454583188 | AM38: -0.5454583188
A39: =ROW() -> 39 | C39: Closing Value | T39: =SUM(T35:T38) -> 27.20473365 | U39: =SUM(U35:U38) -> 26.72745762 | V39: =SUM(V35:V38) -> 26.25018159 | W39: =SUM(W35:W38) -> 25.77290556 | X39: =SUM(X35:X38) -> 25.29562953 | Y39: =SUM(Y35:Y38) -> 24.8183535 | Z39: 24.34107748 | AA39: 23.86380145 | AB39: 23.38652542 | AC39: =SUM(AC35:AC38) -> 22.90924939 | AD39: 22.36379107 | AE39: 21.81833275 | AF39: 21.27287443 | AG39: 20.72741611 | AH39: =SUM(AH35:AH38) -> 20.18195779 | AI39: =SUM(AI35:AI38) -> 19.63649948 | AJ39: 19.09104116 | AK39: 18.54558284 | AL39: 18.00012452 | AM39: 17.4546662
A40: DBNGP Assets
A41: =ROW() -> 41 | B41: DBNGP Asset
A42: =ROW() -> 42 | C42: Opening Value | I42: =H47 -> 3135.142606 | J42: =I47 -> 3068.432846 | K42: 2997.689463 | L42: 2922.504534 | M42: 2845.729105 | N42: 2772.924902 | O42: 2774.110809 | P42: 3318.165053 | Q42: 3245.80237 | R42: 4100.976933 | S42: 3999.902366 | T42: 4831.68536 | U42: 4876.323501 | V42: 4785.331071 | W42: 4678.862977 | X42: 4558.650533 | Y42: 4452.654487 | Z42: 4348.56591 | AA42: 4248.109495 | AB42: 4145.022069 | AC42: =AB47 -> 4054.168855 | AD42: =AC47 -> 3980.688357 | AE42: =AD47 -> 3811.013053 | AF42: =AE47 -> 3719.433005 | AG42: =AF47 -> 3634.282972 | AH42: =AG47 -> 3534.479093 | AI42: =AH47 -> 3432.889283 | AJ42: =AI47 -> 3268.46328 | AK42: =AJ47 -> 3196.198836 | AL42: =AK47 -> 3111.099085 | AM42: =AL47 -> 3016.826686
A43: =ROW() -> 43 | C43: Capex | I43: =I78 -> 9.672530473 | J43: =J78 -> 6.057349234 | K43: 2.258677447 | L43: 1.360451232 | M43: 5.78566032 | N43: 86.95539356 | O43: 620.2670452 | P43: 8.193526662 | Q43: 948.7371188 | R43: 1.898175146 | S43: 892.7812219 | T43: 177.4698423 | U43: 42.12279492 | V43: 27.68015973 | W43: 16.1321265 | X43: 28.93413842 | Y43: 22.03722882 | Z43: 28.86887888 | AA43: 27.12534762 | AB43: 31.74802401 | AC43: =AC78 -> 37.29155043 | AD43: 44.99715087 | AE43: 44.91841631 | AF43: 53.53738699 | AG43: 39.21586479 | AH43: =AH78 -> 38.98912437 | AI43: 62.86951769 | AJ43: 75.25590856 | AK43: 63.57712321 | AL43: 52.442319 | AM43: 39.91393108
A44: =ROW() -> 44 | C44: Redundant & Disposed Asset | I44: =I90 -> 0 | J44: =J90 -> 0 | K44: 0 | L44: 0 | M44: 0 | N44: -10.0468458 | O44: 0 | P44: -0.05052640486 | Q44: -0.03817869781 | R44: -0.1219073972 | S44: -0.01597622491 | T44: -6.185583949 | U44: -0.5082831565 | V44: -1.012554758 | W44: -2.856601137 | X44: -1.004348538 | Y44: 0 | Z44: 0 | AA44: 0 | AB44: 0 | AC44: =AC90 -> 0 | AD44: 0 | AE44: 0 | AF44: 0 | AG44: 0 | AH44: =AH90 -> 0 | AI44: 0 | AJ44: 0 | AK44: 0 | AL44: 0 | AM44: 0
A45: =ROW() -> 45 | C45: Depreciation | I45: =I102 -> -76.38229023 | J45: =J102 -> -76.80073304 | K45: -77.44360583 | L45: -78.13587999 | M45: -78.58986405 | N45: -75.72264012 | O45: -76.21280116 | P45: -80.50568354 | Q45: -93.52437731 | R45: -102.8508342 | S45: -105.2918672 | T45: -126.6461176 | U45: -132.6069412 | V45: -133.1356991 | W45: -133.4879701 | X45: -133.9258357 | Y45: -126.1258052 | Z45: -129.3252944 | AA45: -130.2127736 | AB45: -122.6012379 | AC45: =AC102 -> -110.7720485 | AD45: -214.6724542 | AE45: -136.4984653 | AF45: -138.6874197 | AG45: -139.0197434 | AH45: =AH102 -> -140.5789343 | AI45: -227.2955209 | AJ45: -147.5203526 | AK45: -148.676874 | AL45: -146.7147185 | AM45: -149.29031
A46: =ROW() -> 46
A47: =ROW() -> 47 | C47: Closing Value | H47: =H114 -> 3135.142606 | I47: =SUM(I42:I46) -> 3068.432846 | J47: 2997.689463 | K47: 2922.504534 | L47: 2845.729105 | M47: 2772.924902 | N47: 2774.110809 | O47: 3318.165053 | P47: =SUM(P42:P46) -> 3245.80237 | Q47: =SUM(Q42:Q46) -> 4100.976933 | R47: 3999.902366 | S47: =SUM(S42:S46)-S50 -> 4831.68536 | T47: 4876.323501 | U47: 4785.331071 | V47: 4678.862977 | W47: 4558.650533 | X47: 4452.654487 | Y47: =SUM(Y42:Y46)-Y50 -> 4348.56591 | Z47: 4248.109495 | AA47: 4145.022069 | AB47: 4054.168855 | AC47: =SUM(AC42:AC46) -> 3980.688357 | AD47: 3811.013053 | AE47: 3719.433005 | AF47: 3634.282972 | AG47: 3534.479093 | AH47: =SUM(AH42:AH46) -> 3432.889283 | AI47: =SUM(AI42:AI46) -> 3268.46328 | AJ47: 3196.198836 | AK47: 3111.099085 | AL47: 3016.826686 | AM47: 2907.450307
A48: =ROW() -> 48 | G48: Check | H48: =IF(ROUND(H47-Inputs!H109,6)=0,"OK","Wrong") -> OK | I48: =IF(ROUND(I47-Inputs!I109,6)=0,"OK","Wrong") -> OK | J48: =IF(ROUND(J47-Inputs!J109,6)=0,"OK","Wrong") -> OK | K48: =IF(ROUND(K47-Inputs!K109,6)=0,"OK","Wrong") -> OK | L48: =IF(ROUND(L47-Inputs!L109,6)=0,"OK","Wrong") -> OK | M48: =IF(ROUND(M47-Inputs!M109,6)=0,"OK","Wrong") -> OK | N48: =IF(ROUND(N47-N200-N275,6)=0,"OK","Wrong") -> OK | O48: =IF(ROUND(O47-O200-O275,6)=0,"OK","Wrong") -> OK | P48: OK | Q48: OK | R48: OK | S48: OK | T48: OK | U48: OK | V48: OK | W48: OK | X48: OK | Y48: OK | Z48: OK | AA48: OK | AB48: OK | AC48: =IF(ROUND(AC47-AC200-AC275,6)=0,"OK","Wrong") -> OK | AD48: OK | AE48: OK | AF48: OK | AG48: OK | AH48: =IF(ROUND(AH47-AH200-AH275,6)=0,"OK","Wrong") -> OK | AI48: OK | AJ48: OK | AK48: OK | AL48: OK | AM48: OK
A49: =ROW() -> 49 | B49: Over Depreciation
A50: =ROW() -> 50 | C50: Over Depreciation | S50: =S126 -> -44.30961521 | Y50: =Y126 -> 0
A51: =ROW() -> 51 | C51: Rolled Forward Value | T51: =S50*(1+WACC!M34) -> -46.86663995
A52: =ROW() -> 52
A53: ="DBNGP Asset Account [m$ "&TEXT(Inputs!$E$28,"dd/mm/yyyy")&"]" -> DBNGP Asset Account [m$ 31/12/2024]
A54: Asset Accounts
A55: =ROW() -> 55 | B55: Opening Value
A56: =ROW() -> 56 | C56: Pipeline | I56: =H104 -> 2554.932234 | J56: 2510.705957 | K56: 2463.869837 | L56: 2417.084882 | M56: 2370.180347 | N56: 2324.329844 | O56: 2289.784817 | P56: 2613.821053 | Q56: 2568.432665 | R56: 3261.3237 | S56: 3201.209472 | T56: 3864.796285 | U56: 3855.711727 | V56: 3801.659466 | W56: 3733.783047 | X56: 3660.333525 | Y56: 3589.449803 | Z56: 3514.448408 | AA56: 3439.379355 | AB56: 3364.368779 | AC56: =AB104 -> 3289.234397 | AD56: =AC104 -> 3214.268349 | AE56: =AD104 -> 3129.45071 | AF56: =AE104 -> 3047.094825 | AG56: =AF104 -> 2963.366638 | AH56: =PrincipledApproach!AH56 -> 2828.168208 | AI56: =AH104 -> 2743.350569 | AJ56: =AI104 -> 2658.623295 | AK56: =AJ104 -> 2573.891303 | AL56: =AK104 -> 2489.154434 | AM56: =AL104 -> 2404.513795
A57: =ROW() -> 57 | C57: Compression | I57: =H105 -> 428.0049776 | J57: 401.3307466 | K57: 380.8677372 | L57: 357.8012834 | M57: 334.0830925 | N57: 310.7576646 | O57: 351.5282788 | P57: 578.0409141 | Q57: 552.7266776 | R57: 712.2789067 | S57: 677.7440699 | T57: 827.7254714 | U57: 825.7447185 | V57: 790.5901357 | W57: 751.1425162 | X57: 708.1985239 | Y57: 666.545863 | Z57: 622.6257346 | AA57: 580.7258521 | AB57: 535.8993573 | AC57: 497.6639013 | AD57: 472.0959993 | AE57: 450.8921854 | AF57: 430.4567711 | AG57: 410.9168956 | AH57: =PrincipledApproach!AH57 -> 349.275259 | AI57: 325.6426444 | AJ57: 308.6071467 | AK57: 290.1505319 | AL57: 272.9482505 | AM57: 252.5974647
A58: =ROW() -> 58 | C58: Metering | I58: =H106 -> 35.09975371 | J58: 35.26913992 | K58: 35.34599819 | L58: 35.06454034 | M58: 34.08110247 | N58: 36.01376855 | O58: 34.99304125 | P58: 33.93365588 | Q58: 32.83209704 | R58: 31.72526637 | S58: 30.73125081 | T58: 36.91375412 | U58: 36.23754906 | V58: 37.58865512 | W58: 37.66505987 | X58: 35.75379019 | Y58: 39.12177442 | Z58: 43.64491921 | AA58: 46.59828311 | AB58: 53.39555256 | AC58: 58.34396305 | AD58: 66.74578939 | AE58: 53.79668545 | AF58: 54.8330253 | AG58: 56.48726818 | AH58: =PrincipledApproach!AH58 -> 50.30893283 | AI58: 50.82514157 | AJ58: 57.3007492 | AK58: 63.45276519 | AL58: 66.35937676 | AM58: 67.36785358
A59: =ROW() -> 59 | C59: Other Depreciable | I59: =H107 -> 96.39701378 | J59: 100.4183755 | K59: 96.89726345 | L59: 91.84520176 | M59: 86.67593628 | N59: 81.11499774 | O59: 80.58652136 | P59: 75.34473744 | Q59: 71.972954 | R59: 73.67073413 | S59: 67.25993501 | T59: 78.13788647 | U59: 130.2855257 | V59: 125.2094898 | W59: 124.5347463 | X59: 122.8814259 | Y59: 126.178536 | Z59: 124.751836 | AA59: 125.8583485 | AB59: 122.994112 | AC59: 121.098893 | AD59: 121.1267003 | AE59: 114.0469578 | AF59: 111.9685248 | AG59: 107.6932543 | AH59: =PrincipledApproach!AH59 -> 42.30439551 | AI59: 40.25967357 | AJ59: 13.54911488 | AK59: 12.04679909 | AL59: 10.40728191 | AM59: 9.079959735
A60: =ROW() -> 60 | C60: Computers and Motor Vehicles | I60: =H108 -> 0 | J60: =I108 -> 0 | K60: =J108 -> 0 | L60: =K108 -> 0 | M60: =L108 -> 0 | N60: =M108 -> 0 | O60: =N108 -> 0 | P60: =O108 -> 0 | Q60: =P108 -> 0 | R60: =Q108 -> 0 | S60: =R108 -> 0 | T60: =S108 -> 0 | U60: =T108 -> 0 | V60: =U108 -> 0 | W60: =V108 -> 0 | X60: =W108 -> 0 | Y60: =X108 -> 0 | Z60: =Y108 -> 4.197469251 | AA60: =Z108 -> 7.262035404 | AB60: =AA108 -> 10.89232743 | AC60: 13.92205914 | AD60: 19.96934058 | AE60: 16.80110602 | AF60: 17.18853251 | AG60: 28.9277653 | AH60: =PrincipledApproach!AH60 -> 47.60449089 | AI60: 49.5906451 | AJ60: 46.27692852 | AK60: 43.13590593 | AL60: 36.84208659 | AM60: 38.31577048
A61: =ROW() -> 61 | C61: Cathodic/Corrosion Protection | I61: 0 | J61: 0 | K61: 0 | L61: 0 | M61: 0 | N61: 0 | O61: 0 | P61: 0 | Q61: 0 | R61: 0 | S61: 0 | T61: 0 | U61: 0 | V61: 0 | W61: 0 | X61: 0 | Y61: 0 | Z61: 1.061292456 | AA61: 2.955724629 | AB61: 8.884036802 | AC61: 17.73659096 | AD61: 22.86905827 | AE61: 22.30798868 | AF61: 22.8231215 | AG61: 24.16539199 | AH61: =PrincipledApproach!AH61 -> 69.27244983 | AI61: 66.19404641 | AJ61: 55.59070763 | AK61: 55.99576227 | AL61: 56.16638657 | AM61: 56.12509597
A62: =ROW() -> 62 | C62: SCADA , ECI And Comms | I62: 0 | J62: 0 | K62: 0 | L62: 0 | M62: 0 | N62: 0 | O62: 0 | P62: 0 | Q62: 0 | R62: 0 | S62: 0 | T62: 0 | U62: 0 | V62: 0 | W62: 0 | X62: 0 | Y62: 0 | Z62: 6.63665266 | AA62: 14.39501421 | AB62: 17.91773921 | AC62: 25.76360242 | AD62: 33.47238888 | AE62: -9.224242068 | AF62: -0.5431394004 | AG62: 6.033106231 | AH62: =PrincipledApproach!AH62 -> 108.4897064 | AI62: 112.5974438 | AJ62: 81.2421696 | AK62: 86.07471348 | AL62: 89.80942566 | AM62: 93.46013843
A63: =ROW() -> 63 | C63: Building | I63: =H111 -> 0 | J63: =I111 -> 0 | K63: =J111 -> 0 | L63: =K111 -> 0 | M63: =L111 -> 0 | N63: =M111 -> 0 | O63: =N111 -> 0 | P63: =O111 -> 0 | Q63: =P111 -> 0 | R63: =Q111 -> 0 | S63: =R111 -> 0 | T63: =S111 -> 0 | U63: =T111 -> 4.254836709 | V63: =U111 -> 6.247580629 | W63: =V111 -> 7.45053352 | X63: =W111 -> 7.195409592 | Y63: =X111 -> 7.074479795 | Z63: =Y111 -> 6.835521846 | AA63: =Z111 -> 6.570804934 | AB63: =AA111 -> 6.306088021 | AC63: 6.041371109 | AD63: 5.776654197 | AE63: 6.211754979 | AF63: 7.157587672 | AG63: 6.727534132 | AH63: =PrincipledApproach!AH63 -> 7.443890815 | AI63: 11.36138902 | AJ63: 12.67709999 | AK63: 35.75765716 | AL63: 52.77254172 | AM63: 58.23511073
A64: =ROW() -> 64 | C64: Non-Depreciable | I64: =H112 -> 20.70862691 | J64: =I112 -> 20.70862691 | K64: 20.70862691 | L64: 20.70862691 | M64: 20.70862691 | N64: 20.70862691 | O64: 17.21815058 | P64: 17.02469298 | Q64: 19.83797681 | R64: 21.97832556 | S64: 22.95763906 | T64: 24.1119628 | U64: 24.08914372 | V64: 24.03574408 | W64: 24.28707448 | X64: 24.28785786 | Y64: 24.28403053 | Z64: =Y112 -> 24.36407657 | AA64: 24.36407657 | AB64: 24.36407657 | AC64: 24.36407657 | AD64: 24.36407657 | AE64: 24.36407657 | AF64: 24.36407657 | AG64: 24.36407657 | AH64: =PrincipledApproach!AH64 -> 24.36407657 | AI64: 24.36407657 | AJ64: 24.36407657 | AK64: 24.36407657 | AL64: 24.36407657 | AM64: 24.36407657
A65: =ROW() -> 65 | C65: Cost of Raising Equity | I65: 0 | J65: =I113 -> 0 | K65: =J113 -> 0 | L65: =K113 -> 0 | M65: =L113 -> 0 | N65: =M113 -> 0 | O65: =N113 -> 0 | P65: =O113 -> 0 | Q65: =P113 -> 0 | R65: =Q113 -> 0 | S65: =R113 -> 0 | T65: =S113 -> 0 | U65: =T113 -> 0 | V65: =U113 -> 0 | W65: =V113 -> 0 | X65: =W113 -> 0 | Y65: =X113 -> 0 | Z65: =Y113 -> 0 | AA65: =Z113 -> -5.88830085e-16 | AB65: =AA113 -> -1.17766017e-15 | AC65: -1.766490255e-15 | AD65: -2.35532034e-15 | AE65: 2.365830498 | AF65: 4.089679616 | AG65: 5.601041654 | AH65: =PrincipledApproach!AH65 -> 7.247683245 | AI65: 8.703653788 | AJ65: 10.23199248 | AK65: 11.32932149 | AL65: 12.27522538 | AM65: 12.76742023
A66: =ROW() -> 66 | C66: Total | I66: =SUM(I56:I65) -> 3135.142606 | J66: =SUM(J56:J65) -> 3068.432846 | K66: 2997.689463 | L66: 2922.504534 | M66: 2845.729105 | N66: 2772.924902 | O66: 2774.110809 | P66: 3318.165053 | Q66: 3245.80237 | R66: 4100.976933 | S66: 3999.902366 | T66: 4831.68536 | U66: 4876.323501 | V66: 4785.331071 | W66: 4678.862977 | X66: 4558.650533 | Y66: 4452.654487 | Z66: 4348.56591 | AA66: 4248.109495 | AB66: 4145.022069 | AC66: =SUM(AC56:AC65) -> 4054.168855 | AD66: 3980.688357 | AE66: 3811.013053 | AF66: 3719.433005 | AG66: 3634.282972 | AH66: =SUM(AH56:AH65) -> 3534.479093 | AI66: =SUM(AI56:AI65) -> 3432.889283 | AJ66: 3268.46328 | AK66: 3196.198836 | AL66: 3111.099085 | AM66: 3016.826686
A67: =ROW() -> 67 | B67: Capex | H67: Check | I67: =IF(ROUND(I66-I164-I227,6)=0,"OK","Wrong") -> OK | J67: =IF(ROUND(J66-J164-J227,6)=0,"OK","Wrong") -> OK | K67: OK | L67: OK | M67: OK | N67: OK | O67: OK | P67: OK | Q67: OK | R67: OK | S67: OK | T67: OK | U67: OK | V67: OK | W67: OK | X67: OK | Y67: OK | Z67: OK | AA67: OK | AB67: OK | AC67: =IF(ROUND(AC66-AC164-AC227,6)=0,"OK","Wrong") -> OK | AD67: OK | AE67: OK | AF67: OK | AG67: OK | AH67: =IF(ROUND(AH66-AH164-AH227,6)=0,"OK","Wrong") -> OK | AI67: OK | AJ67: OK | AK67: OK | AL67: OK | AM67: OK
A68: =ROW() -> 68 | C68: Pipeline | I68: =I229 -> 2.653213788 | J68: =J229 -> 0.05579492683 | K68: 0.1150511736 | L68: 3.715986768e-05 | M68: 1.064412783 | N68: 12.39001417 | O68: 371.0814151 | P68: 1.79736955 | Q68: 746.2995789 | R68: 0 | S68: 706.8197441 | T68: 64.52298946 | U68: 19.99588663 | V68: 6.251071949 | W68: 0.7635983859 | X68: 3.340011371 | Y68: 0 | Z68: 0 | AA68: 0.1043108465 | AB68: 0.01067255146 | AC68: =AC229 -> 0.2779611536 | AD68: 0 | AE68: 2.461753788 | AF68: 1.089452139 | AG68: 0.02158978 | AH68: =AH229 -> 0 | AI68: 0.1869481968 | AJ68: 0.1874241064 | AK68: 0.1879012274 | AL68: 0.2896588981 | AM68: 0.1888591164
A69: =ROW() -> 69 | C69: Compression | I69: =I230 -> -3.815874452 | J69: 2.460072562 | K69: 0.1499157316 | L69: -0.2017915814 | M69: 0.3143544838 | N69: 68.69761409 | O69: 248.1111085 | P69: 0.212786974 | Q69: 191.7790965 | R69: 0 | S69: 159.7793988 | T69: 42.79782227 | U69: 11.35737334 | V69: 7.399254648 | W69: 4.005679517 | X69: 5.765405061 | Y69: 3.060977571 | Z69: 5.751664211 | AA69: 3.483890033 | AB69: 2.299791728 | AC69: =AC230 -> 2.946882755 | AD69: 3.175845691 | AE69: 4.145560438 | AF69: 5.137415025 | AG69: 1.17634617 | AH69: =AH230 -> 1.274112 | AI69: 7.832727408 | AJ69: 6.67270125 | AK69: 8.149458074 | AL69: 5.272602179 | AM69: 5.322577894
A70: =ROW() -> 70 | C70: Metering | I70: =I231 -> 1.092938397 | J70: 1.000410463 | K70: 0.6441170165 | L70: -0.05584033004 | M70: 2.862286293 | N70: 0 | O70: 0 | P70: 0 | Q70: 0 | R70: 0.1128151125 | S70: 6.860372125 | T70: 0.4891678709 | U70: 2.532331744 | V70: 1.271632391 | W70: 1.570210221 | X70: 4.716416775 | Y70: 4.203582442 | Z70: 4.407045361 | AA70: 8.320100154 | AB70: 6.493148977 | AC70: =AC231 -> 9.963284857 | AD70: 4.693922184 | AE70: 2.891872703 | AF70: 3.557730462 | AG70: 2.96219053 | AH70: =AH231 -> 2.523836 | AI70: =AI231 -> 8.841242574 | AJ70: 8.812359032 | AK70: 5.860699897 | AL70: 4.157921819 | AM70: 4.087276813
A71: =ROW() -> 71 | C71: Other Depreciable | I71: =I232 -> 9.74225274 | J71: 2.541071282 | K71: 1.349593525 | L71: 1.618045984 | M71: 1.54460676 | N71: 5.867765305 | O71: 1.267979134 | P71: 3.370086312 | Q71: 8.51809462 | R71: 0.8060465263 | S71: 18.36084079 | T71: 65.42784509 | U71: 6.074158427 | V71: 11.04820612 | W71: 9.780611776 | X71: 14.9704467 | Y71: 2.852326415 | Z71: 5.992809432 | AA71: 2.135717393 | AB71: 3.216261675 | AC71: =AC232 -> 5.214886438 | AD71: 2.860348794 | AE71: 2.685748835 | AF71: 0.494131306 | AG71: 1.79090915 | AH71: =AH232 -> 1.787763 | AI71: =AI232 -> 1.352861683 | AJ71: 1.648526011 | AK71: 1.076896282 | AL71: 1.283209174 | AM71: 1.082386119
A72: =ROW() -> 72 | C72: Computers and Motor Vehicles | I72: =I233 -> 0 | J72: 0 | K72: 0 | L72: 0 | M72: 0 | N72: 0 | O72: 0 | P72: 0 | Q72: 0 | R72: 0 | S72: 0 | T72: 0 | U72: 0 | V72: 0 | W72: 0 | X72: 0 | Y72: 4.197469251 | Z72: 3.064566152 | AA72: 3.630292024 | AB72: 3.029731708 | AC72: =AC233 -> 6.047281447 | AD72: 17.30975396 | AE72: 7.136749056 | AF72: 18.57747995 | AG72: 6.440970306 | AH72: =AH233 -> 9.199432 | AI72: =AI233 -> 17.82835275 | AJ72: 11.91756133 | AK72: 8.632659049 | AL72: 12.31590938 | AM72: 8.311498366
A73: =ROW() -> 73 | C73: Cathodic/Corrosion Protection | I73: =I234 -> 0 | J73: 0 | K73: 0 | L73: 0 | M73: 0 | N73: 0 | O73: 0 | P73: 0 | Q73: 0 | R73: 0 | S73: 0 | T73: 0 | U73: 0 | V73: 0 | W73: 0 | X73: 0 | Y73: 1.061292456 | Z73: 1.894432173 | AA73: 5.928312173 | AB73: 8.85255416 | AC73: =AC234 -> 5.132467311 | AD73: 4.577455763 | AE73: 5.927680989 | AF73: 6.984340177 | AG73: 3.87624662 | AH73: =AH234 -> 3.033983 | AI73: =AI234 -> 5.460817136 | AJ73: 4.896323784 | AK73: 4.499648468 | AL73: 4.39460656 | AM73: 4.304256646
A74: =ROW() -> 74 | C74: SCADA , ECI And Comms | I74: =I235 -> 0 | J74: 0 | K74: 0 | L74: 0 | M74: 0 | N74: 0 | O74: 0 | P74: 0 | Q74: 0 | R74: 0 | S74: 0 | T74: 0 | U74: 0 | V74: 0 | W74: 0 | X74: 0 | Y74: 6.63665266 | Z74: 7.758361551 | AA74: 3.522724994 | AB74: 7.84586321 | AC74: =AC235 -> 7.708786467 | AD74: 9.44067795 | AE74: 16.72539219 | AF74: 16.21166637 | AG74: 20.11685033 | AH74: =AH235 -> 15.120003 | AI74: =AI235 -> 18.18959821 | AJ74: 16.35786412 | AK74: 16.11998266 | AL74: 17.29570903 | AM74: 13.25466789
A75: =ROW() -> 75 | C75: Building | I75: 0 | J75: 0 | K75: 0 | L75: 0 | M75: 0 | N75: 0 | O75: 0 | P75: 0 | Q75: 0 | R75: 0 | S75: 0 | T75: 4.254836709 | U75: 2.21644442 | V75: 1.458664222 | W75: 0.01124323103 | X75: 0.1456858274 | Y75: 0.02492802898 | Z75: 0 | AA75: 0 | AB75: 0 | AC75: =AC236 -> 0 | AD75: 0.5733160304 | AE75: 1.157850603 | AF75: -0.1349174815 | AG75: 1.03296489 | AH75: =AH236 -> 4.395787 | AI75: =AI236 -> 1.407136965 | AJ75: 23.37798769 | AK75: 17.77987482 | AL75: 6.583156774 | AM75: 2.619658711
A76: =ROW() -> 76 | C76: Non-Depreciable | I76: =I237 -> 0 | J76: 0 | K76: 0 | L76: 0 | M76: 0 | N76: 0 | O76: -0.1934575959 | P76: 2.813283826 | Q76: 2.140348748 | R76: 0.9793135067 | S76: 0.9608661411 | T76: -0.02281907866 | U76: -0.05339963625 | V76: 0.2513303988 | W76: 0.0007833724996 | X76: -0.00382732141 | Y76: 0 | Z76: 0 | AA76: 0 | AB76: 0 | AC76: =AC237 -> 0 | AD76: 0 | AE76: 0 | AF76: 0 | AG76: 0 | AH76: =AH237 -> 0 | AI76: =AI237 -> 0 | AJ76: 0 | AK76: 0 | AL76: 0 | AM76: 0
A77: =ROW() -> 77 | C77: Cost of Raising Equity | I77: =I238 -> 0 | J77: 0 | K77: 0 | L77: 0 | M77: 0 | N77: 0 | O77: 0 | P77: 0 | Q77: 0 | R77: 0 | S77: 0 | T77: 0 | U77: 0 | V77: 0 | W77: 0 | X77: 0 | Y77: 0 | Z77: 0 | AA77: 0 | AB77: 0 | AC77: =AC238 -> 0 | AD77: 2.365830498 | AE77: 1.785807713 | AF77: 1.620089045 | AG77: 1.797797014 | AH77: =AH238 -> 1.654208366 | AI77: =AI238 -> 1.769832756 | AJ77: 1.385161245 | AK77: 1.270002733 | AL77: 0.8495451911 | AM77: 0.7427495279
A78: =ROW() -> 78 | C78: Total | I78: =SUM(I68:I77) -> 9.672530473 | J78: =SUM(J68:J77) -> 6.057349234 | K78: =SUM(K68:K77) -> 2.258677447 | L78: =SUM(L68:L77) -> 1.360451232 | M78: =SUM(M68:M77) -> 5.78566032 | N78: =SUM(N68:N77) -> 86.95539356 | O78: =SUM(O68:O77) -> 620.2670452 | P78: =SUM(P68:P77) -> 8.193526662 | Q78: =SUM(Q68:Q77) -> 948.7371188 | R78: =SUM(R68:R77) -> 1.898175146 | S78: =SUM(S68:S77) -> 892.7812219 | T78: =SUM(T68:T77) -> 177.4698423 | U78: =SUM(U68:U77) -> 42.12279492 | V78: =SUM(V68:V77) -> 27.68015973 | W78: =SUM(W68:W77) -> 16.1321265 | X78: =SUM(X68:X77) -> 28.93413842 | Y78: =SUM(Y68:Y77) -> 22.03722882 | Z78: =SUM(Z68:Z77) -> 28.86887888 | AA78: =SUM(AA68:AA77) -> 27.12534762 | AB78: =SUM(AB68:AB77) -> 31.74802401 | AC78: 37.29155043 | AD78: 44.99715087 | AE78: 44.91841631 | AF78: 53.53738699 | AG78: 39.21586479 | AH78: =SUM(AH68:AH77) -> 38.98912437 | AI78: =SUM(AI68:AI77) -> 62.86951769 | AJ78: 75.25590856 | AK78: 63.57712321 | AL78: 52.442319 | AM78: 39.91393108
A79: =ROW() -> 79 | B79: Redundant & Disposed Asset | H79: Check | I79: =IF(ROUND(I78-Inputs!I693,6)=0,"OK","Wrong") -> OK | J79: =IF(ROUND(J78-Inputs!J693,6)=0,"OK","Wrong") -> OK | K79: =IF(ROUND(K78-Inputs!K693,6)=0,"OK","Wrong") -> OK | L79: =IF(ROUND(L78-Inputs!L693,6)=0,"OK","Wrong") -> OK | M79: =IF(ROUND(M78-Inputs!M693,6)=0,"OK","Wrong") -> OK | N79: =IF(ROUND(N78-Inputs!N693,6)=0,"OK","Wrong") -> OK | O79: =IF(ROUND(O78-Inputs!O693,6)=0,"OK","Wrong") -> OK | P79: =IF(ROUND(P78-Inputs!P693,6)=0,"OK","Wrong") -> OK | Q79: =IF(ROUND(Q78-Inputs!Q693,6)=0,"OK","Wrong") -> OK | R79: =IF(ROUND(R78-Inputs!R693,6)=0,"OK","Wrong") -> OK | S79: =IF(ROUND(S78-Inputs!S693,6)=0,"OK","Wrong") -> OK | T79: =IF(ROUND(T78-Inputs!T693,6)=0,"OK","Wrong") -> OK | U79: =IF(ROUND(U78-Inputs!U693,6)=0,"OK","Wrong") -> OK | V79: =IF(ROUND(V78-Inputs!V693,6)=0,"OK","Wrong") -> OK | W79: =IF(ROUND(W78-Inputs!W693,6)=0,"OK","Wrong") -> OK | X79: =IF(ROUND(X78-Inputs!X693,6)=0,"OK","Wrong") -> OK | Y79: =IF(ROUND(Y78-Inputs!Y693,6)=0,"OK","Wrong") -> OK | Z79: =IF(ROUND(Z78-Inputs!Z693,6)=0,"OK","Wrong") -> OK | AA79: =IF(ROUND(AA78-Inputs!AA693,6)=0,"OK","Wrong") -> OK | AB79: =IF(ROUND(AB78-Inputs!AB693,6)=0,"OK","Wrong") -> OK | AC79: =IF(ROUND(AC78-Inputs!AC693,6)=0,"OK","Wrong") -> OK | AD79: =IF(ROUND(AD78-Inputs!AD693,6)=0,"OK","Wrong") -> OK | AE79: =IF(ROUND(AE78-Inputs!AE693,6)=0,"OK","Wrong") -> OK | AF79: =IF(ROUND(AF78-Inputs!AF693,6)=0,"OK","Wrong") -> OK | AG79: =IF(ROUND(AG78-Inputs!AG693,6)=0,"OK","Wrong") -> OK | AH79: =IF(ROUND(AH78-Inputs!AH693,6)=0,"OK","Wrong") -> OK | AI79: =IF(ROUND(AI78-Inputs!AI693,6)=0,"OK","Wrong") -> OK | AJ79: =IF(ROUND(AJ78-Inputs!AJ693,6)=0,"OK","Wrong") -> OK | AK79: =IF(ROUND(AK78-Inputs!AK693,6)=0,"OK","Wrong") -> OK | AL79: =IF(ROUND(AL78-Inputs!AL693,6)=0,"OK","Wrong") -> OK | AM79: =IF(ROUND(AM78-Inputs!AM693,6)=0,"OK","Wrong") -> OK
A80: =ROW() -> 80 | C80: Pipeline | I80: =I166+I241 -> 0 | J80: =J166+J241 -> 0 | K80: 0 | L80: 0 | M80: 0 | N80: 0 | O80: 0 | P80: 0 | Q80: 0 | R80: 0 | S80: 0 | T80: 0 | U80: 0 | V80: 0 | W80: 0 | X80: 0 | Y80: 0 | Z80: 0 | AA80: 0 | AB80: 0 | AC80: =AC166+AC241 -> 0 | AD80: 0 | AE80: 0 | AF80: 0 | AG80: 0 | AH80: =AH166+AH241 -> 0 | AI80: =AI166+AI241 -> 0 | AJ80: 0 | AK80: 0 | AL80: 0 | AM80: 0
A81: =ROW() -> 81 | C81: Compression | I81: =I167+I242 -> 0 | J81: 0 | K81: 0 | L81: 0 | M81: 0 | N81: -6.440871154 | O81: 0 | P81: 0 | Q81: 0 | R81: 0 | S81: 0 | T81: -0.1073823607 | U81: 0 | V81: -0.01924177212 | W81: -0.02336504982 | X81: -0.3575006055 | Y81: 0 | Z81: 0 | AA81: 0 | AB81: 0 | AC81: =AC167+AC242 -> 0 | AD81: 0 | AE81: 0 | AF81: 0 | AG81: 0 | AH81: =AH167+AH242 -> 0 | AI81: =AI167+AI242 -> 0 | AJ81: 0 | AK81: 0 | AL81: 0 | AM81: 0
A82: =ROW() -> 82 | C82: Metering | I82: =I168+I243 -> 0 | J82: 0 | K82: 0 | L82: 0 | M82: 0 | N82: 0 | O82: 0 | P82: 0 | Q82: 0 | R82: 0 | S82: 0 | T82: 0 | U82: 0 | V82: 0 | W82: -2.209649813 | X82: 0 | Y82: 0 | Z82: 0 | AA82: 0 | AB82: 0 | AC82: =AC168+AC243 -> 0 | AD82: 0 | AE82: 0 | AF82: 0 | AG82: 0 | AH82: =AH168+AH243 -> 0 | AI82: =AI168+AI243 -> 0 | AJ82: 0 | AK82: 0 | AL82: 0 | AM82: 0
A83: =ROW() -> 83 | C83: Other Depreciable | I83: =I169+I244 -> 0 | J83: 0 | K83: 0 | L83: 0 | M83: 0 | N83: -0.1154983095 | O83: 0 | P83: -0.05052640486 | Q83: -0.03817869781 | R83: -0.1219073972 | S83: -0.01597622491 | T83: -6.078201588 | U83: -0.5082831565 | V83: -0.9933129855 | W83: -0.6235862743 | X83: -0.6468479325 | Y83: 0 | Z83: 0 | AA83: 0 | AB83: 0 | AC83: =AC169+AC244 -> 0 | AD83: 0 | AE83: 0 | AF83: 0 | AG83: 0 | AH83: =AH169+AH244 -> 0 | AI83: =AI169+AI244 -> 0 | AJ83: 0 | AK83: 0 | AL83: 0 | AM83: 0
A84: =ROW() -> 84 | C84: Computers and Motor Vehicles | I84: =I170+I245 -> 0 | J84: 0 | K84: 0 | L84: 0 | M84: 0 | N84: 0 | O84: 0 | P84: 0 | Q84: 0 | R84: 0 | S84: 0 | T84: 0 | U84: 0 | V84: 0 | W84: 0 | X84: 0 | Y84: 0 | Z84: 0 | AA84: 0 | AB84: 0 | AC84: =AC170+AC245 -> 0 | AD84: 0 | AE84: 0 | AF84: 0 | AG84: 0 | AH84: =AH170+AH245 -> 0 | AI84: =AI170+AI245 -> 0 | AJ84: 0 | AK84: 0 | AL84: 0 | AM84: 0
A85: =ROW() -> 85 | C85: Cathodic/Corrosion Protection | I85: =I171+I246 -> 0 | J85: 0 | K85: 0 | L85: 0 | M85: 0 | N85: 0 | O85: 0 | P85: 0 | Q85: 0 | R85: 0 | S85: 0 | T85: 0 | U85: 0 | V85: 0 | W85: 0 | X85: 0 | Y85: 0 | Z85: 0 | AA85: 0 | AB85: 0 | AC85: =AC171+AC246 -> 0 | AD85: 0 | AE85: 0 | AF85: 0 | AG85: 0 | AH85: =AH171+AH246 -> 0 | AI85: =AI171+AI246 -> 0 | AJ85: 0 | AK85: 0 | AL85: 0 | AM85: 0
A86: =ROW() -> 86 | C86: SCADA , ECI And Comms | I86: =I172+I247 -> 0 | J86: 0 | K86: 0 | L86: 0 | M86: 0 | N86: 0 | O86: 0 | P86: 0 | Q86: 0 | R86: 0 | S86: 0 | T86: 0 | U86: 0 | V86: 0 | W86: 0 | X86: 0 | Y86: 0 | Z86: 0 | AA86: 0 | AB86: 0 | AC86: =AC172+AC247 -> 0 | AD86: 0 | AE86: 0 | AF86: 0 | AG86: 0 | AH86: =AH172+AH247 -> 0 | AI86: =AI172+AI247 -> 0 | AJ86: 0 | AK86: 0 | AL86: 0 | AM86: 0
A87: =ROW() -> 87 | C87: Building | I87: =I173+I248 -> 0 | J87: 0 | K87: 0 | L87: 0 | M87: 0 | N87: 0 | O87: 0 | P87: 0 | Q87: 0 | R87: 0 | S87: 0 | T87: 0 | U87: 0 | V87: 0 | W87: 0 | X87: 0 | Y87: 0 | Z87: 0 | AA87: 0 | AB87: 0 | AC87: =AC173+AC248 -> 0 | AD87: 0 | AE87: 0 | AF87: 0 | AG87: 0 | AH87: =AH173+AH248 -> 0 | AI87: =AI173+AI248 -> 0 | AJ87: 0 | AK87: 0 | AL87: 0 | AM87: 0
A88: =ROW() -> 88 | C88: Non-Depreciable | I88: =I174+I249 -> 0 | J88: 0 | K88: 0 | L88: 0 | M88: 0 | N88: -3.490476337 | O88: 0 | P88: 0 | Q88: 0 | R88: 0 | S88: 0 | T88: 0 | U88: 0 | V88: 0 | W88: 0 | X88: 0 | Y88: 0 | Z88: 0 | AA88: 0 | AB88: 0 | AC88: =AC174+AC249 -> 0 | AD88: 0 | AE88: 0 | AF88: 0 | AG88: 0 | AH88: =AH174+AH249 -> 0 | AI88: =AI174+AI249 -> 0 | AJ88: 0 | AK88: 0 | AL88: 0 | AM88: 0
A89: =ROW() -> 89 | C89: Cost of Raising Equity | I89: =I175+I250 -> 0 | J89: 0 | K89: 0 | L89: 0 | M89: 0 | N89: 0 | O89: 0 | P89: 0 | Q89: 0 | R89: 0 | S89: 0 | T89: 0 | U89: 0 | V89: 0 | W89: 0 | X89: 0 | Y89: 0 | Z89: 0 | AA89: 0 | AB89: 0 | AC89: =AC175+AC250 -> 0 | AD89: 0 | AE89: 0 | AF89: 0 | AG89: 0 | AH89: =AH175+AH250 -> 0 | AI89: =AI175+AI250 -> 0 | AJ89: 0 | AK89: 0 | AL89: 0 | AM89: 0
A90: =ROW() -> 90 | C90: Total | I90: =SUM(I80:I89) -> 0 | J90: =SUM(J80:J89) -> 0 | K90: =SUM(K80:K89) -> 0 | L90: =SUM(L80:L89) -> 0 | M90: =SUM(M80:M89) -> 0 | N90: =SUM(N80:N89) -> -10.0468458 | O90: =SUM(O80:O89) -> 0 | P90: =SUM(P80:P89) -> -0.05052640486 | Q90: =SUM(Q80:Q89) -> -0.03817869781 | R90: =SUM(R80:R89) -> -0.1219073972 | S90: =SUM(S80:S89) -> -0.01597622491 | T90: =SUM(T80:T89) -> -6.185583949 | U90: =SUM(U80:U89) -> -0.5082831565 | V90: =SUM(V80:V89) -> -1.012554758 | W90: =SUM(W80:W89) -> -2.856601137 | X90: =SUM(X80:X89) -> -1.004348538 | Y90: =SUM(Y80:Y89) -> 0 | Z90: =SUM(Z80:Z89) -> 0 | AA90: =SUM(AA80:AA89) -> 0 | AB90: =SUM(AB80:AB89) -> 0 | AC90: 0 | AD90: 0 | AE90: 0 | AF90: 0 | AG90: 0 | AH90: =SUM(AH80:AH89) -> 0 | AI90: =SUM(AI80:AI89) -> 0 | AJ90: 0 | AK90: 0 | AL90: 0 | AM90: 0
A91: =ROW() -> 91 | B91: Depreciation | H91: Check | I91: =IF(ROUND(I90-I176-I251,6)=0,"OK","Wrong") -> OK | J91: =IF(ROUND(J90-J176-J251,6)=0,"OK","Wrong") -> OK | K91: OK | L91: OK | M91: OK | N91: OK | O91: OK | P91: OK | Q91: OK | R91: OK | S91: OK | T91: OK | U91: OK | V91: OK | W91: OK | X91: OK | Y91: OK | Z91: OK | AA91: OK | AB91: OK | AC91: =IF(ROUND(AC90-AC176-AC251,6)=0,"OK","Wrong") -> OK | AD91: OK | AE91: OK | AF91: OK | AG91: OK | AH91: =IF(ROUND(AH90-AH176-AH251,6)=0,"OK","Wrong") -> OK | AI91: OK | AJ91: OK | AK91: OK | AL91: OK | AM91: OK
A92: =ROW() -> 92 | C92: Pipeline | I92: =I178+I253 -> -46.87949053 | J92: -46.89191552 | K92: -46.90000621 | L92: -46.90457168 | M92: -46.9149162 | N92: -46.93504067 | O92: -47.04517954 | P92: -47.18575783 | Q92: -53.40854349 | R92: -60.11422843 | S92: -62.15985513 | T92: -73.60754759 | U92: -74.04814767 | V92: -74.12749108 | W92: -74.21312012 | X92: -74.22373359 | Y92: -75.00139529 | Z92: -75.06905232 | AA92: -75.11488733 | AB92: -75.14505399 | AC92: =AC178+AC253 -> -75.24400927 | AD92: -84.81763912 | AE92: -84.81763912 | AF92: -84.81763912 | AG92: -84.81763912 | AH92: =AH178+AH253 -> -84.81763912 | AI92: =AI178+AI253 -> -84.91422266 | AJ92: =AJ178+AJ253 -> -84.91941567 | AK92: -84.92477064 | AL92: -84.93029715 | AM92: -84.93907469
A93: =ROW() -> 93 | C93: Compression | I93: =I179+I254 -> -22.85835648 | J93: -22.923082 | K93: -23.21636953 | L93: -23.51639931 | M93: -23.63978234 | N93: -21.48612877 | O93: -21.5984732 | P93: -25.52702351 | Q93: -32.22686737 | R93: -34.53483684 | S93: -34.55826833 | T93: -44.67119279 | U93: -46.51195623 | V93: -46.82763237 | W93: -46.92630671 | X93: -47.06056537 | Y93: -46.98110594 | Z93: -47.6515468 | AA93: -48.31038477 | AB93: -40.53524776 | AC93: =AC179+AC254 -> -28.51478471 | AD93: -24.37965964 | AE93: -24.5809747 | AF93: -24.67729056 | AG93: -24.79603805 | AH93: =AH179+AH254 -> -24.90672657 | AI93: =AI179+AI254 -> -24.86822514 | AJ93: -25.12931606 | AK93: -25.35173943 | AL93: -25.62338804 | AM93: -25.79914144
A94: =ROW() -> 94 | C94: Metering | I94: =I180+I255 -> -0.9235521932 | J94: -0.9235521932 | K94: -0.9255748659 | L94: -0.9275975385 | M94: -0.9296202112 | N94: -1.020727306 | O94: -1.059385361 | P94: -1.101558848 | Q94: -1.106830667 | R94: -1.106830667 | S94: -1.106830667 | T94: -1.165372923 | U94: -1.181225693 | V94: -1.195227639 | W94: -1.271830089 | X94: -1.348432538 | Y94: 0.3195623489 | Z94: -1.453681462 | AA94: -1.522830712 | AB94: -1.544738488 | AC94: =AC180+AC255 -> -1.561458517 | AD94: -17.64302612 | AE94: -1.855532852 | AF94: -1.903487584 | AG94: -1.959607971 | AH94: =AH180+AH255 -> -2.007627256 | AI94: =AI180+AI255 -> -2.365634948 | AJ94: -2.660343033 | AK94: -2.954088335 | AL94: -3.149444998 | AM94: -3.288042392
A95: =ROW() -> 95 | C95: Other Depreciable | I95: =I181+I256 -> -5.720891026 | J95: -6.062183324 | K95: -6.401655217 | L95: -6.787311469 | M95: -7.105545299 | N95: -6.280743369 | O95: -6.509763059 | P95: -6.69134335 | Q95: -6.782135785 | R95: -7.094938252 | S95: -7.466913109 | T95: -7.202004308 | U95: -10.64191109 | V95: -10.72963666 | W95: -10.81034597 | X95: -11.0264886 | Y95: -4.279026415 | Z95: -4.886296929 | AA95: -4.999953902 | AB95: -5.111480713 | AC95: =AC181+AC256 -> -5.187079131 | AD95: -9.940091277 | AE95: -4.764181826 | AF95: -4.769401793 | AG95: -4.217774036 | AH95: =AH181+AH256 -> -3.832484941 | AI95: =AI181+AI256 -> -28.06342037 | AJ95: -3.150841803 | AK95: -2.716413461 | AL95: -2.610531349 | AM95: -2.417226099
A96: =ROW() -> 96 | C96: Computers and Motor Vehicles | I96: =I182+I257 -> 0 | J96: 0 | K96: 0 | L96: 0 | M96: 0 | N96: 0 | O96: 0 | P96: 0 | Q96: 0 | R96: 0 | S96: 0 | T96: 0 | U96: 0 | V96: 0 | W96: 0 | X96: 0 | Y96: 0 | Z96: 0 | AA96: 0 | AB96: 0 | AC96: =AC182+AC257 -> 0 | AD96: -20.47798852 | AE96: -6.749322568 | AF96: -6.83824716 | AG96: -6.684751654 | AH96: =AH182+AH257 -> -7.213277791 | AI96: =AI182+AI257 -> -21.14206934 | AJ96: -15.05858392 | AK96: -14.92647839 | AL96: -10.84222548 | AM96: -11.9787829
A97: =ROW() -> 97 | C97: Cathodic/Corrosion Protection | I97: =I183+I258 -> 0 | J97: 0 | K97: 0 | L97: 0 | M97: 0 | N97: 0 | O97: 0 | P97: 0 | Q97: 0 | R97: 0 | S97: 0 | T97: 0 | U97: 0 | V97: 0 | W97: 0 | X97: 0 | Y97: 0 | Z97: 0 | AA97: 0 | AB97: 0 | AC97: =AC183+AC258 -> 0 | AD97: -5.138525354 | AE97: -5.412548173 | AF97: -5.64206968 | AG97: -5.881242741 | AH97: =AH183+AH258 -> -6.112386416 | AI97: =AI183+AI258 -> -16.06415591 | AJ97: -4.491269146 | AK97: -4.329024173 | AL97: -4.435897161 | AM97: -4.646217419
A98: =ROW() -> 98 | C98: SCADA , ECI And Comms | I98: =I184+I259 -> 0 | J98: 0 | K98: 0 | L98: 0 | M98: 0 | N98: 0 | O98: 0 | P98: 0 | Q98: 0 | R98: 0 | S98: 0 | T98: 0 | U98: 0 | V98: 0 | W98: 0 | X98: 0 | Y98: 0 | Z98: 0 | AA98: 0 | AB98: 0 | AC98: =AC184+AC259 -> 0 | AD98: -52.1373089 | AE98: -8.044289519 | AF98: -9.635420743 | AG98: -10.19492616 | AH98: =AH184+AH259 -> -11.01226558 | AI98: =AI184+AI259 -> -49.54487243 | AJ98: -11.52532023 | AK98: -12.38527049 | AL98: -13.64499625 | AM98: -14.58998083
A99: =ROW() -> 99 | C99: Building | I99: 0 | J99: 0 | K99: 0 | L99: 0 | M99: 0 | N99: 0 | O99: 0 | P99: 0 | Q99: 0 | R99: 0 | S99: 0 | T99: 0 | U99: -0.2237004997 | V99: -0.2557113316 | W99: -0.2663671587 | X99: -0.2666156239 | Y99: -0.2638859781 | Z99: -0.2647169124 | AA99: -0.2647169124 | AB99: -0.2647169124 | AC99: =AC185+AC260 -> -0.2647169124 | AD99: -0.1382152478 | AE99: -0.2120179103 | AF99: -0.2951360591 | AG99: -0.3166082071 | AH99: =AH185+AH260 -> -0.4782887922 | AI99: =AI185+AI260 -> -0.09142599722 | AJ99: -0.297430514 | AK99: -0.7649902678 | AL99: -1.120587764 | AM99: -1.2522509
A100: =ROW() -> 100 | C100: Non-Depreciable | I100: =I186+I261 -> 0 | J100: 0 | K100: 0 | L100: 0 | M100: 0 | N100: 0 | O100: 0 | P100: 0 | Q100: 0 | R100: 0 | S100: 0 | T100: 0 | U100: 0 | V100: 0 | W100: 0 | X100: 0 | Y100: 0.08004603632 | Z100: 0 | AA100: 0 | AB100: 0 | AC100: =AC186+AC261 -> 0 | AD100: 0 | AE100: 0 | AF100: 0 | AG100: 0 | AH100: =AH186+AH261 -> 0 | AI100: =AI186+AI261 -> 0 | AJ100: 0 | AK100: 0 | AL100: 0 | AM100: 0
A101: =ROW() -> 101 | C101: Cost of Raising Equity | I101: =I187+I262 -> 0 | J101: 0 | K101: 0 | L101: 0 | M101: 0 | N101: 0 | O101: 0 | P101: 0 | Q101: 0 | R101: 0 | S101: 0 | T101: 0 | U101: 0 | V101: 0 | W101: 0 | X101: 0 | Y101: 0 | Z101: -5.88830085e-16 | AA101: -5.88830085e-16 | AB101: -5.88830085e-16 | AC101: =AC187+AC262 -> -5.88830085e-16 | AD101: 2.35532034e-15 | AE101: -0.06195859471 | AF101: -0.1087270071 | AG101: -0.1511554231 | AH101: =AH187+AH262 -> -0.1982378225 | AI101: =AI187+AI262 -> -0.2414940675 | AJ101: -0.2878322325 | AK101: -0.3240988403 | AL101: -0.3573503417 | AM101: -0.3795933277
A102: =ROW() -> 102 | C102: Total | I102: =SUM(I92:I101) -> -76.38229023 | J102: =SUM(J92:J101) -> -76.80073304 | K102: =SUM(K92:K101) -> -77.44360583 | L102: =SUM(L92:L101) -> -78.13587999 | M102: =SUM(M92:M101) -> -78.58986405 | N102: =SUM(N92:N101) -> -75.72264012 | O102: =SUM(O92:O101) -> -76.21280116 | P102: =SUM(P92:P101) -> -80.50568354 | Q102: =SUM(Q92:Q101) -> -93.52437731 | R102: =SUM(R92:R101) -> -102.8508342 | S102: =SUM(S92:S101) -> -105.2918672 | T102: =SUM(T92:T101) -> -126.6461176 | U102: =SUM(U92:U101) -> -132.6069412 | V102: =SUM(V92:V101) -> -133.1356991 | W102: =SUM(W92:W101) -> -133.4879701 | X102: =SUM(X92:X101) -> -133.9258357 | Y102: =SUM(Y92:Y101) -> -126.1258052 | Z102: =SUM(Z92:Z101) -> -129.3252944 | AA102: =SUM(AA92:AA101) -> -130.2127736 | AB102: =SUM(AB92:AB101) -> -122.6012379 | AC102: -110.7720485 | AD102: -214.6724542 | AE102: -136.4984653 | AF102: -138.6874197 | AG102: -139.0197434 | AH102: =SUM(AH92:AH101) -> -140.5789343 | AI102: =SUM(AI92:AI101) -> -227.2955209 | AJ102: -147.5203526 | AK102: -148.676874 | AL102: -146.7147185 | AM102: -149.29031
A103: =ROW() -> 103 | B103: Closing Value | H103: Check | I103: =IF(ROUND(I102+Inputs!I133,6)=0,"OK","Wrong") -> OK | J103: =IF(ROUND(J102+Inputs!J133,6)=0,"OK","Wrong") -> OK | K103: =IF(ROUND(K102+Inputs!K133,6)=0,"OK","Wrong") -> OK | L103: =IF(ROUND(L102+Inputs!L133,6)=0,"OK","Wrong") -> OK | M103: =IF(ROUND(M102+Inputs!M133,6)=0,"OK","Wrong") -> OK | N103: =IF(ROUND(N102+Inputs!N133,6)=0,"OK","Wrong") -> OK | O103: =IF(ROUND(O102+Inputs!O133,6)=0,"OK","Wrong") -> OK | P103: =IF(ROUND(P102+Inputs!P133,6)=0,"OK","Wrong") -> OK | Q103: =IF(ROUND(Q102+Inputs!Q133,6)=0,"OK","Wrong") -> OK | R103: =IF(ROUND(R102+Inputs!R133,6)=0,"OK","Wrong") -> OK | S103: =IF(ROUND(S102+Inputs!S133,6)=0,"OK","Wrong") -> OK | T103: =IF(ROUND(T102+Inputs!T133,6)=0,"OK","Wrong") -> OK | U103: =IF(ROUND(U102+Inputs!U133,6)=0,"OK","Wrong") -> OK | V103: =IF(ROUND(V102+Inputs!V133,6)=0,"OK","Wrong") -> OK | W103: =IF(ROUND(W102+Inputs!W133,6)=0,"OK","Wrong") -> OK | X103: =IF(ROUND(X102+Inputs!X133,6)=0,"OK","Wrong") -> OK | Y103: =IF(ROUND(Y102-Y188-Y263,6)=0,"OK","Wrong") -> OK | Z103: OK | AA103: OK | AB103: OK | AC103: =IF(ROUND(AC102-AC188-AC263,6)=0,"OK","Wrong") -> OK | AD103: OK | AE103: OK | AF103: OK | AG103: OK | AH103: =IF(ROUND(AH102-AH188-AH263,6)=0,"OK","Wrong") -> OK | AI103: =IF(ROUND(AI102-AI188-AI263,6)=0,"OK","Wrong") -> OK | AJ103: OK | AK103: OK | AL103: OK | AM103: OK
A104: =ROW() -> 104 | C104: Pipeline | H104: =H190 -> 2554.932234 | I104: =I56+I68+I80+I92 -> 2510.705957 | J104: =J56+J68+J80+J92 -> 2463.869837 | K104: 2417.084882 | L104: 2370.180347 | M104: 2324.329844 | N104: 2289.784817 | O104: 2613.821053 | P104: 2568.432665 | Q104: 3261.3237 | R104: 3201.209472 | S104: =S56+S68+S80+S92-S116 -> 3864.796285 | T104: =T56+T68+T80+T92 -> 3855.711727 | U104: =U56+U68+U80+U92 -> 3801.659466 | V104: 3733.783047 | W104: 3660.333525 | X104: =X56+X68+X80+X92 -> 3589.449803 | Y104: =MAX(Y56+Y68+Y80+Y92,0) -> 3514.448408 | Z104: 3439.379355 | AA104: 3364.368779 | AB104: 3289.234397 | AC104: =AC56+AC68+AC80+AC92 -> 3214.268349 | AD104: 3129.45071 | AE104: 3047.094825 | AF104: 2963.366638 | AG104: 2878.570588 | AH104: =AH56+AH68+AH80+AH92 -> 2743.350569 | AI104: =AI56+AI68+AI80+AI92 -> 2658.623295 | AJ104: 2573.891303 | AK104: 2489.154434 | AL104: 2404.513795 | AM104: 2319.76358
A105: =ROW() -> 105 | C105: Compression | H105: =H191 -> 428.0049776 | I105: =I57+I69+I81+I93 -> 401.3307466 | J105: =J57+J69+J81+J93 -> 380.8677372 | K105: 357.8012834 | L105: 334.0830925 | M105: 310.7576646 | N105: 351.5282788 | O105: 578.0409141 | P105: 552.7266776 | Q105: 712.2789067 | R105: 677.7440699 | S105: 827.7254714 | T105: =T57+T69+T81+T93 -> 825.7447185 | U105: 790.5901357 | V105: 751.1425162 | W105: 708.1985239 | X105: =X57+X69+X81+X93 -> 666.545863 | Y105: 622.6257346 | Z105: 580.7258521 | AA105: 535.8993573 | AB105: 497.6639013 | AC105: =AC57+AC69+AC81+AC93 -> 472.0959993 | AD105: 450.8921854 | AE105: 430.4567711 | AF105: 410.9168956 | AG105: 387.2972037 | AH105: =AH57+AH69+AH81+AH93 -> 325.6426444 | AI105: =AI57+AI69+AI81+AI93 -> 308.6071467 | AJ105: 290.1505319 | AK105: 272.9482505 | AL105: 252.5974647 | AM105: 232.1209011
A106: =ROW() -> 106 | C106: Metering | H106: =H192 -> 35.09975371 | I106: =I58+I70+I82+I94 -> 35.26913992 | J106: =J58+J70+J82+J94 -> 35.34599819 | K106: 35.06454034 | L106: 34.08110247 | M106: 36.01376855 | N106: 34.99304125 | O106: 33.93365588 | P106: 32.83209704 | Q106: 31.72526637 | R106: 30.73125081 | S106: 36.91375412 | T106: =T58+T70+T82+T94 -> 36.23754906 | U106: 37.58865512 | V106: 37.66505987 | W106: 35.75379019 | X106: =X58+X70+X82+X94 -> 39.12177442 | Y106: 43.64491921 | Z106: 46.59828311 | AA106: 53.39555256 | AB106: 58.34396305 | AC106: =AC58+AC70+AC82+AC94 -> 66.74578939 | AD106: 53.79668545 | AE106: 54.8330253 | AF106: 56.48726818 | AG106: 57.48985074 | AH106: =AH58+AH70+AH82+AH94 -> 50.82514157 | AI106: =AI58+AI70+AI82+AI94 -> 57.3007492 | AJ106: 63.45276519 | AK106: 66.35937676 | AL106: 67.36785358 | AM106: 68.167088
A107: =ROW() -> 107 | C107: Other Depreciable | H107: =H193 -> 96.39701378 | I107: =I59+I71+I83+I95 -> 100.4183755 | J107: =J59+J71+J83+J95 -> 96.89726345 | K107: 91.84520176 | L107: 86.67593628 | M107: 81.11499774 | N107: 80.58652136 | O107: 75.34473744 | P107: 71.972954 | Q107: 73.67073413 | R107: 67.25993501 | S107: 78.13788647 | T107: =T59+T71+T83+T95 -> 130.2855257 | U107: 125.2094898 | V107: 124.5347463 | W107: 122.8814259 | X107: =X59+X71+X83+X95 -> 126.178536 | Y107: 124.751836 | Z107: 125.8583485 | AA107: 122.994112 | AB107: 121.098893 | AC107: =AC59+AC71+AC83+AC95 -> 121.1267003 | AD107: 114.0469578 | AE107: 111.9685248 | AF107: 107.6932543 | AG107: 105.2663894 | AH107: =AH59+AH71+AH83+AH95 -> 40.25967357 | AI107: =AI59+AI71+AI83+AI95 -> 13.54911488 | AJ107: 12.04679909 | AK107: 10.40728191 | AL107: 9.079959735 | AM107: 7.745119754
A108: =ROW() -> 108 | C108: Computers and Motor Vehicles | I108: =I60+I72+I84+I96 -> 0 | J108: 0 | K108: 0 | L108: 0 | M108: 0 | N108: 0 | O108: 0 | P108: 0 | Q108: 0 | R108: 0 | S108: 0 | T108: =T60+T72+T84+T96 -> 0 | U108: 0 | V108: 0 | W108: 0 | X108: =X60+X72+X84+X96 -> 0 | Y108: 4.197469251 | Z108: =Z60+Z72+Z84+Z96 -> 7.262035404 | AA108: 10.89232743 | AB108: 13.92205914 | AC108: =AC60+AC72+AC84+AC96 -> 19.96934058 | AD108: 16.80110602 | AE108: 17.18853251 | AF108: 28.9277653 | AG108: 28.68398395 | AH108: =AH60+AH72+AH84+AH96 -> 49.5906451 | AI108: =AI60+AI72+AI84+AI96 -> 46.27692852 | AJ108: 43.13590593 | AK108: 36.84208659 | AL108: 38.31577048 | AM108: 34.64848595
A109: =ROW() -> 109 | C109: Cathodic/Corrosion Protection | I109: =I61+I73+I85+I97 -> 0 | J109: 0 | K109: 0 | L109: 0 | M109: 0 | N109: 0 | O109: 0 | P109: 0 | Q109: 0 | R109: 0 | S109: 0 | T109: =T61+T73+T85+T97 -> 0 | U109: 0 | V109: 0 | W109: 0 | X109: =X61+X73+X85+X97 -> 0 | Y109: 1.061292456 | Z109: =Z61+Z73+Z85+Z97 -> 2.955724629 | AA109: 8.884036802 | AB109: 17.73659096 | AC109: =AC61+AC73+AC85+AC97 -> 22.86905827 | AD109: 22.30798868 | AE109: 22.8231215 | AF109: 24.16539199 | AG109: 22.16039587 | AH109: =AH61+AH73+AH85+AH97 -> 66.19404641 | AI109: =AI61+AI73+AI85+AI97 -> 55.59070763 | AJ109: 55.99576227 | AK109: 56.16638657 | AL109: 56.12509597 | AM109: 55.78313519
A110: =ROW() -> 110 | C110: SCADA , ECI And Comms | I110: =I62+I74+I86+I98 -> 0 | J110: 0 | K110: 0 | L110: 0 | M110: 0 | N110: 0 | O110: 0 | P110: 0 | Q110: 0 | R110: 0 | S110: 0 | T110: =T62+T74+T86+T98 -> 0 | U110: 0 | V110: 0 | W110: 0 | X110: =X62+X74+X86+X98 -> 0 | Y110: 6.63665266 | Z110: =Z62+Z74+Z86+Z98 -> 14.39501421 | AA110: 17.91773921 | AB110: 25.76360242 | AC110: =AC62+AC74+AC86+AC98 -> 33.47238888 | AD110: -9.224242068 | AE110: -0.5431394004 | AF110: 6.033106231 | AG110: 15.9550304 | AH110: =AH62+AH74+AH86+AH98 -> 112.5974438 | AI110: =AI62+AI74+AI86+AI98 -> 81.2421696 | AJ110: 86.07471348 | AK110: 89.80942566 | AL110: 93.46013843 | AM110: 92.12482549
A111: =ROW() -> 111 | C111: Building | I111: 0 | J111: 0 | K111: 0 | L111: 0 | M111: 0 | N111: 0 | O111: 0 | P111: 0 | Q111: 0 | R111: 0 | S111: 0 | T111: 4.254836709 | U111: 6.247580629 | V111: 7.45053352 | W111: 7.195409592 | X111: =X63+X75+X87+X99 -> 7.074479795 | Y111: 6.835521846 | Z111: 6.570804934 | AA111: 6.306088021 | AB111: 6.041371109 | AC111: =AC63+AC75+AC87+AC99 -> 5.776654197 | AD111: 6.211754979 | AE111: 7.157587672 | AF111: 6.727534132 | AG111: 7.443890815 | AH111: 11.36138902 | AI111: =AI63+AI75+AI87+AI99 -> 12.67709999 | AJ111: 35.75765716 | AK111: 52.77254172 | AL111: 58.23511073 | AM111: 59.60251854
A112: =ROW() -> 112 | C112: Non-Depreciable | H112: =H198 -> 20.70862691 | I112: =I64+I76+I88+I100 -> 20.70862691 | J112: =J64+J76+J88+J100 -> 20.70862691 | K112: 20.70862691 | L112: 20.70862691 | M112: 20.70862691 | N112: 17.21815058 | O112: 17.02469298 | P112: 19.83797681 | Q112: 21.97832556 | R112: 22.95763906 | S112: =S64+S76+S88+S100-S124 -> 24.1119628 | T112: =T64+T76+T88+T100 -> 24.08914372 | U112: 24.03574408 | V112: 24.28707448 | W112: 24.28785786 | X112: =X64+X76+X88+X100 -> 24.28403053 | Y112: =MAX(Y64+Y76+Y88+Y100,0) -> 24.36407657 | Z112: 24.36407657 | AA112: 24.36407657 | AB112: 24.36407657 | AC112: =AC64+AC76+AC88+AC100 -> 24.36407657 | AD112: 24.36407657 | AE112: 24.36407657 | AF112: 24.36407657 | AG112: 24.36407657 | AH112: =AH64+AH76+AH88+AH100 -> 24.36407657 | AI112: =AI64+AI76+AI88+AI100 -> 24.36407657 | AJ112: 24.36407657 | AK112: 24.36407657 | AL112: 24.36407657 | AM112: 24.36407657
A113: =ROW() -> 113 | C113: Cost of Raising Equity | H113: 0 | I113: =I65+I77+I89+I101 -> 0 | J113: =J65+J77+J89+J101 -> 0 | K113: 0 | L113: 0 | M113: 0 | N113: 0 | O113: 0 | P113: 0 | Q113: 0 | R113: 0 | S113: =S65+S77+S89+S101-S125 -> 0 | T113: =T65+T77+T89+T101 -> 0 | U113: 0 | V113: 0 | W113: 0 | X113: =X65+X77+X89+X101 -> 0 | Y113: =MAX(Y65+Y77+Y89+Y101,0) -> 0 | Z113: -5.88830085e-16 | AA113: -1.17766017e-15 | AB113: -1.766490255e-15 | AC113: =AC65+AC77+AC89+AC101 -> -2.35532034e-15 | AD113: 2.365830498 | AE113: 4.089679616 | AF113: 5.601041654 | AG113: 7.247683245 | AH113: =AH65+AH77+AH89+AH101 -> 8.703653788 | AI113: =AI65+AI77+AI89+AI101 -> 10.23199248 | AJ113: 11.32932149 | AK113: 12.27522538 | AL113: 12.76742023 | AM113: 13.13057643
A114: =ROW() -> 114 | C114: Total | H114: =SUM(H104:H113) -> 3135.142606 | I114: =SUM(I104:I113) -> 3068.432846 | J114: 2997.689463 | K114: 2922.504534 | L114: 2845.729105 | M114: 2772.924902 | N114: 2774.110809 | O114: 3318.165053 | P114: 3245.80237 | Q114: 4100.976933 | R114: 3999.902366 | S114: 4831.68536 | T114: 4876.323501 | U114: 4785.331071 | V114: 4678.862977 | W114: 4558.650533 | X114: 4452.654487 | Y114: 4348.56591 | Z114: 4248.109495 | AA114: 4145.022069 | AB114: 4054.168855 | AC114: =SUM(AC104:AC113) -> 3980.688357 | AD114: 3811.013053 | AE114: 3719.433005 | AF114: 3634.282972 | AG114: 3534.479093 | AH114: =SUM(AH104:AH113) -> 3432.889283 | AI114: =SUM(AI104:AI113) -> 3268.46328 | AJ114: 3196.198836 | AK114: 3111.099085 | AL114: 3016.826686 | AM114: 2907.450307
A115: =ROW() -> 115 | B115: Over Depreciation | G115: Check | H115: =IF(ROUND(H114-Inputs!H109,6)=0,"OK","Wrong") -> OK | I115: =IF(ROUND(I114-Inputs!I109,6)=0,"OK","Wrong") -> OK | J115: =IF(ROUND(J114-Inputs!J109,6)=0,"OK","Wrong") -> OK | K115: =IF(ROUND(K114-Inputs!K109,6)=0,"OK","Wrong") -> OK | L115: =IF(ROUND(L114-Inputs!L109,6)=0,"OK","Wrong") -> OK | M115: =IF(ROUND(M114-Inputs!M109,6)=0,"OK","Wrong") -> OK | N115: =IF(ROUND(N114-N200-N275,6)=0,"OK","Wrong") -> OK | O115: OK | P115: OK | Q115: OK | R115: OK | S115: OK | T115: OK | U115: OK | V115: OK | W115: OK | X115: OK | Y115: OK | Z115: OK | AA115: OK | AB115: OK | AC115: =IF(ROUND(AC114-AC200-AC275,6)=0,"OK","Wrong") -> OK | AD115: OK | AE115: OK | AF115: OK | AG115: OK | AH115: =IF(ROUND(AH114-AH200-AH275,6)=0,"OK","Wrong") -> OK | AI115: =IF(ROUND(AI114-AI200-AI275,6)=0,"OK","Wrong") -> OK | AJ115: OK | AK115: OK | AL115: OK | AM115: OK
A116: =ROW() -> 116 | C116: Pipeline | S116: =S202+S277 -> -18.92692466 | Y116: =Y202+Y277 -> 0
A117: =ROW() -> 117 | C117: Compression | S117: -24.7602711 | Y117: 0
A118: =ROW() -> 118 | C118: Metering | S118: -0.4289618433 | Y118: 0
A119: =ROW() -> 119 | C119: Other Depreciable | S119: 0 | Y119: 0
A120: =ROW() -> 120 | C120: Computers and Motor Vehicles | S120: 0 | Y120: 0
A121: =ROW() -> 121 | C121: Cathodic/Corrosion Protection | S121: 0 | Y121: 0
A122: =ROW() -> 122 | C122: SCADA , ECI And Comms | S122: 0 | Y122: 0
A123: =ROW() -> 123 | C123: Building | S123: 0 | Y123: 0
A124: =ROW() -> 124 | C124: Non-Depreciable | S124: =S210+S285 -> -0.1934575959 | Y124: =Y210+Y285 -> 0
A125: =ROW() -> 125 | C125: Cost of Raising Equity | S125: =S211+S286 -> 0 | Y125: =Y211+Y286 -> 0
A126: =ROW() -> 126 | C126: Total | S126: =SUM(S116:S125) -> -44.30961521 | Y126: =SUM(Y116:Y125) -> 0
A127: =ROW() -> 127
A128: =ROW() -> 128 | B128: Economic end date | AD128: =Inputs!$D$81 -> 2063 | AE128: =AD128 -> 2063 | AF128: =AE128 -> 2063 | AG128: =AF128 -> 2063 | AH128: =AG128 -> 2063 | AI128: =AH128 -> 2063 | AJ128: =AI128 -> 2063 | AK128: =AJ128 -> 2063 | AL128: =AK128 -> 2063 | AM128: =AL128 -> 2063
A129: ="BEP Asset Account [m$ "&TEXT(Inputs!$E$28,"dd/mm/yyyy")&"]" -> BEP Asset Account [m$ 31/12/2024]
A130: BEP Lease (Capex)
A131: =ROW() -> 131 | B131: BEP Asset Account | AD131: =IF(ProposedApproach!AD$128="","",ProposedApproach!AD$128-AD$6) -> 42 | AE131: =IF(AE128="","",AD131-1) -> 41 | AF131: =IF(AF128="","",AE131-1) -> 40 | AG131: 39 | AH131: 38 | AI131: 37 | AJ131: 36 | AK131: 35 | AL131: 34 | AM131: 33
A132: =ROW() -> 132 | C132: Life | U132: 57 | V132: =U132-1 -> 56 | W132: 55 | X132: 54 | Y132: 53 | Z132: 52 | AA132: 51 | AB132: 50 | AC132: =AB132-1 -> 49 | AD132: =IF(AD$131="",AC132-1,MIN(AC132-1,AD$131)) -> 42 | AE132: =AD132-1 -> 41 | AF132: =AE132-1 -> 40 | AG132: =AF132-1 -> 39 | AH132: 38 | AI132: =AH132-1 -> 37 | AJ132: =AI132-1 -> 36 | AK132: =AJ132-1 -> 35 | AL132: =AK132-1 -> 34 | AM132: =AL132-1 -> 33
A133: =ROW() -> 133 | C133: Opening Value (Starting 01/12/2010) | T133: =S137 -> 0 | U133: =T137 -> 27.20473365 | V133: =U137 -> 26.72745762 | W133: =V137 -> 26.25018159 | X133: =W137 -> 25.77290556 | Y133: =X137 -> 25.29562953 | Z133: 24.8183535 | AA133: 24.34107748 | AB133: 23.86380145 | AC133: =AB137 -> 23.38652542 | AD133: =AC137 -> 22.90924939 | AE133: =AD137 -> 22.36379107 | AF133: =AE137 -> 21.81833275 | AG133: =AF137 -> 21.27287443 | AH133: =PrincipledApproach!AH133 -> 20.72741611 | AI133: =AH137 -> 20.18195779 | AJ133: =AI137 -> 19.63649948 | AK133: =AJ137 -> 19.09104116 | AL133: =AK137 -> 18.54558284 | AM133: =AL137 -> 18.00012452
A134: =ROW() -> 134 | C134: Capex | T134: =Inputs!$T$452 -> 27.20473365
A135: =ROW() -> 135 | C135: Redundant & Disposed Asset | U135: =Inputs!U460 -> 0 | V135: =Inputs!V460 -> 0 | W135: =Inputs!W460 -> 0 | X135: =Inputs!X460 -> 0 | Y135: =Inputs!Y460 -> 0 | Z135: =Inputs!Z460 -> 0 | AA135: =Inputs!AA460 -> 0 | AB135: =Inputs!AB460 -> 0 | AC135: =Inputs!AC460 -> 0 | AD135: =Inputs!AD460 -> 0 | AE135: =Inputs!AE460 -> 0 | AF135: =Inputs!AF460 -> 0 | AG135: =Inputs!AG460 -> 0 | AH135: =PrincipledApproach!AH135 -> 0 | AI135: =Inputs!AI460 -> 0 | AJ135: =Inputs!AJ460 -> 0 | AK135: =Inputs!AK460 -> 0 | AL135: =Inputs!AL460 -> 0 | AM135: =Inputs!AM460 -> 0
A136: =ROW() -> 136 | C136: Depreciation | T136: =Inputs!T456 -> 0 | U136: =Inputs!U456 -> -0.4772760289 | V136: =Inputs!V456 -> -0.4772760289 | W136: =Inputs!W456 -> -0.4772760289 | X136: =Inputs!X456 -> -0.4772760289 | Y136: =-Y133/Y132 -> -0.4772760289 | Z136: -0.4772760289 | AA136: -0.4772760289 | AB136: -0.4772760289 | AC136: =-AC133/AC132 -> -0.4772760289 | AD136: -0.5454583188 | AE136: -0.5454583188 | AF136: -0.5454583188 | AG136: -0.5454583188 | AH136: =PrincipledApproach!AH136 -> -0.5454583188 | AI136: =-AI133/AI132 -> -0.5454583188 | AJ136: -0.5454583188 | AK136: -0.5454583188 | AL136: -0.5454583188 | AM136: -0.5454583188
A137: =ROW() -> 137 | C137: Closing Value | T137: =SUM(T133:T136) -> 27.20473365 | U137: =SUM(U133:U136) -> 26.72745762 | V137: =SUM(V133:V136) -> 26.25018159 | W137: =SUM(W133:W136) -> 25.77290556 | X137: =SUM(X133:X136) -> 25.29562953 | Y137: =SUM(Y133:Y136) -> 24.8183535 | Z137: 24.34107748 | AA137: 23.86380145 | AB137: 23.38652542 | AC137: =SUM(AC133:AC136) -> 22.90924939 | AD137: 22.36379107 | AE137: 21.81833275 | AF137: 21.27287443 | AG137: 20.72741611 | AH137: =SUM(AH133:AH136) -> 20.18195779 | AI137: 19.63649948 | AJ137: 19.09104116 | AK137: 18.54558284 | AL137: 18.00012452 | AM137: 17.4546662
A138: =ROW() -> 138
A139: ="Opening Capital Base (OCB) [$m "&TEXT(Inputs!$E$28,"dd/mm/yyyy")&"]" -> Opening Capital Base (OCB) [$m 31/12/2024]
A140: Opening Capital Base Accounts
A141: =ROW() -> 141 | B141: Life | I141: Life
A142: =ROW() -> 142 | C142: Pipeline | I142: =Inputs!D42 -> 54.5 | J142: =MAX(I142-1,0) -> 53.5 | K142: =MAX(J142-1,0) -> 52.5 | L142: 51.5 | M142: 50.5 | N142: 49.5 | O142: 48.5 | P142: 47.5 | Q142: 46.5 | R142: 45.5 | S142: 44.5 | T142: 43.5 | U142: 42.5 | V142: 41.5 | W142: 40.5 | X142: 39.5 | Y142: 38.5 | Z142: 37.5 | AA142: 36.5 | AB142: 35.5 | AC142: =MAX(AB142-1,0) -> 34.5 | AD142: =MAX(AC142-1,0) -> 33.5 | AE142: =MAX(AD142-1,0) -> 32.5 | AF142: =MAX(AE142-1,0) -> 31.5 | AG142: =MAX(AF142-1,0) -> 30.5 | AH142: =PrincipledApproach!AH142 -> 29.5 | AI142: =MAX(AH142-1,0) -> 28.5 | AJ142: =MAX(AI142-1,0) -> 27.5 | AK142: =MAX(AJ142-1,0) -> 26.5 | AL142: =MAX(AK142-1,0) -> 25.5 | AM142: =MAX(AL142-1,0) -> 24.5
A143: =ROW() -> 143 | C143: Compression | I143: =Inputs!D43 -> 19.60073141 | J143: =MAX(I143-1,0) -> 18.60073141 | K143: 17.60073141 | L143: 16.60073141 | M143: 15.60073141 | N143: 14.60073141 | O143: 13.60073141 | P143: 12.60073141 | Q143: 11.60073141 | R143: 10.60073141 | S143: 9.600731411 | T143: 8.600731411 | U143: 7.600731411 | V143: 6.600731411 | W143: 5.600731411 | X143: 4.600731411 | Y143: 3.600731411 | Z143: 2.600731411 | AA143: 1.600731411 | AB143: 0.6007314111 | AC143: 0 | AD143: 0 | AE143: 0 | AF143: 0 | AG143: 0 | AH143: =PrincipledApproach!AH143 -> 0
A144: =ROW() -> 144 | C144: Metering | I144: =Inputs!D44 -> 38.50225195 | J144: 37.50225195 | K144: 36.50225195 | L144: 35.50225195 | M144: 34.50225195 | N144: 33.50225195 | O144: 32.50225195 | P144: 31.50225195 | Q144: 30.50225195 | R144: 29.50225195 | S144: 28.50225195 | T144: 27.50225195 | U144: 26.50225195 | V144: 25.50225195 | W144: 24.50225195 | X144: 23.50225195 | Y144: 22.50225195 | Z144: 21.50225195 | AA144: 20.50225195 | AB144: 19.50225195 | AC144: 18.50225195 | AD144: 17.50225195 | AE144: 16.50225195 | AF144: 15.50225195 | AG144: 14.50225195 | AH144: =PrincipledApproach!AH144 -> 0 | AI144: =MAX(AH144-1,0) -> 0 | AJ144: =MAX(AI144-1,0) -> 0 | AK144: =MAX(AJ144-1,0) -> 0 | AL144: =MAX(AK144-1,0) -> 0 | AM144: =MAX(AL144-1,0) -> 0
A145: =ROW() -> 145 | C145: Other Depreciable | I145: =Inputs!D45 -> 16.85 | J145: 15.85 | K145: 14.85 | L145: 13.85 | M145: 12.85 | N145: 11.85 | O145: 10.85 | P145: 9.85 | Q145: 8.85 | R145: 7.85 | S145: 6.85 | T145: 5.85 | U145: 4.85 | V145: 3.85 | W145: 2.85 | X145: 1.85 | Y145: 0.85 | Z145: 0 | AA145: 0 | AB145: 0 | AC145: 0 | AD145: 0 | AE145: 0 | AF145: 0 | AG145: 0 | AH145: =PrincipledApproach!AH145 -> 0 | AI145: 0 | AJ145: 0 | AK145: 0 | AL145: 0 | AM145: 0
A146: =ROW() -> 146 | C146: Computers and Motor Vehicles | I146: =Inputs!D46 -> 0 | J146: =MAX(I146-1,0) -> 0 | K146: =MAX(J146-1,0) -> 0 | L146: =MAX(K146-1,0) -> 0 | M146: =MAX(L146-1,0) -> 0 | N146: =MAX(M146-1,0) -> 0 | O146: =MAX(N146-1,0) -> 0 | P146: =MAX(O146-1,0) -> 0 | Q146: =MAX(P146-1,0) -> 0 | R146: =MAX(Q146-1,0) -> 0 | S146: =MAX(R146-1,0) -> 0 | T146: =MAX(S146-1,0) -> 0 | U146: =MAX(T146-1,0) -> 0 | V146: =MAX(U146-1,0) -> 0 | W146: =MAX(V146-1,0) -> 0 | X146: =MAX(W146-1,0) -> 0 | Y146: =MAX(X146-1,0) -> 0 | Z146: =MAX(Y146-1,0) -> 0 | AA146: =MAX(Z146-1,0) -> 0 | AB146: =MAX(AA146-1,0) -> 0 | AC146: 0 | AD146: 0 | AE146: 0 | AF146: 0 | AG146: 0 | AH146: =PrincipledApproach!AH146 -> 0 | AI146: 0 | AJ146: 0 | AK146: 0 | AL146: 0 | AM146: 0
A147: =ROW() -> 147 | C147: Cathodic/Corrosion Protection | I147: =Inputs!D47 -> 0 | J147: 0 | K147: 0 | L147: 0 | M147: 0 | N147: 0 | O147: 0 | P147: 0 | Q147: 0 | R147: 0 | S147: 0 | T147: 0 | U147: 0 | V147: 0 | W147: 0 | X147: 0 | Y147: 0 | Z147: 0 | AA147: 0 | AB147: 0 | AC147: 0 | AD147: 0 | AE147: 0 | AF147: 0 | AG147: 0 | AH147: =PrincipledApproach!AH147 -> 0 | AI147: 0 | AJ147: 0 | AK147: 0 | AL147: 0 | AM147: 0
A148: =ROW() -> 148 | C148: SCADA , ECI And Comms | I148: =Inputs!D48 -> 0 | J148: 0 | K148: 0 | L148: 0 | M148: 0 | N148: 0 | O148: 0 | P148: 0 | Q148: 0 | R148: 0 | S148: 0 | T148: 0 | U148: 0 | V148: 0 | W148: 0 | X148: 0 | Y148: 0 | Z148: 0 | AA148: 0 | AB148: 0 | AC148: 0 | AD148: 0 | AE148: 0 | AF148: 0 | AG148: 0 | AH148: =PrincipledApproach!AH148 -> 0 | AI148: 0 | AJ148: 0 | AK148: 0 | AL148: 0 | AM148: 0
A149: =ROW() -> 149 | C149: Building | I149: =Inputs!D49 -> 0 | J149: =MAX(I149-1,0) -> 0 | K149: =MAX(J149-1,0) -> 0 | L149: =MAX(K149-1,0) -> 0 | M149: =MAX(L149-1,0) -> 0 | N149: =MAX(M149-1,0) -> 0 | O149: =MAX(N149-1,0) -> 0 | P149: =MAX(O149-1,0) -> 0 | Q149: =MAX(P149-1,0) -> 0 | R149: =MAX(Q149-1,0) -> 0 | S149: =MAX(R149-1,0) -> 0 | T149: =MAX(S149-1,0) -> 0 | U149: =MAX(T149-1,0) -> 0 | V149: =MAX(U149-1,0) -> 0 | W149: =MAX(V149-1,0) -> 0 | X149: =MAX(W149-1,0) -> 0 | Y149: =MAX(X149-1,0) -> 0 | Z149: =MAX(Y149-1,0) -> 0 | AA149: =MAX(Z149-1,0) -> 0 | AB149: =MAX(AA149-1,0) -> 0 | AC149: 0 | AD149: 0 | AE149: 0 | AF149: 0 | AG149: 0 | AH149: =PrincipledApproach!AH149 -> 0 | AI149: 0 | AJ149: 0 | AK149: 0 | AL149: 0 | AM149: 0
A150: =ROW() -> 150 | C150: Non-Depreciable | AH150: =PrincipledApproach!AH150 -> 0
A151: =ROW() -> 151 | C151: Cost of Raising Equity | AH151: =PrincipledApproach!AH151 -> 0
A152: =ROW() -> 152
A153: =ROW() -> 153 | B153: Opening Value
A154: =ROW() -> 154 | C154: Pipeline | I154: =H190 -> 2554.932234 | J154: 2508.052744 | K154: 2461.173253 | L154: 2414.293763 | M154: 2367.414272 | N154: 2320.534781 | O154: 2273.655291 | P154: 2226.7758 | Q154: 2179.89631 | R154: 2133.016819 | S154: 2086.137329 | T154: 2039.257838 | U154: 1992.378348 | V154: 1945.498857 | W154: 1898.619367 | X154: 1851.739876 | Y154: 1804.860386 | Z154: 1757.980895 | AA154: 1711.101405 | AB154: 1664.221914 | AC154: =AB190 -> 1617.342423 | AD154: =AC190 -> 1570.462933 | AE154: =AD190 -> 1523.583442 | AF154: =AE190 -> 1476.703952 | AG154: =AF190 -> 1429.824461 | AH154: =PrincipledApproach!AH154 -> 1382.944971 | AI154: =AH190 -> 1336.06548 | AJ154: =AI190 -> 1289.18599 | AK154: =AJ190 -> 1242.306499 | AL154: =AK190 -> 1195.427009 | AM154: =AL190 -> 1148.547518
A155: =ROW() -> 155 | C155: Compression | I155: =H191 -> 428.0049776 | J155: 405.1466211 | K155: 382.2882646 | L155: 359.4299081 | M155: 336.5715517 | N155: 313.7131952 | O155: 285.7861953 | P155: 264.3000665 | Q155: 242.8139377 | R155: 221.327809 | S155: 199.8416802 | T155: 178.3555514 | U155: 157.6169422 | V155: 136.8796883 | W155: 116.1424343 | X155: 95.40518038 | Y155: 74.66792643 | Z155: 53.93104886 | AA155: 33.19417129 | AB155: 12.45729372 | AC155: -1.314504061e-13 | AD155: -1.314504061e-13 | AE155: -1.314504061e-13 | AF155: -1.314504061e-13 | AG155: -1.314504061e-13 | AH155: =PrincipledApproach!AH155 -> -1.314504061e-13 | AI155: -1.314504061e-13 | AJ155: -1.314504061e-13 | AK155: -1.314504061e-13 | AL155: -1.314504061e-13 | AM155: -1.314504061e-13
A156: =ROW() -> 156 | C156: Metering | I156: =H192 -> 35.09975371 | J156: 34.17620152 | K156: 33.25264933 | L156: 32.32909713 | M156: 31.40554494 | N156: 30.48199275 | O156: 29.57214368 | P156: 28.66229461 | Q156: 27.75244554 | R156: 26.84259647 | S156: 25.9327474 | T156: 25.02289833 | U156: 24.11304926 | V156: 23.20320019 | W156: 22.29335113 | X156: 21.35003291 | Y156: 20.44018384 | Z156: 19.53182214 | AA156: 18.62346044 | AB156: 17.71509874 | AC156: 16.80673704 | AD156: 15.89837534 | AE156: 1.953992523e-14 | AF156: 1.953992523e-14 | AG156: 1.953992523e-14 | AH156: =PrincipledApproach!AH156 -> 1.953992523e-14 | AI156: 1.953992523e-14 | AJ156: 1.953992523e-14 | AK156: 1.953992523e-14 | AL156: 1.953992523e-14 | AM156: 1.953992523e-14
A157: =ROW() -> 157 | C157: Other Depreciable | I157: =H193 -> 96.39701378 | J157: 90.67612276 | K157: 84.95523173 | L157: 79.2343407 | M157: 73.51344968 | N157: 67.79255865 | O157: 61.95616932 | P157: 56.23527829 | Q157: 50.46386086 | R157: 44.70479114 | S157: 38.86199272 | T157: 33.12512547 | U157: 25.03526551 | V157: 19.33848416 | W157: 13.62962138 | X157: 7.967206769 | Y157: 2.30479216 | Z157: 2.353672812e-14 | AA157: 2.353672812e-14 | AB157: 2.353672812e-14 | AC157: 2.353672812e-14 | AD157: 2.353672812e-14 | AE157: 2.353672812e-14 | AF157: 2.353672812e-14 | AG157: 2.353672812e-14 | AH157: =PrincipledApproach!AH157 -> 2.353672812e-14 | AI157: 2.353672812e-14 | AJ157: 2.353672812e-14 | AK157: 2.353672812e-14 | AL157: 2.353672812e-14 | AM157: 2.353672812e-14
A158: =ROW() -> 158 | C158: Computers and Motor Vehicles | I158: =H194 -> 0 | J158: =I194 -> 0 | K158: =J194 -> 0 | L158: =K194 -> 0 | M158: =L194 -> 0 | N158: =M194 -> 0 | O158: =N194 -> 0 | P158: =O194 -> 0 | Q158: =P194 -> 0 | R158: =Q194 -> 0 | S158: =R194 -> 0 | T158: =S194 -> 0 | U158: =T194 -> 0 | V158: =U194 -> 0 | W158: =V194 -> 0 | X158: =W194 -> 0 | Y158: =X194 -> 0 | Z158: =Y194 -> 0 | AA158: =Z194 -> 0 | AB158: =AA194 -> 0 | AC158: 0 | AD158: 0 | AE158: 0 | AF158: 0 | AG158: 0 | AH158: =PrincipledApproach!AH158 -> 0 | AI158: 0 | AJ158: 0 | AK158: 0 | AL158: 0 | AM158: 0
A159: =ROW() -> 159 | C159: Cathodic/Corrosion Protection | I159: 0 | J159: 0 | K159: 0 | L159: 0 | M159: 0 | N159: 0 | O159: 0 | P159: 0 | Q159: 0 | R159: 0 | S159: 0 | T159: 0 | U159: 0 | V159: 0 | W159: 0 | X159: 0 | Y159: 0 | Z159: 0 | AA159: 0 | AB159: 0 | AC159: 0 | AD159: 0 | AE159: 0 | AF159: 0 | AG159: 0 | AH159: =PrincipledApproach!AH159 -> 0 | AI159: 0 | AJ159: 0 | AK159: 0 | AL159: 0 | AM159: 0
A160: =ROW() -> 160 | C160: SCADA , ECI And Comms | I160: 0 | J160: 0 | K160: 0 | L160: 0 | M160: 0 | N160: 0 | O160: 0 | P160: 0 | Q160: 0 | R160: 0 | S160: 0 | T160: 0 | U160: 0 | V160: 0 | W160: 0 | X160: 0 | Y160: 0 | Z160: 0 | AA160: 0 | AB160: 0 | AC160: 0 | AD160: 0 | AE160: 0 | AF160: 0 | AG160: 0 | AH160: =PrincipledApproach!AH160 -> 0 | AI160: 0 | AJ160: 0 | AK160: 0 | AL160: 0 | AM160: 0
A161: =ROW() -> 161 | C161: Building | I161: =H197 -> 0 | J161: =I197 -> 0 | K161: =J197 -> 0 | L161: =K197 -> 0 | M161: =L197 -> 0 | N161: =M197 -> 0 | O161: =N197 -> 0 | P161: =O197 -> 0 | Q161: =P197 -> 0 | R161: =Q197 -> 0 | S161: =R197 -> 0 | T161: =S197 -> 0 | U161: =T197 -> 0 | V161: =U197 -> 0 | W161: =V197 -> 0 | X161: =W197 -> 0 | Y161: =X197 -> 0 | Z161: =Y197 -> 0 | AA161: =Z197 -> 0 | AB161: =AA197 -> 0 | AC161: 0 | AD161: 0 | AE161: 0 | AF161: 0 | AG161: 0 | AH161: =PrincipledApproach!AH161 -> 0 | AI161: 0 | AJ161: 0 | AK161: 0 | AL161: 0 | AM161: 0
A162: =ROW() -> 162 | C162: Non-Depreciable | I162: =H198 -> 20.70862691 | J162: =I198 -> 20.70862691 | K162: 20.70862691 | L162: 20.70862691 | M162: 20.70862691 | N162: 20.70862691 | O162: 17.21815058 | P162: 17.21815058 | Q162: 17.21815058 | R162: 17.21815058 | S162: 17.21815058 | T162: 17.21815058 | U162: 17.21815058 | V162: 17.21815058 | W162: 17.21815058 | X162: =W198 -> 17.21815058 | Y162: =X198 -> 17.21815058 | Z162: 17.21815058 | AA162: 17.21815058 | AB162: 17.21815058 | AC162: 17.21815058 | AD162: 17.21815058 | AE162: 17.21815058 | AF162: 17.21815058 | AG162: 17.21815058 | AH162: =PrincipledApproach!AH162 -> 17.21815058 | AI162: 17.21815058 | AJ162: 17.21815058 | AK162: 17.21815058 | AL162: 17.21815058 | AM162: 17.21815058
A163: =ROW() -> 163 | C163: Cost of Raising Equity | I163: 0 | J163: =I199 -> 0 | K163: =J199 -> 0 | L163: =K199 -> 0 | M163: =L199 -> 0 | N163: =M199 -> 0 | O163: =N199 -> 0 | P163: =O199 -> 0 | Q163: =P199 -> 0 | R163: =Q199 -> 0 | S163: =R199 -> 0 | T163: =S199 -> 0 | U163: =T199 -> 0 | V163: =U199 -> 0 | W163: =V199 -> 0 | X163: 0 | Y163: =X199 -> 0 | Z163: =Y199 -> 0 | AA163: =Z199 -> 0 | AB163: =AA199 -> 0 | AC163: 0 | AD163: 0 | AE163: 0 | AF163: 0 | AG163: 0 | AH163: =PrincipledApproach!AH163 -> 0 | AI163: 0 | AJ163: 0 | AK163: 0 | AL163: 0 | AM163: 0
A164: =ROW() -> 164 | C164: Total | I164: =SUM(I154:I163) -> 3135.142606 | J164: =SUM(J154:J163) -> 3058.760316 | K164: =SUM(K154:K163) -> 2982.378026 | L164: =SUM(L154:L163) -> 2905.995735 | M164: =SUM(M154:M163) -> 2829.613445 | N164: =SUM(N154:N163) -> 2753.231155 | O164: =SUM(O154:O163) -> 2668.18795 | P164: =SUM(P154:P163) -> 2593.19159 | Q164: =SUM(Q154:Q163) -> 2518.144705 | R164: =SUM(R154:R163) -> 2443.110166 | S164: =SUM(S154:S163) -> 2367.9919 | T164: =SUM(T154:T163) -> 2292.979564 | U164: =SUM(U154:U163) -> 2216.361755 | V164: =SUM(V154:V163) -> 2142.13838 | W164: =SUM(W154:W163) -> 2067.902924 | X164: =SUM(X154:X163) -> 1993.680447 | Y164: =SUM(Y154:Y163) -> 1919.491439 | Z164: =SUM(Z154:Z163) -> 1848.661917 | AA164: =SUM(AA154:AA163) -> 1780.137187 | AB164: =SUM(AB154:AB163) -> 1711.612457 | AC164: 1651.367311 | AD164: 1603.579459 | AE164: 1540.801593 | AF164: 1493.922102 | AG164: 1447.042612 | AH164: =SUM(AH154:AH163) -> 1400.163121 | AI164: =SUM(AI154:AI163) -> 1353.283631 | AJ164: 1306.40414 | AK164: 1259.52465 | AL164: 1212.645159 | AM164: 1165.765669
A165: =ROW() -> 165 | B165: Redundant & Disposed Asset
A166: =ROW() -> 166 | C166: Pipeline | I166: =-Inputs!I272 -> 0 | J166: =-Inputs!J272 -> 0 | K166: =-Inputs!K272 -> 0 | L166: =-Inputs!L272 -> 0 | M166: =-Inputs!M272 -> 0 | N166: =-Inputs!N272 -> 0 | O166: =-Inputs!O272 -> 0 | P166: =-Inputs!P272 -> 0 | Q166: =-Inputs!Q272 -> 0 | R166: =-Inputs!R272 -> 0 | S166: =-Inputs!S272 -> 0 | T166: =-Inputs!T272 -> 0 | U166: =-Inputs!U272 -> 0 | V166: =-Inputs!V272 -> 0 | W166: =-Inputs!W272 -> 0 | X166: =-Inputs!X272 -> 0 | Y166: =-Inputs!Y272 -> 0 | Z166: =-Inputs!Z272 -> 0 | AA166: =-Inputs!AA272 -> 0 | AB166: =-Inputs!AB272 -> 0 | AC166: =-Inputs!AC272 -> 0 | AD166: =-Inputs!AD272 -> 0 | AE166: =-Inputs!AE272 -> 0 | AF166: =-Inputs!AF272 -> 0 | AG166: =-Inputs!AG272 -> 0 | AH166: =PrincipledApproach!AH166 -> 0 | AI166: =-Inputs!AI272 -> 0 | AJ166: =-Inputs!AJ272 -> 0 | AK166: =-Inputs!AK272 -> 0 | AL166: =-Inputs!AL272 -> 0 | AM166: =-Inputs!AM272 -> 0
A167: =ROW() -> 167 | C167: Compression | I167: =-Inputs!I273 -> 0 | J167: =-Inputs!J273 -> 0 | K167: =-Inputs!K273 -> 0 | L167: =-Inputs!L273 -> 0 | M167: =-Inputs!M273 -> 0 | N167: =-Inputs!N273 -> -6.440871154 | O167: =-Inputs!O273 -> 0 | P167: =-Inputs!P273 -> 0 | Q167: =-Inputs!Q273 -> 0 | R167: =-Inputs!R273 -> 0 | S167: =-Inputs!S273 -> 0 | T167: =-Inputs!T273 -> -0.001355244121 | U167: =-Inputs!U273 -> 0 | V167: =-Inputs!V273 -> 0 | W167: =-Inputs!W273 -> 0 | X167: =-Inputs!X273 -> 0 | Y167: =-Inputs!Y273 -> 0 | Z167: =-Inputs!Z273 -> 0 | AA167: =-Inputs!AA273 -> 0 | AB167: =-Inputs!AB273 -> 0 | AC167: =-Inputs!AC273 -> 0 | AD167: =-Inputs!AD273 -> 0 | AE167: =-Inputs!AE273 -> 0 | AF167: =-Inputs!AF273 -> 0 | AG167: =-Inputs!AG273 -> 0 | AH167: =PrincipledApproach!AH167 -> 0 | AI167: =-Inputs!AI273 -> 0 | AJ167: =-Inputs!AJ273 -> 0 | AK167: =-Inputs!AK273 -> 0 | AL167: =-Inputs!AL273 -> 0 | AM167: =-Inputs!AM273 -> 0
A168: =ROW() -> 168 | C168: Metering | I168: =-Inputs!I274 -> 0 | J168: =-Inputs!J274 -> 0 | K168: =-Inputs!K274 -> 0 | L168: =-Inputs!L274 -> 0 | M168: =-Inputs!M274 -> 0 | N168: =-Inputs!N274 -> 0 | O168: =-Inputs!O274 -> 0 | P168: =-Inputs!P274 -> 0 | Q168: =-Inputs!Q274 -> 0 | R168: =-Inputs!R274 -> 0 | S168: =-Inputs!S274 -> 0 | T168: =-Inputs!T274 -> 0 | U168: =-Inputs!U274 -> 0 | V168: =-Inputs!V274 -> 0 | W168: =-Inputs!W274 -> -0.03346914482 | X168: =-Inputs!X274 -> 0 | Y168: =-Inputs!Y274 -> 0 | Z168: =-Inputs!Z274 -> 0 | AA168: =-Inputs!AA274 -> 0 | AB168: =-Inputs!AB274 -> 0 | AC168: =-Inputs!AC274 -> 0 | AD168: =-Inputs!AD274 -> 0 | AE168: =-Inputs!AE274 -> 0 | AF168: =-Inputs!AF274 -> 0 | AG168: =-Inputs!AG274 -> 0 | AH168: =PrincipledApproach!AH168 -> 0 | AI168: =-Inputs!AI274 -> 0 | AJ168: =-Inputs!AJ274 -> 0 | AK168: =-Inputs!AK274 -> 0 | AL168: =-Inputs!AL274 -> 0 | AM168: =-Inputs!AM274 -> 0
A169: =ROW() -> 169 | C169: Other Depreciable | I169: =-Inputs!I275 -> 0 | J169: =-Inputs!J275 -> 0 | K169: =-Inputs!K275 -> 0 | L169: =-Inputs!L275 -> 0 | M169: =-Inputs!M275 -> 0 | N169: =-Inputs!N275 -> -0.1154983095 | O169: =-Inputs!O275 -> 0 | P169: =-Inputs!P275 -> -0.05052640486 | Q169: =-Inputs!Q275 -> -0.03817869781 | R169: =-Inputs!R275 -> -0.1219073972 | S169: =-Inputs!S275 -> -0.01597622491 | T169: =-Inputs!T275 -> -2.427445343 | U169: =-Inputs!U275 -> -0.03436674338 | V169: =-Inputs!V275 -> -0.04644817204 | W169: =-Inputs!W275 -> 0 | X169: =-Inputs!X275 -> 0 | Y169: =-Inputs!Y275 -> 0 | Z169: =-Inputs!Z275 -> 0 | AA169: =-Inputs!AA275 -> 0 | AB169: =-Inputs!AB275 -> 0 | AC169: =-Inputs!AC275 -> 0 | AD169: =-Inputs!AD275 -> 0 | AE169: =-Inputs!AE275 -> 0 | AF169: =-Inputs!AF275 -> 0 | AG169: =-Inputs!AG275 -> 0 | AH169: =PrincipledApproach!AH169 -> 0 | AI169: =-Inputs!AI275 -> 0 | AJ169: =-Inputs!AJ275 -> 0 | AK169: =-Inputs!AK275 -> 0 | AL169: =-Inputs!AL275 -> 0 | AM169: =-Inputs!AM275 -> 0
A170: =ROW() -> 170 | C170: Computers and Motor Vehicles | I170: =-Inputs!I276 -> 0 | J170: =-Inputs!J276 -> 0 | K170: =-Inputs!K276 -> 0 | L170: =-Inputs!L276 -> 0 | M170: =-Inputs!M276 -> 0 | N170: =-Inputs!N276 -> 0 | O170: =-Inputs!O276 -> 0 | P170: =-Inputs!P276 -> 0 | Q170: =-Inputs!Q276 -> 0 | R170: =-Inputs!R276 -> 0 | S170: =-Inputs!S276 -> 0 | T170: =-Inputs!T276 -> 0 | U170: =-Inputs!U276 -> 0 | V170: =-Inputs!V276 -> 0 | W170: =-Inputs!W276 -> 0 | X170: =-Inputs!X276 -> 0 | Y170: =-Inputs!Y276 -> 0 | Z170: =-Inputs!Z276 -> 0 | AA170: =-Inputs!AA276 -> 0 | AB170: =-Inputs!AB276 -> 0 | AC170: =-Inputs!AC276 -> 0 | AD170: =-Inputs!AD276 -> 0 | AE170: =-Inputs!AE276 -> 0 | AF170: =-Inputs!AF276 -> 0 | AG170: =-Inputs!AG276 -> 0 | AH170: =PrincipledApproach!AH170 -> 0 | AI170: =-Inputs!AI276 -> 0 | AJ170: =-Inputs!AJ276 -> 0 | AK170: =-Inputs!AK276 -> 0 | AL170: =-Inputs!AL276 -> 0 | AM170: =-Inputs!AM276 -> 0
A171: =ROW() -> 171 | C171: Cathodic/Corrosion Protection | I171: =-Inputs!I277 -> 0 | J171: =-Inputs!J277 -> 0 | K171: =-Inputs!K277 -> 0 | L171: =-Inputs!L277 -> 0 | M171: =-Inputs!M277 -> 0 | N171: =-Inputs!N277 -> 0 | O171: =-Inputs!O277 -> 0 | P171: =-Inputs!P277 -> 0 | Q171: =-Inputs!Q277 -> 0 | R171: =-Inputs!R277 -> 0 | S171: =-Inputs!S277 -> 0 | T171: =-Inputs!T277 -> 0 | U171: =-Inputs!U277 -> 0 | V171: =-Inputs!V277 -> 0 | W171: =-Inputs!W277 -> 0 | X171: =-Inputs!X277 -> 0 | Y171: =-Inputs!Y277 -> 0 | Z171: =-Inputs!Z277 -> 0 | AA171: =-Inputs!AA277 -> 0 | AB171: =-Inputs!AB277 -> 0 | AC171: =-Inputs!AC277 -> 0 | AD171: =-Inputs!AD277 -> 0 | AE171: =-Inputs!AE277 -> 0 | AF171: =-Inputs!AF277 -> 0 | AG171: =-Inputs!AG277 -> 0 | AH171: =PrincipledApproach!AH171 -> 0 | AI171: =-Inputs!AI277 -> 0 | AJ171: =-Inputs!AJ277 -> 0 | AK171: =-Inputs!AK277 -> 0 | AL171: =-Inputs!AL277 -> 0 | AM171: =-Inputs!AM277 -> 0
A172: =ROW() -> 172 | C172: SCADA , ECI And Comms | I172: =-Inputs!I278 -> 0 | J172: =-Inputs!J278 -> 0 | K172: =-Inputs!K278 -> 0 | L172: =-Inputs!L278 -> 0 | M172: =-Inputs!M278 -> 0 | N172: =-Inputs!N278 -> 0 | O172: =-Inputs!O278 -> 0 | P172: =-Inputs!P278 -> 0 | Q172: =-Inputs!Q278 -> 0 | R172: =-Inputs!R278 -> 0 | S172: =-Inputs!S278 -> 0 | T172: =-Inputs!T278 -> 0 | U172: =-Inputs!U278 -> 0 | V172: =-Inputs!V278 -> 0 | W172: =-Inputs!W278 -> 0 | X172: =-Inputs!X278 -> 0 | Y172: =-Inputs!Y278 -> 0 | Z172: =-Inputs!Z278 -> 0 | AA172: =-Inputs!AA278 -> 0 | AB172: =-Inputs!AB278 -> 0 | AC172: =-Inputs!AC278 -> 0 | AD172: =-Inputs!AD278 -> 0 | AE172: =-Inputs!AE278 -> 0 | AF172: =-Inputs!AF278 -> 0 | AG172: =-Inputs!AG278 -> 0 | AH172: =PrincipledApproach!AH172 -> 0 | AI172: =-Inputs!AI278 -> 0 | AJ172: =-Inputs!AJ278 -> 0 | AK172: =-Inputs!AK278 -> 0 | AL172: =-Inputs!AL278 -> 0 | AM172: =-Inputs!AM278 -> 0
A173: =ROW() -> 173 | C173: Building | I173: =-Inputs!I279 -> 0 | J173: =-Inputs!J279 -> 0 | K173: =-Inputs!K279 -> 0 | L173: =-Inputs!L279 -> 0 | M173: =-Inputs!M279 -> 0 | N173: =-Inputs!N279 -> 0 | O173: =-Inputs!O279 -> 0 | P173: =-Inputs!P279 -> 0 | Q173: =-Inputs!Q279 -> 0 | R173: =-Inputs!R279 -> 0 | S173: =-Inputs!S279 -> 0 | T173: =-Inputs!T279 -> 0 | U173: =-Inputs!U279 -> 0 | V173: =-Inputs!V279 -> 0 | W173: =-Inputs!W279 -> 0 | X173: =-Inputs!X279 -> 0 | Y173: =-Inputs!Y279 -> 0 | Z173: =-Inputs!Z279 -> 0 | AA173: =-Inputs!AA279 -> 0 | AB173: =-Inputs!AB279 -> 0 | AC173: =-Inputs!AC279 -> 0 | AD173: =-Inputs!AD279 -> 0 | AE173: =-Inputs!AE279 -> 0 | AF173: =-Inputs!AF279 -> 0 | AG173: =-Inputs!AG279 -> 0 | AH173: =PrincipledApproach!AH173 -> 0 | AI173: =-Inputs!AI279 -> 0 | AJ173: =-Inputs!AJ279 -> 0 | AK173: =-Inputs!AK279 -> 0 | AL173: =-Inputs!AL279 -> 0 | AM173: =-Inputs!AM279 -> 0
A174: =ROW() -> 174 | C174: Non-Depreciable | I174: =-Inputs!I280 -> 0 | J174: =-Inputs!J280 -> 0 | K174: =-Inputs!K280 -> 0 | L174: =-Inputs!L280 -> 0 | M174: =-Inputs!M280 -> 0 | N174: =-Inputs!N280 -> -3.490476337 | O174: =-Inputs!O280 -> 0 | P174: =-Inputs!P280 -> 0 | Q174: =-Inputs!Q280 -> 0 | R174: =-Inputs!R280 -> 0 | S174: =-Inputs!S280 -> 0 | T174: =-Inputs!T280 -> 0 | U174: =-Inputs!U280 -> 0 | V174: =-Inputs!V280 -> 0 | W174: =-Inputs!W280 -> 0 | X174: =-Inputs!X280 -> 0 | Y174: =-Inputs!Y280 -> 0 | Z174: =-Inputs!Z280 -> 0 | AA174: =-Inputs!AA280 -> 0 | AB174: =-Inputs!AB280 -> 0 | AC174: =-Inputs!AC280 -> 0 | AD174: =-Inputs!AD280 -> 0 | AE174: =-Inputs!AE280 -> 0 | AF174: =-Inputs!AF280 -> 0 | AG174: =-Inputs!AG280 -> 0 | AH174: =PrincipledApproach!AH174 -> 0 | AI174: =-Inputs!AI280 -> 0 | AJ174: =-Inputs!AJ280 -> 0 | AK174: =-Inputs!AK280 -> 0 | AL174: =-Inputs!AL280 -> 0 | AM174: =-Inputs!AM280 -> 0
A175: =ROW() -> 175 | C175: Cost of Raising Equity | I175: =-Inputs!I281 -> 0 | J175: =-Inputs!J281 -> 0 | K175: =-Inputs!K281 -> 0 | L175: =-Inputs!L281 -> 0 | M175: =-Inputs!M281 -> 0 | N175: =-Inputs!N281 -> 0 | O175: =-Inputs!O281 -> 0 | P175: =-Inputs!P281 -> 0 | Q175: =-Inputs!Q281 -> 0 | R175: =-Inputs!R281 -> 0 | S175: =-Inputs!S281 -> 0 | T175: =-Inputs!T281 -> 0 | U175: =-Inputs!U281 -> 0 | V175: =-Inputs!V281 -> 0 | W175: =-Inputs!W281 -> 0 | X175: =-Inputs!X281 -> 0 | Y175: =-Inputs!Y281 -> 0 | Z175: =-Inputs!Z281 -> 0 | AA175: =-Inputs!AA281 -> 0 | AB175: =-Inputs!AB281 -> 0 | AC175: =-Inputs!AC281 -> 0 | AD175: =-Inputs!AD281 -> 0 | AE175: =-Inputs!AE281 -> 0 | AF175: =-Inputs!AF281 -> 0 | AG175: =-Inputs!AG281 -> 0 | AH175: =PrincipledApproach!AH175 -> 0 | AI175: =-Inputs!AI281 -> 0 | AJ175: =-Inputs!AJ281 -> 0 | AK175: =-Inputs!AK281 -> 0 | AL175: =-Inputs!AL281 -> 0 | AM175: =-Inputs!AM281 -> 0
A176: =ROW() -> 176 | C176: Total | I176: =SUM(I166:I175) -> 0 | J176: =SUM(J166:J175) -> 0 | K176: =SUM(K166:K175) -> 0 | L176: =SUM(L166:L175) -> 0 | M176: =SUM(M166:M175) -> 0 | N176: =SUM(N166:N175) -> -10.0468458 | O176: =SUM(O166:O175) -> 0 | P176: =SUM(P166:P175) -> -0.05052640486 | Q176: =SUM(Q166:Q175) -> -0.03817869781 | R176: =SUM(R166:R175) -> -0.1219073972 | S176: =SUM(S166:S175) -> -0.01597622491 | T176: =SUM(T166:T175) -> -2.428800587 | U176: =SUM(U166:U175) -> -0.03436674338 | V176: =SUM(V166:V175) -> -0.04644817204 | W176: =SUM(W166:W175) -> -0.03346914482 | X176: =SUM(X166:X175) -> 0 | Y176: =SUM(Y166:Y175) -> 0 | Z176: =SUM(Z166:Z175) -> 0 | AA176: =SUM(AA166:AA175) -> 0 | AB176: =SUM(AB166:AB175) -> 0 | AC176: 0 | AD176: 0 | AE176: 0 | AF176: 0 | AG176: 0 | AH176: =SUM(AH166:AH175) -> 0 | AI176: =SUM(AI166:AI175) -> 0 | AJ176: 0 | AK176: 0 | AL176: 0 | AM176: 0
A177: =ROW() -> 177 | B177: Depreciation | Z177: =Z157/($H181-(Z$8-1)) -> -1.384513419e-15
A178: =ROW() -> 178 | C178: Pipeline | I178: =-Inputs!I210 -> -46.87949053 | J178: =-Inputs!J210 -> -46.87949053 | K178: =-Inputs!K210 -> -46.87949053 | L178: =-Inputs!L210 -> -46.87949053 | M178: =-Inputs!M210 -> -46.87949053 | N178: =-Inputs!N210 -> -46.87949053 | O178: =-Inputs!O210 -> -46.87949053 | P178: =-Inputs!P210 -> -46.87949053 | Q178: =-Inputs!Q210 -> -46.87949053 | R178: =-Inputs!R210 -> -46.87949053 | S178: =-Inputs!S210 -> -46.87949053 | T178: =-Inputs!T210 -> -46.87949053 | U178: =-Inputs!U210 -> -46.87949053 | V178: =-Inputs!V210 -> -46.87949053 | W178: =-Inputs!W210 -> -46.87949053 | X178: =-Inputs!X210 -> -46.87949053 | Y178: =-Inputs!Y210 -> -46.87949053 | Z178: =-Inputs!Z210 -> -46.87949053 | AA178: =-Inputs!AA210 -> -46.87949053 | AB178: =-Inputs!AB210 -> -46.87949053 | AC178: =-Inputs!AC210 -> -46.87949053 | AD178: =-Inputs!AD210 -> -46.87949053 | AE178: =-Inputs!AE210 -> -46.87949053 | AF178: =-Inputs!AF210 -> -46.87949053 | AG178: =-Inputs!AG210 -> -46.87949053 | AH178: =PrincipledApproach!AH178 -> -46.87949053 | AI178: =IF(AI142<=0,0,-MIN(IF(AI154/AI142>AI154,AI154,AI154/AI142),AI154)) -> -46.87949053 | AJ178: -46.87949053 | AK178: -46.87949053 | AL178: -46.87949053 | AM178: -46.87949053
A179: =ROW() -> 179 | C179: Compression | I179: =-Inputs!I211 -> -22.85835648 | J179: =-Inputs!J211 -> -22.85835648 | K179: =-Inputs!K211 -> -22.85835648 | L179: =-Inputs!L211 -> -22.85835648 | M179: =-Inputs!M211 -> -22.85835648 | N179: =-Inputs!N211 -> -21.48612877 | O179: =-Inputs!O211 -> -21.48612877 | P179: =-Inputs!P211 -> -21.48612877 | Q179: =-Inputs!Q211 -> -21.48612877 | R179: =-Inputs!R211 -> -21.48612877 | S179: =-Inputs!S211 -> -21.48612877 | T179: =-Inputs!T211 -> -20.73725395 | U179: =-Inputs!U211 -> -20.73725395 | V179: =-Inputs!V211 -> -20.73725395 | W179: =-Inputs!W211 -> -20.73725395 | X179: =-Inputs!X211 -> -20.73725395 | Y179: =-Inputs!Y211 -> -20.73687757 | Z179: =-Inputs!Z211 -> -20.73687757 | AA179: =-Inputs!AA211 -> -20.73687757 | AB179: =-Inputs!AB211 -> -12.45729372 | AC179: =-Inputs!AC211 -> 0 | AD179: =-Inputs!AD211 -> 0 | AE179: =-Inputs!AE211 -> 0 | AF179: =-Inputs!AF211 -> 0 | AG179: =-Inputs!AG211 -> 0 | AH179: =PrincipledApproach!AH179 -> 0 | AI179: =IF(AI143<=0,0,-MIN(IF(AI155/AI143>AI155,AI155,AI155/AI143),AI155)) -> 0 | AJ179: 0 | AK179: 0 | AL179: 0 | AM179: 0
A180: =ROW() -> 180 | C180: Metering | I180: =-Inputs!I212 -> -0.9235521932 | J180: =-Inputs!J212 -> -0.9235521932 | K180: =-Inputs!K212 -> -0.9235521932 | L180: =-Inputs!L212 -> -0.9235521932 | M180: =-Inputs!M212 -> -0.9235521932 | N180: =-Inputs!N212 -> -0.9098490691 | O180: =-Inputs!O212 -> -0.9098490691 | P180: =-Inputs!P212 -> -0.9098490691 | Q180: =-Inputs!Q212 -> -0.9098490691 | R180: =-Inputs!R212 -> -0.9098490691 | S180: =-Inputs!S212 -> -0.9098490691 | T180: =-Inputs!T212 -> -0.9098490691 | U180: =-Inputs!U212 -> -0.9098490691 | V180: =-Inputs!V212 -> -0.9098490691 | W180: =-Inputs!W212 -> -0.9098490691 | X180: =-Inputs!X212 -> -0.9098490691 | Y180: =-Inputs!Y212 -> -0.9083617005 | Z180: =-Inputs!Z212 -> -0.9083617005 | AA180: =-Inputs!AA212 -> -0.9083617005 | AB180: =-Inputs!AB212 -> -0.9083617005 | AC180: =-Inputs!AC212 -> -0.9083617005 | AD180: =-Inputs!AD212 -> -15.89837534 | AE180: =-Inputs!AE212 -> 0 | AF180: =-Inputs!AF212 -> 0 | AG180: =-Inputs!AG212 -> 0 | AH180: =PrincipledApproach!AH180 -> 0 | AI180: =IF(AI144<=0,0,-MIN(IF(AI156/AI144>AI156,AI156,AI156/AI144),AI156)) -> 0 | AJ180: 0 | AK180: 0 | AL180: 0 | AM180: 0
A181: =ROW() -> 181 | C181: Other Depreciable | I181: =-Inputs!I213 -> -5.720891026 | J181: =-Inputs!J213 -> -5.720891026 | K181: =-Inputs!K213 -> -5.720891026 | L181: =-Inputs!L213 -> -5.720891026 | M181: =-Inputs!M213 -> -5.720891026 | N181: =-Inputs!N213 -> -5.720891026 | O181: =-Inputs!O213 -> -5.720891026 | P181: =-Inputs!P213 -> -5.720891026 | Q181: =-Inputs!Q213 -> -5.720891026 | R181: =-Inputs!R213 -> -5.720891026 | S181: =-Inputs!S213 -> -5.720891026 | T181: =-Inputs!T213 -> -5.662414609 | U181: =-Inputs!U213 -> -5.662414609 | V181: =-Inputs!V213 -> -5.662414609 | W181: =-Inputs!W213 -> -5.662414609 | X181: =-Inputs!X213 -> -5.662414609 | Y181: =-Inputs!Y213 -> -2.30479216 | Z181: =-Inputs!Z213 -> 0 | AA181: =-Inputs!AA213 -> 0 | AB181: =-Inputs!AB213 -> 0 | AC181: =-Inputs!AC213 -> 0 | AD181: =-Inputs!AD213 -> 0 | AE181: =-Inputs!AE213 -> 0 | AF181: =-Inputs!AF213 -> 0 | AG181: =-Inputs!AG213 -> 0 | AH181: =PrincipledApproach!AH181 -> 0 | AI181: =IF(AI145<=0,0,-MIN(IF(AI157/AI145>AI157,AI157,AI157/AI145),AI157)) -> 0 | AJ181: 0 | AK181: 0 | AL181: 0 | AM181: 0
A182: =ROW() -> 182 | C182: Computers and Motor Vehicles | I182: =-Inputs!I214 -> 0 | J182: =-Inputs!J214 -> 0 | K182: =-Inputs!K214 -> 0 | L182: =-Inputs!L214 -> 0 | M182: =-Inputs!M214 -> 0 | N182: =-Inputs!N214 -> 0 | O182: =-Inputs!O214 -> 0 | P182: =-Inputs!P214 -> 0 | Q182: =-Inputs!Q214 -> 0 | R182: =-Inputs!R214 -> 0 | S182: =-Inputs!S214 -> 0 | T182: =-Inputs!T214 -> 0 | U182: =-Inputs!U214 -> 0 | V182: =-Inputs!V214 -> 0 | W182: =-Inputs!W214 -> 0 | X182: =-Inputs!X214 -> 0 | Y182: =-Inputs!Y214 -> 0 | Z182: =-Inputs!Z214 -> 0 | AA182: =-Inputs!AA214 -> 0 | AB182: =-Inputs!AB214 -> 0 | AC182: =-Inputs!AC214 -> 0 | AD182: =-Inputs!AD214 -> 0 | AE182: =-Inputs!AE214 -> 0 | AF182: =-Inputs!AF214 -> 0 | AG182: =-Inputs!AG214 -> 0 | AH182: =PrincipledApproach!AH182 -> 0 | AI182: =IF(AI146<=0,0,-MIN(IF(AI158/AI146>AI158,AI158,AI158/AI146),AI158)) -> 0 | AJ182: 0 | AK182: 0 | AL182: 0 | AM182: 0
A183: =ROW() -> 183 | C183: Cathodic/Corrosion Protection | I183: =-Inputs!I215 -> 0 | J183: =-Inputs!J215 -> 0 | K183: =-Inputs!K215 -> 0 | L183: =-Inputs!L215 -> 0 | M183: =-Inputs!M215 -> 0 | N183: =-Inputs!N215 -> 0 | O183: =-Inputs!O215 -> 0 | P183: =-Inputs!P215 -> 0 | Q183: =-Inputs!Q215 -> 0 | R183: =-Inputs!R215 -> 0 | S183: =-Inputs!S215 -> 0 | T183: =-Inputs!T215 -> 0 | U183: =-Inputs!U215 -> 0 | V183: =-Inputs!V215 -> 0 | W183: =-Inputs!W215 -> 0 | X183: =-Inputs!X215 -> 0 | Y183: =-Inputs!Y215 -> 0 | Z183: =-Inputs!Z215 -> 0 | AA183: =-Inputs!AA215 -> 0 | AB183: =-Inputs!AB215 -> 0 | AC183: =-Inputs!AC215 -> 0 | AD183: =-Inputs!AD215 -> 0 | AE183: =-Inputs!AE215 -> 0 | AF183: =-Inputs!AF215 -> 0 | AG183: =-Inputs!AG215 -> 0 | AH183: =PrincipledApproach!AH183 -> 0 | AI183: =IF(AI147<=0,0,-MIN(IF(AI159/AI147>AI159,AI159,AI159/AI147),AI159)) -> 0 | AJ183: 0 | AK183: 0 | AL183: 0 | AM183: 0
A184: =ROW() -> 184 | C184: SCADA , ECI And Comms | I184: =-Inputs!I216 -> 0 | J184: =-Inputs!J216 -> 0 | K184: =-Inputs!K216 -> 0 | L184: =-Inputs!L216 -> 0 | M184: =-Inputs!M216 -> 0 | N184: =-Inputs!N216 -> 0 | O184: =-Inputs!O216 -> 0 | P184: =-Inputs!P216 -> 0 | Q184: =-Inputs!Q216 -> 0 | R184: =-Inputs!R216 -> 0 | S184: =-Inputs!S216 -> 0 | T184: =-Inputs!T216 -> 0 | U184: =-Inputs!U216 -> 0 | V184: =-Inputs!V216 -> 0 | W184: =-Inputs!W216 -> 0 | X184: =-Inputs!X216 -> 0 | Y184: =-Inputs!Y216 -> 0 | Z184: =-Inputs!Z216 -> 0 | AA184: =-Inputs!AA216 -> 0 | AB184: =-Inputs!AB216 -> 0 | AC184: =-Inputs!AC216 -> 0 | AD184: =-Inputs!AD216 -> 0 | AE184: =-Inputs!AE216 -> 0 | AF184: =-Inputs!AF216 -> 0 | AG184: =-Inputs!AG216 -> 0 | AH184: =PrincipledApproach!AH184 -> 0 | AI184: =IF(AI148<=0,0,-MIN(IF(AI160/AI148>AI160,AI160,AI160/AI148),AI160)) -> 0 | AJ184: 0 | AK184: 0 | AL184: 0 | AM184: 0
A185: =ROW() -> 185 | C185: Building | I185: =-Inputs!I217 -> 0 | J185: =-Inputs!J217 -> 0 | K185: =-Inputs!K217 -> 0 | L185: =-Inputs!L217 -> 0 | M185: =-Inputs!M217 -> 0 | N185: =-Inputs!N217 -> 0 | O185: =-Inputs!O217 -> 0 | P185: =-Inputs!P217 -> 0 | Q185: =-Inputs!Q217 -> 0 | R185: =-Inputs!R217 -> 0 | S185: =-Inputs!S217 -> 0 | T185: =-Inputs!T217 -> 0 | U185: =-Inputs!U217 -> 0 | V185: =-Inputs!V217 -> 0 | W185: =-Inputs!W217 -> 0 | X185: =-Inputs!X217 -> 0 | Y185: =-Inputs!Y217 -> 0 | Z185: =-Inputs!Z217 -> 0 | AA185: =-Inputs!AA217 -> 0 | AB185: =-Inputs!AB217 -> 0 | AC185: =-Inputs!AC217 -> 0 | AD185: =-Inputs!AD217 -> 0 | AE185: =-Inputs!AE217 -> 0 | AF185: =-Inputs!AF217 -> 0 | AG185: =-Inputs!AG217 -> 0 | AH185: =PrincipledApproach!AH185 -> 0 | AI185: =IF(AI149<=0,0,-MIN(IF(AI161/AI149>AI161,AI161,AI161/AI149),AI161)) -> 0 | AJ185: 0 | AK185: 0 | AL185: 0 | AM185: 0
A186: =ROW() -> 186 | C186: Non-Depreciable | I186: =-Inputs!I218 -> 0 | J186: =-Inputs!J218 -> 0 | K186: =-Inputs!K218 -> 0 | L186: =-Inputs!L218 -> 0 | M186: =-Inputs!M218 -> 0 | N186: =-Inputs!N218 -> 0 | O186: =-Inputs!O218 -> 0 | P186: =-Inputs!P218 -> 0 | Q186: =-Inputs!Q218 -> 0 | R186: =-Inputs!R218 -> 0 | S186: =-Inputs!S218 -> 0 | T186: =-Inputs!T218 -> 0 | U186: =-Inputs!U218 -> 0 | V186: =-Inputs!V218 -> 0 | W186: =-Inputs!W218 -> 0 | X186: =-Inputs!X218 -> 0 | Y186: =-Inputs!Y218 -> 0 | Z186: =-Inputs!Z218 -> 0 | AA186: =-Inputs!AA218 -> 0 | AB186: =-Inputs!AB218 -> 0 | AC186: =-Inputs!AC218 -> 0 | AD186: =-Inputs!AD218 -> 0 | AE186: =-Inputs!AE218 -> 0 | AF186: =-Inputs!AF218 -> 0 | AG186: =-Inputs!AG218 -> 0 | AH186: =PrincipledApproach!AH186 -> 0
A187: =ROW() -> 187 | C187: Cost of Raising Equity | I187: =-Inputs!I219 -> 0 | J187: =-Inputs!J219 -> 0 | K187: =-Inputs!K219 -> 0 | L187: =-Inputs!L219 -> 0 | M187: =-Inputs!M219 -> 0 | N187: =-Inputs!N219 -> 0 | O187: =-Inputs!O219 -> 0 | P187: =-Inputs!P219 -> 0 | Q187: =-Inputs!Q219 -> 0 | R187: =-Inputs!R219 -> 0 | S187: =-Inputs!S219 -> 0 | T187: =-Inputs!T219 -> 0 | U187: =-Inputs!U219 -> 0 | V187: =-Inputs!V219 -> 0 | W187: =-Inputs!W219 -> 0 | X187: =-Inputs!X219 -> 0 | Y187: =-Inputs!Y219 -> 0 | Z187: =-Inputs!Z219 -> 0 | AA187: =-Inputs!AA219 -> 0 | AB187: =-Inputs!AB219 -> 0 | AC187: =-Inputs!AC219 -> 0 | AD187: =-Inputs!AD219 -> 0 | AE187: =-Inputs!AE219 -> 0 | AF187: =-Inputs!AF219 -> 0 | AG187: =-Inputs!AG219 -> 0 | AH187: =PrincipledApproach!AH187 -> 0 | AI187: =IF(AI151<=0,0,-MIN(IF(AI163/AI151>AI163,AI163,AI163/AI151),AI163)) -> 0 | AJ187: 0 | AK187: 0 | AL187: 0 | AM187: 0
A188: =ROW() -> 188 | C188: Total | I188: =SUM(I178:I187) -> -76.38229023 | J188: =SUM(J178:J187) -> -76.38229023 | K188: =SUM(K178:K187) -> -76.38229023 | L188: =SUM(L178:L187) -> -76.38229023 | M188: =SUM(M178:M187) -> -76.38229023 | N188: =SUM(N178:N187) -> -74.9963594 | O188: =SUM(O178:O187) -> -74.9963594 | P188: =SUM(P178:P187) -> -74.9963594 | Q188: =SUM(Q178:Q187) -> -74.9963594 | R188: =SUM(R178:R187) -> -74.9963594 | S188: =SUM(S178:S187) -> -74.9963594 | T188: =SUM(T178:T187) -> -74.18900816 | U188: =SUM(U178:U187) -> -74.18900816 | V188: =SUM(V178:V187) -> -74.18900816 | W188: =SUM(W178:W187) -> -74.18900816 | X188: =SUM(X178:X187) -> -74.18900816 | Y188: =SUM(Y178:Y187) -> -70.82952196 | Z188: =SUM(Z178:Z187) -> -68.5247298 | AA188: =SUM(AA178:AA187) -> -68.5247298 | AB188: =SUM(AB178:AB187) -> -60.24514596 | AC188: -47.78785223 | AD188: -62.77786587 | AE188: -46.87949053 | AF188: -46.87949053 | AG188: -46.87949053 | AH188: =SUM(AH178:AH187) -> -46.87949053 | AI188: =SUM(AI178:AI187) -> -46.87949053 | AJ188: -46.87949053 | AK188: -46.87949053 | AL188: -46.87949053 | AM188: -46.87949053
A189: =ROW() -> 189 | B189: Closing Value | H189: Check | I189: =IF(ROUND(I188+Inputs!I220,6)=0,"OK","Wrong") -> OK | J189: =IF(ROUND(J188+Inputs!J220,6)=0,"OK","Wrong") -> OK | K189: =IF(ROUND(K188+Inputs!K220,6)=0,"OK","Wrong") -> OK | L189: =IF(ROUND(L188+Inputs!L220,6)=0,"OK","Wrong") -> OK | M189: =IF(ROUND(M188+Inputs!M220,6)=0,"OK","Wrong") -> OK | N189: =IF(ROUND(N188+Inputs!N220,6)=0,"OK","Wrong") -> OK | O189: =IF(ROUND(O188+Inputs!O220,6)=0,"OK","Wrong") -> OK | P189: =IF(ROUND(P188+Inputs!P220,6)=0,"OK","Wrong") -> OK | Q189: =IF(ROUND(Q188+Inputs!Q220,6)=0,"OK","Wrong") -> OK | R189: =IF(ROUND(R188+Inputs!R220,6)=0,"OK","Wrong") -> OK | S189: =IF(ROUND(S188+Inputs!S220,6)=0,"OK","Wrong") -> OK | T189: =IF(ROUND(T188+Inputs!T220,6)=0,"OK","Wrong") -> OK | U189: =IF(ROUND(U188+Inputs!U220,6)=0,"OK","Wrong") -> OK | V189: =IF(ROUND(V188+Inputs!V220,6)=0,"OK","Wrong") -> OK | W189: =IF(ROUND(W188+Inputs!W220,6)=0,"OK","Wrong") -> OK | X189: =IF(ROUND(X188+Inputs!X220,6)=0,"OK","Wrong") -> OK | Y189: =IF(ROUND(Y188+Inputs!Y220,6)=0,"OK","Wrong") -> OK | Z189: =IF(ROUND(Z188+Inputs!Z220,6)=0,"OK","Wrong") -> OK | AA189: =IF(ROUND(AA188+Inputs!AA220,6)=0,"OK","Wrong") -> OK | AB189: =IF(ROUND(AB188+Inputs!AB220,6)=0,"OK","Wrong") -> OK | AC189: =IF(ROUND(AC188+Inputs!AC220,6)=0,"OK","Wrong") -> OK | AD189: =IF(ROUND(AD188+Inputs!AD220,6)=0,"OK","Wrong") -> OK | AE189: =IF(ROUND(AE188+Inputs!AE220,6)=0,"OK","Wrong") -> OK | AF189: =IF(ROUND(AF188+Inputs!AF220,6)=0,"OK","Wrong") -> OK | AG189: =IF(ROUND(AG188+Inputs!AG220,6)=0,"OK","Wrong") -> OK | AH189: =IF(ROUND(AH188+Inputs!AH220,6)=0,"OK","Wrong") -> OK
A190: =ROW() -> 190 | C190: Pipeline | H190: =Inputs!H138 -> 2554.932234 | I190: =I154+I166+I178 -> 2508.052744 | J190: =J154+J166+J178 -> 2461.173253 | K190: 2414.293763 | L190: 2367.414272 | M190: 2320.534781 | N190: 2273.655291 | O190: 2226.7758 | P190: 2179.89631 | Q190: 2133.016819 | R190: 2086.137329 | S190: =(S154+S166+S178-S202)*(S154+S166+S178-S202>0) -> 2039.257838 | T190: =T154+T166+T178 -> 1992.378348 | U190: 1945.498857 | V190: 1898.619367 | W190: 1851.739876 | X190: =X154+X166+X178 -> 1804.860386 | Y190: =Y154+Y166+Y178 -> 1757.980895 | Z190: 1711.101405 | AA190: 1664.221914 | AB190: 1617.342423 | AC190: =AC154+AC166+AC178 -> 1570.462933 | AD190: 1523.583442 | AE190: 1476.703952 | AF190: 1429.824461 | AG190: 1382.944971 | AH190: =PrincipledApproach!AH190 -> 1336.06548 | AI190: =AI154+AI166+AI178 -> 1289.18599 | AJ190: 1242.306499 | AK190: 1195.427009 | AL190: 1148.547518 | AM190: 1101.668028
A191: =ROW() -> 191 | C191: Compression | H191: =Inputs!H139 -> 428.0049776 | I191: =I155+I167+I179 -> 405.1466211 | J191: =J155+J167+J179 -> 382.2882646 | K191: 359.4299081 | L191: 336.5715517 | M191: 313.7131952 | N191: 285.7861953 | O191: 264.3000665 | P191: 242.8139377 | Q191: 221.327809 | R191: 199.8416802 | S191: 178.3555514 | T191: =T155+T167+T179 -> 157.6169422 | U191: 136.8796883 | V191: 116.1424343 | W191: 95.40518038 | X191: =X155+X167+X179 -> 74.66792643 | Y191: 53.93104886 | Z191: 33.19417129 | AA191: 12.45729372 | AB191: -1.314504061e-13 | AC191: =AC155+AC167+AC179 -> -1.314504061e-13 | AD191: -1.314504061e-13 | AE191: -1.314504061e-13 | AF191: -1.314504061e-13 | AG191: -1.314504061e-13 | AH191: =PrincipledApproach!AH191 -> -1.314504061e-13 | AI191: =AI155+AI167+AI179 -> -1.314504061e-13 | AJ191: -1.314504061e-13 | AK191: -1.314504061e-13 | AL191: -1.314504061e-13 | AM191: -1.314504061e-13
A192: =ROW() -> 192 | C192: Metering | H192: =Inputs!H140 -> 35.09975371 | I192: =I156+I168+I180 -> 34.17620152 | J192: =J156+J168+J180 -> 33.25264933 | K192: 32.32909713 | L192: 31.40554494 | M192: 30.48199275 | N192: 29.57214368 | O192: 28.66229461 | P192: 27.75244554 | Q192: 26.84259647 | R192: 25.9327474 | S192: 25.02289833 | T192: =T156+T168+T180 -> 24.11304926 | U192: 23.20320019 | V192: 22.29335113 | W192: 21.35003291 | X192: =X156+X168+X180 -> 20.44018384 | Y192: 19.53182214 | Z192: 18.62346044 | AA192: 17.71509874 | AB192: 16.80673704 | AC192: =AC156+AC168+AC180 -> 15.89837534 | AD192: 1.953992523e-14 | AE192: 1.953992523e-14 | AF192: 1.953992523e-14 | AG192: 1.953992523e-14 | AH192: =PrincipledApproach!AH192 -> 1.953992523e-14 | AI192: =AI156+AI168+AI180 -> 1.953992523e-14 | AJ192: 1.953992523e-14 | AK192: 1.953992523e-14 | AL192: 1.953992523e-14 | AM192: 1.953992523e-14
A193: =ROW() -> 193 | C193: Other Depreciable | H193: =Inputs!H141 -> 96.39701378 | I193: =I157+I169+I181 -> 90.67612276 | J193: =J157+J169+J181 -> 84.95523173 | K193: 79.2343407 | L193: 73.51344968 | M193: 67.79255865 | N193: 61.95616932 | O193: 56.23527829 | P193: 50.46386086 | Q193: 44.70479114 | R193: 38.86199272 | S193: 33.12512547 | T193: =T157+T169+T181 -> 25.03526551 | U193: 19.33848416 | V193: 13.62962138 | W193: 7.967206769 | X193: =X157+X169+X181 -> 2.30479216 | Y193: 2.353672812e-14 | Z193: 2.353672812e-14 | AA193: 2.353672812e-14 | AB193: 2.353672812e-14 | AC193: =AC157+AC169+AC181 -> 2.353672812e-14 | AD193: 2.353672812e-14 | AE193: 2.353672812e-14 | AF193: 2.353672812e-14 | AG193: 2.353672812e-14 | AH193: =PrincipledApproach!AH193 -> 2.353672812e-14 | AI193: =AI157+AI169+AI181 -> 2.353672812e-14 | AJ193: 2.353672812e-14 | AK193: 2.353672812e-14 | AL193: 2.353672812e-14 | AM193: 2.353672812e-14
A194: =ROW() -> 194 | C194: Computers and Motor Vehicles | H194: =Inputs!H142 -> 0 | I194: =I158+I170+I182 -> 0 | J194: 0 | K194: 0 | L194: 0 | M194: 0 | N194: 0 | O194: 0 | P194: 0 | Q194: 0 | R194: 0 | S194: 0 | T194: =T158+T170+T182 -> 0 | U194: 0 | V194: 0 | W194: 0 | X194: 0 | Y194: 0 | Z194: 0 | AA194: 0 | AB194: 0 | AC194: =AC158+AC170+AC182 -> 0 | AD194: 0 | AE194: 0 | AF194: 0 | AG194: 0 | AH194: =PrincipledApproach!AH194 -> 0 | AI194: =AI158+AI170+AI182 -> 0 | AJ194: 0 | AK194: 0 | AL194: 0 | AM194: 0
A195: =ROW() -> 195 | C195: Cathodic/Corrosion Protection | H195: =Inputs!H143 -> 0 | I195: =I159+I171+I183 -> 0 | J195: 0 | K195: 0 | L195: 0 | M195: 0 | N195: 0 | O195: 0 | P195: 0 | Q195: 0 | R195: 0 | S195: 0 | T195: =T159+T171+T183 -> 0 | U195: 0 | V195: 0 | W195: 0 | X195: 0 | Y195: 0 | Z195: 0 | AA195: 0 | AB195: 0 | AC195: =AC159+AC171+AC183 -> 0 | AD195: 0 | AE195: 0 | AF195: 0 | AG195: 0 | AH195: =PrincipledApproach!AH195 -> 0 | AI195: =AI159+AI171+AI183 -> 0 | AJ195: 0 | AK195: 0 | AL195: 0 | AM195: 0
A196: =ROW() -> 196 | C196: SCADA , ECI And Comms | H196: =Inputs!H144 -> 0 | I196: =I160+I172+I184 -> 0 | J196: 0 | K196: 0 | L196: 0 | M196: 0 | N196: 0 | O196: 0 | P196: 0 | Q196: 0 | R196: 0 | S196: 0 | T196: =T160+T172+T184 -> 0 | U196: 0 | V196: 0 | W196: 0 | X196: 0 | Y196: 0 | Z196: 0 | AA196: 0 | AB196: 0 | AC196: =AC160+AC172+AC184 -> 0 | AD196: 0 | AE196: 0 | AF196: 0 | AG196: 0 | AH196: =PrincipledApproach!AH196 -> 0 | AI196: =AI160+AI172+AI184 -> 0 | AJ196: 0 | AK196: 0 | AL196: 0 | AM196: 0
A197: =ROW() -> 197 | C197: Building | H197: =Inputs!H145 -> 0 | I197: 0 | J197: 0 | K197: 0 | L197: 0 | M197: 0 | N197: 0 | O197: 0 | P197: 0 | Q197: 0 | R197: 0 | S197: 0 | T197: 0 | U197: 0 | V197: 0 | W197: 0 | X197: 0 | Y197: 0 | Z197: 0 | AA197: 0 | AB197: 0 | AC197: =AC161+AC173+AC185 -> 0 | AD197: 0 | AE197: 0 | AF197: 0 | AG197: 0 | AH197: =PrincipledApproach!AH197 -> 0 | AI197: =AI161+AI173+AI185 -> 0 | AJ197: 0 | AK197: 0 | AL197: 0 | AM197: 0
A198: =ROW() -> 198 | C198: Non-Depreciable | H198: =Inputs!H146 -> 20.70862691 | I198: =I162+I174+I186 -> 20.70862691 | J198: =J162+J174+J186 -> 20.70862691 | K198: 20.70862691 | L198: 20.70862691 | M198: 20.70862691 | N198: 17.21815058 | O198: 17.21815058 | P198: 17.21815058 | Q198: 17.21815058 | R198: 17.21815058 | S198: =(S162+S174+S186-S210)*(S162+S174+S186-S210>0) -> 17.21815058 | T198: =T162+T174+T186 -> 17.21815058 | U198: 17.21815058 | V198: 17.21815058 | W198: 17.21815058 | X198: =X162+X174+X186 -> 17.21815058 | Y198: 17.21815058 | Z198: 17.21815058 | AA198: 17.21815058 | AB198: 17.21815058 | AC198: =AC162+AC174+AC186 -> 17.21815058 | AD198: 17.21815058 | AE198: 17.21815058 | AF198: 17.21815058 | AG198: 17.21815058 | AH198: =PrincipledApproach!AH198 -> 17.21815058 | AI198: =AI162+AI174+AI186 -> 17.21815058 | AJ198: 17.21815058 | AK198: 17.21815058 | AL198: 17.21815058 | AM198: 17.21815058
A199: =ROW() -> 199 | C199: Cost of Raising Equity | H199: =Inputs!H147 -> 0 | I199: =I163+I175+I187 -> 0 | J199: =J163+J175+J187 -> 0 | K199: 0 | L199: 0 | M199: 0 | N199: 0 | O199: 0 | P199: 0 | Q199: 0 | R199: 0 | S199: =(S163+S175+S187-S211)*(S163+S175+S187-S211>0) -> 0 | T199: =T163+T175+T187 -> 0 | U199: 0 | V199: 0 | W199: 0 | X199: =X163+X175+X187 -> 0 | Y199: 0 | Z199: 0 | AA199: 0 | AB199: 0 | AC199: =AC163+AC175+AC187 -> 0 | AD199: 0 | AE199: 0 | AF199: 0 | AG199: 0 | AH199: =PrincipledApproach!AH199 -> 0 | AI199: =AI163+AI175+AI187 -> 0 | AJ199: 0 | AK199: 0 | AL199: 0 | AM199: 0
A200: =ROW() -> 200 | C200: Total | H200: =SUM(H190:H199) -> 3135.142606 | I200: 3058.760316 | J200: =SUM(J190:J199) -> 2982.378026 | K200: =SUM(K190:K199) -> 2905.995735 | L200: =SUM(L190:L199) -> 2829.613445 | M200: =SUM(M190:M199) -> 2753.231155 | N200: =SUM(N190:N199) -> 2668.18795 | O200: =SUM(O190:O199) -> 2593.19159 | P200: =SUM(P190:P199) -> 2518.144705 | Q200: =SUM(Q190:Q199) -> 2443.110166 | R200: =SUM(R190:R199) -> 2367.9919 | S200: =SUM(S190:S199) -> 2292.979564 | T200: =SUM(T190:T199) -> 2216.361755 | U200: =SUM(U190:U199) -> 2142.13838 | V200: =SUM(V190:V199) -> 2067.902924 | W200: =SUM(W190:W199) -> 1993.680447 | X200: 1919.491439 | Y200: =SUM(Y190:Y199) -> 1848.661917 | Z200: =SUM(Z190:Z199) -> 1780.137187 | AA200: =SUM(AA190:AA199) -> 1711.612457 | AB200: =SUM(AB190:AB199) -> 1651.367311 | AC200: 1603.579459 | AD200: 1540.801593 | AE200: 1493.922102 | AF200: 1447.042612 | AG200: 1400.163121 | AH200: =SUM(AH190:AH199) -> 1353.283631 | AI200: =SUM(AI190:AI199) -> 1306.40414 | AJ200: 1259.52465 | AK200: 1212.645159 | AL200: 1165.765669 | AM200: 1118.886178
A201: =ROW() -> 201 | B201: Over Depreciation | G201: Check | H201: =IF(ROUND(H200-Inputs!H172,6)=0,"OK","Wrong") -> OK | I201: =IF(ROUND(I200-Inputs!I172,6)=0,"OK","Wrong") -> OK | J201: =IF(ROUND(J200-Inputs!J172,6)=0,"OK","Wrong") -> OK | K201: =IF(ROUND(K200-Inputs!K172,6)=0,"OK","Wrong") -> OK | L201: =IF(ROUND(L200-Inputs!L172,6)=0,"OK","Wrong") -> OK | M201: =IF(ROUND(M200-Inputs!M172,6)=0,"OK","Wrong") -> OK
... 2754 more rows

Sheet PrincipledApproach
A1: =Main!A1 -> AGIG, DBNGP Tariff Model, Final Plan, Dec 2024
A2: =MID(CELL("filename",A1),FIND("]",CELL("filename",A1))+1,256) -> PrincipledApproach
A3: Ref. | B3: =COLUMN() -> 2 | C3: =COLUMN() -> 3 | D3: =COLUMN() -> 4 | E3: =COLUMN() -> 5 | F3: =COLUMN() -> 6 | G3: =COLUMN() -> 7 | H3: =COLUMN() -> 8 | I3: =COLUMN() -> 9 | J3: =COLUMN() -> 10 | K3: =COLUMN() -> 11 | L3: =COLUMN() -> 12 | M3: =COLUMN() -> 13 | N3: =COLUMN() -> 14 | O3: =COLUMN() -> 15 | P3: =COLUMN() -> 16 | Q3: =COLUMN() -> 17 | R3: =COLUMN() -> 18 | S3: =COLUMN() -> 19 | T3: =COLUMN() -> 20 | U3: =COLUMN() -> 21 | V3: =COLUMN() -> 22 | W3: =COLUMN() -> 23 | X3: =COLUMN() -> 24 | Y3: =COLUMN() -> 25 | Z3: =COLUMN() -> 26 | AA3: =COLUMN() -> 27 | AB3: =COLUMN() -> 28 | AC3: =COLUMN() -> 29 | AD3: =COLUMN() -> 30 | AE3: =COLUMN() -> 31 | AF3: =COLUMN() -> 32 | AG3: =COLUMN() -> 33 | AH3: =COLUMN() -> 34 | AI3: =COLUMN() -> 35 | AJ3: =COLUMN() -> 36 | AK3: =COLUMN() -> 37 | AL3: =COLUMN() -> 38 | AM3: =COLUMN() -> 39
A5: Regulatory Period | I5: =Inputs!I$5 -> AA1 | J5: =Inputs!J$5 -> AA1 | K5: =Inputs!K$5 -> AA1 | L5: =Inputs!L$5 -> AA1 | M5: =Inputs!M$5 -> AA1 | N5: =Inputs!N$5 -> AA2 | O5: =Inputs!O$5 -> AA2 | P5: =Inputs!P$5 -> AA2 | Q5: =Inputs!Q$5 -> AA2 | R5: =Inputs!R$5 -> AA2 | S5: =Inputs!S$5 -> AA2 | T5: =Inputs!T$5 -> AA3 | U5: =Inputs!U$5 -> AA3 | V5: =Inputs!V$5 -> AA3 | W5: =Inputs!W$5 -> AA3 | X5: =Inputs!X$5 -> AA3 | Y5: =Inputs!Y$5 -> AA4 | Z5: =Inputs!Z$5 -> AA4 | AA5: =Inputs!AA$5 -> AA4 | AB5: =Inputs!AB$5 -> AA4 | AC5: =Inputs!AC$5 -> AA4 | AD5: =Inputs!AD$5 -> AA5 | AE5: =Inputs!AE$5 -> AA5 | AF5: =Inputs!AF$5 -> AA5 | AG5: =Inputs!AG$5 -> AA5 | AH5: =Inputs!AH$5 -> AA5 | AI5: =Inputs!AI$5 -> AA6 | AJ5: =Inputs!AJ$5 -> AA6 | AK5: =Inputs!AK$5 -> AA6 | AL5: =Inputs!AL$5 -> AA6 | AM5: =Inputs!AM$5 -> AA6
A6: Year | H6: =Inputs!H$6 -> 1999 | I6: =Inputs!I$6 -> 2000 | J6: =Inputs!J$6 -> 2001 | K6: =Inputs!K$6 -> 2002 | L6: =Inputs!L$6 -> 2003 | M6: =Inputs!M$6 -> 2004 | N6: =Inputs!N$6 -> 2005 | O6: =Inputs!O$6 -> 2006 | P6: =Inputs!P$6 -> 2007 | Q6: =Inputs!Q$6 -> 2008 | R6: =Inputs!R$6 -> 2009 | S6: =Inputs!S$6 -> 2010 | T6: =Inputs!T$6 -> 2011 | U6: =Inputs!U$6 -> 2012 | V6: =Inputs!V$6 -> 2013 | W6: =Inputs!W$6 -> 2014 | X6: =Inputs!X$6 -> 2015 | Y6: =Inputs!Y$6 -> 2016 | Z6: =Inputs!Z$6 -> 2017 | AA6: =Inputs!AA$6 -> 2018 | AB6: =Inputs!AB$6 -> 2019 | AC6: =Inputs!AC$6 -> 2020 | AD6: =Inputs!AD$6 -> 2021 | AE6: =Inputs!AE$6 -> 2022 | AF6: =Inputs!AF$6 -> 2023 | AG6: =Inputs!AG$6 -> 2024 | AH6: =Inputs!AH$6 -> 2025 | AI6: =Inputs!AI$6 -> 2026 | AJ6: =Inputs!AJ$6 -> 2027 | AK6: =Inputs!AK$6 -> 2028 | AL6: =Inputs!AL$6 -> 2029 | AM6: =Inputs!AM$6 -> 2030
A7: Days | H7: =Inputs!H$7 -> 365 | I7: =Inputs!I$7 -> 366 | J7: =Inputs!J$7 -> 365 | K7: =Inputs!K$7 -> 365 | L7: =Inputs!L$7 -> 365 | M7: =Inputs!M$7 -> 366 | N7: =Inputs!N$7 -> 365 | O7: =Inputs!O$7 -> 365 | P7: =Inputs!P$7 -> 365 | Q7: =Inputs!Q$7 -> 366 | R7: =Inputs!R$7 -> 365 | S7: =Inputs!S$7 -> 365 | T7: =Inputs!T$7 -> 365 | U7: =Inputs!U$7 -> 366 | V7: =Inputs!V$7 -> 365 | W7: =Inputs!W$7 -> 365 | X7: =Inputs!X$7 -> 365 | Y7: =Inputs!Y$7 -> 366 | Z7: =Inputs!Z$7 -> 365 | AA7: =Inputs!AA$7 -> 365 | AB7: =Inputs!AB$7 -> 365 | AC7: =Inputs!AC$7 -> 366 | AD7: =Inputs!AD$7 -> 365 | AE7: =Inputs!AE$7 -> 365 | AF7: =Inputs!AF$7 -> 365 | AG7: =Inputs!AG$7 -> 366 | AH7: =Inputs!AH$7 -> 365 | AI7: =Inputs!AI$7 -> 365 | AJ7: =Inputs!AJ$7 -> 365 | AK7: =Inputs!AK$7 -> 366 | AL7: =Inputs!AL$7 -> 365 | AM7: =Inputs!AM$7 -> 365
A8: Project Year | H8: =Inputs!H$8 -> 0 | I8: =Inputs!I$8 -> 1 | J8: =Inputs!J$8 -> 2 | K8: =Inputs!K$8 -> 3 | L8: =Inputs!L$8 -> 4 | M8: =Inputs!M$8 -> 5 | N8: =Inputs!N$8 -> 6 | O8: =Inputs!O$8 -> 7 | P8: =Inputs!P$8 -> 8 | Q8: =Inputs!Q$8 -> 9 | R8: =Inputs!R$8 -> 10 | S8: =Inputs!S$8 -> 11 | T8: =Inputs!T$8 -> 12 | U8: =Inputs!U$8 -> 13 | V8: =Inputs!V$8 -> 14 | W8: =Inputs!W$8 -> 15 | X8: =Inputs!X$8 -> 16 | Y8: =Inputs!Y$8 -> 17 | Z8: =Inputs!Z$8 -> 18 | AA8: =Inputs!AA$8 -> 19 | AB8: =Inputs!AB$8 -> 20 | AC8: =Inputs!AC$8 -> 21 | AD8: =Inputs!AD$8 -> 22 | AE8: =Inputs!AE$8 -> 23 | AF8: =Inputs!AF$8 -> 24 | AG8: =Inputs!AG$8 -> 25 | AH8: =Inputs!AH$8 -> 26 | AI8: =Inputs!AI$8 -> 27 | AJ8: =Inputs!AJ$8 -> 28 | AK8: =Inputs!AK$8 -> 29 | AL8: =Inputs!AL$8 -> 30 | AM8: =Inputs!AM$8 -> 31
A9: Financial Parameters
A10: =ROW() -> 10 | B10: Modelled Inflation
A11: =ROW() -> 11 | C11: ="Inflation Factor (convert " &Inputs!$E$28& " $ to nominal $)" -> Inflation Factor (convert 31/12/2024 $ to nominal $) | H11: =Inputs!H28 -> 0.4943953736 | I11: =Inputs!I28 -> 0.5230790697 | J11: =Inputs!J28 -> 0.5394128411 | K11: =Inputs!K28 -> 0.5557466125 | L11: =Inputs!L28 -> 0.5688933066 | M11: =Inputs!M28 -> 0.5836335393 | N11: =Inputs!N28 -> 0.5999673107 | O11: =Inputs!O28 -> 0.6194881595 | P11: =Inputs!P28 -> 0.6378138542 | Q11: =Inputs!Q28 -> 0.6613185497 | R11: =Inputs!R28 -> 0.6752620131 | S11: =Inputs!S28 -> 0.6931893232 | T11: =Inputs!T28 -> 0.7147020953 | U11: =Inputs!U28 -> 0.7304570513 | V11: =Inputs!V28 -> 0.7505088135 | W11: =Inputs!W28 -> 0.763399232 | X11: =Inputs!X28 -> 0.7762896506 | Y11: =Inputs!Y28 -> 0.7877478004 | Z11: =Inputs!Z28 -> 0.802786622 | AA11: =Inputs!AA28 -> 0.8171093093 | AB11: =Inputs!AB28 -> 0.832148131 | AC11: =Inputs!AC28 -> 0.8393094746 | AD11: =Inputs!AD28 -> 0.8686709835 | AE11: =Inputs!AE28 -> 0.9367037481 | AF11: =Inputs!AF28 -> 0.9746588694 | AG11: =Inputs!AG28 -> 1 | AH11: =Inputs!AH28 -> 1.037 | AI11: =Inputs!AI28 -> 1.059643904 | AJ11: =Inputs!AJ28 -> 1.082782259 | AK11: =Inputs!AK28 -> 1.106425863 | AL11: =Inputs!AL28 -> 1.130585748 | AM11: =Inputs!AM28 -> 1.155273188
A12: =ROW() -> 12 | C12: ="Inflation Factor (convert nominal to real "&Inputs!$E$28&" $)" -> Inflation Factor (convert nominal to real 31/12/2024 $) | H12: =Inputs!H29 -> 2.022672649 | I12: =Inputs!I29 -> 1.91175686 | J12: =Inputs!J29 -> 1.85386762 | K12: =Inputs!K29 -> 1.799381188 | L12: =Inputs!L29 -> 1.75779885 | M12: =Inputs!M29 -> 1.71340393 | N12: =Inputs!N29 -> 1.666757475 | O12: =Inputs!O29 -> 1.614235857 | P12: =Inputs!P29 -> 1.567855564 | Q12: =Inputs!Q29 -> 1.512130577 | R12: =Inputs!R29 -> 1.480906642 | S12: =Inputs!S29 -> 1.442607332 | T12: =Inputs!T29 -> 1.399184369 | U12: =Inputs!U29 -> 1.369005882 | V12: =Inputs!V29 -> 1.332429389 | W12: =Inputs!W29 -> 1.309930582 | X12: =Inputs!X29 -> 1.288178967 | Y12: =Inputs!Y29 -> 1.269441818 | Z12: =Inputs!Z29 -> 1.245661017 | AA12: =Inputs!AA29 -> 1.223826468 | AB12: =Inputs!AB29 -> 1.201709122 | AC12: =Inputs!AC29 -> 1.191455631 | AD12: =Inputs!AD29 -> 1.151183842 | AE12: =Inputs!AE29 -> 1.067573394 | AF12: =Inputs!AF29 -> 1.026 | AG12: =Inputs!AG29 -> 1 | AH12: =Inputs!AH29 -> 0.9643201543 | AI12: =Inputs!AI29 -> 0.9437132573 | AJ12: =Inputs!AJ29 -> 0.9235467164 | AK12: =Inputs!AK29 -> 0.9038111214 | AL12: =Inputs!AL29 -> 0.8844972633 | AM12: =Inputs!AM29 -> 0.8655961298
A13: ="DBNGP Asset Account Summary [m$ "&TEXT(Inputs!$E$28,"dd/mm/yyyy")&"]" -> DBNGP Asset Account Summary [m$ 31/12/2024]
A14: All Assets
A15: =ROW() -> 15 | B15: DBNGP Asset Including BEP and Shippers' Financed Capex
A16: =ROW() -> 16 | C16: Opening Value | I16: =I22+I29 -> 3135.142606 | J16: =J22+J29 -> 3068.432846 | K16: 2997.689463 | L16: 2922.504534 | M16: 2845.729105 | N16: 2772.924902 | O16: 2778.430804 | P16: 3342.662239 | Q16: 3281.780168 | R16: 4137.404549 | S16: 4035.195713 | T16: 4865.844437 | U16: 4936.553042 | V16: 4843.949067 | W16: 4735.869427 | X16: 4614.045437 | Y16: 4506.437845 | Z16: 4401.674599 | AA16: 4311.123419 | AB16: 4216.854841 | AC16: 4125.9973 | AD16: 4049.740264 | AE16: 3877.22024 | AF16: 3782.795471 | AG16: 3694.800718 | AH16: 3592.152119 | AI16: =AI22+AI29 -> 3453.071241 | AJ16: 3271.563576 | AK16: 3194.538659 | AL16: 3107.776912 | AM16: 3012.442349
A17: =ROW() -> 17 | C17: Capex | I17: =I23+I30 -> 9.672530473 | J17: 6.057349234 | K17: 2.258677447 | L17: 1.360451232 | M17: 5.78566032 | N17: 91.27538829 | O17: 640.5804216 | P17: 20.34769721 | Q17: 950.2658855 | R17: 1.898175146 | S17: 892.7812219 | T17: 204.674576 | U17: 42.12279492 | V17: 27.68015973 | W17: 16.1321265 | X17: 28.93413842 | Y17: 22.95495073 | Z17: 40.39709798 | AA17: 38.26551178 | AB17: 34.42980861 | AC17: 37.29155043 | AD17: 44.99715087 | AE17: 44.91841631 | AF17: 53.53738699 | AG17: 39.21586479 | AH17: 38.98912437 | AI17: =AI23+AI30 -> 62.86951769 | AJ17: 75.25590856 | AK17: 63.57712321 | AL17: 52.442319 | AM17: 39.91393108
A18: =ROW() -> 18 | C18: Redundant & Disposed Asset | I18: 0 | J18: 0 | K18: 0 | L18: 0 | M18: 0 | N18: -10.0468458 | O18: 0 | P18: -0.05052640486 | Q18: -0.03817869781 | R18: -0.1219073972 | S18: -0.01597622491 | T18: -6.185583949 | U18: -0.5082831565 | V18: -1.012554758 | W18: -2.856601137 | X18: -1.004348538 | Y18: 0 | Z18: 0 | AA18: 0 | AB18: 0 | AC18: 0 | AD18: 0 | AE18: 0 | AF18: 0 | AG18: 0 | AH18: 0 | AI18: =AI24+AI31 -> 0 | AJ18: 0 | AK18: 0 | AL18: 0 | AM18: 0
A19: =ROW() -> 19 | C19: Depreciation | I19: -76.38229023 | J19: -76.80073304 | K19: -77.44360583 | L19: -78.13587999 | M19: -78.58986405 | N19: -75.72264012 | O19: -76.34898618 | P19: -81.179242 | Q19: -94.60332575 | R19: -103.9851038 | S19: -106.4261369 | T19: -127.7803872 | U19: -134.2184868 | V19: -134.7472447 | W19: -135.0995157 | X19: -135.5373814 | Y19: -127.7181973 | Z19: -130.9482772 | AA19: -132.5340903 | AB19: -125.2873495 | AC19: -113.5485866 | AD19: -217.5171745 | AE19: -139.3431856 | AF19: -141.5321401 | AG19: -141.8644637 | AH19: -143.4236547 | AI19: =AI25+AI32 -> -244.3771829 | AJ19: -152.2808254 | AK19: -150.3388698 | AL19: -147.7768823 | AM19: -150.0788421
A20: =ROW() -> 20 | C20: Closing Value | H20: 3135.142606 | I20: 3068.432846 | J20: 2997.689463 | K20: 2922.504534 | L20: 2845.729105 | M20: 2772.924902 | N20: 2778.430804 | O20: 3342.662239 | P20: 3281.780168 | Q20: 4137.404549 | R20: 4035.195713 | S20: 4865.844437 | T20: 4936.553042 | U20: 4843.949067 | V20: 4735.869427 | W20: 4614.045437 | X20: 4506.437845 | Y20: 4401.674599 | Z20: 4311.123419 | AA20: 4216.854841 | AB20: 4125.9973 | AC20: 4049.740264 | AD20: 3877.22024 | AE20: 3782.795471 | AF20: 3694.800718 | AG20: 3592.152119 | AH20: 3487.717589 | AI20: =AI26+AI33 -> 3271.563576 | AJ20: 3194.538659 | AK20: 3107.776912 | AL20: 3012.442349 | AM20: 2902.277438
A21: =ROW() -> 21 | B21: Shippers' Asset Account | H21: =IF(ABS(H20-Asset_NoReclass!H20)<=0.0001,"OK","Check") -> OK | I21: =IF(ABS(I20-Asset_NoReclass!I20)<=0.0001,"OK","Check") -> OK | J21: =IF(ABS(J20-Asset_NoReclass!J20)<=0.0001,"OK","Check") -> OK | K21: =IF(ABS(K20-Asset_NoReclass!K20)<=0.0001,"OK","Check") -> OK | L21: =IF(ABS(L20-Asset_NoReclass!L20)<=0.0001,"OK","Check") -> OK | M21: =IF(ABS(M20-Asset_NoReclass!M20)<=0.0001,"OK","Check") -> OK | N21: =IF(ABS(N20-Asset_NoReclass!N20)<=0.0001,"OK","Check") -> OK | O21: =IF(ABS(O20-Asset_NoReclass!O20)<=0.0001,"OK","Check") -> OK | P21: =IF(ABS(P20-Asset_NoReclass!P20)<=0.0001,"OK","Check") -> OK | Q21: =IF(ABS(Q20-Asset_NoReclass!Q20)<=0.0001,"OK","Check") -> OK | R21: =IF(ABS(R20-Asset_NoReclass!R20)<=0.0001,"OK","Check") -> OK | S21: =IF(ABS(S20-Asset_NoReclass!S20)<=0.0001,"OK","Check") -> OK | T21: =IF(ABS(T20-Asset_NoReclass!T20)<=0.0001,"OK","Check") -> OK | U21: =IF(ABS(U20-Asset_NoReclass!U20)<=0.0001,"OK","Check") -> OK | V21: =IF(ABS(V20-Asset_NoReclass!V20)<=0.0001,"OK","Check") -> OK | W21: =IF(ABS(W20-Asset_NoReclass!W20)<=0.0001,"OK","Check") -> OK | X21: =IF(ABS(X20-Asset_NoReclass!X20)<=0.0001,"OK","Check") -> OK | Y21: =IF(ABS(Y20-Asset_NoReclass!Y20)<=0.0001,"OK","Check") ->  | Z21: =IF(ABS(Z20-Asset_NoReclass!Z20)<=0.0001,"OK","Check") ->  | AA21: =IF(ABS(AA20-Asset_NoReclass!AA20)<=0.0001,"OK","Check") ->  | AB21: =IF(ABS(AB20-Asset_NoReclass!AB20)<=0.0001,"OK","Check") ->  | AC21: =IF(ABS(AC20-Asset_NoReclass!AC20)<=0.0001,"OK","Check") -> 
A22: =ROW() -> 22 | C22: Opening Value (Starting 01/12/2010) | I22: =Shippers_Asset!I18 -> 0 | J22: =Shippers_Asset!J18 -> 0 | K22: =Shippers_Asset!K18 -> 0 | L22: =Shippers_Asset!L18 -> 0 | M22: =Shippers_Asset!M18 -> 0 | N22: =Shippers_Asset!N18 -> 0 | O22: =Shippers_Asset!O18 -> 4.319994729 | P22: =Shippers_Asset!P18 -> 24.49718606 | Q22: =Shippers_Asset!Q18 -> 35.97779815 | R22: =Shippers_Asset!R18 -> 36.42761648 | S22: =Shippers_Asset!S18 -> 35.29334685 | T22: =Shippers_Asset!T18 -> 34.15907723 | U22: =Shippers_Asset!U18 -> 33.0248076 | V22: =Shippers_Asset!V18 -> 31.89053797 | W22: =Shippers_Asset!W18 -> 30.75626835 | X22: =Shippers_Asset!X18 -> 29.62199872 | Y22: =Shippers_Asset!Y18 -> 28.4877291 | Z22: =Shippers_Asset!Z18 -> 28.29033493 | AA22: =Shippers_Asset!AA18 -> 38.67284723 | AB22: =Shippers_Asset!AB18 -> 47.96897069 | AC22: =Shippers_Asset!AC18 -> 48.44191966 | AD22: =Shippers_Asset!AD18 -> 46.14265762 | AE22: =Shippers_Asset!AE18 -> 43.84339558 | AF22: =Shippers_Asset!AF18 -> 41.54413353 | AG22: =Shippers_Asset!AG18 -> 39.24487149 | AH22: =Shippers_Asset!AH18 -> 36.94560945 | AI22: =Shippers_Asset!AI18 -> 0 | AJ22: =Shippers_Asset!AJ18 -> 0 | AK22: =Shippers_Asset!AK18 -> 0 | AL22: =Shippers_Asset!AL18 -> 0 | AM22: =Shippers_Asset!AM18 -> 0
